Workbook

Sheet 各種パラメータ(sht0)
B2: プリプレグ | L2: 環境条件
B3: 購入先 | C3: 三菱ケミカル | D3: https://www.m-chemical.co.jp/products/field/carbon/index.html | L3: 名 | M3: 記号 | N3: 値 | O3: 単位 | P3: 備考
C4: 株式会社カナエ | D4: https://www.kanae-kbs.co.jp/chemical/ | L4: 空気密度 | M4: ρ | N4: =N11/(N12*N9) -> 1.164313615 | O4: kg/m^3 | P4: https://pigeon-poppo.com/standard-atmosphere/
B5: 品番 | C5: MR380G150S | L5: 重力加速度 | M5: g | N5: 9.795 | O5: m/s^2 | P5: https://unit.aist.go.jp/riem/lgl-apr/requirement/mass/approval/GravityAria_info2.pdf
B6: Carbon | C6: MR60H | L6: 粘性係数 | M6: μ | N6: =(1.458*(10^-6)*(N9^(3/2)))/(N9+110.4) -> 1.860869242e-05 | O6: N・s/m^2 | P6: https://pigeon-poppo.com/standard-atmosphere/
B7: Resin | C7: #350 | L7: 動粘性係数 | M7: ν | N7: =N6/N4 -> 1.5982543e-05 | O7: m^2/s | P7: https://pigeon-poppo.com/standard-atmosphere/
B8: FAW | C8: 150 | D8: g/m^2 | E8: FAW：Fiber Areal Weight．単位面積あたりの繊維の重量（単位：g/㎡） | L8: 気温 | M8: T | N8: 30 | O8: ℃
B9: Resin Content | C9: 33 | D9: weiht % | N9: =273.15+N8 -> 303.15 | O9: K
B10: Curing Condition | C10: Autoclave Curing for 60 minutes at 80℃ and 90 minutes at 130℃ temp elevating rate:2°C/min pressure 0.8MPa (Gauge) | L10: 圧力 | M10: P | N10: 1013 | O10: hPa
N11: =N10*100 -> 101300 | O11: Pa
L12: 一般気体定数 | M12: R | N12: 287 | O12: J/kg・K | P12: https://pigeon-poppo.com/standard-atmosphere/
L13: 比熱比 | M13: κ | N13: 1.4 | O13: - | P13: https://pigeon-poppo.com/standard-atmosphere/
B14: Mechanical Peoperties | F14: 下の物性値はMRX350G125Sのもの． 使っている炭素繊維，樹脂はMR380G150Sと同じものなので物性値はほぼ同等 (沖本) | L14: 音速 | M14: a | N14: =SQRT(N13*N12*N9) -> 349.0066905 | O14: m/s | P14: https://pigeon-poppo.com/standard-atmosphere/
B15: 名 | C15: 記号 | D15: 値 | E15: 単位 | F15: 備考 | L15: カルマン定数 | M15: k | N15: 0.4 | O15: - | P15: 接地境界層にて風速の対数分布則を適用
B16: 強度 | C16: FLt | D16: 3.182 | E16: GPa | F16: 繊維方向・引張 | L16: 粗度 | M16: z0 | N16: 0.01 | O16: - | P16: 接地境界層にて風速の対数分布則を適用
B17: ヤング率 | C17: ELt | D17: 166 | E17: GPa
B18: ポアソン比 | C18: νLt | D18: 0.33 | E18: -
B19: 強度 | C19: FTt | D19: 0.076 | E19: GPa | F19: 直交方向・引張
B20: ヤング率 | C20: ETt | D20: 8 | E20: GPa
B21: ポアソン比 | C21: νTt | D21: 0.02 | E21: -
B22: 強度 | C22: FLc | D22: -1.469 | E22: GPa | F22: 繊維方向・圧縮
B23: ヤング率 | C23: ELc | D23: 147 | E23: GPa
B24: ポアソン比 | C24: νLc | D24: 0.36 | E24: -
B25: 強度 | C25: FTc | D25: -0.181 | E25: GPa | F25: 直交方向・圧縮
B26: ヤング率 | C26: ETc | D26: 9.1 | E26: GPa
B27: ポアソン比 | C27: νLc | D27: 0.02 | E27: -
B28: 強度 | C28: FLT | D28: 0.125 | E28: GPa | F28: せん断
B29: ヤング率 | C29: GLT | D29: 4 | E29: GPa
B30: 強度 | C30: νLt | D30: 0.086 | E30: GPa | F30: 層間せん断
B31: 厚さ | C31: t | D31: 0.147 | E31: mm/ply

Sheet 主翼(sht1)
B2: 主翼諸元 | L2: 主翼平面形 | AR2: 反復回数 | AS2: 40 | AZ2: ='各種パラメータ(sht0)'!L2 -> 環境条件 | BE2: 重量推算 | BJ2: 主翼二次構造 | BL2: コード長1mに対して
B3: 名 | C3: 記号 | D3: 値 | E3: 単位 | M3: 翼素番号 | N3: スパン | O3: コード長 [m] | P3: 取り付け角 [deg] | Q3: 上反角 [deg] | R3: 翼型1 | S3: 翼型2 | T3: テーパー比 | U3: Δy [m] | V3: Δ翼面積 [m^2] | W3: c(y)傾き [-] | X3: 切片 [m] | AB3: コード傾き | AC3: コード切片 | AD3: 取り付け角傾き | AE3: 取り付け角切片 | AF3: 翼型1傾き | AG3: 翼型1切片 | AH3: 翼型2傾き | AI3: 翼型2切片 | AL3: 翼素番号 | AM3: スパン | AP3: ='各種パラメータ(sht0)'!L3 -> 名 | AQ3: ='各種パラメータ(sht0)'!M3 -> 記号 | AR3: ='各種パラメータ(sht0)'!N3 -> 値 | AS3: ='各種パラメータ(sht0)'!O3 -> 単位 | AU3: 名 | AV3: 記号 | AW3: 値 | AX3: 単位 | AZ3: 名 | BA3: 記号 | BB3: 値 | BC3: 単位 | BE3: 名 | BF3: 記号 | BG3: 値 | BH3: 単位 | BJ3: 名 | BK3: 記号 | BL3: 値 | BM3: 単位
A4: 設計値 | B4: 翼面積 | C4: S | D4: =V14*2 -> 34.86 | E4: m^2 | M4: n | N4: y | O4: c | P4: αs | Q4: Γd | R4: - | S4: - | T4: λ | U4: Δy | V4: ΔS | W4: a | X4: b | Y4: ∫c(y)^2dy | Z4: ∫c(y)*(y^2) dy | AB4: - | AC4: - | AD4: - | AE4: - | AF4: - | AG4: - | AH4: - | AI4: - | AL4: n | AM4: y | AP4: =B33 -> 分割数 | AQ4: =C33 -> n | AR4: =D33 -> 65 | AS4: =E33 -> - | AU4: 上反 | AV4: - | AW4: あり | AX4: - | AZ4: ='各種パラメータ(sht0)'!L4 -> 空気密度 | BA4: ='各種パラメータ(sht0)'!M4 -> ρ | BB4: ='各種パラメータ(sht0)'!N4 -> 1.164313615 | BC4: ='各種パラメータ(sht0)'!O4 -> kg/m^3 | BE4: 0番 | BF4: 桁 | BG4: ='スパー寸法(sht20)'!AR15 -> 4.709064273 | BH4: kg | BJ4: 翼型1 | BK4: 全周 | BL4: ='主翼翼型1解析(sht10)'!P12 -> 2.041509463 | BM4: m
B5: 翼幅 | C5: b | D5: =U14*2 -> 26 | E5: m | M5: - | N5: m | O5: m | P5: deg | Q5: deg | R5: - | S5: - | T5: - | U5: m | V5: m^2 | W5: - | X5: m | Y5: m^3 | Z5: m^4 | AB5: m/m | AC5: m | AD5: deg/m | AE5: deg | AF5: 1/m | AG5: - | AH5: 1/m | AI5: - | AL5: - | AM5: m | AQ5: m | AR5: 1 | AS5: - | AU5: たわみ | AV5: - | AW5: あり | AX5: - | AZ5: ='各種パラメータ(sht0)'!L5 -> 重力加速度 | BA5: ='各種パラメータ(sht0)'!M5 -> g | BB5: ='各種パラメータ(sht0)'!N5 -> 9.795 | BC5: ='各種パラメータ(sht0)'!O5 -> m/s^2 | BF5: リブ | BG5: =SUM(BL45:BL110)*2 -> 0.7526774892 | BH5: kg | BK5: プランク長 | BL5: ='主翼翼型1解析(sht10)'!P13 -> 0.8942555233 | BM5: m
B6: アスペクト比 | C6: AR | D6: =(D5*D5)/D4 -> 19.39185313 | E6: - | L6: 矩形部 [0] | M6: =INT(N6/$D$30) -> 0 | N6: 0 | O6: 1.5 | P6: 7.5 | Q6: 0 | R6: 1 | S6: 0 | T6: =O7/O6 -> 1 | U6: =N7-N6 -> 6.4 | V6: =(O6+O7)*U6/2 -> 9.6 | W6: =LINEST(O6:O7,N6:N7,TRUE,FALSE) -> 0 | X6: 1.5 | Y6: =IF(W6=0,X6^2*(N7-N6),((W6*N7+X6)^3-(W6*N6+X6)^3)/(3*W6)) -> 14.4 | Z6: =(AB6/3)*((N7^3)-(N6^3))+(AC6/2)*((N7^2)-(N6^2)) -> 30.72 | AB6: =LINEST(O6:O7,N6:N7,TRUE,FALSE) -> 0 | AC6: 1.5 | AD6: =LINEST(P6:P7,N6:N7,TRUE,FALSE) -> 0 | AE6: 7.5 | AF6: =LINEST(R6:R7,N6:N7,TRUE,TRUE) -> 0 | AG6: 1 | AH6: =LINEST(S6:S7,N6:N7,TRUE,TRUE) -> 0 | AI6: 0 | AK6: 0番 | AL6: =AM6/$D$30 -> 0 | AM6: 0 | AU6: ねじれ | AV6: - | AW6: あり | AX6: - | AZ6: ='各種パラメータ(sht0)'!L6 -> 粘性係数 | BA6: ='各種パラメータ(sht0)'!M6 -> μ | BB6: ='各種パラメータ(sht0)'!N6 -> 1.860869242e-05 | BC6: ='各種パラメータ(sht0)'!O6 -> N・s/m^2 | BF6: プランク | BG6: =SUM(BM45:BM110)*2 -> 0.5472843803 | BH6: kg | BK6: リブ材長 | BL6: ='主翼翼型1解析(sht10)'!P14 -> 1.14725394 | BM6: m
B7: 平均空力翼弦長 | C7: cMAC | D7: =(2/D4)*Y14 -> 1.372461274 | E7: m | F7: 白本p.44 銀本p.77 | L7: 第一段テーパー [1] | M7: 32 | N7: 6.4 | O7: 1.5 | P7: 7.5 | Q7: 0 | R7: 1 | S7: 0 | T7: 0.6 | U7: 6.4 | V7: 7.68 | W7: =LINEST(O7:O8,N7:N8,TRUE,FALSE) -> -0.09375 | X7: 2.1 | Y7: 9.408 | Z7: 71.68 | AB7: =LINEST(O7:O8,N7:N8,TRUE,FALSE) -> -0.09375 | AC7: 2.1 | AD7: =LINEST(P7:P8,N7:N8,TRUE,FALSE) -> 0 | AE7: 7.5 | AF7: =LINEST(R7:R8,N7:N8,TRUE,TRUE) -> 0 | AG7: 1 | AH7: =LINEST(S7:S8,N7:N8,TRUE,TRUE) -> 0 | AI7: 0 | AK7: 1番 | AL7: 12 | AM7: ='スパー寸法(sht20)'!M8 -> 2.4 | AP7: 翼面積 | AQ7: S | AR7: 34.53328974 | AS7: m^2 | AZ7: ='各種パラメータ(sht0)'!L7 -> 動粘性係数 | BA7: ='各種パラメータ(sht0)'!M7 -> ν | BB7: ='各種パラメータ(sht0)'!N7 -> 1.5982543e-05 | BC7: ='各種パラメータ(sht0)'!O7 -> m^2/s | BF7: リブ材 | BG7: =SUM(BO45:BO110)*2 -> 0.2106358234 | BH7: kg | BK7: リブ面積 | BL7: ='主翼翼型1解析(sht10)'!P15 -> 0.06969236011 | BM7: m^2
B8: 片翼面積重心 | C8: y_ | D8: =(2*Z14)/D4 -> 5.985886403 | E8: m | F8: 白本p.44． | L8: 第二段テーパー [2] | M8: 64 | N8: 12.8 | O8: 0.9 | P8: 7.5 | Q8: 0 | R8: 1 | S8: 0 | T8: 0.6666666667 | U8: 0.2 | V8: 0.15 | W8: =LINEST(O8:O9,N8:N9,TRUE,FALSE) -> -1.5 | X8: 20.1 | Y8: 0.114 | Z8: 1.934 | AB8: =LINEST(O8:O9,N8:N9,TRUE,FALSE) -> -1.5 | AC8: 20.1 | AD8: =LINEST(P8:P9,N8:N9,TRUE,FALSE) -> 0 | AE8: 7.5 | AF8: =LINEST(R8:R9,N8:N9,TRUE,TRUE) -> 0 | AG8: 1 | AH8: =LINEST(S8:S9,N8:N9,TRUE,TRUE) -> 0 | AI8: 0 | AK8: 2番 | AL8: 37.45 | AM8: ='スパー寸法(sht20)'!M10 -> 7.49 | AP8: 翼幅 | AQ8: b | AR8: 25.72619283 | AS8: m | AZ8: ='各種パラメータ(sht0)'!L8 -> 気温 | BA8: ='各種パラメータ(sht0)'!M8 -> T | BB8: ='各種パラメータ(sht0)'!N8 -> 30 | BC8: ='各種パラメータ(sht0)'!O8 -> ℃ | BF8: 後縁材 | BG8: =SUM(BP45:BP110)*2 -> 0.09792 | BH8: kg | BJ8: 翼型2 | BK8: 全周 | BL8: ='主翼翼型2解析(sht11)'!P12 -> 2.041509463 | BM8: m
A9: 変形考慮 | B9: 翼面積 | C9: S | D9: =AR7 -> 34.53328974 | E9: m^2 | L9: 第三段テーパー [3] | M9: 65 | N9: 13 | O9: 0.6 | P9: 7.5 | Q9: 0 | R9: 1 | S9: 0 | T9: 1 | U9: 0 | V9: 0 | W9: =LINEST(O9:O10,N9:N10,TRUE,FALSE) -> 0 | X9: 0.6 | Y9: 0 | Z9: 0 | AB9: =LINEST(O9:O10,N9:N10,TRUE,FALSE) -> 0 | AC9: 0.6 | AD9: =LINEST(P9:P10,N9:N10,TRUE,FALSE) -> 0 | AE9: 7.5 | AF9: =LINEST(R9:R10,N9:N10,TRUE,TRUE) -> 0 | AG9: 1 | AH9: =LINEST(S9:S10,N9:N10,TRUE,TRUE) -> 0 | AI9: 0 | AK9: 3番 | AL9: 60 | AM9: ='スパー寸法(sht20)'!M12 -> 12 | AP9: アスペクト比 | AQ9: AR | AR9: 19.16518821 | AS9: - | BB9: ='各種パラメータ(sht0)'!N9 -> 303.15 | BC9: ='各種パラメータ(sht0)'!O9 -> K | BF9: 縦通材 | BG9: =SUM(BN45:BN110)*2 -> 0.19584 | BH9: kg | BK9: プランク長 | BL9: ='主翼翼型2解析(sht11)'!P13 -> 0.8942555233 | BM9: m
B10: 翼幅 | C10: b | D10: =AR8 -> 25.72619283 | E10: m | L10: 第四段テーパー | M10: 65 | N10: 13 | O10: 0.6 | P10: 7.5 | Q10: 0 | R10: 1 | S10: 0 | T10: 1 | U10: 0 | V10: 0 | W10: =LINEST(O10:O11,N10:N11,TRUE,FALSE) -> 0 | X10: 0.6 | Y10: 0 | Z10: 0 | AB10: =LINEST(O10:O11,N10:N11,TRUE,FALSE) -> 0 | AC10: 0.6 | AD10: =LINEST(P10:P11,N10:N11,TRUE,FALSE) -> 0 | AE10: 7.5 | AF10: =LINEST(R10:R11,N10:N11,TRUE,TRUE) -> 0 | AG10: 1 | AH10: =LINEST(S10:S11,N10:N11,TRUE,TRUE) -> 0 | AI10: 0 | AK10: ウィングレット [4] | AL10: 65 | AM10: =AM11 -> 13 | AP10: 平均空力翼弦長 | AQ10: chord_mac | AR10: 1.373887024 | AS10: m | AZ10: ='各種パラメータ(sht0)'!L10 -> 圧力 | BA10: ='各種パラメータ(sht0)'!M10 -> P | BB10: ='各種パラメータ(sht0)'!N10 -> 1013 | BC10: ='各種パラメータ(sht0)'!O10 -> hPa | BF10: 接着剤 | BG10: =SUM(BQ45:BQ110)*2 -> 0.819 | BH10: kg | BK10: リブ材長 | BL10: ='主翼翼型2解析(sht11)'!P14 -> 1.14725394 | BM10: m
B11: アスペクト比 | C11: AR | D11: =AR9 -> 19.16518821 | E11: - | L11: ウィングレット [5] | M11: 65 | N11: 13 | O11: 0.6 | P11: 7.5 | Q11: 0 | R11: 1 | S11: 0 | T11: 1 | U11: 0 | V11: 0 | W11: =LINEST(O11:O12,N11:N12,TRUE,FALSE) -> 0 | X11: 0.6 | Y11: 0 | Z11: 0 | AB11: =LINEST(O11:O12,N11:N12,TRUE,FALSE) -> 0 | AC11: 0.6 | AD11: =LINEST(P11:P12,N11:N12,TRUE,FALSE) -> 0 | AE11: 7.5 | AF11: =LINEST(R11:R12,N11:N12,TRUE,TRUE) -> 0 | AG11: 1 | AH11: =LINEST(S11:S12,N11:N12,TRUE,TRUE) -> 0 | AI11: 0 | AK11: 翼端 | AL11: 65 | AM11: ='スパー寸法(sht20)'!M14 -> 13 | AP11: 片翼面積重心 | AQ11: y_ | AR11: 5.93136902 | AS11: m | AU11: 名 | AV11: 記号 | AW11: 値 | AX11: 単位 | BB11: ='各種パラメータ(sht0)'!N11 -> 101300 | BC11: ='各種パラメータ(sht0)'!O11 -> Pa | BF11: ねじり止め | BG11: 0.3 | BH11: kg | BK11: リブ面積 | BL11: ='主翼翼型2解析(sht11)'!P15 -> 0.06969236011 | BM11: m^2
B12: 平均空力翼弦長 | C12: c_ | D12: =AR10 -> 1.373887024 | E12: m | L12: 翼端 | M12: 65 | N12: 13 | O12: 0.6 | P12: 7.5 | Q12: 0 | R12: 1 | S12: 0 | U12: 0 | V12: 0 | W12: =LINEST(O12:O13,N12:N13,TRUE,FALSE) -> 0 | X12: 0.6 | Y12: 0 | Z12: 0 | AK12: - | AL12: - | AM12: - | AP12: 翼効率 | AQ12: e | AR12: 0.971096459 | AS12: - | AU12: 曲げモーメントの制限 | AV12: - | AW12: なし | AX12: - | AZ12: ='各種パラメータ(sht0)'!L12 -> 一般気体定数 | BA12: ='各種パラメータ(sht0)'!M12 -> R | BB12: ='各種パラメータ(sht0)'!N12 -> 287 | BC12: ='各種パラメータ(sht0)'!O12 -> J/kg・K | BF12: その他 | BG12: 0 | BH12: kg | BJ12: リブ | BK12: 厚さ | BL12: 0.01 | BM12: m
B13: 片翼面積重心 | C13: y_ | D13: =AR11 -> 5.93136902 | E13: m | L13: - | M13: 65 | N13: =N12 -> 13 | O13: =O12 -> 0.6 | P13: =P12 -> 7.5 | AP13: 主翼二次元揚力傾斜 | AQ13: Clα | AR13: 0.1096622711 | AS13: 1/deg | AU13: 翼根から翼端までの翼の長さ | AV13: le | AW13: =D5/2 -> 13 | AX13: m | AZ13: ='各種パラメータ(sht0)'!L13 -> 比熱比 | BA13: ='各種パラメータ(sht0)'!M13 -> κ | BB13: ='各種パラメータ(sht0)'!N13 -> 1.4 | BC13: ='各種パラメータ(sht0)'!O13 -> - | BF13: 合計 | BG13: =SUM(BG4:BG12) -> 7.632421966 | BH13: kg | BJ13: プランク | BK13: 厚さ | BL13: =1*10^-3 -> 0.001 | BM13: m
A14: LLT | B14: 空力中心 | C14: hac | D14: 0.25 | E14: - | L14: 合計 | U14: =SUM(U6:U13) -> 13 | V14: =SUM(V6:V13) -> 17.43 | Y14: =SUM(Y6:Y13) -> 23.922 | Z14: =SUM(Z6:Z13) -> 104.334 | AP14: 主翼三次元揚力傾斜 | AQ14: aw | AR14: 0.09929975792 | AS14: 1/deg | AU14: パネルの半幅 | AV14: ds | AW14: =D30/2 -> 0.1 | AZ14: ='各種パラメータ(sht0)'!L14 -> 音速 | BA14: ='各種パラメータ(sht0)'!M14 -> a | BB14: ='各種パラメータ(sht0)'!N14 -> 349.0066905 | BC14: ='各種パラメータ(sht0)'!O14 -> m/s | BE14: 1番 | BF14: 桁 | BG14: ='スパー寸法(sht20)'!AR18 -> 2.600302185 | BH14: kg | BJ14: 縦通材 | BK14: 本数 | BL14: 4 | BM14: -
B15: 翼効率 | C15: e | D15: =AR12 -> 0.971096459 | E15: - | AP15: 揚力係数 | AQ15: CL | AR15: 1.343303229 | AS15: - | AU15: 翼根曲げモーメントの制約 | AV15: β | AW15: 1.005516083 | AX15: - | AZ15: ='各種パラメータ(sht0)'!L15 -> カルマン定数 | BA15: ='各種パラメータ(sht0)'!M15 -> k | BB15: ='各種パラメータ(sht0)'!N15 -> 0.4 | BC15: ='各種パラメータ(sht0)'!O15 -> - | BF15: リブ | BG15: =SUM(BR45:BR110) -> 0.8039095409 | BH15: kg | BK15: 断面積 | BL15: =20*10^-6 -> 2e-05 | BM15: m^2
B16: 主翼二次元揚力傾斜 | C16: Clα | D16: =AR13 -> 0.1096622711 | E16: 1/deg | AP16: 有害抗力係数 | AQ16: CDp | AR16: 0.01358036985 | AS16: - | AU16: 翼効率 | AV16: e | AW16: 0.9967121789 | AX16: - | AZ16: ='各種パラメータ(sht0)'!L16 -> 粗度 | BA16: ='各種パラメータ(sht0)'!M16 -> z0 | BB16: ='各種パラメータ(sht0)'!N16 -> 0.01 | BC16: ='各種パラメータ(sht0)'!O16 -> - | BF16: プランク | BG16: =SUM(BS45:BS110) -> 0.5886157528 | BH16: kg | BJ16: リブ材 | BK16: 厚さ | BL16: =1*10^-3 -> 0.001 | BM16: m
B17: 主翼三次元揚力傾斜 | C17: aw | D17: =AR14 -> 0.09929975792 | E17: 1/deg | AP17: 誘導抗力係数 | AQ17: CDi | AR17: 0.03086190894 | AS17: - | AU17: 揚力 | AV17: Lift | AW17: 1710.262366 | AX17: N | BF17: リブ材 | BG17: =SUM(BU45:BU110) -> 0.2265432163 | BH17: kg | BJ17: 後縁材 | BK17: 幅 | BL17: 0.02 | BM17: m
B18: 揚力係数 | C18: CL | D18: =AR15 -> 1.343303229 | E18: - | AP18: 抗力係数 | AQ18: CD | AR18: 0.0444422788 | AS18: - | AU18: 誘導抗力 | AV18: Di | AW18: 38.51942991 | AX18: N | AZ18: 解析用 | BF18: 後縁材 | BG18: =SUM(BV45:BV110) -> 0.10608 | BH18: kg | BK18: 厚さ | BL18: =1*10^-3 -> 0.001 | BM18: m
B19: 抗力係数 | C19: CD | D19: =AR18 -> 0.0444422788 | E19: - | AP19: - | AQ19: Cyβ | AR19: -0.001931775144 | AS19: 1/deg | AU19: 翼根曲げモーメント | AV19: B | AW19: 4744.101601 | AX19: N*m | AZ19: 名 | BA19: 記号 | BB19: 値 | BC19: 単位 | BF19: 縦通材 | BG19: =SUM(BT45:BT110) -> 0.21216 | BH19: kg | BJ19: 接着剤① | BK19: リブ面積に比例するもの | BL19: 0.0075 | BM19: kg
B20: ピッチングモーメント係数 | C20: Cm | D20: -0.08900193305 | E20: - | AP20: - | AQ20: Clβ | AR20: -0.003862774618 | AS20: 1/deg | AZ20: 全機迎角 | BA20: α | BB20: 2.152632045 | BC20: deg | BF20: 接着剤 | BG20: =SUM(BW45:BW110) -> 0.8789575195 | BH20: kg | BJ20: 接着剤② | BK20: コード長に比例するもの | BL20: 0.0075 | BM20: kg
B21: 平均誘導迎え角 | C21: ε | D21: =AR25 -> 1.467131195 | E21: deg | F21: フライングワイヤー | AP21: - | AQ21: Clp | AR21: -0.9056578498 | AS21: 1/rad | AZ21: 横滑り角 | BA21: β | BB21: 0 | BC21: deg | BF21: ねじり止め | BG21: 0.3 | BH21: kg | BJ21: 接着剤③ | BK21: スパンに比例するもの | BL21: 0.03 | BM21: kg
B22: 翼型1 | C22: Cl_max | D22: =MAX('主翼翼型1解析(sht10)'!B:B) -> 1.656371117 | E22: - | F22: 取付番号 | G22: n_fw | H22: 38 | I22: - | AP22: - | AQ22: Cnp | AR22: -0.2203158925 | AS22: 1/rad | AZ22: 対気速度 | BA22: V | BB22: 8 | BC22: m/s | BF22: その他 | BG22: 0 | BH22: kg | BI22: 上反焼きの分 | BJ22: バルサチップ | BK22: 長さ | BL22: 0.08 | BM22: m
B23: 翼型2 | C23: Cl_max | D23: =MAX('主翼翼型2解析(sht11)'!B:B) -> 1.656371117 | E23: - | F23: z方向せん断力 | G23: F_fw | H23: =-320*1 -> -320 | I23: N | AP23: - | AQ23: Clr | AR23: 0.3780786438 | AS23: 1/rad | AZ23: 高度 | BA23: hE | BB23: 100 | BC23: m | BF23: 合計 | BG23: =SUM(BG14:BG22) -> 5.716568215 | BH23: kg
B24: パイロットL | C24: MPL | D24: ='機体重量(sht30)'!S18 -> 70 | E24: - | AP24: - | AQ24: Cnr | AR24: 0.01039654624 | AS24: 1/rad | AZ24: 角速度 | BA24: p | BB24: 0 | BC24: deg/s | BE24: 2番 | BF24: 桁 | BG24: ='スパー寸法(sht20)'!AR21 -> 1.086875957 | BH24: kg | BJ24: 主翼の重心位置・慣性モーメント
C25: yPL | D25: 0.8 | E25: - | AP25: 平均誘導迎え角 | AQ25: ε | AR25: 1.467131195 | AS25: deg | BA25: q | BB25: 0 | BC25: deg/s | BF25: リブ | BG25: =SUM(BX45:BX110) -> 0.4390373675 | BH25: kg | BJ25: 名 | BK25: 記号 | BL25: 値 | BM25: 単位
B26: パイロットR | C26: MPR | D26: ='機体重量(sht30)'!T18 -> 70 | E26: - | AP26: 揚力 | AQ26: Lift | AR26: 1728.35108 | AS26: N | BA26: r | BB26: 0 | BC26: deg/s | BF26: プランク | BG26: =SUM(BY45:BY110) -> 0.3982063954 | BH26: kg | BI26: プランクの厚さを変えたいならここを変更 | BJ26: 重量 | BK26: M | BL26: =BG13+BG23*2+BG33*2+BG34*2 -> 26.19713231 | BM26: kg
C27: yPR | D27: -0.8 | E27: - | AP27: 有害抗力 | AQ27: Dp | AR27: 17.47308158 | AS27: N | AZ27: 重心移動距離 | BA27: dh | BB27: 0 | BC27: - | BF27: リブ材 | BG27: =SUM(CA45:CA110) -> 0.1532595027 | BH27: kg | BJ27: 重心位置 | BK27: Xcg | BL27: 0 | BM27: m
AP28: 誘導抗力 | AQ28: Di | AR28: 39.70824495 | AS28: N | AU28: 上下面 | AV28: 位置 | AW28: 厚さ | AX28: 幅 | AZ28: エレベータ舵角 | BA28: de | BB28: 0 | BC28: deg | BF28: 後縁材 | BG28: =SUM(CB45:CB110) -> 0.08976 | BH28: kg | BK28: Ycg | BL28: 0 | BM28: m
AP29: 抗力 | AQ29: D | AR29: 57.18132654 | AS29: N | AU29: 上:0 下:1 | AV29: % | AW29: mm | AX29: mm | AZ29: ラダー舵角 | BA29: dr | BB29: 0 | BC29: deg | BF29: 縦通材 | BG29: =SUM(BZ45:BZ110) -> 0.17952 | BH29: kg | BK29: Zcg | BL29: =SUMPRODUCT(AC45:AC110,CP45:CP110)/SUM(CP45:CP110) -> 0.05006034767 | BM29: m
B30: リブ間隔 | C30: Δy | D30: 0.2 | E30: m | AP30: ローリングモーメント | AQ30: L | AR30: 50.25337727 | AS30: N*m | AU30: 0 | AV30: 0.55 | AW30: 2 | AX30: 10 | BF30: 接着剤 | BG30: =SUM(CC45:CC110) -> 0.5646899414 | BH30: kg | BJ30: 慣性モーメント | BK30: Ixx | BL30: =SUMPRODUCT(CR45:CR110,CP45:CP110)*2 -> 1082.842899 | BM30: kg*m^2
B31: 桁位置 | C31: - | D31: ='全機計算(sht8)'!S9 -> 0.315 | E31: - | AP31: ピッチングモーメント | AQ31: M | AR31: -2.982506922 | AS31: N*m | AU31: 1 | AV31: 0.2 | AW31: 2 | AX31: 10 | BF31: ねじり止め | BG31: 0.1 | BH31: kg | BK31: Iyy | BL31: =SUMPRODUCT(CS45:CS110,CP45:CP110)*2 -> 4.871853688 | BM31: kg*m^2
B32: 翼根コード長 | C32: c0 | D32: =O6 -> 1.5 | E32: m | AP32: ヨーイングモーメント | AQ32: N | AR32: 0.03992668792 | AS32: N*m | AU32: 1 | AV32: 0.6 | AW32: 8 | AX32: 5 | BF32: その他 | BG32: 0.254 | BH32: kg | BK32: Izz | BL32: =SUMPRODUCT(CT45:CT110,CP45:CP110)*2 -> 1077.971046 | BM32: kg*m^2
B33: 分割数 | C33: n | D33: =MAX(M6:M13) -> 65 | E33: - | F33: 片翼分のリブ枚数． | AP33: - | AQ33: Cyp | AR33: -0.4351597291 | AS33: 1/rad | AU33: 0 | AV33: 0.2 | AW33: 8 | AX33: 2 | AZ33: 材料密度 | BF33: 合計 | BG33: =SUM(BG24:BG32) -> 3.265349164 | BH33: kg | BK33: Ixy | BL33: 0 | BM33: kg・m^2
AP34: - | AQ34: Cyr | AR34: 0.1819417718 | AS34: 1/rad | AZ34: 名 | BA34: 記号 | BB34: 値 | BC34: 単位 | BE34: ウィングレット | BF34: 合計 | BG34: =SUM(CM45:CM110,CD45:CI110) -> 0.3004377933 | BH34: kg | BK34: Iyz | BL34: 0 | BM34: kg・m^2
AP35: - | AQ35: Cnβ | AR35: -0.0009393154605 | AS35: 1/deg | AU35: 上下面 | AV35: 開始位置 | AW35: 厚さ | AX35: リブ材厚さ | AZ35: CFRP | BA35: - | BB35: ='機体重量(sht30)'!X20 -> 1500 | BC35: kg/m^3 | BK35: Ixz | BL35: 0 | BM35: kg・m^2
B36: ファイル名 | C36: file_name | D36: ="WING_"&TEXT(TODAY(),"yyyymmdd") -> WING_20230818 | E36: - | AU36: 上:0 下:1 | AV36: % | AW36: mm | AX36: mm | AZ36: 50倍発泡 | BA36: - | BB36: ='機体重量(sht30)'!X21 -> 20 | BC36: kg/m^3
B37: 翼型名 | C37: foil_name | D37: ='主翼翼型1解析(sht10)'!X5 -> DAE31_SD8040 | E37: - | AU37: 0 | AV37: 0.6 | AW37: =BL13*1000 -> 1 | AX37: =BL16*1000 -> 1 | AZ37: ヒノキ | BA37: - | BB37: ='機体重量(sht30)'!X22 -> 510 | BC37: kg/m^3
C38: foil_name | D38: ='主翼翼型2解析(sht11)'!X5 -> DAE31_SD8040 | E38: - | AU38: 1 | AV38: 0.25 | AW38: =BL13*1000 -> 1 | AX38: =BL16*1000 -> 1 | AZ38: エスレン | BA38: - | BB38: ='機体重量(sht30)'!X23 -> 85 | BC38: kg/m^3
A40: - | T40: - | AP40: - | AX40: -
C41: 設計値 | G41: 0G | H41: 投影面での距離 | M41: 楕円分布 | P41: テーパー翼 | AB41: たわみを考慮 | AC41: 1G | AN41: TR-797 | BB41: 重量推算 | CM41: 合計 | CN41: =SUM(CN45:CN110) -> 6.041710279 | CO41: =SUM(CO45:CO110)-AVERAGE(D24,D26) -> 6.277945126 | CP41: =SUM(CP45:CP110)-AVERAGE(D24,D26) -> 12.3196554 | CR41: 慣性モーメント
B42: 名 | C42: リブ番号 | D42: テーパー | E42: リブ位置 | F42: 翼素位置 | G42: 高さ | H42: 翼素間隔 | I42: 取り付け角 | J42: 上反角 | K42: 翼型1配合率 | L42: 翼型2配合率 | M42: コード長 | N42: 前縁位置 | O42: 後縁位置 | P42: コード長 | Q42: 前縁位置 | R42: 後縁位置 | T42: 有効迎角 | U42: レイノルズ数 | V42: 揚力係数 | W42: 抗力係数 | X42: ピッチングモーメント係数 | Y42: 揚力傾斜 | Z42: 抗力傾斜 | AA42: ピッチングモーメント(桁位置まわり) | AB42: リブ位置 | AC42: 高さ | AD42: 翼素間隔 | AE42: 取り付け角 | AF42: 上反角 | AG42: ='たわみ・ねじり(sht2)'!Y42 -> たわみ | AH42: ='たわみ・ねじり(sht2)'!Z42 -> たわみ角 | AI42: ='たわみ・ねじり(sht2)'!AA42 -> ねじれ角 | AJ42: 楕円循環 | AK42: 循環 | AL42: 吹きおろし | AM42: 誘導迎角 | AN42: 最適循環 | AO42: 吹きおろし | AP42: 最大揚力係数 | AZ42: 名 | BA42: スパー番号 | BB42: 面積 | BG42: 体積 | BL42: 0番重量 | BR42: 1番重量 | BX42: 2番重量 | CD42: 3番重量 | CJ42: パイロット | CK42: Winglet | CN42: 一次構造 | CO42: 二次構造 | CP42: 合計 | CR42: 主翼重心からの距離の2乗
B43: 記号 | C43: n | D43: - | E43: - | F43: yn | G43: zn | H43: Δy | I43: - | J43: Γ | K43: - | L43: - | M43: cn | N43: - | O43: - | P43: cn | Q43: - | R43: - | T43: α | U43: Re | V43: Cl | W43: Cdo | X43: Cm | Y43: Clα | Z43: Cd0α | AA43: Cm_cg | AB43: yn | AC43: zn | AD43: Δy | AE43: - | AF43: Γd | AG43: ='たわみ・ねじり(sht2)'!Y43 -> w | AH43: ='たわみ・ねじり(sht2)'!Z43 -> θ | AI43: ='たわみ・ねじり(sht2)'!AA43 -> Φ | AJ43: Γc_opt | AK43: Γc | AL43: wi | AM43: αi | AN43: Γ_TR797 | AO43: wi | AP43: Cl_max | AZ43: 記号 | BA43: - | BB43: リブ | BC43: プランク | BD43: 縦通材 | BE43: リブ材 | BF43: 後縁材 | BG43: リブ | BH43: プランク | BI43: 縦通材 | BJ43: リブ材 | BK43: 後縁材 | BL43: リブ | BM43: プランク | BN43: 縦通材 | BO43: リブ材 | BP43: 後縁材 | BQ43: 接着剤 | BR43: リブ | BS43: プランク | BT43: 縦通材 | BU43: リブ材 | BV43: 後縁材 | BW43: 接着剤 | BX43: リブ | BY43: プランク | BZ43: 縦通材 | CA43: リブ材 | CB43: 後縁材 | CC43: 接着剤 | CD43: リブ | CE43: プランク | CF43: 縦通材 | CG43: リブ材 | CH43: 後縁材 | CI43: 接着剤 | CJ43: 重量 | CK43: 断面積 | CL43: 体積 | CM43: 重量 | CN43: - | CO43: - | CP43: - | CR43: y^2+z^2 | CS43: z^2+x^2 | CT43: x^2+y^2
B44: 単位 | C44: - | D44: - | E44: m | F44: m | G44: m | H44: m | I44: deg | J44: deg | K44: - | L44: - | M44: m | N44: m | O44: m | P44: m | Q44: m | R44: m | T44: deg | U44: - | V44: - | W44: - | X44: - | Y44: 1/deg | Z44: 1/deg | AA44: - | AB44: m | AC44: m | AD44: m | AE44: deg | AF44: deg | AG44: ='たわみ・ねじり(sht2)'!Y44 -> m | AH44: deg | AI44: ='たわみ・ねじり(sht2)'!AA44 -> deg | AJ44: m^2/s | AK44: m^2/s | AL44: m/s | AM44: deg | AN44: m^2/s | AO44: m/s | AP44: - | AZ44: 単位 | BA44: - | BB44: m^2 | BC44: m^2 | BD44: m^2 | BE44: m^2 | BF44: m^2 | BG44: m^3 | BH44: m^3 | BI44: m^3 | BJ44: m^3 | BK44: m^3 | BL44: kg | BM44: kg | BN44: kg | BO44: kg | BP44: kg | BQ44: kg | BR44: kg | BS44: kg | BT44: kg | BU44: kg | BV44: kg | BW44: kg | BX44: kg | BY44: kg | BZ44: kg | CA44: kg | CB44: kg | CC44: kg | CD44: kg | CE44: kg | CF44: kg | CG44: kg | CH44: kg | CI44: kg | CJ44: kg | CK44: m^2 | CL44: m^3 | CM44: kg | CN44: kg | CO44: kg | CP44: kg | CR44: m^2 | CS44: m^2 | CT44: m^2
B45: 値 | C45: 0 | D45: =IF(C45<$M$7,"flat",IF(C45<$M$8,"1st",IF(C45<$M$9,"2nd",IF(C45<$M$10,"3rd",IF(C45<$M$11,"4th","Winglet"))))) -> flat | E45: 0 | F45: 0 | G45: 0 | H45: =F46-F45 -> 0.2 | I45: =IF($D45="flat",$AD$6*$E45+$AE$6,IF($D45="1st",$AD$7*$E45+$AE$7,IF($D45="2nd",$AD$8*$E45+$AE$8,IF($D45="3rd",$AD$9*$E45+$AE$9,IF($D45="4th",$AD$10*$E45+$AE$10,$AD$11*$E45+$AE$11))))) -> 7.5 | J45: =IF($D45="flat",$Q$6,IF($D45="1st",$Q$7,IF($D45="2nd",$Q$8,IF($D45="3rd",$Q$9,IF($D45="4th",$Q$10,$Q$11))))) -> 0 | K45: =IF($D45="flat",$AF$6*$E45+$AG$6,IF($D45="1st",$AF$7*$E45+$AG$7,IF($D45="2nd",$AF$8*$E45+$AG$8,IF($D45="3rd",$AF$9*$E45+$AG$9,IF($D45="4th",$AF$10*$E45+$AG$10,$AF$11*$E45+$AG$11))))) -> 1 | L45: =IF($D45="flat",$AH$6*$E45+$AI$6,IF($D45="1st",$AH$7*$E45+$AI$7,IF($D45="2nd",$AH$8*$E45+$AI$8,IF($D45="3rd",$AH$9*$E45+$AI$9,IF($D45="4th",$AH$10*$E45+$AI$10,$AH$11*$E45+$AI$11))))) -> 0 | M45: =$D$32*SQRT(1-(E45/($D$5/2))^2) -> 1.5 | N45: =M45*$D$31 -> 0.4725 | O45: =N45-M45 -> -1.0275 | P45: =IF($D45="flat",$AB$6*$E45+$AC$6,IF($D45="1st",$AB$7*$E45+$AC$7,IF($D45="2nd",$AB$8*$E45+$AC$8,IF($D45="3rd",$AB$9*$E45+$AC$9,IF($D45="4th",$AB$10*$E45+$AC$10,$AB$11*$E45+$AC$11))))) -> 1.5 | Q45: =P45*$D$31 -> 0.4725 | R45: =Q45-P45 -> -1.0275 | T45: 8.733568222 | U45: 750819.1905 | V45: 1.389332294 | W45: 0.01408896875 | X45: -0.0900445357 | Y45: 0.1096622711 | Z45: 0 | AA45: 0.0002620634437 | AB45: 0 | AC45: 0 | AD45: 0.1999998 | AE45: 7.499593607 | AF45: 0.07762555311 | AG45: 0 | AH45: 0 | AI45: 0 | AJ45: 9.312297659 | AK45: 8.335993767 | AL45: 0.1282797675 | AM45: 0.9186574293 | AN45: 9.212796769 | AO45: 0.1769016612 | AP45: =K45*$D$22+L45*$D$23 -> 1.656371117 | AZ45: 値 | BA45: =IF(C45<$AL$7,"0",IF(C45<$AL$8,"1st",IF(C45<$AL$9,"2nd",IF(C45<$AL$10,"3rd","Winglet")))) -> 0 | BB45: =($BL$7*K45+$BL$11*L45)*P45*P45 -> 0.1568078102 | BC45: =($BL$5*K45+$BL$9*L45)*$BL$13*P45 -> 0.001341383285 | BD45: =$BL$15*$BL$14 -> 8e-05 | BE45: =($BL$6*K45+$BL$10*L45)*$BL$16*P45 -> 0.00172088091 | BF45: =$BL$17*$BL$18*2 -> 4e-05 | BG45: =BB45*$BL$12 -> 0.001568078102 | BH45: =BC45*(E46-E45) -> 0.000268276657 | BI45: =BD45*(E46-E45) -> 1.6e-05 | BJ45: =BE45*$BL$12 -> 1.72088091e-05 | BK45: =BF45*(F46-F45) -> 8e-06 | BL45: =IF($BA45="0",$BG45*$BB$36,"") -> 0.03136156205 | BM45: =IF($BA45="0",$BH45*$BB$38,"") -> 0.02280351585 | BN45: =IF($BA45="0",$BI45*$BB$37,"") -> 0.00816 | BO45: =IF($BA45="0",$BJ45*$BB$37,"") -> 0.008776492641 | BP45: =IF($BA45="0",$BK45*$BB$37,"") -> 0.00408 | BQ45: =IF($BA45="0",$BL$19*P45*P45+$BL$20*P45+$BL$21*(F46-F45),"") -> 0.034125 | BR45: =IF($BA45="1st",$BG45*$BB$36,"") ->  | BS45: =IF($BA45="1st",$BH45*$BB$38,"") ->  | BT45: =IF($BA45="1st",$BI45*$BB$37,"") ->  | BU45: =IF($BA45="1st",$BJ45*$BB$37,"") ->  | BV45: =IF($BA45="1st",$BK45*$BB$37,"") ->  | BW45: =IF($BA45="1st",$BL$19*P45*P45+$BL$20*P45+$BL$21*(F46-F45),"") ->  | BX45: =IF($BA45="2nd",$BG45*$BB$36,"") ->  | BY45: =IF($BA45="2nd",$BH45*$BB$38,"") ->  | BZ45: =IF($BA45="2nd",$BI45*$BB$37,"") ->  | CA45: =IF($BA45="2nd",$BJ45*$BB$37,"") ->  | CB45: =IF($BA45="2nd",$BK45*$BB$37,"") ->  | CC45: =IF($BA45="2nd",$BL$19*P45*P45+$BL$20*P45+$BL$21*(F46-F45),"") ->  | CD45: =IF($BA45="3rd",$BG45*$BB$36,"") ->  | CE45: =IF($BA45="3rd",$BH45*$BB$38,"") ->  | CF45: =IF($BA45="3rd",$BI45*$BB$37,"") ->  | CG45: =IF($BA45="3rd",$BJ45*$BB$37,"") ->  | CH45: =IF($BA45="3rd",$BK45*$BB$37,"") ->  | CI45: =IF($BA45="3rd",$BL$19*V45*V45+$BL$20*V45+$BL$21*(L46-L45),"") ->  | CJ45: =IF(ROW()-ROW($CJ$45)=MATCH(MIN(ABS($E$45:$E$111-AVERAGE(ABS($D$25),ABS($D$27)))),ABS($E$45:$E$111-AVERAGE(ABS($D$25),ABS($D$27))),0),AVERAGE($D$24,$D$26),"") ->  | CK45: =IF($BA45="Winglet",BB45,"") ->  | CL45: =IF($BA45="Winglet",CK45*(E46-E45),"") ->  | CM45: =IF($BA45="Winglet",CL45*$BB$36,"") ->  | CN45: ='スパー寸法(sht20)'!BG45 -> 0.1687511743 | CO45: =SUM(BL45:CM45) -> 0.1093065705 | CP45: =SUM(CN45:CO45) -> 0.2780577449 | CR45: =(AB45-$BL$28)*(AB45-$BL$28)+(AC45-$BL$29)*(AC45-$BL$29) -> 0.002506038409 | CS45: =(AC45-$BL$29)*(AC45-$BL$29) -> 0.002506038409 | CT45: =(AB45-$BL$28)*(AB45-$BL$28) -> 0
C46: 1 | D46: =IF(C46<$M$7,"flat",IF(C46<$M$8,"1st",IF(C46<$M$9,"2nd",IF(C46<$M$10,"3rd",IF(C46<$M$11,"4th","Winglet"))))) -> flat | E46: =$D$30*C46 -> 0.2 | F46: =F45+$D$30*COS(RADIANS(J46)) -> 0.2 | G46: =G45+$D$30*SIN(RADIANS(J46)) -> 0 | H46: =F47-F46 -> 0.2 | I46: 7.5 | J46: =IF($D46="flat",$Q$6,IF($D46="1st",$Q$7,IF($D46="2nd",$Q$8,IF($D46="3rd",$Q$9,IF($D46="4th",$Q$10,$Q$11))))) -> 0 | K46: 1 | L46: =IF($D46="flat",$AH$6*$E46+$AI$6,IF($D46="1st",$AH$7*$E46+$AI$7,IF($D46="2nd",$AH$8*$E46+$AI$8,IF($D46="3rd",$AH$9*$E46+$AI$9,IF($D46="4th",$AH$10*$E46+$AI$10,$AH$11*$E46+$AI$11))))) -> 0 | M46: =$D$32*SQRT(1-(E46/($D$5/2))^2) -> 1.499822475 | N46: =M46*$D$31 -> 0.4724440795 | O46: =N46-M46 -> -1.027378395 | P46: 1.5 | Q46: =P46*$D$31 -> 0.4725 | R46: =Q46-P46 -> -1.0275 | T46: 8.73264384 | U46: 750819.1905 | V46: 1.389252067 | W46: 0.01408693846 | X46: -0.09004730731 | Y46: 0.1096622711 | Z46: 0 | AA46: 0.0002540770173 | AB46: 0.1999998164 | AC46: 0.0002709642142 | AD46: 0.1999998164 | AE46: 7.49878041 | AF46: 0.236299788 | AG46: 0 | AH46: 0.1552585291 | AI46: -0.0008127125307 | AJ46: 9.309431729 | AK46: 8.3355124 | AL46: 0.1282952958 | AM46: 0.918768614 | AN46: 9.210565713 | AO46: 0.1768048791 | AP46: =K46*$D$22+L46*$D$23 -> 1.656371117 | BA46: =IF(C46<$AL$7,"0",IF(C46<$AL$8,"1st",IF(C46<$AL$9,"2nd",IF(C46<$AL$10,"3rd","Winglet")))) -> 0 | BB46: =($BL$7*K46+$BL$11*L46)*P46*P46 -> 0.1568078102 | BC46: =($BL$5*K46+$BL$9*L46)*$BL$13*P46 -> 0.001341383285 | BD46: =$BL$15*$BL$14 -> 8e-05 | BE46: =($BL$6*K46+$BL$10*L46)*$BL$16*P46 -> 0.00172088091 | BF46: =$BL$17*$BL$18*2 -> 4e-05 | BG46: =BB46*$BL$12 -> 0.001568078102 | BH46: =BC46*(E47-E46) -> 0.000268276657 | BI46: =BD46*(E47-E46) -> 1.6e-05 | BJ46: =BE46*$BL$12 -> 1.72088091e-05 | BK46: =BF46*(F47-F46) -> 8e-06 | BL46: 0.03136156205 | BM46: 0.02280351585 | BN46: 0.00816 | BO46: =IF($BA46="0",$BJ46*$BB$37,"") -> 0.008776492641 | BP46: =IF($BA46="0",$BK46*$BB$37,"") -> 0.00408 | BQ46: =IF($BA46="0",$BL$19*P46*P46+$BL$20*P46+$BL$21*(F47-F46),"") -> 0.034125 | BU46: =IF($BA46="1st",$BJ46*$BB$37,"") ->  | BV46: =IF($BA46="1st",$BK46*$BB$37,"") ->  | BW46: =IF($BA46="1st",$BL$19*P46*P46+$BL$20*P46+$BL$21*(F47-F46),"") ->  | CA46: =IF($BA46="2nd",$BJ46*$BB$37,"") ->  | CB46: =IF($BA46="2nd",$BK46*$BB$37,"") ->  | CC46: =IF($BA46="2nd",$BL$19*P46*P46+$BL$20*P46+$BL$21*(F47-F46),"") ->  | CD46: =IF($BA46="3rd",$BG46*$BB$36,"") ->  | CE46: =IF($BA46="3rd",$BH46*$BB$38,"") ->  | CF46: =IF($BA46="3rd",$BI46*$BB$37,"") ->  | CG46: =IF($BA46="3rd",$BJ46*$BB$37,"") ->  | CH46: =IF($BA46="3rd",$BK46*$BB$37,"") ->  | CI46: =IF($BA46="3rd",$BL$19*V46*V46+$BL$20*V46+$BL$21*(L47-L46),"") ->  | CJ46: =IF(ROW()-ROW($CJ$45)=MATCH(MIN(ABS($E$45:$E$111-AVERAGE(ABS($D$25),ABS($D$27)))),ABS($E$45:$E$111-AVERAGE(ABS($D$25),ABS($D$27))),0),AVERAGE($D$24,$D$26),"") ->  | CK46: =IF($BA46="Winglet",BB46,"") ->  | CL46: =IF($BA46="Winglet",CK46*(E47-E46),"") ->  | CM46: =IF($BA46="Winglet",CL46*$BB$36,"") ->  | CN46: ='スパー寸法(sht20)'!BG46 -> 0.1687511743 | CO46: =SUM(BL46:CM46) -> 0.1093065705 | CP46: =SUM(CN46:CO46) -> 0.2780577449 | CR46: =(AB46-$BL$28)*(AB46-$BL$28)+(AC46-$BL$29)*(AC46-$BL$29) -> 0.04247890928 | CS46: =(AC46-$BL$29)*(AC46-$BL$29) -> 0.002478982705 | CT46: =(AB46-$BL$28)*(AB46-$BL$28) -> 0.03999992658
C47: 2 | D47: =IF(C47<$M$7,"flat",IF(C47<$M$8,"1st",IF(C47<$M$9,"2nd",IF(C47<$M$10,"3rd",IF(C47<$M$11,"4th","Winglet"))))) -> flat | E47: =$D$30*C47 -> 0.4 | F47: =F46+$D$30*COS(RADIANS(J47)) -> 0.4 | G47: =G46+$D$30*SIN(RADIANS(J47)) -> 0 | H47: =F48-F47 -> 0.2 | I47: 7.5 | J47: 0 | K47: 1 | L47: 0 | M47: =$D$32*SQRT(1-(E47/($D$5/2))^2) -> 1.499289773 | N47: =M47*$D$31 -> 0.4722762784 | O47: =N47-M47 -> -1.027013494 | P47: 1.5 | Q47: =P47*$D$31 -> 0.4725 | R47: =Q47-P47 -> -1.0275 | T47: 8.730961773 | U47: 750819.1905 | V47: 1.389105916 | W47: 0.01408325229 | X47: -0.09005235136 | Y47: 0.1096622711 | Z47: 0 | AA47: 0.000239533186 | AB47: 0.3999981155 | AC47: 0.00109580374 | AD47: 0.1999982991 | AE47: 7.497967253 | AF47: 0.4019724853 | AG47: 0.0005419545048 | AH47: 0.317363121 | AI47: -0.001626253858 | AJ47: 9.303919577 | AK47: 8.334635496 | AL47: 0.1284166498 | AM47: 0.9196375246 | AN47: 9.206135192 | AO47: 0.176788546 | AP47: =K47*$D$22+L47*$D$23 -> 1.656371117 | BA47: =IF(C47<$AL$7,"0",IF(C47<$AL$8,"1st",IF(C47<$AL$9,"2nd",IF(C47<$AL$10,"3rd","Winglet")))) -> 0 | BB47: =($BL$7*K47+$BL$11*L47)*P47*P47 -> 0.1568078102 | BC47: =($BL$5*K47+$BL$9*L47)*$BL$13*P47 -> 0.001341383285 | BD47: 8e-05 | BE47: =($BL$6*K47+$BL$10*L47)*$BL$16*P47 -> 0.00172088091 | BF47: 4e-05 | BG47: =BB47*$BL$12 -> 0.001568078102 | BH47: =BC47*(E48-E47) -> 0.000268276657 | BI47: =BD47*(E48-E47) -> 1.6e-05 | BJ47: =BE47*$BL$12 -> 1.72088091e-05 | BK47: =BF47*(F48-F47) -> 8e-06 | BL47: 0.03136156205 | BM47: 0.02280351585 | BN47: 0.00816 | BO47: 0.008776492641 | BP47: 0.00408 | BQ47: =IF($BA47="0",$BL$19*P47*P47+$BL$20*P47+$BL$21*(F48-F47),"") -> 0.034125 | BW47: =IF($BA47="1st",$BL$19*P47*P47+$BL$20*P47+$BL$21*(F48-F47),"") ->  | CC47: =IF($BA47="2nd",$BL$19*P47*P47+$BL$20*P47+$BL$21*(F48-F47),"") ->  | CI47: =IF($BA47="3rd",$BL$19*V47*V47+$BL$20*V47+$BL$21*(L48-L47),"") ->  | CJ47: =IF(ROW()-ROW($CJ$45)=MATCH(MIN(ABS($E$45:$E$111-AVERAGE(ABS($D$25),ABS($D$27)))),ABS($E$45:$E$111-AVERAGE(ABS($D$25),ABS($D$27))),0),AVERAGE($D$24,$D$26),"") ->  | CK47: =IF($BA47="Winglet",BB47,"") ->  | CL47: =IF($BA47="Winglet",CK47*(E48-E47),"") ->  | CM47: =IF($BA47="Winglet",CL47*$BB$36,"") ->  | CN47: ='スパー寸法(sht20)'!BG47 -> 0.1687511743 | CO47: =SUM(BL47:CM47) -> 0.1093065705 | CP47: =SUM(CN47:CO47) -> 0.2780577449 | CR47: =(AB47-$BL$28)*(AB47-$BL$28)+(AC47-$BL$29)*(AC47-$BL$29) -> 0.162396019 | CS47: =(AC47-$BL$29)*(AC47-$BL$29) -> 0.002397526562 | CT47: =(AB47-$BL$28)*(AB47-$BL$28) -> 0.1599984924
C48: 3 | D48: flat | E48: 0.6 | F48: 0.6 | G48: 0 | H48: 0.2 | I48: 7.5 | J48: 0 | K48: 1 | L48: 0 | M48: 1.498401515 | N48: 0.4719964773 | O48: -1.026405038 | P48: 1.5 | Q48: 0.4725 | R48: -1.0275 | T48: 8.728549731 | U48: 750819.1905 | V48: 1.388896108 | W48: 0.01407798938 | X48: -0.09005954862 | Y48: 0.1096622711 | Z48: 0 | AA48: 0.0002186983824 | AB48: 0.5999931935 | AC48: 0.002498940904 | AD48: 0.199995078 | AE48: 7.497155863 | AF48: 0.5749479202 | AG48: 0.001649760782 | AH48: 0.4866181869 | AI48: -0.002438894847 | AJ48: 9.295837662 | AK48: 8.333376646 | AL48: 0.1286402007 | AM48: 0.9212381765 | AN48: 9.199506368 | AO48: 0.1767701385 | AP48: 1.656371117 | BA48: 0 | BB48: 0.1568078102 | BC48: 0.001341383285 | BD48: 8e-05 | BE48: 0.00172088091 | BF48: 4e-05 | BG48: 0.001568078102 | BH48: 0.000268276657 | BI48: 1.6e-05 | BJ48: 1.72088091e-05 | BK48: 8e-06 | BL48: 0.03136156205 | BM48: 0.02280351585 | BN48: 0.00816 | BO48: 0.008776492641 | BP48: 0.00408 | BQ48: 0.034125 | CJ48: =IF(ROW()-ROW($CJ$45)=MATCH(MIN(ABS($E$45:$E$111-AVERAGE(ABS($D$25),ABS($D$27)))),ABS($E$45:$E$111-AVERAGE(ABS($D$25),ABS($D$27))),0),AVERAGE($D$24,$D$26),"") ->  | CN48: ='スパー寸法(sht20)'!BG48 -> 0.1687511743 | CO48: 0.1093065705 | CP48: 0.2780577449 | CR48: 0.3622539197 | CS48: 0.002262087414 | CT48: 0.3599918322
C49: 4 | D49: flat | E49: 0.8 | F49: 0.8 | G49: 0 | H49: 0.2 | I49: 7.5 | J49: 0 | K49: 1 | L49: 0 | M49: 1.497157069 | N49: 0.4716044768 | O49: -1.025552592 | P49: 1.5 | Q49: 0.4725 | R49: -1.0275 | T49: 8.725419959 | U49: 750819.1905 | V49: 1.388623357 | W49: 0.01407119725 | X49: -0.09006883204 | Y49: 0.1096622711 | Z49: 0 | AA49: 0.0001916861534 | AB49: 0.799983124 | AC49: 0.004505854069 | AD49: 0.1999899305 | AE49: 7.496347942 | AF49: 0.7534681632 | AG49: 0.003348378694 | AH49: 0.6633278681 | AI49: -0.003248913212 | AJ49: 9.285233492 | AK49: 8.331740141 | AL49: 0.1289644762 | AM49: 0.9235600272 | AN49: 9.190678172 | AO49: 0.1767475696 | AP49: 1.656371117 | BA49: 0 | BB49: 0.1568078102 | BC49: 0.001341383285 | BD49: 8e-05 | BE49: 0.00172088091 | BF49: 4e-05 | BG49: 0.001568078102 | BH49: 0.000268276657 | BI49: 1.6e-05 | BJ49: 1.72088091e-05 | BK49: 8e-06 | BL49: 0.03136156205 | BM49: 0.02280351585 | BN49: 0.00816 | BO49: 0.008776492641 | BP49: 0.00408 | BQ49: 0.034125 | CJ49: =IF(ROW()-ROW($CJ$45)=MATCH(MIN(ABS($E$45:$E$111-AVERAGE(ABS($D$25),ABS($D$27)))),ABS($E$45:$E$111-AVERAGE(ABS($D$25),ABS($D$27))),0),AVERAGE($D$24,$D$26),"") ->  | CN49: ='スパー寸法(sht20)'!BG49 -> 0.1687511743 | CO49: 0.1093065705 | CP49: 0.2780577449 | CR49: 0.6420482106 | CS49: 0.002075211887 | CT49: 0.6399729987
C50: 5 | D50: flat | E50: 1 | F50: 1 | G50: 0 | H50: 0.2 | I50: 7.5 | J50: 0 | K50: 1 | L50: 0 | M50: 1.495555546 | N50: 0.4710999969 | O50: -1.024455549 | P50: 1.5 | Q50: 0.4725 | R50: -1.0275 | T50: 8.721573689 | U50: 750819.1905 | V50: 1.388287544 | W50: 0.0140629122 | X50: -0.09008015692 | Y50: 0.1096622711 | Z50: 0 | AA50: 0.0001585334539 | AB50: 0.9999658307 | AC50: 0.007135878315 | AD50: 0.1999827067 | AE50: 7.495545134 | AF50: 0.9316514804 | AG50: 0.005663829758 | AH50: 0.843672167 | AI50: -0.004054620479 | AJ50: 9.272136807 | AK50: 8.329725266 | AL50: 0.1293895346 | AM50: 0.9266034898 | AN50: 9.179644217 | AO50: 0.1767240829 | AP50: 1.656371117 | BA50: 0 | BB50: 0.1568078102 | BC50: 0.001341383285 | BD50: 8e-05 | BE50: 0.00172088091 | BF50: 4e-05 | BG50: 0.001568078102 | BH50: 0.000268276657 | BI50: 1.6e-05 | BJ50: 1.72088091e-05 | BK50: 8e-06 | BL50: 0.03136156205 | BM50: 0.02280351585 | BN50: 0.00816 | BO50: 0.008776492641 | BP50: 0.00408 | BQ50: 0.034125 | CJ50: =IF(ROW()-ROW($CJ$45)=MATCH(MIN(ABS($E$45:$E$111-AVERAGE(ABS($D$25),ABS($D$27)))),ABS($E$45:$E$111-AVERAGE(ABS($D$25),ABS($D$27))),0),AVERAGE($D$24,$D$26),"") -> 70 | CN50: ='スパー寸法(sht20)'!BG50 -> 0.1687511743 | CO50: 70.10930657 | CP50: 70.27805774 | CR50: 1.001774173 | CS50: 0.00184251007 | CT50: 0.9999316625
C51: 6 | D51: flat | E51: 1.2 | F51: 1.2 | G51: 0 | H51: 0.2 | I51: 7.5 | J51: 0 | K51: 1 | L51: 0 | M51: 1.493595796 | N51: 0.4704826758 | O51: -1.02311312 | P51: 1.5 | Q51: 0.4725 | R51: -1.0275 | T51: 8.717001296 | U51: 750819.1905 | V51: 1.387887359 | W51: 0.01405314915 | X51: -0.09009349346 | Y51: 0.1096622711 | Z51: 0 | AA51: 0.0001191848516 | AB51: 1.199939391 | AC51: 0.01038781217 | AD51: 0.1999735606 | AE51: 7.494748966 | AF51: 1.103616569 | AG51: 0.008608801182 | AH51: 1.019707615 | AI51: -0.004854419443 | AJ51: 9.256565044 | AK51: 8.327324152 | AL51: 0.1299169335 | AM51: 0.9303797146 | AN51: 9.166393063 | AO51: 0.1767006948 | AP51: 1.656371117 | BA51: 0 | BB51: 0.1568078102 | BC51: 0.001341383285 | BD51: 8e-05 | BE51: 0.00172088091 | BF51: 4e-05 | BG51: 0.001568078102 | BH51: 0.000268276657 | BI51: 1.6e-05 | BJ51: 1.72088091e-05 | BK51: 8e-06 | BL51: 0.03136156205 | BM51: 0.02280351585 | BN51: 0.00816 | BO51: 0.008776492641 | BP51: 0.00408 | BQ51: 0.034125 | CJ51: =IF(ROW()-ROW($CJ$45)=MATCH(MIN(ABS($E$45:$E$111-AVERAGE(ABS($D$25),ABS($D$27)))),ABS($E$45:$E$111-AVERAGE(ABS($D$25),ABS($D$27))),0),AVERAGE($D$24,$D$26),"") ->  | CN51: ='スパー寸法(sht20)'!BG51 -> 0.1687511743 | CO51: 0.1093065705 | CP51: 0.2780577449 | CR51: 1.441428453 | CS51: 0.001573910073 | CT51: 1.439854543
C52: 7 | D52: flat | E52: 1.4 | F52: 1.4 | G52: 0 | H52: 0.2 | I52: 7.5 | J52: 0 | K52: 1 | L52: 0 | M52: 1.491276408 | N52: 0.4697520686 | O52: -1.02152434 | P52: 1.5 | Q52: 0.4725 | R52: -1.0275 | T52: 8.711693898 | U52: 750819.1905 | V52: 1.38742137 | W52: 0.01404193696 | X52: -0.0901088044 | Y52: 0.1096622711 | Z52: 0 | AA52: 7.358461618e-05 | AB52: 1.399902291 | AC52: 0.01423992252 | AD52: 0.1999628997 | AE52: 7.493960831 | AF52: 1.267606176 | AG52: 0.01216825224 | AH52: 1.187615078 | AI52: -0.005646848881 | AJ52: 9.238529877 | AK52: 8.324528217 | AL52: 0.1305481088 | AM52: 0.9348989772 | AN52: 9.150912227 | AO52: 0.1766760615 | AP52: 1.656371117 | BA52: 0 | BB52: 0.1568078102 | BC52: 0.001341383285 | BD52: 8e-05 | BE52: 0.00172088091 | BF52: 4e-05 | BG52: 0.001568078102 | BH52: 0.000268276657 | BI52: 1.6e-05 | BJ52: 1.72088091e-05 | BK52: 8e-06 | BL52: 0.03136156205 | BM52: 0.02280351585 | BN52: 0.00816 | BO52: 0.008776492641 | BP52: 0.00408 | BQ52: 0.034125 | CJ52: =IF(ROW()-ROW($CJ$45)=MATCH(MIN(ABS($E$45:$E$111-AVERAGE(ABS($D$25),ABS($D$27)))),ABS($E$45:$E$111-AVERAGE(ABS($D$25),ABS($D$27))),0),AVERAGE($D$24,$D$26),"") ->  | CN52: ='スパー寸法(sht20)'!BG52 -> 0.1687511743 | CO52: 0.1093065705 | CP52: 0.2780577449 | CR52: 1.961009527 | CS52: 0.001283102858 | CT52: 1.959726424
C53: 8 | D53: flat | E53: 1.6 | F53: 1.6 | G53: 0 | H53: 0.2 | I53: 7.5 | J53: 0 | K53: 1 | L53: 0 | M53: 1.488595701 | N53: 0.4689076457 | O53: -1.019688055 | P53: 1.5 | Q53: 0.4725 | R53: -1.0275 | T53: 8.705632369 | U53: 750819.1905 | V53: 1.386887431 | W53: 0.01402929053 | X53: -0.0901260674 | Y53: 0.1096622711 | Z53: 0 | AA53: 2.161562443e-05 | AB53: 1.599853346 | AC53: 0.01866434185 | AD53: 0.1999510553 | AE53: 7.49318199 | AF53: 1.423924954 | AG53: 0.01631381091 | AH53: 1.347699188 | AI53: -0.006430585464 | AJ53: 9.21804105 | AK53: 8.321324587 | AL53: 0.1312859088 | AM53: 0.9401816655 | AN53: 9.133190585 | AO53: 0.1766493971 | AP53: 1.656371117 | BA53: 0 | BB53: 0.1568078102 | BC53: 0.001341383285 | BD53: 8e-05 | BE53: 0.00172088091 | BF53: 4e-05 | BG53: 0.001568078102 | BH53: 0.000268276657 | BI53: 1.6e-05 | BJ53: 1.72088091e-05 | BK53: 8e-06 | BL53: 0.03136156205 | BM53: 0.02280351585 | BN53: 0.00816 | BO53: 0.008776492641 | BP53: 0.00408 | BQ53: 0.034125 | CJ53: =IF(ROW()-ROW($CJ$45)=MATCH(MIN(ABS($E$45:$E$111-AVERAGE(ABS($D$25),ABS($D$27)))),ABS($E$45:$E$111-AVERAGE(ABS($D$25),ABS($D$27))),0),AVERAGE($D$24,$D$26),"") ->  | CN53: ='スパー寸法(sht20)'!BG53 -> 0.1687511743 | CO53: 0.1093065705 | CP53: 0.2780577449 | CR53: 2.560516439 | CS53: 0.0009857091817 | CT53: 2.559530729
C54: 9 | D54: flat | E54: 1.8 | F54: 1.8 | G54: 0 | H54: 0.2 | I54: 7.5 | J54: 0 | K54: 1 | L54: 0 | M54: 1.485551717 | N54: 0.467948791 | O54: -1.017602926 | P54: 1.5 | Q54: 0.4725 | R54: -1.0275 | T54: 8.698795579 | U54: 750819.1905 | V54: 1.386282802 | W54: 0.01401522942 | X54: -0.09014525265 | Y54: 0.1096622711 | Z54: 0 | AA54: -3.687053919e-05 | AB54: 1.799791586 | AC54: 0.02363426596 | AD54: 0.1999382401 | AE54: 7.492413595 | AF54: 1.572877577 | AG54: 0.02101816854 | AH54: 1.500264618 | AI54: -0.00720442659 | AJ54: 9.195109681 | AK54: 8.31769681 | AL54: 0.1321334462 | AM54: 0.9462500606 | AN54: 9.113220793 | AO54: 0.1766121731 | AP54: 1.656371117 | BA54: 0 | BB54: 0.1568078102 | BC54: 0.001341383285 | BD54: 8e-05 | BE54: 0.00172088091 | BF54: 4e-05 | BG54: 0.001568078102 | BH54: 0.000268276657 | BI54: 1.6e-05 | BJ54: 1.72088091e-05 | BK54: 8e-06 | BL54: 0.03136156205 | BM54: 0.02280351585 | BN54: 0.00816 | BO54: 0.008776492641 | BP54: 0.00408 | BQ54: 0.034125 | CJ54: =IF(ROW()-ROW($CJ$45)=MATCH(MIN(ABS($E$45:$E$111-AVERAGE(ABS($D$25),ABS($D$27)))),ABS($E$45:$E$111-AVERAGE(ABS($D$25),ABS($D$27))),0),AVERAGE($D$24,$D$26),"") ->  | CN54: ='スパー寸法(sht20)'!BG54 -> 0.1687511743 | CO54: 0.1093065705 | CP54: 0.2780577449 | CR54: 3.239948092 | CS54: 0.0006983377945 | CT54: 3.239249754
C55: 10 | D55: flat | E55: 2 | F55: 2 | G55: 0 | H55: 0.2 | I55: 7.5 | J55: 0 | K55: 1 | L55: 0 | M55: 1.482142221 | N55: 0.4668747995 | O55: -1.015267421 | P55: 1.5 | Q55: 0.4725 | R55: -1.0275 | T55: 8.691157342 | U55: 750819.1905 | V55: 1.385604501 | W55: 0.01399977505 | X55: -0.09016632289 | Y55: 0.1096622711 | Z55: 0 | AA55: -0.0001020303369 | AB55: 1.99971623 | AC55: 0.02912395488 | AD55: 0.1999246441 | AE55: 7.4916567 | AF55: 1.714768735 | AG55: 0.02625507999 | AH55: 1.645616049 | AI55: -0.007967273172 | AJ55: 9.169736607 | AK55: 8.313627005 | AL55: 0.1330945269 | AM55: 0.9531314026 | AN55: 9.090987139 | AO55: 0.1765801377 | AP55: 1.656371117 | BA55: 0 | BB55: 0.1568078102 | BC55: 0.001341383285 | BD55: 8e-05 | BE55: 0.00172088091 | BF55: 4e-05 | BG55: 0.001568078102 | BH55: 0.000268276657 | BI55: 1.6e-05 | BJ55: 1.72088091e-05 | BK55: 8e-06 | BL55: 0.03136156205 | BM55: 0.02280351585 | BN55: 0.00816 | BO55: 0.008776492641 | BP55: 0.00408 | BQ55: 0.034125 | CJ55: =IF(ROW()-ROW($CJ$45)=MATCH(MIN(ABS($E$45:$E$111-AVERAGE(ABS($D$25),ABS($D$27)))),ABS($E$45:$E$111-AVERAGE(ABS($D$25),ABS($D$27))),0),AVERAGE($D$24,$D$26),"") ->  | CN55: ='スパー寸法(sht20)'!BG55 -> 0.1687511743 | CO55: 0.1093065705 | CP55: 0.2780577449 | CR55: 3.999303335 | CS55: 0.0004383325431 | CT55: 3.998865002
C56: 11 | D56: flat | E56: 2.2 | F56: 2.2 | G56: 0 | H56: 0.2 | I56: 7.5 | J56: 0 | K56: 1 | L56: 0 | M56: 1.478364681 | N56: 0.4656848745 | O56: -1.012679807 | P56: 1.5 | Q56: 0.4725 | R56: -1.0275 | T56: 8.682697247 | U56: 750819.1905 | V56: 1.384849429 | W56: 0.0139829684 | X56: -0.09018921852 | Y56: 0.1096622711 | Z56: 0 | AA56: -0.0001740056276 | AB56: 2.199626666 | AC56: 0.03510873342 | AD56: 0.199910436 | AE56: 7.491030935 | AF56: 1.825406198 | AG56: 0.03199936365 | AH56: 1.784058182 | AI56: -0.008718112689 | AJ56: 9.141895519 | AK56: 8.309096575 | AL56: 0.1341887109 | AM56: 0.9609657325 | AN56: 9.066448473 | AO56: 0.1765763094 | AP56: 1.656371117 | BA56: 0 | BB56: 0.1568078102 | BC56: 0.001341383285 | BD56: 8e-05 | BE56: 0.00172088091 | BF56: 4e-05 | BG56: 0.001568078102 | BH56: 0.000268276657 | BI56: 1.6e-05 | BJ56: 1.72088091e-05 | BK56: 8e-06 | BL56: 0.03136156205 | BM56: 0.02280351585 | BN56: 0.00816 | BO56: 0.008776492641 | BP56: 0.00408 | BQ56: 0.034125 | CJ56: =IF(ROW()-ROW($CJ$45)=MATCH(MIN(ABS($E$45:$E$111-AVERAGE(ABS($D$25),ABS($D$27)))),ABS($E$45:$E$111-AVERAGE(ABS($D$25),ABS($D$27))),0),AVERAGE($D$24,$D$26),"") ->  | CN56: ='スパー寸法(sht20)'!BG56 -> 0.1679527439 | CO56: 0.1093065705 | CP56: 0.2772593145 | CR56: 4.838581022 | CS56: 0.0002235507687 | CT56: 4.838357472
C57: 12 | D57: flat | E57: 2.4 | F57: 2.4 | G57: 0 | H57: 0.2 | I57: 7.5 | J57: 0 | K57: 1 | L57: 0 | M57: 1.47421627 | N57: 0.4643781249 | O57: -1.009838145 | P57: 1.5 | Q57: 0.4725 | R57: -1.0275 | T57: 8.673370631 | U57: 750819.1905 | V57: 1.384012818 | W57: 0.01396481507 | X57: -0.0902139321 | Y57: 0.1096622711 | Z57: 0 | AA57: -0.0002530989051 | AB57: 2.399525173 | AC57: 0.04147952522 | AD57: 0.1998985068 | AE57: 7.490590298 | AF57: 1.896252217 | AG57: 0.03822690151 | AH57: 1.866899869 | AI57: -0.009218713863 | AJ57: 9.111552527 | AK57: 8.30407691 | AL57: 0.1354297801 | AM57: 0.9698517121 | AN57: 9.039557404 | AO57: 0.1765832235 | AP57: 1.656371117 | BA57: 1st | BB57: 0.1568078102 | BC57: 0.001341383285 | BD57: 8e-05 | BE57: 0.00172088091 | BF57: 4e-05 | BG57: 0.001568078102 | BH57: 0.000268276657 | BI57: 1.6e-05 | BJ57: 1.72088091e-05 | BK57: 8e-06 | BR57: 0.03136156205 | BS57: 0.02280351585 | BT57: 0.00816 | BU57: 0.008776492641 | BV57: 0.00408 | BW57: 0.034125 | CJ57: =IF(ROW()-ROW($CJ$45)=MATCH(MIN(ABS($E$45:$E$111-AVERAGE(ABS($D$25),ABS($D$27)))),ABS($E$45:$E$111-AVERAGE(ABS($D$25),ABS($D$27))),0),AVERAGE($D$24,$D$26),"") ->  | CN57: ='スパー寸法(sht20)'!BG57 -> 0.1658235961 | CO57: 0.1093065705 | CP57: 0.2751301666 | CR57: 5.757794687 | CS57: 7.363051399e-05 | CT57: 5.757721057
C58: 13 | D58: flat | E58: 2.6 | F58: 2.6 | G58: 0 | H58: 0.2 | I58: 7.5 | J58: 0 | K58: 1 | L58: 0 | M58: 1.469693846 | N58: 0.4629535614 | O58: -1.006740284 | P58: 1.5 | Q58: 0.4725 | R58: -1.0275 | T58: 8.663077622 | U58: 750819.1905 | V58: 1.383084297 | W58: 0.01394523028 | X58: -0.09024056792 | Y58: 0.1096622711 | Z58: 0 | AA58: -0.0003400886059 | AB58: 2.59941565 | AC58: 0.04809748584 | AD58: 0.1998904765 | AE58: 7.490096772 | AF58: 1.968037749 | AG58: 0.04474361142 | AH58: 1.925756008 | AI58: -0.009599322704 | AJ58: 9.078698291 | AK58: 8.298505783 | AL58: 0.136798442 | AM58: 0.9796511946 | AN58: 9.010291942 | AO58: 0.1765762625 | AP58: 1.656371117 | BA58: 1st | BB58: 0.1568078102 | BC58: 0.001341383285 | BD58: 8e-05 | BE58: 0.00172088091 | BF58: 4e-05 | BG58: 0.001568078102 | BH58: 0.000268276657 | BI58: 1.6e-05 | BJ58: 1.72088091e-05 | BK58: 8e-06 | BR58: 0.03136156205 | BS58: 0.02280351585 | BT58: 0.00816 | BU58: 0.008776492641 | BV58: 0.00408 | BW58: 0.034125 | CJ58: =IF(ROW()-ROW($CJ$45)=MATCH(MIN(ABS($E$45:$E$111-AVERAGE(ABS($D$25),ABS($D$27)))),ABS($E$45:$E$111-AVERAGE(ABS($D$25),ABS($D$27))),0),AVERAGE($D$24,$D$26),"") ->  | CN58: ='スパー寸法(sht20)'!BG58 -> 0.2849543488 | CO58: 0.1093065705 | CP58: 0.3942609193 | CR58: 6.756965573 | CS58: 3.852826554e-06 | CT58: 6.75696172
C59: 14 | D59: flat | E59: 2.8 | F59: 2.8 | G59: 0 | H59: 0.2 | I59: 7.5 | J59: 0 | K59: 1 | L59: 0 | M59: 1.464793945 | N59: 0.4614100927 | O59: -1.003383852 | P59: 1.5 | Q59: 0.4725 | R59: -1.0275 | T59: 8.65168908 | U59: 750819.1905 | V59: 1.382050872 | W59: 0.0139240995 | X59: -0.09026928991 | Y59: 0.1096622711 | Z59: 0 | AA59: -0.0004359832406 | AB59: 2.799297678 | AC59: 0.05496588277 | AD59: 0.199882028 | AE59: 7.489058868 | AF59: 2.089243088 | AG59: 0.051465768 | AH59: 2.010476897 | AI59: -0.01020569039 | AJ59: 9.04335672 | AK59: 8.292305231 | AL59: 0.1382440908 | AM59: 0.9900018322 | AN59: 8.978663791 | AO59: 0.176526496 | AP59: 1.656371117 | BA59: 1st | BB59: 0.1568078102 | BC59: 0.001341383285 | BD59: 8e-05 | BE59: 0.00172088091 | BF59: 4e-05 | BG59: 0.001568078102 | BH59: 0.000268276657 | BI59: 1.6e-05 | BJ59: 1.72088091e-05 | BK59: 8e-06 | BR59: 0.03136156205 | BS59: 0.02280351585 | BT59: 0.00816 | BU59: 0.008776492641 | BV59: 0.00408 | BW59: 0.034125 | CJ59: =IF(ROW()-ROW($CJ$45)=MATCH(MIN(ABS($E$45:$E$111-AVERAGE(ABS($D$25),ABS($D$27)))),ABS($E$45:$E$111-AVERAGE(ABS($D$25),ABS($D$27))),0),AVERAGE($D$24,$D$26),"") ->  | CN59: ='スパー寸法(sht20)'!BG59 -> 0.118600821 | CO59: 0.1093065705 | CP59: 0.2279073915 | CR59: 7.836091553 | CS59: 2.406427456e-05 | CT59: 7.836067488
C60: 15 | D60: flat | E60: 3 | F60: 3 | G60: 0 | H60: 0.2 | I60: 7.5 | J60: 0 | K60: 1 | L60: 0 | M60: 1.459512766 | N60: 0.4597465214 | O60: -0.9997662449 | P60: 1.5 | Q60: 0.4725 | R60: -1.0275 | T60: 8.639154976 | U60: 750819.1905 | V60: 1.380905986 | W60: 0.01390148234 | X60: -0.0903000012 | Y60: 0.1096622711 | Z60: 0 | AA60: -0.0005411121249 | AB60: 2.999164729 | AC60: 0.06225710089 | AD60: 0.1998670512 | AE60: 7.487571629 | AF60: 2.246846174 | AG60: 0.05848365628 | AH60: 2.168176902 | AI60: -0.01167496801 | AJ60: 9.005551955 | AK60: 8.285435915 | AL60: 0.1397869898 | AM60: 1.001048697 | AN60: 8.944685386 | AO60: 0.1764691131 | AP60: 1.656371117 | BA60: 1st | BB60: 0.1568078102 | BC60: 0.001341383285 | BD60: 8e-05 | BE60: 0.00172088091 | BF60: 4e-05 | BG60: 0.001568078102 | BH60: 0.000268276657 | BI60: 1.6e-05 | BJ60: 1.72088091e-05 | BK60: 8e-06 | BR60: 0.03136156205 | BS60: 0.02280351585 | BT60: 0.00816 | BU60: 0.008776492641 | BV60: 0.00408 | BW60: 0.034125 | CJ60: =IF(ROW()-ROW($CJ$45)=MATCH(MIN(ABS($E$45:$E$111-AVERAGE(ABS($D$25),ABS($D$27)))),ABS($E$45:$E$111-AVERAGE(ABS($D$25),ABS($D$27))),0),AVERAGE($D$24,$D$26),"") ->  | CN60: ='スパー寸法(sht20)'!BG60 -> 0.1167401719 | CO60: 0.1093065705 | CP60: 0.2260467424 | CR60: 8.995137832 | CS60: 0.0001487607891 | CT60: 8.994989071
C61: 16 | D61: flat | E61: 3.2 | F61: 3.2 | G61: 0 | H61: 0.2 | I61: 7.5 | J61: 0 | K61: 1 | L61: 0 | M61: 1.453846154 | N61: 0.4579615385 | O61: -0.9958846154 | P61: 1.5 | Q61: 0.4725 | R61: -1.0275 | T61: 8.625468864 | U61: 750819.1905 | V61: 1.379647374 | W61: 0.01387752313 | X61: -0.09033249319 | Y61: 0.1096622711 | Z61: 0 | AA61: -0.000655413866 | AB61: 3.199010968 | AC61: 0.07009806359 | AD61: 0.1998462392 | AE61: 7.486049418 | AF61: 2.404374803 | AG61: 0.06605202142 | AH61: 2.325696493 | AI61: -0.0131799281 | AJ61: 8.965271454 | AK61: 8.277884245 | AL61: 0.1414859157 | AM61: 1.013212598 | AN61: 8.908333286 | AO61: 0.1764255749 | AP61: 1.656371117 | BA61: 1st | BB61: 0.1568078102 | BC61: 0.001341383285 | BD61: 8e-05 | BE61: 0.00172088091 | BF61: 4e-05 | BG61: 0.001568078102 | BH61: 0.000268276657 | BI61: 1.6e-05 | BJ61: 1.72088091e-05 | BK61: 8e-06 | BR61: 0.03136156205 | BS61: 0.02280351585 | BT61: 0.00816 | BU61: 0.008776492641 | BV61: 0.00408 | BW61: 0.034125 | CJ61: =IF(ROW()-ROW($CJ$45)=MATCH(MIN(ABS($E$45:$E$111-AVERAGE(ABS($D$25),ABS($D$27)))),ABS($E$45:$E$111-AVERAGE(ABS($D$25),ABS($D$27))),0),AVERAGE($D$24,$D$26),"") ->  | CN61: ='スパー寸法(sht20)'!BG61 -> 0.1148795228 | CO61: 0.1093065705 | CP61: 0.2241860933 | CR61: 10.23407268 | CS61: 0.0004015100591 | CT61: 10.23367117
C62: 17 | D62: flat | E62: 3.4 | F62: 3.4 | G62: 0 | H62: 0.2 | I62: 7.5 | J62: 0 | K62: 1 | L62: 0 | M62: 1.447789582 | N62: 0.4560537184 | O62: -0.9917358639 | P62: 1.5 | Q62: 0.4725 | R62: -1.0275 | T62: 8.610573576 | U62: 750819.1905 | V62: 1.378267646 | W62: 0.0138522936 | X62: -0.09036667645 | Y62: 0.1096622711 | Z62: 0 | AA62: -0.0007792794704 | AB62: 3.398834894 | AC62: 0.07848845186 | AD62: 0.199823926 | AE62: 7.484493871 | AF62: 2.562059599 | AG62: 0.07417023366 | AH62: 2.483247729 | AI62: -0.01471913202 | AJ62: 8.922488563 | AK62: 8.269605875 | AL62: 0.1433490854 | AM62: 1.02655234 | AN62: 8.86957054 | AO62: 0.1763805944 | AP62: 1.656371117 | BA62: 1st | BB62: 0.1568078102 | BC62: 0.001341383285 | BD62: 8e-05 | BE62: 0.00172088091 | BF62: 4e-05 | BG62: 0.001568078102 | BH62: 0.000268276657 | BI62: 1.6e-05 | BJ62: 1.72088091e-05 | BK62: 8e-06 | BR62: 0.03136156205 | BS62: 0.02280351585 | BT62: 0.00816 | BU62: 0.008776492641 | BV62: 0.00408 | BW62: 0.034125 | CJ62: =IF(ROW()-ROW($CJ$45)=MATCH(MIN(ABS($E$45:$E$111-AVERAGE(ABS($D$25),ABS($D$27)))),ABS($E$45:$E$111-AVERAGE(ABS($D$25),ABS($D$27))),0),AVERAGE($D$24,$D$26),"") ->  | CN62: ='スパー寸法(sht20)'!BG62 -> 0.1130188737 | CO62: 0.1093065705 | CP62: 0.2223254442 | CR62: 11.55288679 | CS62: 0.0008081571077 | CT62: 11.55207864
C63: 18 | D63: flat | E63: 3.6 | F63: 3.6 | G63: 0 | H63: 0.2 | I63: 7.5 | J63: 0 | K63: 1 | L63: 0 | M63: 1.441338136 | N63: 0.4540215127 | O63: -0.9873166229 | P63: 1.5 | Q63: 0.4725 | R63: -1.0275 | T63: 8.594381216 | U63: 750819.1905 | V63: 1.376757622 | W63: 0.0138257388 | X63: -0.0904025957 | Y63: 0.1096622711 | Z63: 0 | AA63: -0.0009133502841 | AB63: 3.598634972 | AC63: 0.08742874686 | AD63: 0.1998000779 | AE63: 7.482907075 | AF63: 2.720170962 | AG63: 0.08283840347 | AH63: 2.641079793 | AI63: -0.01629074344 | AJ63: 8.877180639 | AK63: 8.260545731 | AL63: 0.1453890708 | AM63: 1.041157903 | AN63: 8.828364576 | AO63: 0.1763338966 | AP63: 1.656371117 | BA63: 1st | BB63: 0.1568078102 | BC63: 0.001341383285 | BD63: 8e-05 | BE63: 0.00172088091 | BF63: 4e-05 | BG63: 0.001568078102 | BH63: 0.000268276657 | BI63: 1.6e-05 | BJ63: 1.72088091e-05 | BK63: 8e-06 | BR63: 0.03136156205 | BS63: 0.02280351585 | BT63: 0.00816 | BU63: 0.008776492641 | BV63: 0.00408 | BW63: 0.034125 | CJ63: =IF(ROW()-ROW($CJ$45)=MATCH(MIN(ABS($E$45:$E$111-AVERAGE(ABS($D$25),ABS($D$27)))),ABS($E$45:$E$111-AVERAGE(ABS($D$25),ABS($D$27))),0),AVERAGE($D$24,$D$26),"") ->  | CN63: ='スパー寸法(sht20)'!BG63 -> 0.1111582246 | CO63: 0.1093065705 | CP63: 0.2204647951 | CR63: 12.95157006 | CS63: 0.001396397258 | CT63: 12.95017366
C64: 19 | D64: flat | E64: 3.8 | F64: 3.8 | G64: 0 | H64: 0.2 | I64: 7.5 | J64: 0 | K64: 1 | L64: 0 | M64: 1.434486486 | N64: 0.4518632432 | O64: -0.9826232431 | P64: 1.5 | Q64: 0.4725 | R64: -1.0275 | T64: 8.576801333 | U64: 750819.1905 | V64: 1.375106096 | W64: 0.01379795931 | X64: -0.09044012427 | Y64: 0.1096622711 | Z64: 0 | AA64: -0.001058228016 | AB64: 3.798409618 | AC64: 0.09692036819 | AD64: 0.1997746459 | AE64: 7.481291675 | AF64: 2.879024771 | AG64: 0.09205751111 | AH64: 2.799484303 | AI64: -0.01789242561 | AJ64: 8.829323865 | AK64: 8.250636578 | AL64: 0.1476188807 | AM64: 1.057122386 | AN64: 8.784681973 | AO64: 0.1762855711 | AP64: 1.656371117 | BA64: 1st | BB64: 0.1568078102 | BC64: 0.001341383285 | BD64: 8e-05 | BE64: 0.00172088091 | BF64: 4e-05 | BG64: 0.001568078102 | BH64: 0.000268276657 | BI64: 1.6e-05 | BJ64: 1.72088091e-05 | BK64: 8e-06 | BR64: 0.03136156205 | BS64: 0.02280351585 | BT64: 0.00816 | BU64: 0.008776492641 | BV64: 0.00408 | BW64: 0.034125 | CJ64: =IF(ROW()-ROW($CJ$45)=MATCH(MIN(ABS($E$45:$E$111-AVERAGE(ABS($D$25),ABS($D$27)))),ABS($E$45:$E$111-AVERAGE(ABS($D$25),ABS($D$27))),0),AVERAGE($D$24,$D$26),"") ->  | CN64: ='スパー寸法(sht20)'!BG64 -> 0.1092975755 | CO64: 0.1093065705 | CP64: 0.218604146 | CR64: 14.43011149 | CS64: 0.002195861523 | CT64: 14.42791562
C65: 20 | D65: flat | E65: 4 | F65: 4 | G65: 0 | H65: 0.2 | I65: 7.5 | J65: 0 | K65: 1 | L65: 0 | M65: 1.42722887 | N65: 0.4495770942 | O65: -0.9776517762 | P65: 1.5 | Q65: 0.4725 | R65: -1.0275 | T65: 8.557723622 | U65: 750819.1905 | V65: 1.373299241 | W65: 0.01376907434 | X65: -0.09047907591 | Y65: 0.1096622711 | Z65: 0 | AA65: -0.001214625239 | AB65: 3.99815718 | AC65: 0.1069658319 | AD65: 0.1997475623 | AE65: 7.479651019 | AF65: 3.038988927 | AG65: 0.1018295548 | AH65: 2.958801399 | AI65: -0.01952121869 | AJ65: 8.778892159 | AK65: 8.239795446 | AL65: 0.1500543956 | AM65: 1.074559441 | AN65: 8.738487334 | AO65: 0.1762357607 | AP65: 1.656371117 | BA65: 1st | BB65: 0.1568078102 | BC65: 0.001341383285 | BD65: 8e-05 | BE65: 0.00172088091 | BF65: 4e-05 | BG65: 0.001568078102 | BH65: 0.000268276657 | BI65: 1.6e-05 | BJ65: 1.72088091e-05 | BK65: 8e-06 | BR65: 0.03136156205 | BS65: 0.02280351585 | BT65: 0.00816 | BU65: 0.008776492641 | BV65: 0.00408 | BW65: 0.034125 | CJ65: =IF(ROW()-ROW($CJ$45)=MATCH(MIN(ABS($E$45:$E$111-AVERAGE(ABS($D$25),ABS($D$27)))),ABS($E$45:$E$111-AVERAGE(ABS($D$25),ABS($D$27))),0),AVERAGE($D$24,$D$26),"") ->  | CN65: ='スパー寸法(sht20)'!BG65 -> 0.1074369264 | CO65: 0.1093065705 | CP65: 0.216743497 | CR65: 15.98849907 | CS65: 0.003238234139 | CT65: 15.98526084
C66: 21 | D66: flat | E66: 4.2 | F66: 4.2 | G66: 0 | H66: 0.2 | I66: 7.5 | J66: 0 | K66: 1 | L66: 0 | M66: 1.419559061 | N66: 0.4471611044 | O66: -0.9723979571 | P66: 1.5 | Q66: 0.4725 | R66: -1.0275 | T66: 8.537015705 | U66: 750819.1905 | V66: 1.371321321 | W66: 0.01373915933 | X66: -0.09051933885 | Y66: 0.1096622711 | Z66: 0 | AA66: -0.001383453012 | AB66: 4.197875918 | AC66: 0.1175689313 | AD66: 0.1997187379 | AE66: 7.477989322 | AF66: 3.200490869 | AG66: 0.1121577201 | AH66: 3.119426741 | AI66: -0.02117338768 | AJ66: 8.725856711 | AK66: 8.227927923 | AL66: 0.1527147019 | AM66: 1.093605662 | AN66: 8.689742768 | AO66: 0.1761846241 | AP66: 1.656371117 | BA66: 1st | BB66: 0.1568078102 | BC66: 0.001341383285 | BD66: 8e-05 | BE66: 0.00172088091 | BF66: 4e-05 | BG66: 0.001568078102 | BH66: 0.000268276657 | BI66: 1.6e-05 | BJ66: 1.72088091e-05 | BK66: 8e-06 | BR66: 0.03136156205 | BS66: 0.02280351585 | BT66: 0.00816 | BU66: 0.008776492641 | BV66: 0.00408 | BW66: 0.034125 | CJ66: =IF(ROW()-ROW($CJ$45)=MATCH(MIN(ABS($E$45:$E$111-AVERAGE(ABS($D$25),ABS($D$27)))),ABS($E$45:$E$111-AVERAGE(ABS($D$25),ABS($D$27))),0),AVERAGE($D$24,$D$26),"") ->  | CN66: ='スパー寸法(sht20)'!BG66 -> 0.1055762773 | CO66: 0.1093065705 | CP66: 0.2148828479 | CR66: 17.62671963 | CS66: 0.004557408858 | CT66: 17.62216222
C67: 22 | D67: flat | E67: 4.4 | F67: 4.4 | G67: 0 | H67: 0.2 | I67: 7.5 | J67: 0 | K67: 1 | L67: 0 | M67: 1.41147034 | N67: 0.4446131571 | O67: -0.9668571829 | P67: 1.5 | Q67: 0.4725 | R67: -1.0275 | T67: 8.514520978 | U67: 750819.1905 | V67: 1.369154096 | W67: 0.01370830089 | X67: -0.09056077152 | Y67: 0.1096622711 | Z67: 0 | AA67: -0.001565755308 | AB67: 4.397563975 | AC67: 0.128734943 | AD67: 0.1996880572 | AE67: 7.476311886 | AF67: 3.364026222 | AG67: 0.1230465735 | AH67: 3.281819545 | AI67: -0.02284423113 | AJ67: 8.670185675 | AK67: 8.214924574 | AL67: 0.1556224235 | AM67: 1.114422952 | AN67: 8.638407548 | AO67: 0.176132328 | AP67: 1.656371117 | BA67: 1st | BB67: 0.1568078102 | BC67: 0.001341383285 | BD67: 8e-05 | BE67: 0.00172088091 | BF67: 4e-05 | BG67: 0.001568078102 | BH67: 0.000268276657 | BI67: 1.6e-05 | BJ67: 1.72088091e-05 | BK67: 8e-06 | BR67: 0.03136156205 | BS67: 0.02280351585 | BT67: 0.00816 | BU67: 0.008776492641 | BV67: 0.00408 | BW67: 0.034125 | CJ67: =IF(ROW()-ROW($CJ$45)=MATCH(MIN(ABS($E$45:$E$111-AVERAGE(ABS($D$25),ABS($D$27)))),ABS($E$45:$E$111-AVERAGE(ABS($D$25),ABS($D$27))),0),AVERAGE($D$24,$D$26),"") ->  | CN67: ='スパー寸法(sht20)'!BG67 -> 0.1037156282 | CO67: 0.1093065705 | CP67: 0.2130221988 | CR67: 19.34475861 | CS67: 0.006189691956 | CT67: 19.33856892
C68: 23 | D68: flat | E68: 4.6 | F68: 4.6 | G68: 0 | H68: 0.2 | I68: 7.5 | J68: 0 | K68: 1 | L68: 0 | M68: 1.40295546 | N68: 0.44193097 | O68: -0.9610244903 | P68: 1.5 | Q68: 0.4725 | R68: -1.0275 | T68: 8.490059735 | U68: 750819.1905 | V68: 1.36677599 | W68: 0.01367662475 | X68: -0.09060319513 | Y68: 0.1096622711 | Z68: 0 | AA68: -0.001762755811 | AB68: 4.597219349 | AC68: 0.1404708643 | AD68: 0.1996553735 | AE68: 7.474625364 | AF68: 3.530168766 | AG68: 0.1345022848 | AH68: 3.446511844 | AI68: -0.02452784405 | AJ68: 8.611843913 | AK68: 8.200655937 | AL68: 0.1588036025 | AM68: 1.137197673 | AN68: 8.584437813 | AO68: 0.1760790442 | AP68: 1.656371117 | BA68: 1st | BB68: 0.1568078102 | BC68: 0.001341383285 | BD68: 8e-05 | BE68: 0.00172088091 | BF68: 4e-05 | BG68: 0.001568078102 | BH68: 0.000268276657 | BI68: 1.6e-05 | BJ68: 1.72088091e-05 | BK68: 8e-06 | BR68: 0.03136156205 | BS68: 0.02280351585 | BT68: 0.00816 | BU68: 0.008776492641 | BV68: 0.00408 | BW68: 0.034125 | CJ68: =IF(ROW()-ROW($CJ$45)=MATCH(MIN(ABS($E$45:$E$111-AVERAGE(ABS($D$25),ABS($D$27)))),ABS($E$45:$E$111-AVERAGE(ABS($D$25),ABS($D$27))),0),AVERAGE($D$24,$D$26),"") ->  | CN68: ='スパー寸法(sht20)'!BG68 -> 0.1018549791 | CO68: 0.1093065705 | CP68: 0.2111615497 | CR68: 21.1425998 | CS68: 0.008174061514 | CT68: 21.13442574
C69: 24 | D69: flat | E69: 4.8 | F69: 4.8 | G69: 0 | H69: 0.2 | I69: 7.5 | J69: 0 | K69: 1 | L69: 0 | M69: 1.394006613 | N69: 0.4391120832 | O69: -0.9548945301 | P69: 1.5 | Q69: 0.4725 | R69: -1.0275 | T69: 8.463432059 | U69: 750819.1905 | V69: 1.36416316 | W69: 0.01364424732 | X69: -0.09064636379 | Y69: 0.1096622711 | Z69: 0 | AA69: -0.001975758374 | AB69: 4.796839852 | AC69: 0.1527856829 | AD69: 0.1996205031 | AE69: 7.472938087 | AF69: 3.699581935 | AG69: 0.1465328807 | AH69: 3.614119161 | AI69: -0.02621682251 | AJ69: 8.550792744 | AK69: 8.184978962 | AL69: 0.1622873417 | AM69: 1.162138072 | AN69: 8.527786286 | AO69: 0.176024948 | AP69: 1.656371117 | BA69: 1st | BB69: 0.1568078102 | BC69: 0.001341383285 | BD69: 8e-05 | BE69: 0.00172088091 | BF69: 4e-05 | BG69: 0.001568078102 | BH69: 0.000268276657 | BI69: 1.6e-05 | BJ69: 1.72088091e-05 | BK69: 8e-06 | BR69: 0.03136156205 | BS69: 0.02280351585 | BT69: 0.00816 | BU69: 0.008776492641 | BV69: 0.00408 | BW69: 0.034125 | CJ69: =IF(ROW()-ROW($CJ$45)=MATCH(MIN(ABS($E$45:$E$111-AVERAGE(ABS($D$25),ABS($D$27)))),ABS($E$45:$E$111-AVERAGE(ABS($D$25),ABS($D$27))),0),AVERAGE($D$24,$D$26),"") ->  | CN69: ='スパー寸法(sht20)'!BG69 -> 0.09999433006 | CO69: 0.1093065705 | CP69: 0.2093009006 | CR69: 23.02022506 | CS69: 0.0105524945 | CT69: 23.00967256
C70: 25 | D70: flat | E70: 5 | F70: 5 | G70: 0 | H70: 0.2 | I70: 7.5 | J70: 0 | K70: 1 | L70: 0 | M70: 1.384615385 | N70: 0.4361538462 | O70: -0.9484615385 | P70: 1.5 | Q70: 0.4725 | R70: -1.0275 | T70: 8.43354218 | U70: 750819.1905 | V70: 1.361294985 | W70: 0.01360101718 | X70: -0.09070378542 | Y70: 0.1096622711 | Z70: 0 | AA70: -0.002219611406 | AB70: 4.99642307 | AC70: 0.1656906883 | AD70: 0.1995832178 | AE70: 7.471260804 | AF70: 3.87303212 | AG70: 0.1591485365 | AH70: 3.78535284 | AI70: -0.02790190105 | AJ70: 8.486989673 | AK70: 8.167769909 | AL70: 0.166228224 | AM70: 1.190350669 | AN70: 8.468401968 | AO70: 0.1759702168 | AP70: 1.656371117 | BA70: 1st | BB70: 0.1568078102 | BC70: 0.001341383285 | BD70: 8e-05 | BE70: 0.00172088091 | BF70: 4e-05 | BG70: 0.001568078102 | BH70: 0.000268276657 | BI70: 1.6e-05 | BJ70: 1.72088091e-05 | BK70: 8e-06 | BR70: 0.03136156205 | BS70: 0.02280351585 | BT70: 0.00816 | BU70: 0.008776492641 | BV70: 0.00408 | BW70: 0.034125 | CJ70: =IF(ROW()-ROW($CJ$45)=MATCH(MIN(ABS($E$45:$E$111-AVERAGE(ABS($D$25),ABS($D$27)))),ABS($E$45:$E$111-AVERAGE(ABS($D$25),ABS($D$27))),0),AVERAGE($D$24,$D$26),"") ->  | CN70: ='スパー寸法(sht20)'!BG70 -> 0.09813368097 | CO70: 0.1093065705 | CP70: 0.2074402515 | CR70: 24.97761387 | CS70: 0.01337037567 | CT70: 24.96424349
C71: 26 | D71: flat | E71: 5.2 | F71: 5.2 | G71: 0 | H71: 0.2 | I71: 7.5 | J71: 0 | K71: 1 | L71: 0 | M71: 1.374772708 | N71: 0.4330534032 | O71: -0.9417193053 | P71: 1.5 | Q71: 0.4725 | R71: -1.0275 | T71: 8.398453371 | U71: 750819.1905 | V71: 1.358146191 | W71: 0.01352778543 | X71: -0.09079949558 | Y71: 0.1096622711 | Z71: 0 | AA71: -0.002519993186 | AB71: 5.195966306 | AC71: 0.1791998273 | AD71: 0.1995432363 | AE71: 7.469608199 | AF71: 4.051404067 | AG71: 0.1723619106 | AH71: 3.961034315 | AI71: -0.02957085457 | AJ71: 8.4203881 | AK71: 8.148877144 | AL71: 0.1708988716 | AM71: 1.223786873 | AN71: 8.406229819 | AO71: 0.175915028 | AP71: 1.656371117 | BA71: 1st | BB71: 0.1568078102 | BC71: 0.001341383285 | BD71: 8e-05 | BE71: 0.00172088091 | BF71: 4e-05 | BG71: 0.001568078102 | BH71: 0.000268276657 | BI71: 1.6e-05 | BJ71: 1.72088091e-05 | BK71: 8e-06 | BR71: 0.03136156205 | BS71: 0.02280351585 | BT71: 0.00816 | BU71: 0.008776492641 | BV71: 0.00408 | BW71: 0.034125 | CJ71: =IF(ROW()-ROW($CJ$45)=MATCH(MIN(ABS($E$45:$E$111-AVERAGE(ABS($D$25),ABS($D$27)))),ABS($E$45:$E$111-AVERAGE(ABS($D$25),ABS($D$27))),0),AVERAGE($D$24,$D$26),"") ->  | CN71: ='スパー寸法(sht20)'!BG71 -> 0.09627303188 | CO71: 0.1093065705 | CP71: 0.2055796024 | CR71: 27.01474286 | CS71: 0.01667700519 | CT71: 26.99806585
C72: 27 | D72: flat | E72: 5.4 | F72: 5.4 | G72: 0 | H72: 0.2 | I72: 7.5 | J72: 0 | K72: 1 | L72: 0 | M72: 1.364468815 | N72: 0.4298076768 | O72: -0.9346611385 | P72: 1.5 | Q72: 0.4725 | R72: -1.0275 | T72: 8.358837092 | U72: 750819.1905 | V72: 1.35463655 | W72: 0.01344016287 | X72: -0.09091135114 | Y72: 0.1096622711 | Z72: 0 | AA72: -0.002859975398 | AB72: 5.395466519 | AC72: 0.1933301133 | AD72: 0.1995002131 | AE72: 7.467999946 | AF72: 4.235718751 | AG72: 0.1861885287 | AH72: 4.142111647 | AI72: -0.03120654857 | AJ72: 8.350937 | AK72: 8.1278193 | AL72: 0.176208291 | AM72: 1.261794899 | AN72: 8.341210408 | AO72: 0.1758595574 | AP72: 1.656371117 | BA72: 1st | BB72: 0.1568078102 | BC72: 0.001341383285 | BD72: 8e-05 | BE72: 0.00172088091 | BF72: 4e-05 | BG72: 0.001568078102 | BH72: 0.000268276657 | BI72: 1.6e-05 | BJ72: 1.72088091e-05 | BK72: 8e-06 | BR72: 0.03136156205 | BS72: 0.02280351585 | BT72: 0.00816 | BU72: 0.008776492641 | BV72: 0.00408 | BW72: 0.034125 | CJ72: =IF(ROW()-ROW($CJ$45)=MATCH(MIN(ABS($E$45:$E$111-AVERAGE(ABS($D$25),ABS($D$27)))),ABS($E$45:$E$111-AVERAGE(ABS($D$25),ABS($D$27))),0),AVERAGE($D$24,$D$26),"") ->  | CN72: ='スパー寸法(sht20)'!BG72 -> 0.09441238279 | CO72: 0.1093065705 | CP72: 0.2037189533 | CR72: 29.13158518 | CS72: 0.02052622575 | CT72: 29.11105896
C73: 28 | D73: flat | E73: 5.6 | F73: 5.6 | G73: 0 | H73: 0.2 | I73: 7.5 | J73: 0 | K73: 1 | L73: 0 | M73: 1.353693173 | N73: 0.4264133496 | O73: -0.9272798236 | P73: 1.5 | Q73: 0.4725 | R73: -1.0275 | T73: 8.313890357 | U73: 750819.1905 | V73: 1.350667 | W73: 0.01333947387 | X73: -0.09103808552 | Y73: 0.1096622711 | Z73: 0 | AA73: -0.003244730532 | AB73: 5.594920244 | AC73: 0.208102097 | AD73: 0.1994537252 | AE73: 7.4664615 | AF73: 4.427154107 | AG73: 0.200647226 | AH73: 4.329678716 | AI73: -0.0327867666 | AJ73: 8.278580556 | AK73: 8.104001999 | AL73: 0.1822722743 | AM73: 1.305203187 | AN73: 8.273279517 | AO73: 0.1758039769 | AP73: 1.656371117 | BA73: 1st | BB73: 0.1568078102 | BC73: 0.001341383285 | BD73: 8e-05 | BE73: 0.00172088091 | BF73: 4e-05 | BG73: 0.001568078102 | BH73: 0.000268276657 | BI73: 1.6e-05 | BJ73: 1.72088091e-05 | BK73: 8e-06 | BR73: 0.03136156205 | BS73: 0.02280351585 | BT73: 0.00816 | BU73: 0.008776492641 | BV73: 0.00408 | BW73: 0.034125 | CJ73: =IF(ROW()-ROW($CJ$45)=MATCH(MIN(ABS($E$45:$E$111-AVERAGE(ABS($D$25),ABS($D$27)))),ABS($E$45:$E$111-AVERAGE(ABS($D$25),ABS($D$27))),0),AVERAGE($D$24,$D$26),"") ->  | CN73: ='スパー寸法(sht20)'!BG73 -> 0.0925517337 | CO73: 0.1093065705 | CP73: 0.2018583042 | CR73: 31.32810973 | CS73: 0.02497719454 | CT73: 31.30313254
C74: 29 | D74: flat | E74: 5.8 | F74: 5.8 | G74: 0 | H74: 0.2 | I74: 7.5 | J74: 0 | K74: 1 | L74: 0 | M74: 1.342434422 | N74: 0.4228668429 | O74: -0.9195675791 | P74: 1.5 | Q74: 0.4725 | R74: -1.0275 | T74: 8.263043173 | U74: 750819.1905 | V74: 1.346091032 | W74: 0.01323369611 | X74: -0.09116973728 | Y74: 0.1096622711 | Z74: 0 | AA74: -0.003673820198 | AB74: 5.7943235 | AC74: 0.2235404073 | AD74: 0.1994032562 | AE74: 7.465025489 | AF74: 4.627069128 | AG74: 0.2157606558 | AH74: 4.524997509 | AI74: -0.03428281344 | AJ74: 8.203257755 | AK74: 8.076546192 | AL74: 0.1891750943 | AM74: 1.35461436 | AN74: 8.202367711 | AO74: 0.1757484513 | AP74: 1.656371117 | BA74: 1st | BB74: 0.1568078102 | BC74: 0.001341383285 | BD74: 8e-05 | BE74: 0.00172088091 | BF74: 4e-05 | BG74: 0.001568078102 | BH74: 0.000268276657 | BI74: 1.6e-05 | BJ74: 1.72088091e-05 | BK74: 8e-06 | BR74: 0.03136156205 | BS74: 0.02280351585 | BT74: 0.00816 | BU74: 0.008776492641 | BV74: 0.00408 | BW74: 0.034125 | CJ74: =IF(ROW()-ROW($CJ$45)=MATCH(MIN(ABS($E$45:$E$111-AVERAGE(ABS($D$25),ABS($D$27)))),ABS($E$45:$E$111-AVERAGE(ABS($D$25),ABS($D$27))),0),AVERAGE($D$24,$D$26),"") ->  | CN74: ='スパー寸法(sht20)'!BG74 -> 0.09069108461 | CO74: 0.1093065705 | CP74: 0.1999976551 | CR74: 33.60428016 | CS74: 0.03009533108 | CT74: 33.57418483
C75: 30 | D75: flat | E75: 6 | F75: 6 | G75: 0 | H75: 0.2 | I75: 7.5 | J75: 0 | K75: 1 | L75: 0 | M75: 1.330680299 | N75: 0.4191642943 | O75: -0.9115160051 | P75: 1.5 | Q75: 0.4725 | R75: -1.0275 | T75: 8.204371942 | U75: 750819.1905 | V75: 1.340695739 | W75: 0.01312211994 | X75: -0.09130721539 | Y75: 0.1096622711 | Z75: 0 | AA75: -0.004161992371 | AB75: 5.993671676 | AC75: 0.2396743751 | AD75: 0.1993481755 | AE75: 7.463733771 | AF75: 4.837031884 | AG75: 0.2315558768 | AH75: 4.729524024 | AI75: -0.0356581203 | AJ75: 8.124901932 | AK75: 8.044174433 | AL75: 0.1971914583 | AM75: 1.411993874 | AN75: 8.128399851 | AO75: 0.1756931352 | AP75: 1.656371117 | BA75: 1st | BB75: 0.1568078102 | BC75: 0.001341383285 | BD75: 8e-05 | BE75: 0.00172088091 | BF75: 4e-05 | BG75: 0.001568078102 | BH75: 0.000268276657 | BI75: 1.6e-05 | BJ75: 1.72088091e-05 | BK75: 8e-06 | BR75: 0.03136156205 | BS75: 0.02280351585 | BT75: 0.00816 | BU75: 0.008776492641 | BV75: 0.00408 | BW75: 0.034125 | CJ75: =IF(ROW()-ROW($CJ$45)=MATCH(MIN(ABS($E$45:$E$111-AVERAGE(ABS($D$25),ABS($D$27)))),ABS($E$45:$E$111-AVERAGE(ABS($D$25),ABS($D$27))),0),AVERAGE($D$24,$D$26),"") ->  | CN75: ='スパー寸法(sht20)'!BG75 -> 0.08883043552 | CO75: 0.1093065705 | CP75: 0.1981370061 | CR75: 35.96005364 | CS75: 0.03595347939 | CT75: 35.92410016
C76: 31 | D76: flat | E76: 6.2 | F76: 6.2 | G76: 0 | H76: 0.2 | I76: 7.5 | J76: 0 | K76: 1 | L76: 0 | M76: 1.318417556 | N76: 0.4153015302 | O76: -0.9031160259 | P76: 1.5 | Q76: 0.4725 | R76: -1.0275 | T76: 8.134483498 | U76: 750819.1905 | V76: 1.334094286 | W76: 0.01300494187 | X76: -0.09144938737 | Y76: 0.1096622711 | Z76: 0 | AA76: -0.004733258784 | AB76: 6.192959389 | AC76: 0.2565387525 | AD76: 0.1992877136 | AE76: 7.462640836 | AF76: 5.058852087 | AG76: 0.2480650301 | AH76: 4.944938397 | AI76: -0.03686553615 | AJ76: 8.043440261 | AK76: 8.004565716 | AL76: 0.2068032487 | AM76: 1.480789383 | AN76: 8.051294557 | AO76: 0.1756381681 | AP76: 1.656371117 | BA76: 1st | BB76: 0.1568078102 | BC76: 0.001341383285 | BD76: 8e-05 | BE76: 0.00172088091 | BF76: 4e-05 | BG76: 0.001568078102 | BH76: 0.000268276657 | BI76: 1.6e-05 | BJ76: 1.72088091e-05 | BK76: 8e-06 | BR76: 0.03136156205 | BS76: 0.02280351585 | BT76: 0.00816 | BU76: 0.008776492641 | BV76: 0.00408 | BW76: 0.034125 | CJ76: =IF(ROW()-ROW($CJ$45)=MATCH(MIN(ABS($E$45:$E$111-AVERAGE(ABS($D$25),ABS($D$27)))),ABS($E$45:$E$111-AVERAGE(ABS($D$25),ABS($D$27))),0),AVERAGE($D$24,$D$26),"") ->  | CN76: ='スパー寸法(sht20)'!BG76 -> 0.08696978643 | CO76: 0.1093065705 | CP76: 0.196276357 | CR76: 38.39537933 | CS76: 0.04263333168 | CT76: 38.352746
C77: 32 | D77: 1st | E77: 6.4 | F77: 6.4 | G77: 0 | H77: 0.2 | I77: 7.5 | J77: 0 | K77: 1 | L77: 0 | M77: 1.305631861 | N77: 0.4112740362 | O77: -0.8943578247 | P77: 1.5 | Q77: 0.4725 | R77: -1.0275 | T77: 8.129641126 | U77: 746126.5706 | V77: 1.333444118 | W77: 0.01301616989 | X77: -0.0914240554 | Y77: 0.1096622711 | Z77: 0 | AA77: -0.004750187695 | AB77: 6.392180319 | AC77: 0.2741745427 | AD77: 0.1992209299 | AE77: 7.46179149 | AF77: 5.29461892 | AG77: 0.2653261213 | AH77: 5.173179914 | AI77: -0.03784321849 | AJ77: 7.95879319 | AK77: 7.950660557 | AL77: 0.2073611537 | AM77: 1.484782408 | AN77: 7.970963615 | AO77: 0.1755836679 | AP77: 1.656371117 | BA77: 1st | BB77: 0.1568078102 | BC77: 0.001341383285 | BD77: 8e-05 | BE77: 0.00172088091 | BF77: 4e-05 | BG77: 0.001568078102 | BH77: 0.000268276657 | BI77: 1.6e-05 | BJ77: 1.72088091e-05 | BK77: 8e-06 | BR77: 0.03136156205 | BS77: 0.02280351585 | BT77: 0.00816 | BU77: 0.008776492641 | BV77: 0.00408 | BW77: 0.034125 | CJ77: =IF(ROW()-ROW($CJ$45)=MATCH(MIN(ABS($E$45:$E$111-AVERAGE(ABS($D$25),ABS($D$27)))),ABS($E$45:$E$111-AVERAGE(ABS($D$25),ABS($D$27))),0),AVERAGE($D$24,$D$26),"") ->  | CN77: ='スパー寸法(sht20)'!BG77 -> 0.08510913734 | CO77: 0.1093065705 | CP77: 0.1944157079 | CR77: 40.91019641 | CS77: 0.0502271724 | CT77: 40.85996923
C78: 33 | D78: 1st | E78: 6.6 | F78: 6.6 | G78: 0 | H78: 0.2 | I78: 7.5 | J78: 0 | K78: 1 | L78: 0 | M78: 1.292307692 | N78: 0.4070769231 | O78: -0.8852307692 | P78: 1.48125 | Q78: 0.46659375 | R78: -1.01465625 | T78: 8.190109001 | U78: 736741.3307 | V78: 1.338833213 | W78: 0.01314995345 | X78: -0.09123785794 | Y78: 0.1096622711 | Z78: 0 | AA78: -0.004213699102 | AB78: 6.591326993 | AC78: 0.2926299569 | AD78: 0.1991466738 | AE78: 7.461191467 | AF78: 5.54674509 | AG78: 0.2833839258 | AH78: 5.416487646 | AI78: -0.0385633861 | AJ78: 7.870873843 | AK78: 7.882380541 | AL78: 0.1988289704 | AM78: 1.423714511 | AN78: 7.887311342 | AO78: 0.1755297147 | AP78: 1.656371117 | BA78: 1st | BB78: 0.1529121162 | BC78: 0.001324615994 | BD78: 8e-05 | BE78: 0.001699369899 | BF78: 4e-05 | BG78: 0.001529121162 | BH78: 0.0002649231988 | BI78: 1.6e-05 | BJ78: 1.699369899e-05 | BK78: 8e-06 | BR78: 0.03058242324 | BS78: 0.0225184719 | BT78: 0.00816 | BU78: 0.008666786483 | BV78: 0.00408 | BW78: 0.03356513672 | CJ78: =IF(ROW()-ROW($CJ$45)=MATCH(MIN(ABS($E$45:$E$111-AVERAGE(ABS($D$25),ABS($D$27)))),ABS($E$45:$E$111-AVERAGE(ABS($D$25),ABS($D$27))),0),AVERAGE($D$24,$D$26),"") ->  | CN78: ='スパー寸法(sht20)'!BG78 -> 0.08324848825 | CO78: 0.1075728183 | CP78: 0.1908213066 | CR78: 43.50443154 | CS78: 0.0588400153 | CT78: 43.44559153
C79: 34 | D79: 1st | E79: 6.8 | F79: 6.8 | G79: 0 | H79: 0.2 | I79: 7.5 | J79: 0 | K79: 1 | L79: 0 | M79: 1.278428214 | N79: 0.4027048874 | O79: -0.8757233266 | P79: 1.4625 | Q79: 0.4606875 | R79: -1.0018125 | T79: 8.239467778 | U79: 727356.0908 | V79: 1.3430866 | W79: 0.01327236369 | X79: -0.09106299281 | Y79: 0.1096622711 | Z79: 0 | AA79: -0.003762363791 | AB79: 6.790390527 | AC79: 0.3119615209 | AD79: 0.1990635342 | AE79: 7.460825151 | AF79: 5.81801863 | AG79: 0.3022910345 | AH79: 5.677447933 | AI79: -0.03904234346 | AJ79: 7.779587498 | AK79: 7.806690864 | AL79: 0.1918818971 | AM79: 1.373989418 | AN79: 7.800234033 | AO79: 0.1754762656 | AP79: 1.656371117 | BA79: 1st | BB79: 0.1490654246 | BC79: 0.001307848703 | BD79: 8e-05 | BE79: 0.001677858887 | BF79: 4e-05 | BG79: 0.001490654246 | BH79: 0.0002615697406 | BI79: 1.6e-05 | BJ79: 1.677858887e-05 | BK79: 8e-06 | BR79: 0.02981308492 | BS79: 0.02223342795 | BT79: 0.00816 | BU79: 0.008557080325 | BV79: 0.00408 | BW79: 0.03301054688 | CJ79: =IF(ROW()-ROW($CJ$45)=MATCH(MIN(ABS($E$45:$E$111-AVERAGE(ABS($D$25),ABS($D$27)))),ABS($E$45:$E$111-AVERAGE(ABS($D$25),ABS($D$27))),0),AVERAGE($D$24,$D$26),"") ->  | CN79: ='スパー寸法(sht20)'!BG79 -> 0.08138783916 | CO79: 0.1058541401 | CP79: 0.1872419792 | CR79: 46.17799574 | CS79: 0.06859222454 | CT79: 46.10940351
C80: 35 | D80: 1st | E80: 7 | F80: 7 | G80: 0 | H80: 0.2 | I80: 7.5 | J80: 0 | K80: 1 | L80: 0 | M80: 1.263975133 | N80: 0.3981521668 | O80: -0.8658229659 | P80: 1.44375 | Q80: 0.45478125 | R80: -0.98896875 | T80: 8.280942278 | U80: 717970.851 | V80: 1.346548438 | W80: 0.01338532288 | X80: -0.09089771658 | Y80: 0.1096622711 | Z80: 0 | AA80: -0.003372068107 | AB80: 6.989360303 | AC80: 0.3322353542 | AD80: 0.1989697758 | AE80: 7.460677423 | AF80: 6.111664327 | AG80: 0.3221090664 | AH80: 5.959050491 | AI80: -0.03929501354 | AJ80: 7.684831867 | AK80: 7.725821663 | AL80: 0.1860670947 | AM80: 1.33236719 | AN80: 7.709620208 | AO80: 0.17542054 | AP80: 1.656371117 | BA80: 1st | BB80: 0.1452677355 | BC80: 0.001291081412 | BD80: 8e-05 | BE80: 0.001656347876 | BF80: 4e-05 | BG80: 0.001452677355 | BH80: 0.0002582162824 | BI80: 1.6e-05 | BJ80: 1.656347876e-05 | BK80: 8e-06 | BR80: 0.02905354709 | BS80: 0.021948384 | BT80: 0.00816 | BU80: 0.008447374167 | BV80: 0.00408 | BW80: 0.03246123047 | CJ80: =IF(ROW()-ROW($CJ$45)=MATCH(MIN(ABS($E$45:$E$111-AVERAGE(ABS($D$25),ABS($D$27)))),ABS($E$45:$E$111-AVERAGE(ABS($D$25),ABS($D$27))),0),AVERAGE($D$24,$D$26),"") ->  | CN80: ='スパー寸法(sht20)'!BG80 -> 0.07952719007 | CO80: 0.1041505357 | CP80: 0.1836777258 | CR80: 48.93078018 | CS80: 0.07962273433 | CT80: 48.85115745
C81: 36 | D81: 1st | E81: 7.2 | F81: 7.2 | G81: 0 | H81: 0.2 | I81: 7.5 | J81: 0 | K81: 1 | L81: 0 | M81: 1.248928535 | N81: 0.3934124885 | O81: -0.8555160464 | P81: 1.425 | Q81: 0.448875 | R81: -0.976125 | T81: 8.316188672 | U81: 708585.6111 | V81: 1.349397421 | W81: 0.01348975208 | X81: -0.0907414332 | Y81: 0.1096622711 | Z81: 0 | AA81: -0.003030600846 | AB81: 7.188223561 | AC81: 0.3535286537 | AD81: 0.198863258 | AE81: 7.460732154 | AF81: 6.431416882 | AG81: 0.3429100766 | AH81: 6.264755172 | AI81: -0.03933669721 | AJ81: 7.586493795 | AK81: 7.640962896 | AL81: 0.1811508231 | AM81: 1.297175526 | AN81: 7.615347224 | AO81: 0.1753699951 | AP81: 1.656371117 | BA81: 1st | BB81: 0.1415190487 | BC81: 0.001274314121 | BD81: 8e-05 | BE81: 0.001634836865 | BF81: 4e-05 | BG81: 0.001415190487 | BH81: 0.0002548628242 | BI81: 1.6e-05 | BJ81: 1.634836865e-05 | BK81: 8e-06 | BR81: 0.02830380975 | BS81: 0.02166334005 | BT81: 0.00816 | BU81: 0.008337668009 | BV81: 0.00408 | BW81: 0.0319171875 | CJ81: =IF(ROW()-ROW($CJ$45)=MATCH(MIN(ABS($E$45:$E$111-AVERAGE(ABS($D$25),ABS($D$27)))),ABS($E$45:$E$111-AVERAGE(ABS($D$25),ABS($D$27))),0),AVERAGE($D$24,$D$26),"") ->  | CN81: ='スパー寸法(sht20)'!BG81 -> 0.07766654098 | CO81: 0.1024620053 | CP81: 0.1801285463 | CR81: 51.76265098 | CS81: 0.09209301277 | CT81: 51.67055796
C82: 37 | D82: 1st | E82: 7.4 | F82: 7.4 | G82: 0 | H82: 0.2 | I82: 7.5 | J82: 0 | K82: 1 | L82: 0 | M82: 1.233266697 | N82: 0.3884790095 | O82: -0.8447876873 | P82: 1.40625 | Q82: 0.44296875 | R82: -0.96328125 | T82: 8.346189348 | U82: 699200.3712 | V82: 1.351740479 | W82: 0.01358609181 | X82: -0.09059394151 | Y82: 0.1096622711 | Z82: 0 | AA82: -0.002730810344 | AB82: 7.386964891 | AC82: 0.375931419 | AD82: 0.1987413296 | AE82: 7.460897028 | AF82: 6.724344766 | AG82: 0.3647781976 | AH82: 6.598571511 | AI82: -0.03918434376 | AJ82: 7.484439373 | AK82: 7.552849929 | AL82: 0.176982872 | AM82: 1.267339724 | AN82: 7.517271382 | AO82: 0.1753380967 | AP82: 1.656371117 | BA82: 1st | BB82: 0.1378193645 | BC82: 0.00125754683 | BD82: 8e-05 | BE82: 0.001613325853 | BF82: 4e-05 | BG82: 0.001378193645 | BH82: 0.0002515093659 | BI82: 1.6e-05 | BJ82: 1.613325853e-05 | BK82: 8e-06 | BR82: 0.02756387289 | BS82: 0.0213782961 | BT82: 0.00816 | BU82: 0.008227961851 | BV82: 0.00408 | BW82: 0.03137841797 | CJ82: =IF(ROW()-ROW($CJ$45)=MATCH(MIN(ABS($E$45:$E$111-AVERAGE(ABS($D$25),ABS($D$27)))),ABS($E$45:$E$111-AVERAGE(ABS($D$25),ABS($D$27))),0),AVERAGE($D$24,$D$26),"") ->  | CN82: ='スパー寸法(sht20)'!BG82 -> 0.07580589189 | CO82: 0.1007885488 | CP82: 0.1765944407 | CR82: 54.67344225 | CS82: 0.1061919551 | CT82: 54.5672503
C83: 38 | D83: 1st | E83: 7.6 | F83: 7.6 | G83: 0 | H83: 0.2 | I83: 7.5 | J83: 0 | K83: 1 | L83: 0 | M83: 1.216965865 | N83: 0.3833442476 | O83: -0.8336216177 | P83: 1.3875 | Q83: 0.4370625 | R83: -0.9504375 | T83: 8.371575874 | U83: 689815.1313 | V83: 1.353645682 | W83: 0.01367476117 | X83: -0.09045501798 | Y83: 0.1096622711 | Z83: 0 | AA83: -0.002468048632 | AB83: 7.585589088 | AC83: 0.3993499632 | AD83: 0.1986241974 | AE83: 7.461073804 | AF83: 6.948765484 | AG83: 0.3878115573 | AH83: 6.850624409 | AI83: -0.03900594096 | AJ83: 7.378510937 | AK83: 7.461971824 | AL83: 0.1734612383 | AM83: 1.242129975 | AN83: 7.415224995 | AO83: 0.1753175433 | AP83: 1.656371117 | BA83: 2nd | BB83: 0.1341686826 | BC83: 0.001240779539 | BD83: 8e-05 | BE83: 0.001591814842 | BF83: 4e-05 | BG83: 0.001341686826 | BH83: 0.0002481559077 | BI83: 1.6e-05 | BJ83: 1.591814842e-05 | BK83: 8e-06 | BX83: 0.02683373653 | BY83: 0.02109325216 | BZ83: 0.00816 | CA83: 0.008118255693 | CB83: 0.00408 | CC83: 0.03084492188 | CJ83: =IF(ROW()-ROW($CJ$45)=MATCH(MIN(ABS($E$45:$E$111-AVERAGE(ABS($D$25),ABS($D$27)))),ABS($E$45:$E$111-AVERAGE(ABS($D$25),ABS($D$27))),0),AVERAGE($D$24,$D$26),"") ->  | CN83: ='スパー寸法(sht20)'!BG83 -> 0.1362646292 | CO83: 0.09913016625 | CP83: 0.2353947954 | CR83: 57.66316505 | CS83: 0.1220032355 | CT83: 57.54116181
C84: 39 | D84: 1st | E84: 7.8 | F84: 7.8 | G84: 0 | H84: 0.2 | I84: 7.5 | J84: 0 | K84: 1 | L84: 0 | M84: 1.2 | N84: 0.378 | O84: -0.822 | P84: 1.36875 | Q84: 0.43115625 | R84: -0.93759375 | T84: 8.392755604 | U84: 680429.8914 | V84: 1.355157375 | W84: 0.0137560023 | X84: -0.09032458067 | Y84: 0.1096622711 | Z84: 0 | AA84: -0.002239351273 | AB84: 7.784120034 | AC84: 0.423546313 | AD84: 0.1985309463 | AE84: 7.461313448 | AF84: 7.189781029 | AG84: 0.4117247477 | AH84: 7.047422566 | AI84: -0.03883013452 | AJ84: 7.268539759 | AK84: 7.368668228 | AL84: 0.1705360991 | AM84: 1.221189889 | AN84: 7.309029052 | AO84: 0.1752822017 | AP84: 1.656371117 | BA84: 2nd | BB84: 0.1305670033 | BC84: 0.001224012248 | BD84: 8e-05 | BE84: 0.00157030383 | BF84: 4e-05 | BG84: 0.001305670033 | BH84: 0.0002448024495 | BI84: 1.6e-05 | BJ84: 1.57030383e-05 | BK84: 8e-06 | BX84: 0.02611340065 | BY84: 0.02080820821 | BZ84: 0.00816 | CA84: 0.008008549535 | CB84: 0.00408 | CC84: 0.03031669922 | CJ84: =IF(ROW()-ROW($CJ$45)=MATCH(MIN(ABS($E$45:$E$111-AVERAGE(ABS($D$25),ABS($D$27)))),ABS($E$45:$E$111-AVERAGE(ABS($D$25),ABS($D$27))),0),AVERAGE($D$24,$D$26),"") ->  | CN84: ='スパー寸法(sht20)'!BG84 -> 0.1338504959 | CO84: 0.09748685761 | CP84: 0.2313373535 | CR84: 60.73201648 | CS84: 0.1394917663 | CT84: 60.59252471
C85: 40 | D85: 1st | E85: 8 | F85: 8 | G85: 0 | H85: 0.2 | I85: 7.5 | J85: 0 | K85: 1 | L85: 0 | M85: 1.182340473 | N85: 0.372437249 | O85: -0.809903224 | P85: 1.35 | Q85: 0.42525 | R85: -0.92475 | T85: 8.40997491 | U85: 671044.6515 | V85: 1.356302857 | W85: 0.01382998936 | X85: -0.09020261467 | Y85: 0.1096622711 | Z85: 0 | AA85: -0.002042928934 | AB85: 7.982547442 | AC85: 0.4485775697 | AD85: 0.1984274079 | AE85: 7.461755292 | AF85: 7.616767886 | AG85: 0.4363248932 | AH85: 7.33266567 | AI85: -0.03852595931 | AJ85: 7.15436627 | AK85: 7.273174073 | AL85: 0.1681924736 | AM85: 1.204412427 | AN85: 7.198513195 | AO85: 0.1752069913 | AP85: 1.656371117 | BA85: 2nd | BB85: 0.1270143263 | BC85: 0.001207244957 | BD85: 8e-05 | BE85: 0.001548792819 | BF85: 4e-05 | BG85: 0.001270143263 | BH85: 0.0002414489913 | BI85: 1.6e-05 | BJ85: 1.548792819e-05 | BK85: 8e-06 | BX85: 0.02540286526 | BY85: 0.02052316426 | BZ85: 0.00816 | CA85: 0.007898843377 | CB85: 0.00408 | CC85: 0.02979375 | CJ85: =IF(ROW()-ROW($CJ$45)=MATCH(MIN(ABS($E$45:$E$111-AVERAGE(ABS($D$25),ABS($D$27)))),ABS($E$45:$E$111-AVERAGE(ABS($D$25),ABS($D$27))),0),AVERAGE($D$24,$D$26),"") ->  | CN85: ='スパー寸法(sht20)'!BG85 -> 0.05935176883 | CO85: 0.0958586229 | CP85: 0.1552103917 | CR85: 63.87987964 | CS85: 0.1588159762 | CT85: 63.72106367
C86: 41 | D86: 1st | E86: 8.2 | F86: 8.2 | G86: 0 | H86: 0.2 | I86: 7.5 | J86: 0 | K86: 1 | L86: 0 | M86: 1.163955712 | N86: 0.3666460493 | O86: -0.7973096627 | P86: 1.33125 | Q86: 0.41934375 | R86: -0.91190625 | T86: 8.423346834 | U86: 661659.4117 | V86: 1.357094884 | W86: 0.01389681548 | X86: -0.09008918703 | Y86: 0.1096622711 | Z86: 0 | AA86: -0.001878019571 | AB86: 8.180782801 | AC86: 0.4750868634 | AD86: 0.1982353585 | AE86: 7.46235327 | AF86: 8.179830638 | AG86: 0.461920725 | AH86: 7.901414568 | AI86: -0.03794526589 | AJ86: 7.035827201 | AK86: 7.175639199 | AL86: 0.1664081142 | AM86: 1.191638481 | AN86: 7.083502611 | AO86: 0.1751206619 | AP86: 1.656371117 | BA86: 2nd | BB86: 0.1235106518 | BC86: 0.001190477665 | BD86: 8e-05 | BE86: 0.001527281808 | BF86: 4e-05 | BG86: 0.001235106518 | BH86: 0.0002380955331 | BI86: 1.6e-05 | BJ86: 1.527281808e-05 | BK86: 8e-06 | BX86: 0.02470213036 | BY86: 0.02023812031 | BZ86: 0.00816 | CA86: 0.007789137219 | CB86: 0.00408 | CC86: 0.02927607422 | CJ86: =IF(ROW()-ROW($CJ$45)=MATCH(MIN(ABS($E$45:$E$111-AVERAGE(ABS($D$25),ABS($D$27)))),ABS($E$45:$E$111-AVERAGE(ABS($D$25),ABS($D$27))),0),AVERAGE($D$24,$D$26),"") ->  | CN86: ='スパー寸法(sht20)'!BG86 -> 0.05786796006 | CO86: 0.09424546211 | CP86: 0.1521134222 | CR86: 67.10585477 | CS86: 0.1806475391 | CT86: 66.92520723
C87: 42 | D87: 1st | E87: 8.4 | F87: 8.4 | G87: 0 | H87: 0.2 | I87: 7.5 | J87: 0 | K87: 1 | L87: 0 | M87: 1.144810777 | N87: 0.3606153949 | O87: -0.7841953825 | P87: 1.3125 | Q87: 0.4134375 | R87: -0.8990625 | T87: 8.432883934 | U87: 652274.1718 | V87: 1.35753572 | W87: 0.01395654865 | X87: -0.08998437971 | Y87: 0.1096622711 | Z87: 0 | AA87: -0.001744557917 | AB87: 8.378748076 | AC87: 0.5035429638 | AD87: 0.1979652756 | AE87: 7.462963515 | AF87: 8.731045672 | AG87: 0.4895018649 | AH87: 8.458815564 | AI87: -0.03732839375 | AJ87: 6.912720394 | AK87: 7.07615494 | AL87: 0.1651611548 | AM87: 1.182711625 | AN87: 6.963782869 | AO87: 0.175042323 | AP87: 1.656371117 | BA87: 2nd | BB87: 0.1200559797 | BC87: 0.001173710374 | BD87: 8e-05 | BE87: 0.001505770796 | BF87: 4e-05 | BG87: 0.001200559797 | BH87: 0.0002347420749 | BI87: 1.6e-05 | BJ87: 1.505770796e-05 | BK87: 8e-06 | BX87: 0.02401119594 | BY87: 0.01995307636 | BZ87: 0.00816 | CA87: 0.007679431061 | CB87: 0.00408 | CC87: 0.02876367187 | CJ87: =IF(ROW()-ROW($CJ$45)=MATCH(MIN(ABS($E$45:$E$111-AVERAGE(ABS($D$25),ABS($D$27)))),ABS($E$45:$E$111-AVERAGE(ABS($D$25),ABS($D$27))),0),AVERAGE($D$24,$D$26),"") ->  | CN87: ='スパー寸法(sht20)'!BG87 -> 0.05638415129 | CO87: 0.09264737524 | CP87: 0.1490315265 | CR87: 70.40906581 | CS87: 0.2056464831 | CT87: 70.20341933
C88: 43 | D88: 1st | E88: 8.6 | F88: 8.6 | G88: 0 | H88: 0.2 | I88: 7.5 | J88: 0 | K88: 1 | L88: 0 | M88: 1.124866856 | N88: 0.3543330596 | O88: -0.7705337964 | P88: 1.29375 | Q88: 0.40753125 | R88: -0.88621875 | T88: 8.438497519 | U88: 642888.9319 | V88: 1.357616067 | W88: 0.01400922332 | X88: -0.08988831937 | Y88: 0.1096622711 | Z88: 0 | AA88: -0.001643275023 | AB88: 8.576430433 | AC88: 0.5339022463 | AD88: 0.1976823562 | AE88: 7.463533159 | AF88: 9.269376014 | AG88: 0.5190287014 | AH88: 9.003868846 | AI88: -0.03672298727 | AJ88: 6.784809137 | AK88: 6.974752544 | AL88: 0.1644565889 | AM88: 1.177667684 | AN88: 6.839104303 | AO88: 0.1749615031 | AP88: 1.656371117 | BA88: 2nd | BB88: 0.1166503101 | BC88: 0.001156943083 | BD88: 8e-05 | BE88: 0.001484259785 | BF88: 4e-05 | BG88: 0.001166503101 | BH88: 0.0002313886167 | BI88: 1.6e-05 | BJ88: 1.484259785e-05 | BK88: 8e-06 | BX88: 0.02333006202 | BY88: 0.01966803242 | BZ88: 0.00816 | CA88: 0.007569724903 | CB88: 0.00408 | CC88: 0.02825654297 | CJ88: =IF(ROW()-ROW($CJ$45)=MATCH(MIN(ABS($E$45:$E$111-AVERAGE(ABS($D$25),ABS($D$27)))),ABS($E$45:$E$111-AVERAGE(ABS($D$25),ABS($D$27))),0),AVERAGE($D$24,$D$26),"") ->  | CN88: ='スパー寸法(sht20)'!BG88 -> 0.05490034252 | CO88: 0.09106436231 | CP88: 0.1459647048 | CR88: 73.78926195 | CS88: 0.2341029829 | CT88: 73.55515897
C89: 44 | D89: 1st | E89: 8.8 | F89: 8.8 | G89: 0 | H89: 0.2 | I89: 7.5 | J89: 0 | K89: 1 | L89: 0 | M89: 1.104080651 | N89: 0.3477854049 | O89: -0.7562952456 | P89: 1.275 | Q89: 0.401625 | R89: -0.873375 | T89: 8.440007087 | U89: 633503.692 | V89: 1.35731709 | W89: 0.01405484788 | X89: -0.08980113268 | Y89: 0.1096622711 | Z89: 0 | AA89: -0.001575521827 | AB89: 8.773818823 | AC89: 0.5661175131 | AD89: 0.1973883902 | AE89: 7.463997945 | AF89: 9.79370795 | AG89: 0.5504581327 | AH89: 9.535500216 | AI89: -0.03618710562 | AJ89: 6.651831986 | AK89: 6.871417768 | AL89: 0.1643106482 | AM89: 1.176622902 | AN89: 6.709191713 | AO89: 0.1748764534 | AP89: 1.656371117 | BA89: 2nd | BB89: 0.1132936429 | BC89: 0.001140175792 | BD89: 8e-05 | BE89: 0.001462748774 | BF89: 4e-05 | BG89: 0.001132936429 | BH89: 0.0002280351585 | BI89: 1.6e-05 | BJ89: 1.462748774e-05 | BK89: 8e-06 | BX89: 0.02265872858 | BY89: 0.01938298847 | BZ89: 0.00816 | CA89: 0.007460018745 | CB89: 0.00408 | CC89: 0.0277546875 | CJ89: =IF(ROW()-ROW($CJ$45)=MATCH(MIN(ABS($E$45:$E$111-AVERAGE(ABS($D$25),ABS($D$27)))),ABS($E$45:$E$111-AVERAGE(ABS($D$25),ABS($D$27))),0),AVERAGE($D$24,$D$26),"") ->  | CN89: ='スパー寸法(sht20)'!BG89 -> 0.05341653376 | CO89: 0.08949642329 | CP89: 0.142912957 | CR89: 77.24621173 | CS89: 0.266314998 | CT89: 76.97989674
C90: 45 | D90: 1st | E90: 9 | F90: 9 | G90: 0 | H90: 0.2 | I90: 7.5 | J90: 0 | K90: 1 | L90: 0 | M90: 1.082403637 | N90: 0.3409571456 | O90: -0.7414464913 | P90: 1.25625 | Q90: 0.39571875 | R90: -0.86053125 | T90: 8.437113773 | U90: 624118.4521 | V90: 1.356609106 | W90: 0.01409316715 | X90: -0.08972330391 | Y90: 0.1096622711 | Z90: 0 | AA90: -0.00154371202 | AB90: 8.97090414 | AC90: 0.6001377699 | AD90: 0.1970853169 | AE90: 7.464280172 | AF90: 10.3028465 | AG90: 0.5837433077 | AH90: 10.05255638 | AI90: -0.03579117048 | AJ90: 6.513495826 | AK90: 6.766087916 | AL90: 0.1647542249 | AM90: 1.179798443 | AN90: 6.573737264 | AO90: 0.1747851764 | AP90: 1.656371117 | BA90: 2nd | BB90: 0.1099859782 | BC90: 0.001123408501 | BD90: 8e-05 | BE90: 0.001441237762 | BF90: 4e-05 | BG90: 0.001099859782 | BH90: 0.0002246817002 | BI90: 1.6e-05 | BJ90: 1.441237762e-05 | BK90: 8e-06 | BX90: 0.02199719563 | BY90: 0.01909794452 | BZ90: 0.00816 | CA90: 0.007350312587 | CB90: 0.00408 | CC90: 0.02725810547 | CJ90: =IF(ROW()-ROW($CJ$45)=MATCH(MIN(ABS($E$45:$E$111-AVERAGE(ABS($D$25),ABS($D$27)))),ABS($E$45:$E$111-AVERAGE(ABS($D$25),ABS($D$27))),0),AVERAGE($D$24,$D$26),"") ->  | CN90: ='スパー寸法(sht20)'!BG90 -> 0.05193272499 | CO90: 0.08794355821 | CP90: 0.1398762832 | CR90: 80.77970625 | CS90: 0.3025851704 | CT90: 80.47712108
C91: 46 | D91: 1st | E91: 9.2 | F91: 9.2 | G91: 0 | H91: 0.2 | I91: 7.5 | J91: 0 | K91: 1 | L91: 0 | M91: 1.059781154 | N91: 0.3338310636 | O91: -0.7259500906 | P91: 1.2375 | Q91: 0.3898125 | R91: -0.8476875 | T91: 8.429510894 | U91: 614733.2123 | V91: 1.355448961 | W91: 0.01412511244 | X91: -0.08965373039 | Y91: 0.1096622711 | Z91: 0 | AA91: -0.001549547911 | AB91: 9.16767937 | AC91: 0.6359079889 | AD91: 0.1967752307 | AE91: 7.464286308 | AF91: 10.79551132 | AG91: 0.6188333491 | AH91: 10.55380059 | AI91: -0.03562013082 | AJ91: 6.369470382 | AK91: 6.658643022 | AL91: 0.1658170974 | AM91: 1.187407459 | AN91: 6.432394806 | AO91: 0.1746850954 | AP91: 1.656371117 | BA91: 2nd | BB91: 0.1067273158 | BC91: 0.00110664121 | BD91: 8e-05 | BE91: 0.001419726751 | BF91: 4e-05 | BG91: 0.001067273158 | BH91: 0.000221328242 | BI91: 1.6e-05 | BJ91: 1.419726751e-05 | BK91: 8e-06 | BX91: 0.02134546317 | BY91: 0.01881290057 | BZ91: 0.00816 | CA91: 0.007240606429 | CB91: 0.00408 | CC91: 0.02676679687 | CJ91: =IF(ROW()-ROW($CJ$45)=MATCH(MIN(ABS($E$45:$E$111-AVERAGE(ABS($D$25),ABS($D$27)))),ABS($E$45:$E$111-AVERAGE(ABS($D$25),ABS($D$27))),0),AVERAGE($D$24,$D$26),"") ->  | CN91: ='スパー寸法(sht20)'!BG91 -> 0.05044891622 | CO91: 0.08640576705 | CP91: 0.1368546833 | CR91: 84.3895625 | CS91: 0.3432174587 | CT91: 84.04634504
C92: 47 | D92: 1st | E92: 9.4 | F92: 9.4 | G92: 0 | H92: 0.2 | I92: 7.5 | J92: 0 | K92: 1 | L92: 0 | M92: 1.036151276 | N92: 0.326387652 | O92: -0.7097636243 | P92: 1.21875 | Q92: 0.38390625 | R92: -0.83484375 | T92: 8.416832634 | U92: 605347.9724 | V92: 1.353779435 | W92: 0.01415218972 | X92: -0.08959034085 | Y92: 0.1096622711 | Z92: 0 | AA92: -0.001594677567 | AB92: 9.364139756 | AC92: 0.6733688608 | AD92: 0.1964603855 | AE92: 7.463904167 | AF92: 11.27033351 | AG92: 0.6556730629 | AH92: 11.03790886 | AI92: -0.03577606541 | AJ92: 6.219382336 | AK92: 6.548908018 | AL92: 0.1675347047 | AM92: 1.199703577 | AN92: 6.284773793 | AO92: 0.174572802 | AP92: 1.656371117 | BA92: 2nd | BB92: 0.103517656 | BC92: 0.001089873919 | BD92: 8e-05 | BE92: 0.001398215739 | BF92: 4e-05 | BG92: 0.00103517656 | BH92: 0.0002179747838 | BI92: 1.6e-05 | BJ92: 1.398215739e-05 | BK92: 8e-06 | BX92: 0.0207035312 | BY92: 0.01852785662 | BZ92: 0.00816 | CA92: 0.007130900271 | CB92: 0.00408 | CC92: 0.02628076172 | CJ92: =IF(ROW()-ROW($CJ$45)=MATCH(MIN(ABS($E$45:$E$111-AVERAGE(ABS($D$25),ABS($D$27)))),ABS($E$45:$E$111-AVERAGE(ABS($D$25),ABS($D$27))),0),AVERAGE($D$24,$D$26),"") ->  | CN92: ='スパー寸法(sht20)'!BG92 -> 0.04896510745 | CO92: 0.08488304981 | CP92: 0.1338481573 | CR92: 88.07562687 | CS92: 0.3885135025 | CT92: 87.68711337
C93: 48 | D93: 1st | E93: 9.6 | F93: 9.6 | G93: 0 | H93: 0.2 | I93: 7.5 | J93: 0 | K93: 1 | L93: 0 | M93: 1.0114434 | N93: 0.318604671 | O93: -0.692838729 | P93: 1.2 | Q93: 0.378 | R93: -0.822 | T93: 8.398631108 | U93: 595962.7325 | V93: 1.351528645 | W93: 0.01417642646 | X93: -0.08953037113 | Y93: 0.1096622711 | Z93: 0 | AA93: -0.001681009233 | AB93: 9.560282953 | AC93: 0.7124565362 | AD93: 0.1961431967 | AE93: 7.462999624 | AF93: 11.7258536 | AG93: 0.6942026333 | AH93: 11.50346723 | AI93: -0.03638122932 | AJ93: 6.062809328 | AK93: 6.43665517 | AL93: 0.1699508936 | AM93: 1.21700056 | AN93: 6.130433045 | AO93: 0.1744434967 | AP93: 1.656371117 | BA93: 2nd | BB93: 0.1003569986 | BC93: 0.001073106628 | BD93: 8e-05 | BE93: 0.001376704728 | BF93: 4e-05 | BG93: 0.001003569986 | BH93: 0.0002146213256 | BI93: 1.6e-05 | BJ93: 1.376704728e-05 | BK93: 8e-06 | BX93: 0.02007139971 | BY93: 0.01824281268 | BZ93: 0.00816 | CA93: 0.007021194113 | CB93: 0.00408 | CC93: 0.0258 | CJ93: =IF(ROW()-ROW($CJ$45)=MATCH(MIN(ABS($E$45:$E$111-AVERAGE(ABS($D$25),ABS($D$27)))),ABS($E$45:$E$111-AVERAGE(ABS($D$25),ABS($D$27))),0),AVERAGE($D$24,$D$26),"") ->  | CN93: ='スパー寸法(sht20)'!BG93 -> 0.04748129868 | CO93: 0.0833754065 | CP93: 0.1308567052 | CR93: 91.83777885 | CS93: 0.4387687106 | CT93: 91.39901014
C94: 49 | D94: 1st | E94: 9.8 | F94: 9.8 | G94: 0 | H94: 0.2 | I94: 7.5 | J94: 0 | K94: 1 | L94: 0 | M94: 0.985576454 | N94: 0.310456583 | O94: -0.675119871 | P94: 1.18125 | Q94: 0.37209375 | R94: -0.80915625 | T94: 8.374169379 | U94: 586577.4926 | V94: 1.348613262 | W94: 0.01419804804 | X94: -0.08947406709 | Y94: 0.1096622711 | Z94: 0 | AA94: -0.00181420505 | AB94: 9.756109194 | AC94: 0.7531023622 | AD94: 0.1958262414 | AE94: 7.461413073 | AF94: 12.16052172 | AG94: 0.734357309 | AH94: 11.94897064 | AI94: -0.03758157523 | AJ94: 5.89927674 | AK94: 6.321624666 | AL94: 0.1731463398 | AM94: 1.239875738 | AN94: 5.968877276 | AO94: 0.1742833951 | AP94: 1.656371117 | BA94: 2nd | BB94: 0.09724534357 | BC94: 0.001056339337 | BD94: 8e-05 | BE94: 0.001355193717 | BF94: 4e-05 | BG94: 0.0009724534357 | BH94: 0.0002112678674 | BI94: 1.6e-05 | BJ94: 1.355193717e-05 | BK94: 8e-06 | BX94: 0.01944906871 | BY94: 0.01795776873 | BZ94: 0.00816 | CA94: 0.006911487955 | CB94: 0.00408 | CC94: 0.02532451172 | CJ94: =IF(ROW()-ROW($CJ$45)=MATCH(MIN(ABS($E$45:$E$111-AVERAGE(ABS($D$25),ABS($D$27)))),ABS($E$45:$E$111-AVERAGE(ABS($D$25),ABS($D$27))),0),AVERAGE($D$24,$D$26),"") ->  | CN94: ='スパー寸法(sht20)'!BG94 -> 0.04599748992 | CO94: 0.08188283712 | CP94: 0.127880327 | CR94: 95.67593468 | CS94: 0.4942680742 | CT94: 95.18166661
C95: 50 | D95: 1st | E95: 10 | F95: 10 | G95: 0 | H95: 0.2 | I95: 7.5 | J95: 0 | K95: 1 | L95: 0 | M95: 0.9584565996 | N95: 0.3019138289 | O95: -0.6565427707 | P95: 1.1625 | Q95: 0.3661875 | R95: -0.7963125 | T95: 8.342884029 | U95: 577192.2527 | V95: 1.344935775 | W95: 0.01422027871 | X95: -0.08941713721 | Y95: 0.1096622711 | Z95: 0 | AA95: -0.001996311843 | AB95: 9.951621448 | AC95: 0.7952326185 | AD95: 0.1955122541 | AE95: 7.458955363 | AF95: 12.57270074 | AG95: 0.776067085 | AH95: 12.3728243 | AI95: -0.03955031985 | AJ95: 5.728252137 | AK95: 6.203516261 | AL95: 0.1771733673 | AM95: 1.268703378 | AN95: 5.799551168 | AO95: 0.1740791869 | AP95: 1.656371117 | BA95: 2nd | BB95: 0.09418269103 | BC95: 0.001039572046 | BD95: 8e-05 | BE95: 0.001333682705 | BF95: 4e-05 | BG95: 0.0009418269103 | BH95: 0.0002079144092 | BI95: 1.6e-05 | BJ95: 1.333682705e-05 | BK95: 8e-06 | BX95: 0.01883653821 | BY95: 0.01767272478 | BZ95: 0.00816 | CA95: 0.006801781797 | CB95: 0.00408 | CC95: 0.02485429687 | CJ95: =IF(ROW()-ROW($CJ$45)=MATCH(MIN(ABS($E$45:$E$111-AVERAGE(ABS($D$25),ABS($D$27)))),ABS($E$45:$E$111-AVERAGE(ABS($D$25),ABS($D$27))),0),AVERAGE($D$24,$D$26),"") ->  | CN95: ='スパー寸法(sht20)'!BG95 -> 0.04451368115 | CO95: 0.08040534166 | CP95: 0.1249190228 | CR95: 99.59005116 | CS95: 0.5552817132 | CT95: 99.03476945
C96: 51 | D96: 1st | E96: 10.2 | F96: 10.2 | G96: 0 | H96: 0.2 | I96: 7.5 | J96: 0 | K96: 1 | L96: 0 | M96: 0.9299742314 | N96: 0.2929418829 | O96: -0.6370323485 | P96: 1.14375 | Q96: 0.36028125 | R96: -0.78346875 | T96: 8.298800656 | U96: 567807.0128 | V96: 1.340436816 | W96: 0.01418528799 | X96: -0.0894370079 | Y96: 0.1096622711 | Z96: 0 | AA96: -0.00230861485 | AB96: 10.14682557 | AC96: 0.8387682644 | AD96: 0.1952041176 | AE96: 7.455409344 | AF96: 12.96067403 | AG96: 0.8192563893 | AH96: 12.7733486 | AI96: -0.04249250863 | AJ96: 5.549111302 | AK96: 6.082232054 | AL96: 0.1828363157 | AM96: 1.309240734 | AN96: 5.621804662 | AO96: 0.173856331 | AP96: 1.656371117 | BA96: 2nd | BB96: 0.09116904093 | BC96: 0.001022804755 | BD96: 8e-05 | BE96: 0.001312171694 | BF96: 4e-05 | BG96: 0.0009116904093 | BH96: 0.000204560951 | BI96: 1.6e-05 | BJ96: 1.312171694e-05 | BK96: 8e-06 | BX96: 0.01823380819 | BY96: 0.01738768083 | BZ96: 0.00816 | CA96: 0.006692075639 | CB96: 0.00408 | CC96: 0.02438935547 | CJ96: =IF(ROW()-ROW($CJ$45)=MATCH(MIN(ABS($E$45:$E$111-AVERAGE(ABS($D$25),ABS($D$27)))),ABS($E$45:$E$111-AVERAGE(ABS($D$25),ABS($D$27))),0),AVERAGE($D$24,$D$26),"") ->  | CN96: ='スパー寸法(sht20)'!BG96 -> 0.04302987238 | CO96: 0.07894292012 | CP96: 0.1219727925 | CR96: 103.5801292 | CS96: 0.6220601778 | CT96: 102.9580691
C97: 52 | D97: 1st | E97: 10.4 | F97: 10.4 | G97: 0 | H97: 0.2 | I97: 7.5 | J97: 0 | K97: 1 | L97: 0 | M97: 0.9 | N97: 0.2835 | O97: -0.6165 | P97: 1.125 | Q97: 0.354375 | R97: -0.770625 | T97: 8.239185365 | U97: 558421.773 | V97: 1.334956288 | W97: 0.01408015937 | X97: -0.08954376727 | Y97: 0.1096622711 | Z97: 0 | AA97: -0.002771608531 | AB97: 10.34173041 | AC97: 0.8836247094 | AD97: 0.1949048469 | AE97: 7.450534592 | AF97: 13.32266005 | AG97: 0.8638437872 | AH97: 13.14878977 | AI97: -0.0466374447 | AJ97: 5.361082445 | AK97: 5.957242437 | AL97: 0.1904836983 | AM97: 1.363981272 | AN97: 5.43483626 | AO97: 0.1736509277 | AP97: 1.656371117 | BA97: 2nd | BB97: 0.08820439326 | BC97: 0.001006037464 | BD97: 8e-05 | BE97: 0.001290660683 | BF97: 4e-05 | BG97: 0.0008820439326 | BH97: 0.0002012074928 | BI97: 1.6e-05 | BJ97: 1.290660683e-05 | BK97: 8e-06 | BX97: 0.01764087865 | BY97: 0.01710263688 | BZ97: 0.00816 | CA97: 0.006582369481 | CB97: 0.00408 | CC97: 0.0239296875 | CJ97: =IF(ROW()-ROW($CJ$45)=MATCH(MIN(ABS($E$45:$E$111-AVERAGE(ABS($D$25),ABS($D$27)))),ABS($E$45:$E$111-AVERAGE(ABS($D$25),ABS($D$27))),0),AVERAGE($D$24,$D$26),"") ->  | CN97: ='スパー寸法(sht20)'!BG97 -> 0.04154606361 | CO97: 0.07749557252 | CP97: 0.1190416361 | CR97: 107.6462175 | CS97: 0.6948295451 | CT97: 106.9513879
C98: 53 | D98: 1st | E98: 10.6 | F98: 10.6 | G98: 0 | H98: 0.2 | I98: 7.5 | J98: 0 | K98: 1 | L98: 0 | M98: 0.8683794333 | N98: 0.2735395215 | O98: -0.5948399118 | P98: 1.10625 | Q98: 0.34846875 | R98: -0.75778125 | T98: 8.166817993 | U98: 549036.5331 | V98: 1.328146696 | W98: 0.01396759599 | X98: -0.08965982497 | Y98: 0.1096622711 | Z98: 0 | AA98: -0.003330289721 | AB98: 10.53634798 | AC98: 0.9297116302 | AD98: 0.1946175627 | AE98: 7.444063421 | AF98: 13.65683628 | AG98: 0.9097417221 | AH98: 13.49733836 | AI98: -0.05223677108 | AJ98: 5.163213224 | AK98: 5.827243629 | AL98: 0.1996900162 | AM98: 1.429877473 | AN98: 5.237659283 | AO98: 0.1734644513 | AP98: 1.656371117 | BA98: 2nd | BB98: 0.08528874804 | BC98: 0.0009892701727 | BD98: 8e-05 | BE98: 0.001269149671 | BF98: 4e-05 | BG98: 0.0008528874804 | BH98: 0.0001978540345 | BI98: 1.6e-05 | BJ98: 1.269149671e-05 | BK98: 8e-06 | BX98: 0.01705774961 | BY98: 0.01681759294 | BZ98: 0.00816 | CA98: 0.006472663323 | CB98: 0.00408 | CC98: 0.02347529297 | CJ98: =IF(ROW()-ROW($CJ$45)=MATCH(MIN(ABS($E$45:$E$111-AVERAGE(ABS($D$25),ABS($D$27)))),ABS($E$45:$E$111-AVERAGE(ABS($D$25),ABS($D$27))),0),AVERAGE($D$24,$D$26),"") ->  | CN98: ='スパー寸法(sht20)'!BG98 -> 0.04006225485 | CO98: 0.07606329884 | CP98: 0.1161255537 | CR98: 111.788415 | CS98: 0.7737863789 | CT98: 111.0146287
C99: 54 | D99: 1st | E99: 10.8 | F99: 10.8 | G99: 0 | H99: 0.2 | I99: 7.5 | J99: 0 | K99: 1 | L99: 0 | M99: 0.8349255007 | N99: 0.2630015327 | O99: -0.571923968 | P99: 1.0875 | Q99: 0.3425625 | R99: -0.7449375 | T99: 8.081969715 | U99: 539651.2932 | V99: 1.31961441 | W99: 0.01388469432 | X99: -0.08973583579 | Y99: 0.1096622711 | Z99: 0 | AA99: -0.003960899115 | AB99: 10.73069343 | AC99: 0.9769328629 | AD99: 0.1943454532 | AE99: 7.435692853 | AF99: 13.96137598 | AG99: 0.956856321 | AH99: 13.81715863 | AI99: -0.05957422013 | AJ99: 4.954344012 | AK99: 5.690837145 | AL99: 0.2103753345 | AM99: 1.506355182 | AN99: 5.02907409 | AO99: 0.1732919169 | AP99: 1.656371117 | BA99: 2nd | BB99: 0.08242210526 | BC99: 0.0009725028816 | BD99: 8e-05 | BE99: 0.00124763866 | BF99: 4e-05 | BG99: 0.0008242210526 | BH99: 0.0001945005763 | BI99: 1.6e-05 | BJ99: 1.24763866e-05 | BK99: 8e-06 | BX99: 0.01648442105 | BY99: 0.01653254899 | BZ99: 0.00816 | CA99: 0.006362957165 | CB99: 0.00408 | CC99: 0.02302617187 | CJ99: =IF(ROW()-ROW($CJ$45)=MATCH(MIN(ABS($E$45:$E$111-AVERAGE(ABS($D$25),ABS($D$27)))),ABS($E$45:$E$111-AVERAGE(ABS($D$25),ABS($D$27))),0),AVERAGE($D$24,$D$26),"") ->  | CN99: ='スパー寸法(sht20)'!BG99 -> 0.03857844608 | CO99: 0.07464609908 | CP99: 0.1132245452 | CR99: 116.0068741 | CS99: 0.8590926595 | CT99: 115.1477815
C100: 55 | D100: 1st | E100: 11 | F100: 11 | G100: 0 | H100: 0.2 | I100: 7.5 | J100: 0 | K100: 1 | L100: 0 | M100: 0.799408065 | N100: 0.2518135405 | O100: -0.5475945245 | P100: 1.06875 | Q100: 0.33665625 | R100: -0.73209375 | T100: 7.976007831 | U100: 530266.0533 | V100: 1.309014916 | W100: 0.01377145201 | X100: -0.08985094726 | Y100: 0.1096622711 | Z100: 0 | AA100: -0.004764977694 | AB100: 10.92478515 | AC100: 1.025186413 | AD100: 0.1940917179 | AE100: 7.425091674 | AF100: 14.23450291 | AG100: 1.005087303 | AH100: 14.10643267 | AI100: -0.06897200066 | AJ100: 4.733042993 | AK100: 5.546950708 | AL100: 0.2237000038 | AM100: 1.601715887 | AN100: 4.807601345 | AO100: 0.1731356 | AP100: 1.656371117 | BA100: 2nd | BB100: 0.07960446492 | BC100: 0.0009557355906 | BD100: 8e-05 | BE100: 0.001226127648 | BF100: 4e-05 | BG100: 0.0007960446492 | BH100: 0.0001911471181 | BI100: 1.6e-05 | BJ100: 1.226127648e-05 | BK100: 8e-06 | BX100: 0.01592089298 | BY100: 0.01624750504 | BZ100: 0.00816 | CA100: 0.006253251007 | CB100: 0.00408 | CC100: 0.02258232422 | CJ100: =IF(ROW()-ROW($CJ$45)=MATCH(MIN(ABS($E$45:$E$111-AVERAGE(ABS($D$25),ABS($D$27)))),ABS($E$45:$E$111-AVERAGE(ABS($D$25),ABS($D$27))),0),AVERAGE($D$24,$D$26),"") ->  | CN100: ='スパー寸法(sht20)'!BG100 -> 0.03709463731 | CO100: 0.07324397325 | CP100: 0.1103386106 | CR100: 120.3018013 | CS100: 0.9508708424 | CT100: 119.3509305
C101: 56 | D101: 1st | E101: 11.2 | F101: 11.2 | G101: 0 | H101: 0.2 | I101: 7.5 | J101: 0 | K101: 1 | L101: 0 | M101: 0.7615384615 | N101: 0.2398846154 | O101: -0.5216538462 | P101: 1.05 | Q101: 0.33075 | R101: -0.71925 | T101: 7.833567186 | U101: 520880.8134 | V101: 1.295918822 | W101: 0.01350531261 | X101: -0.09015162289 | Y101: 0.1096622711 | Z101: 0 | AA101: -0.005916899443 | AB101: 11.11864464 | AC101: 1.074364639 | AD101: 0.1938594905 | AE101: 7.411936336 | AF101: 14.47457208 | AG101: 1.054328042 | AH101: 14.36342582 | AI101: -0.08077048824 | AJ101: 4.497501194 | AK101: 5.394262098 | AL101: 0.2417669233 | AM101: 1.731001195 | AN101: 4.571374343 | AO101: 0.1729977728 | AP101: 1.656371117 | BA101: 2nd | BB101: 0.07683582702 | BC101: 0.0009389682995 | BD101: 8e-05 | BE101: 0.001204616637 | BF101: 4e-05 | BG101: 0.0007683582702 | BH101: 0.0001877936599 | BI101: 1.6e-05 | BJ101: 1.204616637e-05 | BK101: 8e-06 | BX101: 0.0153671654 | BY101: 0.01596246109 | BZ101: 0.00816 | CA101: 0.006143544849 | CB101: 0.00408 | CC101: 0.02214375 | CJ101: =IF(ROW()-ROW($CJ$45)=MATCH(MIN(ABS($E$45:$E$111-AVERAGE(ABS($D$25),ABS($D$27)))),ABS($E$45:$E$111-AVERAGE(ABS($D$25),ABS($D$27))),0),AVERAGE($D$24,$D$26),"") ->  | CN101: ='スパー寸法(sht20)'!BG101 -> 0.03561082854 | CO101: 0.07185692134 | CP101: 0.1074677499 | CR101: 124.6734578 | CS101: 1.049199281 | CT101: 123.6242586
C102: 57 | D102: 1st | E102: 11.4 | F102: 11.4 | G102: 0 | H102: 0.2 | I102: 7.5 | J102: 0 | K102: 1 | L102: 0 | M102: 0.7209461239 | N102: 0.227098029 | O102: -0.4938480949 | P102: 1.03125 | Q102: 0.32484375 | R102: -0.70640625 | T102: 7.668000354 | U102: 511495.5736 | V102: 1.279200912 | W102: 0.0133307334 | X102: -0.09032503515 | Y102: 0.1096622711 | Z102: 0 | AA102: -0.007176975906 | AB102: 11.31229637 | AC102: 1.124354702 | AD102: 0.1936517328 | AE102: 7.395923877 | AF102: 14.68018592 | AG102: 1.104465857 | AH102: 14.58658261 | AI102: -0.095276594 | AJ102: 4.245376537 | AK102: 5.228733726 | AL102: 0.2626694208 | AM102: 1.880555568 | AN102: 4.317979048 | AO102: 0.1728781176 | AP102: 1.656371117 | BA102: 2nd | BB102: 0.07411619156 | BC102: 0.0009222010084 | BD102: 8e-05 | BE102: 0.001183105626 | BF102: 4e-05 | BG102: 0.0007411619156 | BH102: 0.0001844402017 | BI102: 1.6e-05 | BJ102: 1.183105626e-05 | BK102: 8e-06 | BX102: 0.01482323831 | BY102: 0.01567741714 | BZ102: 0.00816 | CA102: 0.006033838691 | CB102: 0.00408 | CC102: 0.02171044922 | CJ102: =IF(ROW()-ROW($CJ$45)=MATCH(MIN(ABS($E$45:$E$111-AVERAGE(ABS($D$25),ABS($D$27)))),ABS($E$45:$E$111-AVERAGE(ABS($D$25),ABS($D$27))),0),AVERAGE($D$24,$D$26),"") ->  | CN102: ='スパー寸法(sht20)'!BG102 -> 0.03412701977 | CO102: 0.07048494337 | CP102: 0.1046119631 | CR102: 129.1221575 | CS102: 1.154108359 | CT102: 127.9680492
C103: 58 | D103: 1st | E103: 11.6 | F103: 11.6 | G103: 0 | H103: 0.2 | I103: 7.5 | J103: 0 | K103: 1 | L103: 0 | M103: 0.6771415731 | N103: 0.2132995955 | O103: -0.4638419776 | P103: 1.0125 | Q103: 0.3189375 | R103: -0.6935625 | T103: 7.439040517 | U103: 502110.3337 | V103: 1.25805521 | W103: 0.01288969629 | X103: -0.09081042558 | Y103: 0.1096622711 | Z103: 0 | AA103: -0.009036836922 | AB103: 11.50576746 | AC103: 1.175039387 | AD103: 0.19347109 | AE103: 7.376844199 | AF103: 14.85035889 | AG103: 1.155382636 | AH103: 14.7746633 | AI103: -0.112789359 | AJ103: 3.973540885 | AK103: 5.047946531 | AL103: 0.2920094712 | AM103: 2.090435727 | AN103: 4.044194686 | AO103: 0.1727964575 | AP103: 1.656371117 | BA103: 2nd | BB103: 0.07144555854 | BC103: 0.0009054337174 | BD103: 8e-05 | BE103: 0.001161594614 | BF103: 4e-05 | BG103: 0.0007144555854 | BH103: 0.0001810867435 | BI103: 1.6e-05 | BJ103: 1.161594614e-05 | BK103: 8e-06 | BX103: 0.01428911171 | BY103: 0.0153923732 | BZ103: 0.00816 | CA103: 0.005924132533 | CB103: 0.00408 | CC103: 0.02128242187 | CJ103: =IF(ROW()-ROW($CJ$45)=MATCH(MIN(ABS($E$45:$E$111-AVERAGE(ABS($D$25),ABS($D$27)))),ABS($E$45:$E$111-AVERAGE(ABS($D$25),ABS($D$27))),0),AVERAGE($D$24,$D$26),"") ->  | CN103: ='スパー寸法(sht20)'!BG103 -> 0.03264321101 | CO103: 0.06912803931 | CP103: 0.1017712503 | CR103: 133.6482627 | CS103: 1.26557784 | CT103: 132.3826848
C104: 59 | D104: 1st | E104: 11.8 | F104: 11.8 | G104: 0 | H104: 0.2 | I104: 7.5 | J104: 0 | K104: 1 | L104: 0 | M104: 0.6294545399 | N104: 0.1982781801 | O104: -0.4311763598 | P104: 0.99375 | Q104: 0.31303125 | R104: -0.68071875 | T104: 7.150523523 | U104: 492725.0938 | V104: 1.230382204 | W104: 0.01241130382 | X104: -0.09131012112 | Y104: 0.1096622711 | Z104: 0 | AA104: -0.01133527786 | AB104: 11.69908716 | AC104: 1.226298473 | AD104: 0.1933196993 | AE104: 7.361069055 | AF104: 14.95264379 | AG104: 1.20695594 | AH104: 14.92693651 | AI104: -0.1334300782 | AJ104: 3.677640992 | AK104: 4.844629928 | AL104: 0.3301490705 | AM104: 2.363177576 | AN104: 3.745543948 | AO104: 0.1727656944 | AP104: 1.656371117 | BA104: 2nd | BB104: 0.06882392797 | BC104: 0.0008886664263 | BD104: 8e-05 | BE104: 0.001140083603 | BF104: 4e-05 | BG104: 0.0006882392797 | BH104: 0.0001777332853 | BI104: 1.6e-05 | BJ104: 1.140083603e-05 | BK104: 8e-06 | BX104: 0.01376478559 | BY104: 0.01510732925 | BZ104: 0.00816 | CA104: 0.005814426375 | CB104: 0.00408 | CC104: 0.02085966797 | CJ104: =IF(ROW()-ROW($CJ$45)=MATCH(MIN(ABS($E$45:$E$111-AVERAGE(ABS($D$25),ABS($D$27)))),ABS($E$45:$E$111-AVERAGE(ABS($D$25),ABS($D$27))),0),AVERAGE($D$24,$D$26),"") ->  | CN104: ='スパー寸法(sht20)'!BG104 -> 0.03115940224 | CO104: 0.06778620918 | CP104: 0.09894561142 | CR104: 138.2521765 | CS104: 1.383536127 | CT104: 136.8686404
C105: 60 | D105: 1st | E105: 12 | F105: 12 | G105: 0 | H105: 0.2 | I105: 7.5 | J105: 0 | K105: 1 | L105: 0 | M105: 0.5769230769 | N105: 0.1817307692 | O105: -0.3951923077 | P105: 0.975 | Q105: 0.307125 | R105: -0.667875 | T105: 6.773071559 | U105: 483339.8539 | V105: 1.193114042 | W105: 0.0118584428 | X105: -0.09184851497 | Y105: 0.1096622711 | Z105: 0 | AA105: -0.01429610223 | AB105: 11.89231504 | AC105: 1.277902592 | AD105: 0.1932278832 | AE105: 7.351786343 | AF105: 14.99036318 | AG105: 1.259060777 | AH105: 14.9792378 | AI105: -0.144335593 | AJ105: 3.351308118 | AK105: 4.608402988 | AL105: 0.3816571135 | AM105: 2.731346828 | AN105: 3.415483288 | AO105: 0.1727726302 | AP105: 1.656371117 | BA105: 3rd | BB105: 0.06625129983 | BC105: 0.0008718991353 | BD105: 8e-05 | BE105: 0.001118572592 | BF105: 4e-05 | BG105: 0.0006625129983 | BH105: 0.0001743798271 | BI105: 1.6e-05 | BJ105: 1.118572592e-05 | BK105: 8e-06 | CD105: 0.01325025997 | CE105: 0.0148222853 | CF105: 0.00816 | CG105: 0.005704720217 | CH105: 0.00408 | CI105: 0.0196247637 | CJ105: =IF(ROW()-ROW($CJ$45)=MATCH(MIN(ABS($E$45:$E$111-AVERAGE(ABS($D$25),ABS($D$27)))),ABS($E$45:$E$111-AVERAGE(ABS($D$25),ABS($D$27))),0),AVERAGE($D$24,$D$26),"") ->  | CN105: ='スパー寸法(sht20)'!BG105 -> 0.02967559347 | CO105: 0.06564202918 | CP105: 0.09531762265 | CR105: 142.9347536 | CS105: 1.507596578 | CT105: 141.4271571
C106: 61 | D106: 1st | E106: 12.2 | F106: 12.2 | G106: 0 | H106: 0.2 | I106: 7.5 | J106: 0 | K106: 1 | L106: 0 | M106: 0.5180756382 | N106: 0.163193826 | O106: -0.3548818121 | P106: 0.95625 | Q106: 0.30121875 | R106: -0.65503125 | T106: 6.243885337 | U106: 473954.614 | V106: 1.140914202 | W106: 0.01103027537 | X106: -0.09262701124 | Y106: 0.1096622711 | Z106: 0 | AA106: -0.01846758813 | AB106: 12.08550891 | AC106: 1.329633908 | AD106: 0.1931938689 | AE106: 7.341090553 | AF106: 15.01459503 | AG106: 1.311348181 | AH106: 15.00237697 | AI106: -0.151993639 | AJ106: 2.984540733 | AK106: 4.321212539 | AL106: 0.454250125 | AM106: 3.24983726 | AN106: 3.043746019 | AO106: 0.1728695969 | AP106: 1.656371117 | BA106: 3rd | BB106: 0.06372767413 | BC106: 0.0008551318442 | BD106: 8e-05 | BE106: 0.00109706158 | BF106: 4e-05 | BG106: 0.0006372767413 | BH106: 0.0001710263688 | BI106: 1.6e-05 | BJ106: 1.09706158e-05 | BK106: 8e-06 | CD106: 0.01274553483 | CE106: 0.01453724135 | CF106: 0.00816 | CG106: 0.005595014059 | CH106: 0.00408 | CI106: 0.01831949563 | CJ106: =IF(ROW()-ROW($CJ$45)=MATCH(MIN(ABS($E$45:$E$111-AVERAGE(ABS($D$25),ABS($D$27)))),ABS($E$45:$E$111-AVERAGE(ABS($D$25),ABS($D$27))),0),AVERAGE($D$24,$D$26),"") ->  | CN106: ='スパー寸法(sht20)'!BG106 -> 0.02893368909 | CO106: 0.06343728587 | CP106: 0.09237097495 | CR106: 147.6968341 | CS106: 1.637308497 | CT106: 146.0595256
C107: 62 | D107: 1st | E107: 12.4 | F107: 12.4 | G107: 0 | H107: 0.2 | I107: 7.5 | J107: 0 | K107: 1 | L107: 0 | M107: 0.4504435684 | N107: 0.141889724 | O107: -0.3085538443 | P107: 0.9375 | Q107: 0.2953125 | R107: -0.6421875 | T107: 5.481117842 | U107: 464569.3741 | V107: 1.063083649 | W107: 0.01000953559 | X107: -0.09346202016 | Y107: 0.1096622711 | Z107: 0 | AA107: -0.02436158299 | AB107: 12.27868088 | AC107: 1.381446926 | AD107: 0.1931719731 | AE107: 7.307285466 | AF107: 15.06365465 | AG107: 1.363716356 | AH107: 15.02770256 | AI107: -0.1657255903 | AJ107: 2.559512556 | AK107: 3.946698046 | AL107: 0.5564399733 | AM107: 3.978799668 | AN107: 2.612050162 | AO107: 0.175767207 | AP107: 1.656371117 | BA107: 3rd | BB107: 0.06125305088 | BC107: 0.0008383645531 | BD107: 8e-05 | BE107: 0.001075550569 | BF107: 4e-05 | BG107: 0.0006125305088 | BH107: 0.0001676729106 | BI107: 1.6e-05 | BJ107: 1.075550569e-05 | BK107: 8e-06 | CD107: 0.01225061018 | CE107: 0.0142521974 | CF107: 0.00816 | CG107: 0.005485307901 | CH107: 0.00408 | CI107: 0.0164492287 | CJ107: =IF(ROW()-ROW($CJ$45)=MATCH(MIN(ABS($E$45:$E$111-AVERAGE(ABS($D$25),ABS($D$27)))),ABS($E$45:$E$111-AVERAGE(ABS($D$25),ABS($D$27))),0),AVERAGE($D$24,$D$26),"") ->  | CN107: ='スパー寸法(sht20)'!BG107 -> 0 | CO107: 0.06067734418 | CP107: 0.06067734418 | CR107: 152.5385945 | CS107: 1.77259022 | CT107: 150.7660043
C108: 63 | D108: 1st | E108: 12.6 | F108: 12.6 | G108: 0 | H108: 0.2 | I108: 7.5 | J108: 0 | K108: 1 | L108: 0 | M108: 0.3692307692 | N108: 0.1163076923 | O108: -0.2529230769 | P108: 0.91875 | Q108: 0.28940625 | R108: -0.62934375 | T108: 4.286516893 | U108: 455184.1343 | V108: 0.9374341965 | W108: 0.008647600189 | X108: -0.09439712763 | Y108: 0.1096622711 | Z108: 0 | AA108: -0.03346390486 | AB108: 12.47180842 | AC108: 1.433425328 | AD108: 0.1931275373 | AE108: 7.266991347 | AF108: 15.10845164 | AG108: 1.416172934 | AH108: 15.10049828 | AI108: -0.2196004016 | AJ108: 2.044957354 | AK108: 3.40991689 | AL108: 0.7186405781 | AM108: 5.133106499 | AN108: 2.088330704 | AO108: 0.1784087942 | AP108: 1.656371117 | BA108: 3rd | BB108: 0.05882743006 | BC108: 0.0008215972621 | BD108: 8e-05 | BE108: 0.001054039557 | BF108: 4e-05 | BG108: 0.0005882743006 | BH108: 0.0001643194524 | BI108: 1.6e-05 | BJ108: 1.054039557e-05 | BK108: 8e-06 | CD108: 0.01176548601 | CE108: 0.01396715346 | CF108: 0.00816 | CG108: 0.005375601743 | CH108: 0.00408 | CI108: 0.01362162802 | CJ108: =IF(ROW()-ROW($CJ$45)=MATCH(MIN(ABS($E$45:$E$111-AVERAGE(ABS($D$25),ABS($D$27)))),ABS($E$45:$E$111-AVERAGE(ABS($D$25),ABS($D$27))),0),AVERAGE($D$24,$D$26),"") ->  | CN108: ='スパー寸法(sht20)'!BG108 -> 0 | CO108: 0.05696986923 | CP108: 0.05696986923 | CR108: 157.459704 | CS108: 1.91369867 | CT108: 155.5460053
C109: 64 | D109: 2nd | E109: 12.8 | F109: 12.8 | G109: 0 | H109: 0.2 | I109: 7.5 | J109: 0 | K109: 1 | L109: 0 | M109: 0.2621034621 | N109: 0.08256259057 | O109: -0.1795408715 | P109: 0.9 | Q109: 0.2835 | R109: -0.6165 | T109: 3.229075607 | U109: 375409.5953 | V109: 0.8220235705 | W109: 0.008185735904 | X109: -0.09482787549 | Y109: 0.1096622711 | Z109: 0 | AA109: -0.04139634341 | AB109: 12.66489526 | AC109: 1.485554713 | AD109: 0.1930868387 | AE109: 7.374668009 | AF109: 7.69034518 | AG109: 1.468883617 | AH109: 15.11729841 | AI109: -0.2463104997 | AJ109: 1.361970238 | AK109: 2.466070712 | AL109: 0.8829572876 | AM109: 6.298224446 | AN109: 1.391770326 | AO109: 0.1642410776 | AP109: 1.656371117 | BA109: 3rd | BB109: 0.05645081169 | BC109: 0.000804829971 | BD109: 8e-05 | BE109: 0.001032528546 | BF109: 4e-05 | BG109: 0.0005645081169 | BH109: 0.0001609659942 | BI109: 1.6e-05 | BJ109: 1.032528546e-05 | BK109: 8e-06 | CD109: 0.01129016234 | CE109: 0.01368210951 | CF109: 0.00816 | CG109: 0.005265895585 | CH109: 0.00408 | CI109: 0.01123309741 | CJ109: =IF(ROW()-ROW($CJ$45)=MATCH(MIN(ABS($E$45:$E$111-AVERAGE(ABS($D$25),ABS($D$27)))),ABS($E$45:$E$111-AVERAGE(ABS($D$25),ABS($D$27))),0),AVERAGE($D$24,$D$26),"") ->  | CN109: ='スパー寸法(sht20)'!BG109 -> 0 | CO109: 0.05371126484 | CP109: 0.05371126484 | CR109: 162.460216 | CS109: 2.060644072 | CT109: 160.399572
C110: 65 | D110: Winglet | E110: 13 | F110: 13 | G110: 0 | H110: 0.2 | I110: 7.5 | J110: 0 | K110: 1 | L110: 0 | M110: 0 | N110: 0 | O110: 0 | P110: 0.6 | Q110: 0.189 | R110: -0.411 | AB110: 12.86309641 | AC110: 1.512318552 | AG110: 1.521652943 | AH110: 0.2638466312 | AI110: -0.004298929202 | AN110: 0 | AO110: 0 | AP110: 1.656371117 | BA110: Winglet | BB110: 0.02508924964 | BC110: 0.000536553314 | BD110: 8e-05 | BE110: 0.000688352364 | BF110: 4e-05 | BG110: 0.0002508924964 | BH110: 0 | BI110: 0 | BJ110: 6.88352364e-06 | BK110: 8e-06 | BO110: =IF($BA110="0",$BJ110*$BB$37,"") ->  | BP110: =IF($BA110="0",$BK110*$BB$37,"") ->  | BU110: =IF($BA110="1st",$BJ110*$BB$37,"") ->  | BV110: =IF($BA110="1st",$BK110*$BB$37,"") ->  | CA110: =IF($BA110="2nd",$BJ110*$BB$37,"") ->  | CB110: =IF($BA110="2nd",$BK110*$BB$37,"") ->  | CG110: =IF($BA110="3rd",$BJ110*$BB$37,"") ->  | CH110: =IF($BA110="3rd",$BK110*$BB$37,"") ->  | CJ110: =IF(ROW()-ROW($CJ$45)=MATCH(MIN(ABS($E$45:$E$111-AVERAGE(ABS($D$25),ABS($D$27)))),ABS($E$45:$E$111-AVERAGE(ABS($D$25),ABS($D$27))),0),AVERAGE($D$24,$D$26),"") ->  | CK110: 0.02508924964 | CL110: 0 | CM110: 0 | CN110: ='スパー寸法(sht20)'!BG110 -> 0 | CO110: 0.02508924964 | CP110: 0.02508924964 | CR110: 167.5974484 | CS110: 2.138199055 | CT110: 165.4592493
E111: =E110 -> 13 | F111: =F110+$D$30*COS(RADIANS(J111)) -> 13.2

Sheet たわみ・ねじり(sht2)
B2: 最大値 | L2: ='各種パラメータ(sht0)'!L2 -> 環境条件
B3: 名 | C3: 記号 | D3: 値 | E3: 単位 | F3: 備考 | L3: ='各種パラメータ(sht0)'!L3 -> 名 | M3: ='各種パラメータ(sht0)'!M3 -> 記号 | N3: ='各種パラメータ(sht0)'!N3 -> 値 | O3: ='各種パラメータ(sht0)'!O3 -> 単位
B4: 曲げモーメント | C4: Mmax | D4: =MAX(S45:S1048576) -> 1499.103475 | E4: N*m | L4: ='各種パラメータ(sht0)'!L4 -> 空気密度 | M4: ='各種パラメータ(sht0)'!M4 -> ρ | N4: ='各種パラメータ(sht0)'!N4 -> 1.164313615 | O4: ='各種パラメータ(sht0)'!O4 -> kg/m^3
B5: トルク | C5: Tmax | D5: =MIN(T45:T1048576) -> -1.050244272 | E5: N*m | L5: ='各種パラメータ(sht0)'!L5 -> 重力加速度 | M5: ='各種パラメータ(sht0)'!M5 -> g | N5: ='各種パラメータ(sht0)'!N5 -> 9.795 | O5: ='各種パラメータ(sht0)'!O5 -> m/s^2
B6: たわみ | C6: wmax | D6: =MAX(Y45:Y979) -> 1.650858144 | E6: m | L6: ='各種パラメータ(sht0)'!L6 -> 粘性係数 | M6: ='各種パラメータ(sht0)'!M6 -> μ | N6: ='各種パラメータ(sht0)'!N6 -> 1.860869242e-05 | O6: ='各種パラメータ(sht0)'!O6 -> N・s/m^2
B7: ねじれ角 | C7: Φmax | D7: =MIN(AA45:AA979) -> -0.3656561855 | E7: deg | L7: ='各種パラメータ(sht0)'!L7 -> 動粘性係数 | M7: ='各種パラメータ(sht0)'!M7 -> ν | N7: ='各種パラメータ(sht0)'!N7 -> 1.5982543e-05 | O7: ='各種パラメータ(sht0)'!O7 -> m^2/s
L8: ='各種パラメータ(sht0)'!L8 -> 気温 | M8: ='各種パラメータ(sht0)'!M8 -> T | N8: ='各種パラメータ(sht0)'!N8 -> 30 | O8: ='各種パラメータ(sht0)'!O8 -> ℃
B9: 荷重試験の結果を受けて | L9: ='各種パラメータ(sht0)'!L9 -> 0 | M9: ='各種パラメータ(sht0)'!M9 -> 0 | N9: ='各種パラメータ(sht0)'!N9 -> 303.15 | O9: ='各種パラメータ(sht0)'!O9 -> K
B10: 名 | C10: 記号 | D10: 値 | E10: 単位 | F10: 備考 | L10: ='各種パラメータ(sht0)'!L10 -> 圧力 | M10: ='各種パラメータ(sht0)'!M10 -> P | N10: ='各種パラメータ(sht0)'!N10 -> 1013 | O10: ='各種パラメータ(sht0)'!O10 -> hPa
B11: 補正係数 | C11: - | D11: 0.875 | E11: - | L11: ='各種パラメータ(sht0)'!L11 -> 0 | M11: ='各種パラメータ(sht0)'!M11 -> 0 | N11: ='各種パラメータ(sht0)'!N11 -> 101300 | O11: ='各種パラメータ(sht0)'!O11 -> Pa
L12: ='各種パラメータ(sht0)'!L12 -> 一般気体定数 | M12: ='各種パラメータ(sht0)'!M12 -> R | N12: ='各種パラメータ(sht0)'!N12 -> 287 | O12: ='各種パラメータ(sht0)'!O12 -> J/kg・K
L13: ='各種パラメータ(sht0)'!L13 -> 比熱比 | M13: ='各種パラメータ(sht0)'!M13 -> κ | N13: ='各種パラメータ(sht0)'!N13 -> 1.4 | O13: ='各種パラメータ(sht0)'!O13 -> -
L14: ='各種パラメータ(sht0)'!L14 -> 音速 | M14: ='各種パラメータ(sht0)'!M14 -> a | N14: ='各種パラメータ(sht0)'!N14 -> 349.0066905 | O14: ='各種パラメータ(sht0)'!O14 -> m/s
L15: ='各種パラメータ(sht0)'!L15 -> カルマン定数 | M15: ='各種パラメータ(sht0)'!M15 -> k | N15: ='各種パラメータ(sht0)'!N15 -> 0.4 | O15: ='各種パラメータ(sht0)'!O15 -> -
L16: ='各種パラメータ(sht0)'!L16 -> 粗度 | M16: ='各種パラメータ(sht0)'!M16 -> z0 | N16: ='各種パラメータ(sht0)'!N16 -> 0.01 | O16: ='各種パラメータ(sht0)'!O16 -> -
L18: ='主翼(sht1)'!AZ18 -> 解析用 | AZ18: 解析用
L19: ='主翼(sht1)'!AZ19 -> 名 | M19: ='主翼(sht1)'!BA19 -> 記号 | N19: ='主翼(sht1)'!BB19 -> 値 | O19: ='主翼(sht1)'!BC19 -> 単位 | AZ19: 名 | BA19: 記号 | BB19: 値 | BC19: 単位
L20: ='主翼(sht1)'!AZ20 -> 全機迎角 | M20: ='主翼(sht1)'!BA20 -> α | N20: ='主翼(sht1)'!BB20 -> 2.152632045 | O20: ='主翼(sht1)'!BC20 -> deg | AZ20: 全機迎角 | BA20: α | BB20: 1.22272279 | BC20: deg
L21: ='主翼(sht1)'!AZ22 -> 対気速度 | M21: ='主翼(sht1)'!BA22 -> V | N21: ='主翼(sht1)'!BB22 -> 8 | O21: ='主翼(sht1)'!BC22 -> m/s | AZ21: 横滑り角 | BA21: β | BB21: 0 | BC21: deg
AZ22: 対気速度 | BA22: V | BB22: 11 | BC22: m/s
L23: ='主翼(sht1)'!B14 -> 空力中心 | M23: ='主翼(sht1)'!C14 -> hac | N23: ='主翼(sht1)'!D14 -> 0.25 | O23: ='主翼(sht1)'!E14 -> - | AZ23: 高度 | BA23: hE | BB23: 2 | BC23: m
L24: ='主翼(sht1)'!B30 -> リブ間隔 | M24: ='主翼(sht1)'!C30 -> Δy | N24: ='主翼(sht1)'!D30 -> 0.2 | O24: ='主翼(sht1)'!E30 -> m | AZ24: 角速度 | BA24: p | BB24: 0 | BC24: deg/s
L25: ='主翼(sht1)'!B31 -> 桁位置 | M25: ='主翼(sht1)'!C31 -> - | N25: ='主翼(sht1)'!D31 -> 0.315 | O25: ='主翼(sht1)'!E31 -> - | BA25: q | BB25: 0 | BC25: deg/s
BA26: r | BB26: 0 | BC26: deg/s
M27: 厚さ | N27: 破断合応力 | AZ27: 重心移動距離 | BA27: dh | BB27: 0.1 | BC27: -
M28: t | N28: Nx
M29: m | N29: N/m
B30: リブ間隔 | C30: Δy | D30: ='主翼(sht1)'!D30 -> 0.2 | E30: m | L30: 0番 | M30: ='0番積層構成(sht21)'!I33 -> 0.002499 | N30: ='0番積層構成(sht21)'!D36 -> -2148930
B31: 桁位置 | C31: - | D31: ='主翼(sht1)'!D31 -> 0.315 | E31: - | L31: 1番 | M31: ='1番積層構成(sht22)'!I33 -> 0.001617 | N31: ='1番積層構成(sht22)'!D36 -> -1756185.8
B32: 翼根コード長 | C32: c0 | D32: ='主翼(sht1)'!D32 -> 1.5 | E32: m | L32: 2番 | M32: ='2番積層構成(sht23)'!I33 -> 0.001029 | N32: ='2番積層構成(sht23)'!D36 -> -852390
B33: 分割数 | C33: n | D33: ='主翼(sht1)'!D33 -> 65 | E33: - | F33: 片翼分のリブ枚数． | L33: 3番
A34: 翼型1 | L34: ウィングレット [4]
A35: 翼型2 | L35: 翼端
O38: =SUM(O45:O110)*2 -> 1743.544081
A40: -
AA41: 強度計算
B42: ='主翼(sht1)'!B42 -> 名 | C42: ='主翼(sht1)'!C42 -> リブ番号 | D42: ='主翼(sht1)'!BA42 -> スパー番号 | E42: ='主翼(sht1)'!E42 -> リブ位置 | F42: ='主翼(sht1)'!G42 -> 高さ | G42: ='主翼(sht1)'!H42 -> 翼素間隔 | H42: ='主翼(sht1)'!M42 -> コード長 | I42: 翼素面積 | J42: ='主翼(sht1)'!V42 -> 揚力係数 | K42: ='主翼(sht1)'!X42 -> ピッチングモーメント係数 | L42: ='スパー寸法(sht20)'!R42 -> 曲げ剛性 | M42: ='スパー寸法(sht20)'!S42 -> ねじれ剛性 | N42: 翼重量 | O42: 翼素揚力 | P42: 翼荷重 | Q42: 翼素トルク | R42: せん断力 | S42: 曲げモーメント | T42: トルク | U42: T曲げモーメント | V42: 翼素たわみ | W42: 翼素たわみ角 | X42: 翼素ねじれ角 | Y42: たわみ | Z42: たわみ角 | AA42: ねじれ角 | AB42: 断面二次モーメント | AC42: 長半軸 | AD42: 最大曲げ応力 | AE42: 厚さ | AF42: 合応力 | AG42: 破断合応力 | AH42: 破断荷重倍数
B43: ='主翼(sht1)'!B43 -> 記号 | C43: ='主翼(sht1)'!C43 -> n | D43: ='主翼(sht1)'!BA43 -> - | E43: ='主翼(sht1)'!E43 -> - | F43: ='主翼(sht1)'!G43 -> zn | G43: ='主翼(sht1)'!H43 -> Δy | H43: ='主翼(sht1)'!M43 -> cn | I43: ΔS | J43: ='主翼(sht1)'!V43 -> Cl | K43: ='主翼(sht1)'!X43 -> Cm | L43: ='スパー寸法(sht20)'!R43 -> Eix | M43: ='スパー寸法(sht20)'!S43 -> GJ | N43: ΔW | O43: ΔL | P43: ΔL-ΔW | Q43: ΔT | R43: F | S43: M | T43: T | U43: M_T | V43: δ | W43: dθ | X43: dΦ | Y43: w | Z43: θ | AA43: Φ | AB43: Ix | AC43: bm | AD43: σmax | AE43: t | AF43: Nx | AG43: Nx_max | AH43: n_max
B44: ='主翼(sht1)'!B44 -> 単位 | C44: ='主翼(sht1)'!C44 -> - | D44: ='主翼(sht1)'!BA44 -> - | E44: ='主翼(sht1)'!E44 -> m | F44: ='主翼(sht1)'!G44 -> m | G44: ='主翼(sht1)'!H44 -> m | H44: ='主翼(sht1)'!M44 -> m | I44: m^2 | J44: ='主翼(sht1)'!V44 -> - | K44: ='主翼(sht1)'!X44 -> - | L44: ='スパー寸法(sht20)'!R44 -> N*m^2 | M44: ='スパー寸法(sht20)'!S44 -> N*m^2 | N44: N | O44: N | P44: N | Q44: N*m | R44: N | S44: N*m | T44: N*m | U44: N*m | V44: m | W44: rad | X44: rad | Y44: m | Z44: rad | AA44: deg | AB44: m^4 | AC44: m | AD44: N/m^2 | AE44: m | AF44: N/m | AG44: N/m | AH44: G
B45: ='主翼(sht1)'!B45 -> 値 | C45: ='主翼(sht1)'!C45 -> 0 | D45: ='主翼(sht1)'!BA45 -> 0 | E45: ='主翼(sht1)'!E45 -> 0 | F45: ='主翼(sht1)'!G45 -> 0 | G45: ='主翼(sht1)'!H45 -> 0.2 | H45: ='主翼(sht1)'!P45 -> 1.5 | I45: =(H45+H46)*G45/2 -> 0.3 | J45: ='主翼(sht1)'!V45 -> 1.389332294 | K45: ='主翼(sht1)'!X45+J45*($N$25-$N$23) -> 0.0002620634437 | L45: ='スパー寸法(sht20)'!R45*$D$11 -> 95253.69275 | M45: ='スパー寸法(sht20)'!S45*$D$11 -> 14793.24092 | N45: ='主翼(sht1)'!CP45*$N$5 -> 2.723575611 | O45: =(1/2)*$N$4*$N$21*$N$21*I45*J45 -> 15.52913766 | P45: =O45-N45 -> 12.80556205 | Q45: =(1/2)*$N$4*$N$21*$N$21*I45*K45*H45 -> 0.004393786112 | R45: -266.0794403 | S45: 1264.451003 | T45: -0.9942132579 | U45: -2.991828712 | V45: =((P45*($N$24/2)^3)/(3*L45))+((P45*($N$24/2)^2)/(2*L45))*($N$24/2)+((R45*$N$24^2)/(3*L45))+((S45*$N$24^2)/(2*L45)) -> 0.0002283582386 | W45: =((P45*($N$24/2)^2)/(2*L45))+((S45*$N$24)/(L45))+((R45*$N$24^2)/(2*L45)) -> 0.002599716951 | X45: =((Q45*($N$24/2))/(M45))+((T45*$N$24)/(M45)) -> -1.341175163e-05 | Y45: 0 | Z45: 0 | AA45: 0 | AB45: ='スパー寸法(sht20)'!J45*(10^-12) -> 1.065879924e-06 | AC45: =('スパー寸法(sht20)'!F45+'スパー寸法(sht20)'!H45)/2*(10^-3) -> 0.0541495 | AD45: =(S45*AC45)/AB45 -> 64237432.44 | AE45: =('スパー寸法(sht20)'!F45-'スパー寸法(sht20)'!H45)*10^-3 -> 0.002499 | AF45: =AD45*AE45 -> 160529.3437 | AG45: =IF(D45="0",$N$30,IF(D45="1st",$N$31,$N$32)) -> -2148930 | AH45: =ABS(AG45/AF45) -> 13.38652455
C46: ='主翼(sht1)'!C46 -> 1 | D46: ='主翼(sht1)'!BA46 -> 0 | E46: ='主翼(sht1)'!E46 -> 0.2 | F46: ='主翼(sht1)'!G46 -> 0 | G46: ='主翼(sht1)'!H46 -> 0.2 | H46: ='主翼(sht1)'!P46 -> 1.5 | I46: =(H46+H47)*G46/2 -> 0.3 | J46: ='主翼(sht1)'!V46 -> 1.389252067 | K46: ='主翼(sht1)'!X46+J46*($N$25-$N$23) -> 0.0002540770173 | L46: ='スパー寸法(sht20)'!R46*$D$11 -> 95253.69275 | M46: ='スパー寸法(sht20)'!S46*$D$11 -> 14793.24092 | N46: ='主翼(sht1)'!CP46*$N$5 -> 2.723575611 | O46: =(1/2)*$N$4*$N$21*$N$21*I46*J46 -> 15.52824092 | P46: =O46-N46 -> 12.80466531 | Q46: =(1/2)*$N$4*$N$21*$N$21*I46*K46*H46 -> 0.00425988476 | R46: -278.3413275 | S46: 1290.579197 | T46: -1.049174334 | U46: -2.163010517 | V46: =((P46*($N$24/2)^3)/(3*L46))+((P46*($N$24/2)^2)/(2*L46))*($N$24/2)+((R46*$N$24^2)/(3*L46))+((S46*$N$24^2)/(2*L46)) -> 0.0002321278699 | W46: =((P46*($N$24/2)^2)/(2*L46))+((S46*$N$24)/(L46))+((R46*$N$24^2)/(2*L46)) -> 0.002652002552 | X46: =((Q46*($N$24/2))/(M46))+((T46*$N$24)/(M46)) -> -1.415571338e-05 | Y46: =Y45+V45+Z45*$N$24 -> 0.0002283582386 | Z46: =Z45+W45 -> 0.002599716951 | AA46: =DEGREES(X45)+AA45 -> -0.0007684367643 | AB46: ='スパー寸法(sht20)'!J46*(10^-12) -> 1.065879924e-06 | AC46: =('スパー寸法(sht20)'!F46+'スパー寸法(sht20)'!H46)/2*(10^-3) -> 0.0541495 | AD46: =(S46*AC46)/AB46 -> 65564813.33 | AE46: =('スパー寸法(sht20)'!F46-'スパー寸法(sht20)'!H46)*10^-3 -> 0.002499 | AF46: =AD46*AE46 -> 163846.4685 | AG46: =IF(D46="0",$N$30,IF(D46="1st",$N$31,$N$32)) -> -2148930 | AH46: =ABS(AG46/AF46) -> 13.11551002
C47: ='主翼(sht1)'!C47 -> 2 | D47: ='主翼(sht1)'!BA47 -> 0 | E47: ='主翼(sht1)'!E47 -> 0.4 | F47: ='主翼(sht1)'!G47 -> 0 | G47: ='主翼(sht1)'!H47 -> 0.2 | H47: ='主翼(sht1)'!P47 -> 1.5 | I47: =(H47+H48)*G47/2 -> 0.3 | J47: ='主翼(sht1)'!V47 -> 1.389105916 | K47: ='主翼(sht1)'!X47+J47*($N$25-$N$23) -> 0.000239533186 | L47: ='スパー寸法(sht20)'!R47*$D$11 -> 95253.69275 | M47: ='スパー寸法(sht20)'!S47*$D$11 -> 14793.24092 | N47: ='主翼(sht1)'!CP47*$N$5 -> 2.723575611 | O47: =(1/2)*$N$4*$N$21*$N$21*I47*J47 -> 15.52660734 | P47: =O47-N47 -> 12.80303173 | Q47: =(1/2)*$N$4*$N$21*$N$21*I47*K47*H47 -> 0.004016041196 | R47: -291.1387377 | S47: 1347.486772 | T47: -1.050244272 | U47: -1.389555114 | V47: =((P47*($N$24/2)^3)/(3*L47))+((P47*($N$24/2)^2)/(2*L47))*($N$24/2)+((R47*$N$24^2)/(3*L47))+((S47*$N$24^2)/(2*L47)) -> 0.0002422851453 | W47: =((P47*($N$24/2)^2)/(2*L47))+((S47*$N$24)/(L47))+((R47*$N$24^2)/(2*L47)) -> 0.002768801787 | X47: =((Q47*($N$24/2))/(M47))+((T47*$N$24)/(M47)) -> -1.417182696e-05 | Y47: =Y46+V46+Z46*$N$24 -> 0.0009804294986 | Z47: =Z46+W46 -> 0.005251719502 | AA47: =DEGREES(X46)+AA46 -> -0.001579499397 | AB47: ='スパー寸法(sht20)'!J47*(10^-12) -> 1.065879924e-06 | AC47: =('スパー寸法(sht20)'!F47+'スパー寸法(sht20)'!H47)/2*(10^-3) -> 0.0541495 | AD47: =(S47*AC47)/AB47 -> 68455867.6 | AE47: =('スパー寸法(sht20)'!F47-'スパー寸法(sht20)'!H47)*10^-3 -> 0.002499 | AF47: =AD47*AE47 -> 171071.2131 | AG47: =IF(D47="0",$N$30,IF(D47="1st",$N$31,$N$32)) -> -2148930 | AH47: =ABS(AG47/AF47) -> 12.56161081
C48: ='主翼(sht1)'!C48 -> 3 | D48: ='主翼(sht1)'!BA48 -> 0 | E48: ='主翼(sht1)'!E48 -> 0.6 | F48: ='主翼(sht1)'!G48 -> 0 | G48: ='主翼(sht1)'!H48 -> 0.2 | H48: ='主翼(sht1)'!P48 -> 1.5 | I48: 0.3 | J48: ='主翼(sht1)'!V48 -> 1.388896108 | K48: ='主翼(sht1)'!X48+J48*($N$25-$N$23) -> 0.0002186983824 | L48: ='スパー寸法(sht20)'!R48*$D$11 -> 95253.69275 | M48: ='スパー寸法(sht20)'!S48*$D$11 -> 14793.24092 | N48: ='主翼(sht1)'!CP48*$N$5 -> 2.723575611 | O48: 15.52426222 | P48: 12.80068661 | Q48: 0.003666722461 | R48: -303.9340232 | S48: 1406.924749 | T48: -1.049081976 | U48: -0.6514788709 | V48: 0.0002529740096 | W48: 0.002890914409 | X48: -1.415847442e-05 | Y48: 0.002273058544 | Z48: 0.008020521289 | AA48: -0.002391485269 | AB48: ='スパー寸法(sht20)'!J48*(10^-12) -> 1.065879924e-06 | AC48: =('スパー寸法(sht20)'!F48+'スパー寸法(sht20)'!H48)/2*(10^-3) -> 0.0541495 | AD48: 71475473 | AE48: =('スパー寸法(sht20)'!F48-'スパー寸法(sht20)'!H48)*10^-3 -> 0.002499 | AF48: 178617.207 | AG48: -2148930 | AH48: 12.03092376
C49: ='主翼(sht1)'!C49 -> 4 | D49: ='主翼(sht1)'!BA49 -> 0 | E49: ='主翼(sht1)'!E49 -> 0.8 | F49: ='主翼(sht1)'!G49 -> 0 | G49: ='主翼(sht1)'!H49 -> 0.2 | H49: ='主翼(sht1)'!P49 -> 1.5 | I49: 0.3 | J49: ='主翼(sht1)'!V49 -> 1.388623357 | K49: ='主翼(sht1)'!X49+J49*($N$25-$N$23) -> 0.0001916861534 | L49: ='スパー寸法(sht20)'!R49*$D$11 -> 95253.69275 | M49: ='スパー寸法(sht20)'!S49*$D$11 -> 14793.24092 | N49: ='主翼(sht1)'!CP49*$N$5 -> 2.723575611 | O49: 15.52121358 | P49: 12.79763797 | Q49: 0.003213832295 | R49: -316.7261806 | S49: 1468.890887 | T49: -1.045696291 | U49: 0.05127879663 | V49: 0.0002641941323 | W49: 0.003018335917 | X49: -1.411576247e-05 | Y49: 0.004130136812 | Z49: 0.0109114357 | AA49: -0.003202706098 | AB49: ='スパー寸法(sht20)'!J49*(10^-12) -> 1.065879924e-06 | AC49: =('スパー寸法(sht20)'!F49+'スパー寸法(sht20)'!H49)/2*(10^-3) -> 0.0541495 | AD49: 74623515.58 | AE49: =('スパー寸法(sht20)'!F49-'スパー寸法(sht20)'!H49)*10^-3 -> 0.002499 | AF49: 186484.1654 | AG49: -2148930 | AH49: 11.52339125
C50: ='主翼(sht1)'!C50 -> 5 | D50: ='主翼(sht1)'!BA50 -> 0 | E50: ='主翼(sht1)'!E50 -> 1 | F50: ='主翼(sht1)'!G50 -> 0 | G50: ='主翼(sht1)'!H50 -> 0.2 | H50: ='主翼(sht1)'!P50 -> 1.5 | I50: 0.3 | J50: ='主翼(sht1)'!V50 -> 1.388287544 | K50: ='主翼(sht1)'!X50+J50*($N$25-$N$23) -> 0.0001585334539 | L50: ='スパー寸法(sht20)'!R50*$D$11 -> 95253.69275 | M50: ='スパー寸法(sht20)'!S50*$D$11 -> 14793.24092 | N50: ='主翼(sht1)'!CP50*$N$5 -> 688.3735756 | O50: 15.51746006 | P50: -672.8561155 | Q50: 0.002657990288 | R50: 13.31080886 | S50: 1499.103475 | T50: -1.040130862 | U50: 0.7188182434 | V50: 0.0003107368613 | W50: 0.003115077452 | X50: -1.404427701e-05 | Y50: 0.006576618084 | Z50: 0.01392977161 | AA50: -0.004011479712 | AB50: ='スパー寸法(sht20)'!J50*(10^-12) -> 1.065879924e-06 | AC50: =('スパー寸法(sht20)'!F50+'スパー寸法(sht20)'!H50)/2*(10^-3) -> 0.0541495 | AD50: 76158394.38 | AE50: =('スパー寸法(sht20)'!F50-'スパー寸法(sht20)'!H50)*10^-3 -> 0.002499 | AF50: 190319.8276 | AG50: -2148930 | AH50: 11.29115147
C51: ='主翼(sht1)'!C51 -> 6 | D51: ='主翼(sht1)'!BA51 -> 0 | E51: ='主翼(sht1)'!E51 -> 1.2 | F51: ='主翼(sht1)'!G51 -> 0 | G51: ='主翼(sht1)'!H51 -> 0.2 | H51: ='主翼(sht1)'!P51 -> 1.5 | I51: 0.3 | J51: ='主翼(sht1)'!V51 -> 1.387887359 | K51: ='主翼(sht1)'!X51+J51*($N$25-$N$23) -> 0.0001191848516 | L51: ='スパー寸法(sht20)'!R51*$D$11 -> 95253.69275 | M51: ='スパー寸法(sht20)'!S51*$D$11 -> 14793.24092 | N51: ='主翼(sht1)'!CP51*$N$5 -> 2.723575611 | O51: 15.51298702 | P51: 12.78941141 | Q51: 0.001998267055 | R51: 343.3529408 | S51: 1463.286358 | T51: -1.032503515 | U51: 1.351280415 | V51: 0.0003554132469 | W51: 0.003145161819 | X51: -1.394561729e-05 | Y51: 0.009673309268 | Z51: 0.01704484907 | AA51: -0.004816157511 | AB51: ='スパー寸法(sht20)'!J51*(10^-12) -> 1.065879924e-06 | AC51: =('スパー寸法(sht20)'!F51+'スパー寸法(sht20)'!H51)/2*(10^-3) -> 0.0541495 | AD51: 74338790.79 | AE51: =('スパー寸法(sht20)'!F51-'スパー寸法(sht20)'!H51)*10^-3 -> 0.002499 | AF51: 185772.6382 | AG51: -2148930 | AH51: 11.56752696
C52: ='主翼(sht1)'!C52 -> 7 | D52: ='主翼(sht1)'!BA52 -> 0 | E52: ='主翼(sht1)'!E52 -> 1.4 | F52: ='主翼(sht1)'!G52 -> 0 | G52: ='主翼(sht1)'!H52 -> 0.2 | H52: ='主翼(sht1)'!P52 -> 1.5 | I52: 0.3 | J52: ='主翼(sht1)'!V52 -> 1.38742137 | K52: ='主翼(sht1)'!X52+J52*($N$25-$N$23) -> 7.358461618e-05 | L52: ='スパー寸法(sht20)'!R52*$D$11 -> 95253.69275 | M52: ='スパー寸法(sht20)'!S52*$D$11 -> 14793.24092 | N52: ='主翼(sht1)'!CP52*$N$5 -> 2.723575611 | O52: 15.50777847 | P52: 12.78420286 | Q52: 0.001233728215 | R52: 330.5761618 | S52: 1395.722863 | T52: -1.022989799 | U52: 1.948847785 | V52: 0.0003394387345 | W52: 0.003000618754 | X52: -1.382216298e-05 | Y52: 0.01343769233 | Z52: 0.02019001089 | AA52: -0.005615182525 | AB52: ='スパー寸法(sht20)'!J52*(10^-12) -> 1.065879924e-06 | AC52: =('スパー寸法(sht20)'!F52+'スパー寸法(sht20)'!H52)/2*(10^-3) -> 0.0541495 | AD52: 70906387.76 | AE52: =('スパー寸法(sht20)'!F52-'スパー寸法(sht20)'!H52)*10^-3 -> 0.002499 | AF52: 177195.063 | AG52: -2148930 | AH52: 12.12748235
C53: ='主翼(sht1)'!C53 -> 8 | D53: ='主翼(sht1)'!BA53 -> 0 | E53: ='主翼(sht1)'!E53 -> 1.6 | F53: ='主翼(sht1)'!G53 -> 0 | G53: ='主翼(sht1)'!H53 -> 0.2 | H53: ='主翼(sht1)'!P53 -> 1.5 | I53: 0.3 | J53: ='主翼(sht1)'!V53 -> 1.386887431 | K53: ='主翼(sht1)'!X53+J53*($N$25-$N$23) -> 2.161562443e-05 | L53: ='スパー寸法(sht20)'!R53*$D$11 -> 95253.69275 | M53: ='スパー寸法(sht20)'!S53*$D$11 -> 14793.24092 | N53: ='主翼(sht1)'!CP53*$N$5 -> 2.723575611 | O53: 15.50181042 | P53: 12.77823481 | Q53: 0.0003624100679 | R53: 317.8063828 | S53: 1330.691608 | T53: -1.011767724 | U53: 2.511744398 | V53: 0.0003239968785 | W53: 0.002861393952 | X53: -1.3676334e-05 | Y53: 0.01781513324 | Z53: 0.02319062964 | AA53: -0.006407134127 | AB53: ='スパー寸法(sht20)'!J53*(10^-12) -> 1.065879924e-06 | AC53: =('スパー寸法(sht20)'!F53+'スパー寸法(sht20)'!H53)/2*(10^-3) -> 0.0541495 | AD53: 67602629.15 | AE53: =('スパー寸法(sht20)'!F53-'スパー寸法(sht20)'!H53)*10^-3 -> 0.002499 | AF53: 168938.9702 | AG53: -2148930 | AH53: 12.72015567
C54: ='主翼(sht1)'!C54 -> 9 | D54: ='主翼(sht1)'!BA54 -> 0 | E54: ='主翼(sht1)'!E54 -> 1.8 | F54: ='主翼(sht1)'!G54 -> 0 | G54: ='主翼(sht1)'!H54 -> 0.2 | H54: ='主翼(sht1)'!P54 -> 1.5 | I54: 0.3 | J54: ='主翼(sht1)'!V54 -> 1.386282802 | K54: ='主翼(sht1)'!X54+J54*($N$25-$N$23) -> -3.687053919e-05 | L54: ='スパー寸法(sht20)'!R54*$D$11 -> 95253.69275 | M54: ='スパー寸法(sht20)'!S54*$D$11 -> 14793.24092 | N54: ='主翼(sht1)'!CP54*$N$5 -> 2.723575611 | O54: 15.49505223 | P54: 12.77147662 | Q54: -0.0006181757392 | R54: 305.044505 | S54: 1268.19294 | T54: -0.9989931458 | U54: 3.040236149 | V54: 0.000309087878 | W54: 0.002727488331 | X54: -1.35102543e-05 | Y54: 0.02277725605 | Z54: 0.02605202359 | AA54: -0.007190730345 | AB54: ='スパー寸法(sht20)'!J54*(10^-12) -> 1.065879924e-06 | AC54: =('スパー寸法(sht20)'!F54+'スパー寸法(sht20)'!H54)/2*(10^-3) -> 0.0541495 | AD54: 64427532.66 | AE54: =('スパー寸法(sht20)'!F54-'スパー寸法(sht20)'!H54)*10^-3 -> 0.002499 | AF54: 161004.4041 | AG54: -2148930 | AH54: 13.3470262
C55: ='主翼(sht1)'!C55 -> 10 | D55: ='主翼(sht1)'!BA55 -> 0 | E55: ='主翼(sht1)'!E55 -> 2 | F55: ='主翼(sht1)'!G55 -> 0 | G55: ='主翼(sht1)'!H55 -> 0.2 | H55: ='主翼(sht1)'!P55 -> 1.5 | I55: 0.3 | J55: ='主翼(sht1)'!V55 -> 1.385604501 | K55: ='主翼(sht1)'!X55+J55*($N$25-$N$23) -> -0.0001020303369 | L55: ='スパー寸法(sht20)'!R55*$D$11 -> 95253.69275 | M55: ='スパー寸法(sht20)'!S55*$D$11 -> 14793.24092 | N55: ='主翼(sht1)'!CP55*$N$5 -> 2.723575611 | O55: 15.48747058 | P55: 12.76389497 | Q55: -0.001710652469 | R55: 292.2914303 | S55: 1208.226915 | T55: -0.9847996981 | U55: 3.53463174 | V55: 0.0002947118704 | W55: 0.002598902195 | X55: -1.332574829e-05 | Y55: 0.02829674864 | Z55: 0.02877951192 | AA55: -0.007964810897 | AB55: ='スパー寸法(sht20)'!J55*(10^-12) -> 1.065879924e-06 | AC55: =('スパー寸法(sht20)'!F55+'スパー寸法(sht20)'!H55)/2*(10^-3) -> 0.0541495 | AD55: 61381101.09 | AE55: =('スパー寸法(sht20)'!F55-'スパー寸法(sht20)'!H55)*10^-3 -> 0.002499 | AF55: 153391.3716 | AG55: -2148930 | AH55: 14.00945814
C56: ='主翼(sht1)'!C56 -> 11 | D56: ='主翼(sht1)'!BA56 -> 0 | E56: ='主翼(sht1)'!E56 -> 2.2 | F56: ='主翼(sht1)'!G56 -> 0 | G56: ='主翼(sht1)'!H56 -> 0.2 | H56: ='主翼(sht1)'!P56 -> 1.5 | I56: 0.3 | J56: ='主翼(sht1)'!V56 -> 1.384849429 | K56: ='主翼(sht1)'!X56+J56*($N$25-$N$23) -> -0.0001740056276 | L56: ='スパー寸法(sht20)'!R56*$D$11 -> 95253.69275 | M56: ='スパー寸法(sht20)'!S56*$D$11 -> 14793.24092 | N56: ='主翼(sht1)'!CP56*$N$5 -> 2.715754985 | O56: 15.47903084 | P56: 12.76327585 | Q56: -0.002917398548 | R56: 279.5441567 | S56: 1150.793693 | T56: -0.9692991313 | U56: 3.99528386 | V56: 0.0002808685371 | W56: 0.002475635655 | X56: -1.312434288e-05 | Y56: 0.0343473629 | Z56: 0.03137841412 | AA56: -0.008728320033 | AB56: ='スパー寸法(sht20)'!J56*(10^-12) -> 1.065879924e-06 | AC56: =('スパー寸法(sht20)'!F56+'スパー寸法(sht20)'!H56)/2*(10^-3) -> 0.0541495 | AD56: 58463342.51 | AE56: =('スパー寸法(sht20)'!F56-'スパー寸法(sht20)'!H56)*10^-3 -> 0.002499 | AF56: 146099.8929 | AG56: -2148930 | AH56: 14.70863501
C57: ='主翼(sht1)'!C57 -> 12 | D57: ='主翼(sht1)'!BA57 -> 1st | E57: ='主翼(sht1)'!E57 -> 2.4 | F57: ='主翼(sht1)'!G57 -> 0 | G57: ='主翼(sht1)'!H57 -> 0.2 | H57: ='主翼(sht1)'!P57 -> 1.5 | I57: 0.3 | J57: ='主翼(sht1)'!V57 -> 1.384012818 | K57: ='主翼(sht1)'!X57+J57*($N$25-$N$23) -> -0.0002530989051 | L57: ='スパー寸法(sht20)'!R57*$D$11 -> 207928.5216 | M57: ='スパー寸法(sht20)'!S57*$D$11 -> 28825.82688 | N57: ='主翼(sht1)'!CP57*$N$5 -> 2.694899982 | O57: 15.46967969 | P57: 12.77477971 | Q57: -0.004243485617 | R57: 266.7927511 | S57: 1095.897744 | T57: -0.9527646165 | U57: 4.422599216 | V57: 0.0001225701843 | W57: 0.001080079231 | X57: -6.625214001e-06 | Y57: 0.04090391426 | Z57: 0.03385404977 | AA57: -0.009480289489 | AB57: ='スパー寸法(sht20)'!J57*(10^-12) -> 2.237139435e-06 | AC57: =('スパー寸法(sht20)'!F57+'スパー寸法(sht20)'!H57)/2*(10^-3) -> 0.054798 | AD57: 26843657.42 | AE57: =('スパー寸法(sht20)'!F57-'スパー寸法(sht20)'!H57)*10^-3 -> 0.004816 | AF57: 129279.0541 | AG57: -1756185.8 | AH57: 13.58445737
C58: ='主翼(sht1)'!C58 -> 13 | D58: ='主翼(sht1)'!BA58 -> 1st | E58: ='主翼(sht1)'!E58 -> 2.6 | F58: ='主翼(sht1)'!G58 -> 0 | G58: ='主翼(sht1)'!H58 -> 0.2 | H58: ='主翼(sht1)'!P58 -> 1.5 | I58: 0.3 | J58: ='主翼(sht1)'!V58 -> 1.383084297 | K58: ='主翼(sht1)'!X58+J58*($N$25-$N$23) -> -0.0003400886059 | L58: ='スパー寸法(sht20)'!R58*$D$11 -> 198400.4067 | M58: ='スパー寸法(sht20)'!S58*$D$11 -> 27503.03571 | N58: ='主翼(sht1)'!CP58*$N$5 -> 3.861785704 | O58: 15.45930123 | P58: 11.59751553 | Q58: -0.005701965037 | R58: 254.6248635 | S58: 1043.486626 | T58: -0.9354643266 | U58: 4.817040266 | V58: 0.0001223505319 | W58: 0.001077859736 | X58: -6.823358112e-06 | Y58: 0.0477972944 | Z58: 0.034934129 | AA58: -0.009859886289 | AB58: ='スパー寸法(sht20)'!J58*(10^-12) -> 2.134624775e-06 | AC58: =('スパー寸法(sht20)'!F58+'スパー寸法(sht20)'!H58)/2*(10^-3) -> 0.053948 | AD58: 26371855.67 | AE58: =('スパー寸法(sht20)'!F58-'スパー寸法(sht20)'!H58)*10^-3 -> 0.004816 | AF58: 127006.8569 | AG58: -1756185.8 | AH58: 13.82748808
C59: ='主翼(sht1)'!C59 -> 14 | D59: ='主翼(sht1)'!BA59 -> 1st | E59: ='主翼(sht1)'!E59 -> 2.8 | F59: ='主翼(sht1)'!G59 -> 0 | G59: ='主翼(sht1)'!H59 -> 0.2 | H59: ='主翼(sht1)'!P59 -> 1.5 | I59: 0.3 | J59: ='主翼(sht1)'!V59 -> 1.382050872 | K59: ='主翼(sht1)'!X59+J59*($N$25-$N$23) -> -0.0004359832406 | L59: ='スパー寸法(sht20)'!R59*$D$11 -> 70363.24356 | M59: ='スパー寸法(sht20)'!S59*$D$11 -> 7168.204634 | N59: ='主翼(sht1)'!CP59*$N$5 -> 2.2323529 | O59: 15.44775021 | P59: 13.21539731 | Q59: -0.007309745612 | R59: 242.2372866 | S59: 993.5241119 | T59: -0.9173241007 | U59: 5.179112683 | V59: 0.0003284573648 | W59: 0.002893778553 | X59: -2.569622438e-05 | Y59: 0.05490647073 | Z59: 0.03601198874 | AA59: -0.01025083591 | AB59: ='スパー寸法(sht20)'!J59*(10^-12) -> 7.289896055e-07 | AC59: =('スパー寸法(sht20)'!F59+'スパー寸法(sht20)'!H59)/2*(10^-3) -> 0.0546975 | AD59: 74546035.64 | AE59: =('スパー寸法(sht20)'!F59-'スパー寸法(sht20)'!H59)*10^-3 -> 0.001617 | AF59: 120540.9396 | AG59: -1756185.8 | AH59: 14.56920616
C60: ='主翼(sht1)'!C60 -> 15 | D60: ='主翼(sht1)'!BA60 -> 1st | E60: ='主翼(sht1)'!E60 -> 3 | F60: ='主翼(sht1)'!G60 -> 0 | G60: ='主翼(sht1)'!H60 -> 0.2 | H60: ='主翼(sht1)'!P60 -> 1.5 | I60: 0.3 | J60: ='主翼(sht1)'!V60 -> 1.380905986 | K60: ='主翼(sht1)'!X60+J60*($N$25-$N$23) -> -0.0005411121249 | L60: ='スパー寸法(sht20)'!R60*$D$11 -> 67133.15235 | M60: ='スパー寸法(sht20)'!S60*$D$11 -> 6838.679306 | N60: ='主翼(sht1)'!CP60*$N$5 -> 2.214127842 | O60: 15.43495335 | P60: 13.22082551 | Q60: -0.009072348688 | R60: 229.0396373 | S60: 946.1073118 | T60: -0.8979719471 | U60: 5.509352665 | V60: 0.0003275136747 | W60: 0.002887818499 | X60: -2.639422266e-05 | Y60: 0.06243732584 | Z60: 0.03890576729 | AA60: -0.01172312112 | AB60: ='スパー寸法(sht20)'!J60*(10^-12) -> 6.955246485e-07 | AC60: =('スパー寸法(sht20)'!F60+'スパー寸法(sht20)'!H60)/2*(10^-3) -> 0.0538475 | AD60: 73247603.2 | AE60: =('スパー寸法(sht20)'!F60-'スパー寸法(sht20)'!H60)*10^-3 -> 0.001617 | AF60: 118441.3744 | AG60: -1756185.8 | AH60: 14.82746894
C61: ='主翼(sht1)'!C61 -> 16 | D61: ='主翼(sht1)'!BA61 -> 1st | E61: ='主翼(sht1)'!E61 -> 3.2 | F61: ='主翼(sht1)'!G61 -> 0 | G61: ='主翼(sht1)'!H61 -> 0.2 | H61: ='主翼(sht1)'!P61 -> 1.5 | I61: 0.3 | J61: ='主翼(sht1)'!V61 -> 1.379647374 | K61: ='主翼(sht1)'!X61+J61*($N$25-$N$23) -> -0.000655413866 | L61: ='スパー寸法(sht20)'!R61*$D$11 -> 64003.45896 | M61: ='スパー寸法(sht20)'!S61*$D$11 -> 6519.410883 | N61: ='主翼(sht1)'!CP61*$N$5 -> 2.195902784 | O61: 15.42088533 | P61: 13.22498255 | Q61: -0.01098874495 | R61: 215.8396537 | S61: 901.3135645 | T61: -0.8771759834 | U61: 5.80833563 | V61: 0.0003267816224 | W61: 0.002884932063 | X61: -2.707822445e-05 | Y61: 0.07054599298 | Z61: 0.04179358579 | AA61: -0.01323539868 | AB61: ='スパー寸法(sht20)'!J61*(10^-12) -> 6.630998507e-07 | AC61: =('スパー寸法(sht20)'!F61+'スパー寸法(sht20)'!H61)/2*(10^-3) -> 0.0529975 | AD61: 72036459.65 | AE61: =('スパー寸法(sht20)'!F61-'スパー寸法(sht20)'!H61)*10^-3 -> 0.001617 | AF61: 116482.9553 | AG61: -1756185.8 | AH61: 15.07676206
C62: ='主翼(sht1)'!C62 -> 17 | D62: ='主翼(sht1)'!BA62 -> 1st | E62: ='主翼(sht1)'!E62 -> 3.4 | F62: ='主翼(sht1)'!G62 -> 0 | G62: ='主翼(sht1)'!H62 -> 0.2 | H62: ='主翼(sht1)'!P62 -> 1.5 | I62: 0.3 | J62: ='主翼(sht1)'!V62 -> 1.378267646 | K62: ='主翼(sht1)'!X62+J62*($N$25-$N$23) -> -0.0007792794704 | L62: ='スパー寸法(sht20)'!R62*$D$11 -> 60972.57835 | M62: ='スパー寸法(sht20)'!S62*$D$11 -> 6210.237199 | N62: ='主翼(sht1)'!CP62*$N$5 -> 2.177677726 | O62: 15.40546354 | P62: 13.22778582 | Q62: -0.01306549004 | R62: 202.6388218 | S62: 859.1439584 | T62: -0.8549287735 | U62: 6.076695535 | V62: 0.0003263065761 | W62: 0.002885685858 | X62: -2.774327263e-05 | Y62: 0.07923149176 | Z62: 0.04467851785 | AA62: -0.01478686666 | AB62: ='スパー寸法(sht20)'!J62*(10^-12) -> 6.316987902e-07 | AC62: =('スパー寸法(sht20)'!F62+'スパー寸法(sht20)'!H62)/2*(10^-3) -> 0.0521475 | AD62: 70923374.02 | AE62: =('スパー寸法(sht20)'!F62-'スパー寸法(sht20)'!H62)*10^-3 -> 0.001617 | AF62: 114683.0958 | AG62: -1756185.8 | AH62: 15.31337978
C63: ='主翼(sht1)'!C63 -> 18 | D63: ='主翼(sht1)'!BA63 -> 1st | E63: ='主翼(sht1)'!E63 -> 3.6 | F63: ='主翼(sht1)'!G63 -> 0 | G63: ='主翼(sht1)'!H63 -> 0.2 | H63: ='主翼(sht1)'!P63 -> 1.5 | I63: 0.3 | J63: ='主翼(sht1)'!V63 -> 1.376757622 | K63: ='主翼(sht1)'!X63+J63*($N$25-$N$23) -> -0.0009133502841 | L63: ='スパー寸法(sht20)'!R63*$D$11 -> 58038.92546 | M63: ='スパー寸法(sht20)'!S63*$D$11 -> 5910.996088 | N63: ='主翼(sht1)'!CP63*$N$5 -> 2.159452668 | O63: 15.38858538 | P63: 13.22913271 | Q63: -0.01531333687 | R63: 189.4387131 | S63: 819.5992568 | T63: -0.8312073242 | U63: 6.315129608 | V63: 0.0003261407542 | W63: 0.00289072842 | X63: -2.83831686e-05 | Y63: 0.0884935019 | Z63: 0.04756420371 | AA63: -0.01637643909 | AB63: ='スパー寸法(sht20)'!J63*(10^-12) -> 6.013050456e-07 | AC63: =('スパー寸法(sht20)'!F63+'スパー寸法(sht20)'!H63)/2*(10^-3) -> 0.0512975 | AD63: 69920239.63 | AE63: =('スパー寸法(sht20)'!F63-'スパー寸法(sht20)'!H63)*10^-3 -> 0.001617 | AF63: 113061.0275 | AG63: -1756185.8 | AH63: 15.53307837
C64: ='主翼(sht1)'!C64 -> 19 | D64: ='主翼(sht1)'!BA64 -> 1st | E64: ='主翼(sht1)'!E64 -> 3.8 | F64: ='主翼(sht1)'!G64 -> 0 | G64: ='主翼(sht1)'!H64 -> 0.2 | H64: ='主翼(sht1)'!P64 -> 1.5 | I64: 0.3 | J64: ='主翼(sht1)'!V64 -> 1.375106096 | K64: ='主翼(sht1)'!X64+J64*($N$25-$N$23) -> -0.001058228016 | L64: ='スパー寸法(sht20)'!R64*$D$11 -> 55200.91526 | M64: ='スパー寸法(sht20)'!S64*$D$11 -> 5621.525382 | N64: ='主翼(sht1)'!CP64*$N$5 -> 2.14122761 | O64: 15.3701256 | P64: 13.22889799 | Q64: -0.01774237373 | R64: 176.2410069 | S64: 782.6798766 | T64: -0.8059683538 | U64: 6.52440228 | V64: 0.0003263442575 | W64: 0.002900802264 | X64: -2.898997995e-05 | Y64: 0.0983324834 | Z64: 0.05045493213 | AA64: -0.01800267486 | AB64: ='スパー寸法(sht20)'!J64*(10^-12) -> 5.719021949e-07 | AC64: =('スパー寸法(sht20)'!F64+'スパー寸法(sht20)'!H64)/2*(10^-3) -> 0.0504475 | AD64: 69040202.02 | AE64: =('スパー寸法(sht20)'!F64-'スパー寸法(sht20)'!H64)*10^-3 -> 0.001617 | AF64: 111638.0067 | AG64: -1756185.8 | AH64: 15.7310745
C65: ='主翼(sht1)'!C65 -> 20 | D65: ='主翼(sht1)'!BA65 -> 1st | E65: ='主翼(sht1)'!E65 -> 4 | F65: ='主翼(sht1)'!G65 -> 0 | G65: ='主翼(sht1)'!H65 -> 0.2 | H65: ='主翼(sht1)'!P65 -> 1.5 | I65: 0.3 | J65: ='主翼(sht1)'!V65 -> 1.373299241 | K65: ='主翼(sht1)'!X65+J65*($N$25-$N$23) -> -0.001214625239 | L65: ='スパー寸法(sht20)'!R65*$D$11 -> 52456.96268 | M65: ='スパー寸法(sht20)'!S65*$D$11 -> 5341.662917 | N65: ='主翼(sht1)'!CP65*$N$5 -> 2.123002553 | O65: 15.34992964 | P65: 13.22692709 | Q65: -0.02036454773 | R65: 163.0475154 | S65: 748.3858617 | T65: -0.7791483661 | U65: 6.705350069 | V65: 0.0003269862697 | W65: 0.002916757842 | X65: -2.955374206e-05 | Y65: 0.1087498141 | Z65: 0.0533557344 | AA65: -0.01966367836 | AB65: ='スパー寸法(sht20)'!J65*(10^-12) -> 5.434738166e-07 | AC65: =('スパー寸法(sht20)'!F65+'スパー寸法(sht20)'!H65)/2*(10^-3) -> 0.0495975 | AD65: 68297803.21 | AE65: =('スパー寸法(sht20)'!F65-'スパー寸法(sht20)'!H65)*10^-3 -> 0.001617 | AF65: 110437.5478 | AG65: -1756185.8 | AH65: 15.90207167
C66: ='主翼(sht1)'!C66 -> 21 | D66: ='主翼(sht1)'!BA66 -> 1st | E66: ='主翼(sht1)'!E66 -> 4.2 | F66: ='主翼(sht1)'!G66 -> 0 | G66: ='主翼(sht1)'!H66 -> 0.2 | H66: ='主翼(sht1)'!P66 -> 1.5 | I66: 0.3 | J66: ='主翼(sht1)'!V66 -> 1.371321321 | K66: ='主翼(sht1)'!X66+J66*($N$25-$N$23) -> -0.001383453012 | L66: ='スパー寸法(sht20)'!R66*$D$11 -> 49805.48269 | M66: ='スパー寸法(sht20)'!S66*$D$11 -> 5071.246524 | N66: ='主翼(sht1)'!CP66*$N$5 -> 2.104777495 | O66: 15.32782161 | P66: 13.22304412 | Q66: -0.02319513375 | R66: 149.860216 | S66: 716.7168508 | T66: -0.7506611409 | U66: 6.858887309 | V66: 0.0003281464519 | W66: 0.002939569738 | X66: -3.006198591e-05 | Y66: 0.1197479472 | Z66: 0.05627249224 | AA66: -0.02135698305 | AB66: ='スパー寸法(sht20)'!J66*(10^-12) -> 5.16003489e-07 | AC66: =('スパー寸法(sht20)'!F66+'スパー寸法(sht20)'!H66)/2*(10^-3) -> 0.0487475 | AD66: 67709144.27 | AE66: =('スパー寸法(sht20)'!F66-'スパー寸法(sht20)'!H66)*10^-3 -> 0.001617 | AF66: 109485.6863 | AG66: -1756185.8 | AH66: 16.04032326
C67: ='主翼(sht1)'!C67 -> 22 | D67: ='主翼(sht1)'!BA67 -> 1st | E67: ='主翼(sht1)'!E67 -> 4.4 | F67: ='主翼(sht1)'!G67 -> 0 | G67: ='主翼(sht1)'!H67 -> 0.2 | H67: ='主翼(sht1)'!P67 -> 1.5 | I67: 0.3 | J67: ='主翼(sht1)'!V67 -> 1.369154096 | K67: ='主翼(sht1)'!X67+J67*($N$25-$N$23) -> -0.001565755308 | L67: ='スパー寸法(sht20)'!R67*$D$11 -> 47244.89024 | M67: ='スパー寸法(sht20)'!S67*$D$11 -> 4810.114037 | N67: ='主翼(sht1)'!CP67*$N$5 -> 2.086552437 | O67: 15.30359765 | P67: 13.21704521 | Q67: -0.02625163521 | R67: 136.6812756 | S67: 687.6720388 | T67: -0.7203936642 | U67: 6.986012977 | V67: 0.0003299165668 | W67: 0.002970355477 | X67: -3.049904747e-05 | Y67: 0.1313305921 | Z67: 0.05921206198 | AA67: -0.02307940796 | AB67: ='スパー寸法(sht20)'!J67*(10^-12) -> 4.894747905e-07 | AC67: =('スパー寸法(sht20)'!F67+'スパー寸法(sht20)'!H67)/2*(10^-3) -> 0.0478975 | AD67: 67292069.21 | AE67: =('スパー寸法(sht20)'!F67-'スパー寸法(sht20)'!H67)*10^-3 -> 0.001617 | AF67: 108811.2759 | AG67: -1756185.8 | AH67: 16.1397409
C68: ='主翼(sht1)'!C68 -> 23 | D68: ='主翼(sht1)'!BA68 -> 1st | E68: ='主翼(sht1)'!E68 -> 4.6 | F68: ='主翼(sht1)'!G68 -> 0 | G68: ='主翼(sht1)'!H68 -> 0.2 | H68: ='主翼(sht1)'!P68 -> 1.5 | I68: 0.3 | J68: ='主翼(sht1)'!V68 -> 1.36677599 | K68: ='主翼(sht1)'!X68+J68*($N$25-$N$23) -> -0.001762755811 | L68: ='スパー寸法(sht20)'!R68*$D$11 -> 44773.60028 | M68: ='スパー寸法(sht20)'!S68*$D$11 -> 4558.103291 | N68: ='主翼(sht1)'!CP68*$N$5 -> 2.068327379 | O68: 15.27701658 | P68: 13.2086892 | Q68: -0.02955456852 | R68: 123.5130831 | S68: 661.2501329 | T68: -0.6882030314 | U68: 7.087818722 | V68: 0.0003324023736 | W68: 0.00301039744 | X68: -3.084529993e-05 | Y68: 0.1435029211 | Z68: 0.06218241745 | AA68: -0.02482687466 | AB68: ='スパー寸法(sht20)'!J68*(10^-12) -> 4.638712992e-07 | AC68: =('スパー寸法(sht20)'!F68+'スパー寸法(sht20)'!H68)/2*(10^-3) -> 0.0470475 | AD68: 67066373.11 | AE68: =('スパー寸法(sht20)'!F68-'スパー寸法(sht20)'!H68)*10^-3 -> 0.001617 | AF68: 108446.3253 | AG68: -1756185.8 | AH68: 16.1940554
C69: ='主翼(sht1)'!C69 -> 24 | D69: ='主翼(sht1)'!BA69 -> 1st | E69: ='主翼(sht1)'!E69 -> 4.8 | F69: ='主翼(sht1)'!G69 -> 0 | G69: ='主翼(sht1)'!H69 -> 0.2 | H69: ='主翼(sht1)'!P69 -> 1.5 | I69: 0.3 | J69: ='主翼(sht1)'!V69 -> 1.36416316 | K69: ='主翼(sht1)'!X69+J69*($N$25-$N$23) -> -0.001975758374 | L69: ='スパー寸法(sht20)'!R69*$D$11 -> 42390.02777 | M69: ='スパー寸法(sht20)'!S69*$D$11 -> 4315.052118 | N69: ='主翼(sht1)'!CP69*$N$5 -> 2.050102321 | O69: 15.24781191 | P69: 13.19770959 | Q69: -0.0331257942 | R69: 110.3582911 | S69: 637.4493001 | T69: -0.6539124049 | U69: 7.165498214 | V69: 0.000335725847 | W69: 0.003061168422 | X69: -3.107611605e-05 | Y69: 0.156271807 | Z69: 0.06519281489 | AA69: -0.02659418017 | AB69: ='スパー寸法(sht20)'!J69*(10^-12) -> 4.391765935e-07 | AC69: =('スパー寸法(sht20)'!F69+'スパー寸法(sht20)'!H69)/2*(10^-3) -> 0.0461975 | AD69: 67054038.11 | AE69: =('スパー寸法(sht20)'!F69-'スパー寸法(sht20)'!H69)*10^-3 -> 0.001617 | AF69: 108426.3796 | AG69: -1756185.8 | AH69: 16.19703439
C70: ='主翼(sht1)'!C70 -> 25 | D70: ='主翼(sht1)'!BA70 -> 1st | E70: ='主翼(sht1)'!E70 -> 5 | F70: ='主翼(sht1)'!G70 -> 0 | G70: ='主翼(sht1)'!H70 -> 0.2 | H70: ='主翼(sht1)'!P70 -> 1.5 | I70: 0.3 | J70: ='主翼(sht1)'!V70 -> 1.361294985 | K70: ='主翼(sht1)'!X70+J70*($N$25-$N$23) -> -0.002219611406 | L70: ='スパー寸法(sht20)'!R70*$D$11 -> 40092.58765 | M70: ='スパー寸法(sht20)'!S70*$D$11 -> 4080.798352 | N70: ='主翼(sht1)'!CP70*$N$5 -> 2.031877263 | O70: 15.21575314 | P70: 13.18387587 | Q70: -0.03721426245 | R70: 97.21984713 | S70: 616.2671079 | T70: -0.617308445 | U70: 7.220357624 | V70: 0.0003400277744 | W70: 0.003124361515 | X70: -3.116623373e-05 | Y70: 0.1696460958 | Z70: 0.06825398331 | AA70: -0.02837471046 | AB70: ='スパー寸法(sht20)'!J70*(10^-12) -> 4.153742519e-07 | AC70: =('スパー寸法(sht20)'!F70+'スパー寸法(sht20)'!H70)/2*(10^-3) -> 0.0453475 | AD70: 67279501.67 | AE70: =('スパー寸法(sht20)'!F70-'スパー寸法(sht20)'!H70)*10^-3 -> 0.001617 | AF70: 108790.9542 | AG70: -1756185.8 | AH70: 16.14275574
C71: ='主翼(sht1)'!C71 -> 26 | D71: ='主翼(sht1)'!BA71 -> 1st | E71: ='主翼(sht1)'!E71 -> 5.2 | F71: ='主翼(sht1)'!G71 -> 0 | G71: ='主翼(sht1)'!H71 -> 0.2 | H71: ='主翼(sht1)'!P71 -> 1.5 | I71: 0.3 | J71: ='主翼(sht1)'!V71 -> 1.358146191 | K71: ='主翼(sht1)'!X71+J71*($N$25-$N$23) -> -0.002519993186 | L71: ='スパー寸法(sht20)'!R71*$D$11 -> 37879.69488 | M71: ='スパー寸法(sht20)'!S71*$D$11 -> 3855.179827 | N71: ='主翼(sht1)'!CP71*$N$5 -> 2.013652206 | O71: 15.18055777 | P71: 13.16690557 | Q71: -0.04225049823 | R71: 84.10095699 | S71: 597.7004638 | T71: -0.5779124942 | U71: 7.253838696 | V71: 0.0003454707814 | W71: 0.003201925116 | X71: -3.107703247e-05 | Y71: 0.1836369202 | Z71: 0.07137834483 | AA71: -0.03016040412 | AB71: ='スパー寸法(sht20)'!J71*(10^-12) -> 3.924478525e-07 | AC71: =('スパー寸法(sht20)'!F71+'スパー寸法(sht20)'!H71)/2*(10^-3) -> 0.0444975 | AD71: 67769962.86 | AE71: =('スパー寸法(sht20)'!F71-'スパー寸法(sht20)'!H71)*10^-3 -> 0.001617 | AF71: 109584.03 | AG71: -1756185.8 | AH71: 16.02592824
C72: ='主翼(sht1)'!C72 -> 27 | D72: ='主翼(sht1)'!BA72 -> 1st | E72: ='主翼(sht1)'!E72 -> 5.4 | F72: ='主翼(sht1)'!G72 -> 0 | G72: ='主翼(sht1)'!H72 -> 0.2 | H72: ='主翼(sht1)'!P72 -> 1.5 | I72: 0.3 | J72: ='主翼(sht1)'!V72 -> 1.35463655 | K72: ='主翼(sht1)'!X72+J72*($N$25-$N$23) -> -0.002859975398 | L72: ='スパー寸法(sht20)'!R72*$D$11 -> 35749.76442 | M72: ='スパー寸法(sht20)'!S72*$D$11 -> 3638.034376 | N72: ='主翼(sht1)'!CP72*$N$5 -> 1.995427148 | O72: 15.14132908 | P72: 13.14590193 | Q72: -0.04795067945 | R72: 71.00513825 | S72: 581.7455539 | T72: -0.5347953037 | U72: 7.26756586 | V72: 0.0003522429134 | W72: 0.003296104043 | X72: -3.071827178e-05 | Y72: 0.19825806 | Z72: 0.07458026994 | AA72: -0.03194098692 | AB72: ='スパー寸法(sht20)'!J72*(10^-12) -> 3.703809736e-07 | AC72: =('スパー寸法(sht20)'!F72+'スパー寸法(sht20)'!H72)/2*(10^-3) -> 0.0436475 | AD72: 68555732.8 | AE72: =('スパー寸法(sht20)'!F72-'スパー寸法(sht20)'!H72)*10^-3 -> 0.001617 | AF72: 110854.6199 | AG72: -1756185.8 | AH72: 15.84224276
C73: ='主翼(sht1)'!C73 -> 28 | D73: ='主翼(sht1)'!BA73 -> 1st | E73: ='主翼(sht1)'!E73 -> 5.6 | F73: ='主翼(sht1)'!G73 -> 0 | G73: ='主翼(sht1)'!H73 -> 0.2 | H73: ='主翼(sht1)'!P73 -> 1.5 | I73: 0.3 | J73: ='主翼(sht1)'!V73 -> 1.350667 | K73: ='主翼(sht1)'!X73+J73*($N$25-$N$23) -> -0.003244730532 | L73: ='スパー寸法(sht20)'!R73*$D$11 -> 33701.21121 | M73: ='スパー寸法(sht20)'!S73*$D$11 -> 3429.199832 | N73: ='主翼(sht1)'!CP73*$N$5 -> 1.97720209 | O73: 15.09695978 | P73: 13.1197577 | Q73: -0.05440152869 | R73: 57.93686711 | S73: 568.3977094 | T73: -0.4872859307 | U73: 7.263375664 | V73: 0.0003605620821 | W73: 0.003409488084 | X73: -3.00062242e-05 | Y73: 0.2135263569 | Z73: 0.07787637399 | AA73: -0.03370101424 | AB73: ='スパー寸法(sht20)'!J73*(10^-12) -> 3.491571937e-07 | AC73: =('スパー寸法(sht20)'!F73+'スパー寸法(sht20)'!H73)/2*(10^-3) -> 0.0427975 | AD73: 69670628.04 | AE73: =('スパー寸法(sht20)'!F73-'スパー寸法(sht20)'!H73)*10^-3 -> 0.001617 | AF73: 112657.4055 | AG73: -1756185.8 | AH73: 15.58872931
C74: ='主翼(sht1)'!C74 -> 29 | D74: ='主翼(sht1)'!BA74 -> 1st | E74: ='主翼(sht1)'!E74 -> 5.8 | F74: ='主翼(sht1)'!G74 -> 0 | G74: ='主翼(sht1)'!H74 -> 0.2 | H74: ='主翼(sht1)'!P74 -> 1.5 | I74: 0.3 | J74: ='主翼(sht1)'!V74 -> 1.346091032 | K74: ='主翼(sht1)'!X74+J74*($N$25-$N$23) -> -0.003673820198 | L74: ='スパー寸法(sht20)'!R74*$D$11 -> 31732.45021 | M74: ='スパー寸法(sht20)'!S74*$D$11 -> 3228.51403 | N74: ='主翼(sht1)'!CP74*$N$5 -> 1.958977032 | O74: 15.04581231 | P74: 13.08683528 | Q74: -0.06159569582 | R74: 44.90178611 | S74: 557.6511872 | T74: -0.4345979694 | U74: 7.243339534 | V74: 0.0003706811118 | W74: 0.003545068427 | X74: -2.883034194e-05 | Y74: 0.2294621937 | Z74: 0.08128586207 | AA74: -0.03542024425 | AB74: ='スパー寸法(sht20)'!J74*(10^-12) -> 3.28760091e-07 | AC74: =('スパー寸法(sht20)'!F74+'スパー寸法(sht20)'!H74)/2*(10^-3) -> 0.0419475 | AD74: 71152411.18 | AE74: =('スパー寸法(sht20)'!F74-'スパー寸法(sht20)'!H74)*10^-3 -> 0.001617 | AF74: 115053.4489 | AG74: -1756185.8 | AH74: 15.26408654
C75: ='主翼(sht1)'!C75 -> 30 | D75: ='主翼(sht1)'!BA75 -> 1st | E75: ='主翼(sht1)'!E75 -> 6 | F75: ='主翼(sht1)'!G75 -> 0 | G75: ='主翼(sht1)'!H75 -> 0.2 | H75: ='主翼(sht1)'!P75 -> 1.5 | I75: 0.3 | J75: ='主翼(sht1)'!V75 -> 1.340695739 | K75: ='主翼(sht1)'!X75+J75*($N$25-$N$23) -> -0.004161992371 | L75: ='スパー寸法(sht20)'!R75*$D$11 -> 29841.89637 | M75: ='スパー寸法(sht20)'!S75*$D$11 -> 3035.814802 | N75: ='主翼(sht1)'!CP75*$N$5 -> 1.940751974 | O75: 14.98550691 | P75: 13.04475493 | Q75: -0.06978044713 | R75: 31.90724736 | S75: 549.4988732 | T75: -0.3759166271 | U75: 7.20981075 | V75: 0.0003828938321 | W75: 0.003706304117 | X75: -2.70640258e-05 | Y75: 0.2460900473 | Z75: 0.0848309305 | AA75: -0.03707210116 | AB75: ='スパー寸法(sht20)'!J75*(10^-12) -> 3.091732439e-07 | AC75: =('スパー寸法(sht20)'!F75+'スパー寸法(sht20)'!H75)/2*(10^-3) -> 0.0410975 | AD75: 73043286.86 | AE75: =('スパー寸法(sht20)'!F75-'スパー寸法(sht20)'!H75)*10^-3 -> 0.001617 | AF75: 118110.9949 | AG75: -1756185.8 | AH75: 14.86894427
C76: ='主翼(sht1)'!C76 -> 31 | D76: ='主翼(sht1)'!BA76 -> 1st | E76: ='主翼(sht1)'!E76 -> 6.2 | F76: ='主翼(sht1)'!G76 -> 0 | G76: ='主翼(sht1)'!H76 -> 0.2 | H76: ='主翼(sht1)'!P76 -> 1.5 | I76: 0.3 | J76: ='主翼(sht1)'!V76 -> 1.334094286 | K76: ='主翼(sht1)'!X76+J76*($N$25-$N$23) -> -0.004733258784 | L76: ='スパー寸法(sht20)'!R76*$D$11 -> 28027.96465 | M76: ='スパー寸法(sht20)'!S76*$D$11 -> 2850.939982 | N76: ='主翼(sht1)'!CP76*$N$5 -> 1.922526916 | O76: 14.91171976 | P76: 12.98919284 | Q76: -0.07935836611 | R76: 18.96305508 | S76: 543.9318552 | T76: -0.3101345788 | U76: 7.165498107 | V76: 0.0003975423227 | W76: 0.003897199796 | X76: -2.454024035e-05 | Y76: 0.2634391272 | Z76: 0.08853723462 | AA76: -0.03862275562 | AB76: ='スパー寸法(sht20)'!J76*(10^-12) -> 2.903802306e-07 | AC76: =('スパー寸法(sht20)'!F76+'スパー寸法(sht20)'!H76)/2*(10^-3) -> 0.0402475 | AD76: 75390453.75 | AE76: =('スパー寸法(sht20)'!F76-'スパー寸法(sht20)'!H76)*10^-3 -> 0.001617 | AF76: 121906.3637 | AG76: -1756185.8 | AH76: 14.40602235
C77: ='主翼(sht1)'!C77 -> 32 | D77: ='主翼(sht1)'!BA77 -> 1st | E77: ='主翼(sht1)'!E77 -> 6.4 | F77: ='主翼(sht1)'!G77 -> 0 | G77: ='主翼(sht1)'!H77 -> 0.2 | H77: ='主翼(sht1)'!P77 -> 1.5 | I77: 0.298125 | J77: ='主翼(sht1)'!V77 -> 1.333444118 | K77: ='主翼(sht1)'!X77+J77*($N$25-$N$23) -> -0.004750187695 | L77: ='スパー寸法(sht20)'!R77*$D$11 -> 26289.06999 | M77: ='スパー寸法(sht20)'!S77*$D$11 -> 2673.727404 | N77: ='主翼(sht1)'!CP77*$N$5 -> 1.904301859 | O77: 14.81129974 | P77: 12.90699788 | Q77: -0.07914443446 | R77: 6.083404563 | S77: 540.9387242 | T77: -0.2356792163 | U77: 7.113603862 | V77: 0.0004150258027 | W77: 0.004122395656 | X77: -2.058934154e-05 | Y77: 0.2815441165 | Z77: 0.09243443441 | AA77: -0.04002880782 | AB77: ='スパー寸法(sht20)'!J77*(10^-12) -> 2.723646295e-07 | AC77: =('スパー寸法(sht20)'!F77+'スパー寸法(sht20)'!H77)/2*(10^-3) -> 0.0393975 | AD77: 78246699.76 | AE77: =('スパー寸法(sht20)'!F77-'スパー寸法(sht20)'!H77)*10^-3 -> 0.001617 | AF77: 126524.9135 | AG77: -1756185.8 | AH77: 13.88015808
C78: ='主翼(sht1)'!C78 -> 33 | D78: ='主翼(sht1)'!BA78 -> 1st | E78: ='主翼(sht1)'!E78 -> 6.6 | F78: ='主翼(sht1)'!G78 -> 0 | G78: ='主翼(sht1)'!H78 -> 0.2 | H78: ='主翼(sht1)'!P78 -> 1.48125 | I78: 0.294375 | J78: ='主翼(sht1)'!V78 -> 1.338833213 | K78: ='主翼(sht1)'!X78+J78*($N$25-$N$23) -> -0.004213699102 | L78: ='スパー寸法(sht20)'!R78*$D$11 -> 24623.62735 | M78: ='スパー寸法(sht20)'!S78*$D$11 -> 2504.014901 | N78: ='主翼(sht1)'!CP78*$N$5 -> 1.869094698 | O78: 14.68410077 | P78: 12.81500608 | Q78: -0.06845619591 | R78: -6.712409387 | S78: 540.5045988 | T78: -0.1627014391 | U78: 7.05602004 | V78: 0.0004358120029 | W78: 0.00438727995 | X78: -1.572910265e-05 | Y78: 0.3004460291 | Z78: 0.09655683007 | AA78: -0.04120849019 | AB78: ='スパー寸法(sht20)'!J78*(10^-12) -> 2.551100188e-07 | AC78: =('スパー寸法(sht20)'!F78+'スパー寸法(sht20)'!H78)/2*(10^-3) -> 0.0385475 | AD78: 81671041.84 | AE78: =('スパー寸法(sht20)'!F78-'スパー寸法(sht20)'!H78)*10^-3 -> 0.001617 | AF78: 132062.0746 | AG78: -1756185.8 | AH78: 13.29818424
C79: ='主翼(sht1)'!C79 -> 34 | D79: ='主翼(sht1)'!BA79 -> 1st | E79: ='主翼(sht1)'!E79 -> 6.8 | F79: ='主翼(sht1)'!G79 -> 0 | G79: ='主翼(sht1)'!H79 -> 0.2 | H79: ='主翼(sht1)'!P79 -> 1.4625 | I79: 0.290625 | J79: ='主翼(sht1)'!V79 -> 1.3430866 | K79: ='主翼(sht1)'!X79+J79*($N$25-$N$23) -> -0.003762363791 | L79: ='スパー寸法(sht20)'!R79*$D$11 -> 23030.05169 | M79: ='スパー寸法(sht20)'!S79*$D$11 -> 2341.640306 | N79: ='主翼(sht1)'!CP79*$N$5 -> 1.834035187 | O79: 14.54309834 | P79: 12.70906316 | Q79: -0.05958124659 | R79: -19.40476072 | S79: 542.6105501 | T79: -0.1012667166 | U79: 6.991458851 | V79: 0.0004604449824 | W79: 0.004698103225 | X79: -1.119363547e-05 | Y79: 0.3201932072 | Z79: 0.10094411 | AA79: -0.04210970139 | AB79: ='スパー寸法(sht20)'!J79*(10^-12) -> 2.38599977e-07 | AC79: =('スパー寸法(sht20)'!F79+'スパー寸法(sht20)'!H79)/2*(10^-3) -> 0.0376975 | AD79: 85729518.8 | AE79: =('スパー寸法(sht20)'!F79-'スパー寸法(sht20)'!H79)*10^-3 -> 0.001617 | AF79: 138624.6319 | AG79: -1756185.8 | AH79: 12.66864176
C80: ='主翼(sht1)'!C80 -> 35 | D80: ='主翼(sht1)'!BA80 -> 1st | E80: ='主翼(sht1)'!E80 -> 7 | F80: ='主翼(sht1)'!G80 -> 0 | G80: ='主翼(sht1)'!H80 -> 0.2 | H80: ='主翼(sht1)'!P80 -> 1.44375 | I80: 0.286875 | J80: ='主翼(sht1)'!V80 -> 1.346548438 | K80: ='主翼(sht1)'!X80+J80*($N$25-$N$23) -> -0.003372068107 | L80: ='スパー寸法(sht20)'!R80*$D$11 -> 21506.75795 | M80: ='スパー寸法(sht20)'!S80*$D$11 -> 2186.441454 | N80: ='主翼(sht1)'!CP80*$N$5 -> 1.799123324 | O80: 14.39244696 | P80: 12.59332364 | Q80: -0.05203565099 | R80: -31.97857711 | S80: 547.2340039 | T80: -0.04992125178 | U80: 6.917372985 | V80: 0.0004895574455 | W80: 0.005062138891 | X80: -6.946362744e-06 | Y80: 0.3408424741 | Z80: 0.1056422132 | AA80: -0.04275104946 | AB80: ='スパー寸法(sht20)'!J80*(10^-12) -> 2.228180823e-07 | AC80: =('スパー寸法(sht20)'!F80+'スパー寸法(sht20)'!H80)/2*(10^-3) -> 0.0368475 | AD80: 90496268.29 | AE80: =('スパー寸法(sht20)'!F80-'スパー寸法(sht20)'!H80)*10^-3 -> 0.001617 | AF80: 146332.4658 | AG80: -1756185.8 | AH80: 12.00134085
C81: ='主翼(sht1)'!C81 -> 36 | D81: ='主翼(sht1)'!BA81 -> 1st | E81: ='主翼(sht1)'!E81 -> 7.2 | F81: ='主翼(sht1)'!G81 -> 0 | G81: ='主翼(sht1)'!H81 -> 0.2 | H81: ='主翼(sht1)'!P81 -> 1.425 | I81: 0.283125 | J81: ='主翼(sht1)'!V81 -> 1.349397421 | K81: ='主翼(sht1)'!X81+J81*($N$25-$N$23) -> -0.003030600846 | L81: ='スパー寸法(sht20)'!R81*$D$11 -> 20052.1611 | M81: ='スパー寸法(sht20)'!S81*$D$11 -> 2038.256177 | N81: ='主翼(sht1)'!CP81*$N$5 -> 1.764359111 | O81: 14.23436341 | P81: 12.4700043 | Q81: -0.04555560076 | R81: -44.42265973 | S81: 554.3495602 | T81: -0.007683851697 | U81: 6.831764625 | V81: 0.0005238877093 | W81: 0.005487877757 | X81: -2.988991514e-06 | Y81: 0.3624604742 | Z81: 0.1107043521 | AA81: -0.04314904673 | AB81: ='スパー寸法(sht20)'!J81*(10^-12) -> 2.077479131e-07 | AC81: =('スパー寸法(sht20)'!F81+'スパー寸法(sht20)'!H81)/2*(10^-3) -> 0.0359975 | AD81: 96054867.64 | AE81: =('スパー寸法(sht20)'!F81-'スパー寸法(sht20)'!H81)*10^-3 -> 0.001617 | AF81: 155320.721 | AG81: -1756185.8 | AH81: 11.30683523
C82: ='主翼(sht1)'!C82 -> 37 | D82: ='主翼(sht1)'!BA82 -> 1st | E82: ='主翼(sht1)'!E82 -> 7.4 | F82: ='主翼(sht1)'!G82 -> 0 | G82: ='主翼(sht1)'!H82 -> 0.2 | H82: ='主翼(sht1)'!P82 -> 1.40625 | I82: 0.279375 | J82: ='主翼(sht1)'!V82 -> 1.351740479 | K82: ='主翼(sht1)'!X82+J82*($N$25-$N$23) -> -0.002730810344 | L82: ='スパー寸法(sht20)'!R82*$D$11 -> 18664.67607 | M82: ='スパー寸法(sht20)'!S82*$D$11 -> 1896.922309 | N82: ='主翼(sht1)'!CP82*$N$5 -> 1.729742547 | O82: 14.07021761 | P82: 12.34047506 | Q82: -0.03997252378 | R82: -56.72770787 | S82: 563.9295321 | T82: 0.02615978218 | U82: 6.733049858 | V82: 0.0005643015123 | W82: 0.00598526619 | X82: 6.508985912e-07 | Y82: 0.3851252324 | Z82: 0.1161922299 | AA82: -0.04332030333 | AB82: ='スパー寸法(sht20)'!J82*(10^-12) -> 1.933730476e-07 | AC82: =('スパー寸法(sht20)'!F82+'スパー寸法(sht20)'!H82)/2*(10^-3) -> 0.0351475 | AD82: 102499875.1 | AE82: =('スパー寸法(sht20)'!F82-'スパー寸法(sht20)'!H82)*10^-3 -> 0.001617 | AF82: 165742.2981 | AG82: -1756185.8 | AH82: 10.5958818
C83: ='主翼(sht1)'!C83 -> 38 | D83: ='主翼(sht1)'!BA83 -> 2nd | E83: ='主翼(sht1)'!E83 -> 7.6 | F83: ='主翼(sht1)'!G83 -> 0 | G83: ='主翼(sht1)'!H83 -> 0.2 | H83: ='主翼(sht1)'!P83 -> 1.3875 | I83: 0.275625 | J83: ='主翼(sht1)'!V83 -> 1.353645682 | K83: ='主翼(sht1)'!X83+J83*($N$25-$N$23) -> -0.002468048632 | L83: ='スパー寸法(sht20)'!R83*$D$11 -> 33701.71118 | M83: ='スパー寸法(sht20)'!S83*$D$11 -> 4816.567999 | N83: ='主翼(sht1)'!CP83*$N$5 -> 2.305692021 | O83: 13.90092063 | P83: 11.59522861 | Q83: -0.03516618578 | R83: -68.58348405 | S83: 575.9193686 | T83: 0.05225975783 | U83: 6.61996675 | V83: 0.0003149277362 | W83: 0.003378765535 | X83: 1.439891016e-06 | Y83: 0.4089279799 | Z83: 0.1221774961 | AA83: -0.04328300958 | AB83: ='スパー寸法(sht20)'!J83*(10^-12) -> 3.861129274e-07 | AC83: =('スパー寸法(sht20)'!F83+'スパー寸法(sht20)'!H83)/2*(10^-3) -> 0.0350355 | AD83: 52258346.21 | AE83: =('スパー寸法(sht20)'!F83-'スパー寸法(sht20)'!H83)*10^-3 -> 0.003093 | AF83: 161635.0648 | AG83: -852390 | AH83: 5.273546312
C84: ='主翼(sht1)'!C84 -> 39 | D84: ='主翼(sht1)'!BA84 -> 2nd | E84: ='主翼(sht1)'!E84 -> 7.8 | F84: ='主翼(sht1)'!G84 -> 0 | G84: ='主翼(sht1)'!H84 -> 0.2 | H84: ='主翼(sht1)'!P84 -> 1.36875 | I84: 0.271875 | J84: ='主翼(sht1)'!V84 -> 1.355157375 | K84: ='主翼(sht1)'!X84+J84*($N$25-$N$23) -> -0.002239351273 | L84: ='スパー寸法(sht20)'!R84*$D$11 -> 31308.35319 | M84: ='スパー寸法(sht20)'!S84*$D$11 -> 4475.101173 | N84: ='主翼(sht1)'!CP84*$N$5 -> 2.265949377 | O84: 13.72710519 | P84: 11.46115581 | Q84: -0.03104813977 | R84: 237.6583205 | S84: 558.2374889 | T84: 0.07127642295 | U84: 6.491514658 | V84: 0.000458123053 | W84: 0.003719709218 | X84: 2.491668944e-06 | Y84: 0.4336784068 | Z84: 0.1255562616 | AA84: -0.04320050991 | AB84: ='スパー寸法(sht20)'!J84*(10^-12) -> 3.586927632e-07 | AC84: =('スパー寸法(sht20)'!F84+'スパー寸法(sht20)'!H84)/2*(10^-3) -> 0.0341855 | AD84: 53203269.31 | AE84: =('スパー寸法(sht20)'!F84-'スパー寸法(sht20)'!H84)*10^-3 -> 0.003093 | AF84: 164557.712 | AG84: -852390 | AH84: 5.179884855
C85: ='主翼(sht1)'!C85 -> 40 | D85: ='主翼(sht1)'!BA85 -> 2nd | E85: ='主翼(sht1)'!E85 -> 8 | F85: ='主翼(sht1)'!G85 -> 0 | G85: ='主翼(sht1)'!H85 -> 0.2 | H85: ='主翼(sht1)'!P85 -> 1.35 | I85: 0.268125 | J85: ='主翼(sht1)'!V85 -> 1.356302857 | K85: ='主翼(sht1)'!X85+J85*($N$25-$N$23) -> -0.002042928934 | L85: ='スパー寸法(sht20)'!R85*$D$11 -> 9737.509079 | M85: ='スパー寸法(sht20)'!S85*$D$11 -> 1826.301533 | N85: ='主翼(sht1)'!CP85*$N$5 -> 1.520285787 | O85: 13.54920896 | P85: 12.02892317 | Q85: -0.02755143932 | R85: 226.0433707 | S85: 510.860017 | T85: 0.08363314513 | U85: 6.346952122 | V85: 0.001359807313 | W85: 0.01096307224 | X85: 7.65015242e-06 | Y85: 0.4592477822 | Z85: 0.1292759708 | AA85: -0.04305774779 | AB85: ='スパー寸法(sht20)'!J85*(10^-12) -> 1.247637335e-07 | AC85: =('スパー寸法(sht20)'!F85+'スパー寸法(sht20)'!H85)/2*(10^-3) -> 0.0343675 | AD85: 140721835.9 | AE85: =('スパー寸法(sht20)'!F85-'スパー寸法(sht20)'!H85)*10^-3 -> 0.001029 | AF85: 144802.7692 | AG85: -852390 | AH85: 5.886558695
C86: ='主翼(sht1)'!C86 -> 41 | D86: ='主翼(sht1)'!BA86 -> 2nd | E86: ='主翼(sht1)'!E86 -> 8.2 | F86: ='主翼(sht1)'!G86 -> 0 | G86: ='主翼(sht1)'!H86 -> 0.2 | H86: ='主翼(sht1)'!P86 -> 1.33125 | I86: 0.264375 | J86: ='主翼(sht1)'!V86 -> 1.357094884 | K86: ='主翼(sht1)'!X86+J86*($N$25-$N$23) -> -0.001878019571 | L86: ='スパー寸法(sht20)'!R86*$D$11 -> 9032.907455 | M86: ='スパー寸法(sht20)'!S86*$D$11 -> 1694.383975 | N86: ='主翼(sht1)'!CP86*$N$5 -> 1.48995097 | O86: 13.36751107 | P86: 11.8775601 | Q86: -0.02462635148 | R86: 214.2413893 | S86: 465.8132686 | T86: 0.08920547604 | U86: 6.185829256 | V86: 0.001348703644 | W86: 0.01079462729 | X86: 9.076136396e-06 | Y86: 0.4864627837 | Z86: 0.1402390431 | AA86: -0.04261942635 | AB86: ='スパー寸法(sht20)'!J86*(10^-12) -> 1.157358878e-07 | AC86: =('スパー寸法(sht20)'!F86+'スパー寸法(sht20)'!H86)/2*(10^-3) -> 0.0335175 | AD86: 134901079.8 | AE86: =('スパー寸法(sht20)'!F86-'スパー寸法(sht20)'!H86)*10^-3 -> 0.001029 | AF86: 138813.2111 | AG86: -852390 | AH86: 6.140553867
C87: ='主翼(sht1)'!C87 -> 42 | D87: ='主翼(sht1)'!BA87 -> 2nd | E87: ='主翼(sht1)'!E87 -> 8.4 | F87: ='主翼(sht1)'!G87 -> 0 | G87: ='主翼(sht1)'!H87 -> 0.2 | H87: ='主翼(sht1)'!P87 -> 1.3125 | I87: 0.260625 | J87: ='主翼(sht1)'!V87 -> 1.35753572 | K87: ='主翼(sht1)'!X87+J87*($N$25-$N$23) -> -0.001744557917 | L87: ='スパー寸法(sht20)'!R87*$D$11 -> 8363.142768 | M87: ='スパー寸法(sht20)'!S87*$D$11 -> 1568.97689 | N87: ='主翼(sht1)'!CP87*$N$5 -> 1.459763802 | O87: 13.18218166 | P87: 11.72241786 | Q87: -0.02223416022 | R87: 202.6234355 | S87: 423.0929306 | T87: 0.08783702786 | U87: 6.007924108 | V87: 0.001336013674 | W87: 0.01060960806 | X87: 9.779614762e-06 | Y87: 0.5158592959 | Z87: 0.1510336704 | AA87: -0.04209940204 | AB87: ='スパー寸法(sht20)'!J87*(10^-12) -> 1.071543972e-07 | AC87: =('スパー寸法(sht20)'!F87+'スパー寸法(sht20)'!H87)/2*(10^-3) -> 0.0326675 | AD87: 128985731.6 | AE87: =('スパー寸法(sht20)'!F87-'スパー寸法(sht20)'!H87)*10^-3 -> 0.001029 | AF87: 132726.3178 | AG87: -852390 | AH87: 6.422162645
C88: ='主翼(sht1)'!C88 -> 43 | D88: ='主翼(sht1)'!BA88 -> 2nd | E88: ='主翼(sht1)'!E88 -> 8.6 | F88: ='主翼(sht1)'!G88 -> 0 | G88: ='主翼(sht1)'!H88 -> 0.2 | H88: ='主翼(sht1)'!P88 -> 1.29375 | I88: 0.256875 | J88: ='主翼(sht1)'!V88 -> 1.357616067 | K88: ='主翼(sht1)'!X88+J88*($N$25-$N$23) -> -0.001643275023 | L88: ='スパー寸法(sht20)'!R88*$D$11 -> 7727.331797 | M88: ='スパー寸法(sht20)'!S88*$D$11 -> 1449.915525 | N88: ='主翼(sht1)'!CP88*$N$5 -> 1.429724284 | O88: 12.99327896 | P88: 11.56355468 | Q88: -0.02034709489 | R88: 191.1938302 | S88: 382.6706809 | T88: 0.07974658263 | U88: 5.813167379 | V88: 0.001321581789 | W88: 0.01040667499 | X88: 9.596839815e-06 | Y88: 0.5474020437 | Z88: 0.1616432784 | AA88: -0.04153907138 | AB88: ='スパー寸法(sht20)'!J88*(10^-12) -> 9.900794515e-08 | AC88: =('スパー寸法(sht20)'!F88+'スパー寸法(sht20)'!H88)/2*(10^-3) -> 0.0318175 | AD88: 122976235.6 | AE88: =('スパー寸法(sht20)'!F88-'スパー寸法(sht20)'!H88)*10^-3 -> 0.001029 | AF88: 126542.5465 | AG88: -852390 | AH88: 6.735995315
C89: ='主翼(sht1)'!C89 -> 44 | D89: ='主翼(sht1)'!BA89 -> 2nd | E89: ='主翼(sht1)'!E89 -> 8.8 | F89: ='主翼(sht1)'!G89 -> 0 | G89: ='主翼(sht1)'!H89 -> 0.2 | H89: ='主翼(sht1)'!P89 -> 1.275 | I89: 0.253125 | J89: ='主翼(sht1)'!V89 -> 1.35731709 | K89: ='主翼(sht1)'!X89+J89*($N$25-$N$23) -> -0.001575521827 | L89: ='スパー寸法(sht20)'!R89*$D$11 -> 7124.591318 | M89: ='スパー寸法(sht20)'!S89*$D$11 -> 1337.035126 | N89: ='主翼(sht1)'!CP89*$N$5 -> 1.399832414 | O89: 12.80077642 | P89: 11.40094401 | Q89: -0.01894478164 | R89: 179.9565023 | S89: 344.5170086 | T89: 0.06516517052 | U89: 5.601674065 | V89: 0.001305234304 | W89: 0.01018437876 | X89: 8.330787815e-06 | Y89: 0.5810522811 | Z89: 0.1720499534 | AA89: -0.04098921297 | AB89: ='スパー寸法(sht20)'!J89*(10^-12) -> 9.128521525e-08 | AC89: =('スパー寸法(sht20)'!F89+'スパー寸法(sht20)'!H89)/2*(10^-3) -> 0.0309675 | AD89: 116873586.1 | AE89: =('スパー寸法(sht20)'!F89-'スパー寸法(sht20)'!H89)*10^-3 -> 0.001029 | AF89: 120262.9201 | AG89: -852390 | AH89: 7.087720797
C90: ='主翼(sht1)'!C90 -> 45 | D90: ='主翼(sht1)'!BA90 -> 2nd | E90: ='主翼(sht1)'!E90 -> 9 | F90: ='主翼(sht1)'!G90 -> 0 | G90: ='主翼(sht1)'!H90 -> 0.2 | H90: ='主翼(sht1)'!P90 -> 1.25625 | I90: 0.249375 | J90: ='主翼(sht1)'!V90 -> 1.356609106 | K90: ='主翼(sht1)'!X90+J90*($N$25-$N$23) -> -0.00154371202 | L90: ='スパー寸法(sht20)'!R90*$D$11 -> 6554.038107 | M90: ='スパー寸法(sht20)'!S90*$D$11 -> 1230.170941 | N90: ='主翼(sht1)'!CP90*$N$5 -> 1.370088194 | O90: 12.60455725 | P90: 11.23446906 | Q90: -0.01801835868 | R90: 168.9150655 | S90: 308.6012509 | T90: 0.04435087132 | U90: 5.3737374 | V90: 0.001286777375 | W90: 0.009941157309 | X90: 5.745818048e-06 | Y90: 0.6167675061 | Z90: 0.1822343322 | AA90: -0.04051189398 | AB90: ='スパー寸法(sht20)'!J90*(10^-12) -> 8.3974891e-08 | AC90: =('スパー寸法(sht20)'!F90+'スパー寸法(sht20)'!H90)/2*(10^-3) -> 0.0301175 | AD90: 110679490.8 | AE90: =('スパー寸法(sht20)'!F90-'スパー寸法(sht20)'!H90)*10^-3 -> 0.001029 | AF90: 113889.196 | AG90: -852390 | AH90: 7.484379818
C91: ='主翼(sht1)'!C91 -> 46 | D91: ='主翼(sht1)'!BA91 -> 2nd | E91: ='主翼(sht1)'!E91 -> 9.2 | F91: ='主翼(sht1)'!G91 -> 0 | G91: ='主翼(sht1)'!H91 -> 0.2 | H91: ='主翼(sht1)'!P91 -> 1.2375 | I91: 0.245625 | J91: ='主翼(sht1)'!V91 -> 1.355448961 | K91: ='主翼(sht1)'!X91+J91*($N$25-$N$23) -> -0.001549547911 | L91: ='スパー寸法(sht20)'!R91*$D$11 -> 6014.788943 | M91: ='スパー寸法(sht20)'!S91*$D$11 -> 1129.158215 | N91: ='主翼(sht1)'!CP91*$N$5 -> 1.340491623 | O91: 12.40439797 | P91: 11.06390635 | Q91: -0.01754861065 | R91: 158.0728999 | S91: 274.8916158 | T91: 0.0176077048 | U91: 5.129826161 | V91: 0.001265994697 | W91: 0.009675335452 | X91: 1.564599072e-06 | Y91: 0.6545011499 | Z91: 0.1921754895 | AA91: -0.04018268286 | AB91: ='スパー寸法(sht20)'!J91*(10^-12) -> 7.706565596e-08 | AC91: =('スパー寸法(sht20)'!F91+'スパー寸法(sht20)'!H91)/2*(10^-3) -> 0.0292675 | AD91: 104396572.8 | AE91: =('スパー寸法(sht20)'!F91-'スパー寸法(sht20)'!H91)*10^-3 -> 0.001029 | AF91: 107424.0735 | AG91: -852390 | AH91: 7.934813609
C92: ='主翼(sht1)'!C92 -> 47 | D92: ='主翼(sht1)'!BA92 -> 2nd | E92: ='主翼(sht1)'!E92 -> 9.4 | F92: ='主翼(sht1)'!G92 -> 0 | G92: ='主翼(sht1)'!H92 -> 0.2 | H92: ='主翼(sht1)'!P92 -> 1.21875 | I92: 0.241875 | J92: ='主翼(sht1)'!V92 -> 1.353779435 | K92: ='主翼(sht1)'!X92+J92*($N$25-$N$23) -> -0.001594677567 | L92: ='スパー寸法(sht20)'!R92*$D$11 -> 5505.960602 | M92: ='スパー寸法(sht20)'!S92*$D$11 -> 1033.832195 | N92: ='主翼(sht1)'!CP92*$N$5 -> 1.3110427 | O92: 12.19997243 | P92: 10.88892973 | Q92: -0.0175145285 | R92: 147.4332512 | S92: 243.3551882 | T92: -0.0147168361 | U92: 4.870584288 | V92: 0.001242645026 | W92: 0.009385128419 | X92: -4.541181917e-06 | Y92: 0.6942022425 | Z92: 0.2018508249 | AA92: -0.04009303794 | AB92: ='スパー寸法(sht20)'!J92*(10^-12) -> 7.054619364e-08 | AC92: =('スパー寸法(sht20)'!F92+'スパー寸法(sht20)'!H92)/2*(10^-3) -> 0.0284175 | AD92: 98028620.75 | AE92: =('スパー寸法(sht20)'!F92-'スパー寸法(sht20)'!H92)*10^-3 -> 0.001029 | AF92: 100871.4508 | AG92: -852390 | AH92: 8.450260144
C93: ='主翼(sht1)'!C93 -> 48 | D93: ='主翼(sht1)'!BA93 -> 2nd | E93: ='主翼(sht1)'!E93 -> 9.6 | F93: ='主翼(sht1)'!G93 -> 0 | G93: ='主翼(sht1)'!H93 -> 0.2 | H93: ='主翼(sht1)'!P93 -> 1.2 | I93: 0.238125 | J93: ='主翼(sht1)'!V93 -> 1.351528645 | K93: ='主翼(sht1)'!X93+J93*($N$25-$N$23) -> -0.001681009233 | L93: ='スパー寸法(sht20)'!R93*$D$11 -> 5026.669861 | M93: ='スパー寸法(sht20)'!S93*$D$11 -> 944.0281276 | N93: ='主翼(sht1)'!CP93*$N$5 -> 1.281741427 | O93: 11.9908564 | P93: 10.70911497 | Q93: -0.0178968374 | R93: 136.9993259 | S93: 213.957917 | T93: -0.05222590937 | U93: 4.596831977 | V93: 0.001216459495 | W93: 0.009068651167 | X93: -1.296027656e-05 | Y93: 0.7358150525 | Z93: 0.2112359533 | AA93: -0.0403532285 | AB93: ='スパー寸法(sht20)'!J93*(10^-12) -> 6.440518758e-08 | AC93: =('スパー寸法(sht20)'!F93+'スパー寸法(sht20)'!H93)/2*(10^-3) -> 0.0275675 | AD93: 91580897.44 | AE93: =('スパー寸法(sht20)'!F93-'スパー寸法(sht20)'!H93)*10^-3 -> 0.001029 | AF93: 94236.74346 | AG93: -852390 | AH93: 9.045197963
C94: ='主翼(sht1)'!C94 -> 49 | D94: ='主翼(sht1)'!BA94 -> 2nd | E94: ='主翼(sht1)'!E94 -> 9.8 | F94: ='主翼(sht1)'!G94 -> 0 | G94: ='主翼(sht1)'!H94 -> 0.2 | H94: ='主翼(sht1)'!P94 -> 1.18125 | I94: 0.234375 | J94: ='主翼(sht1)'!V94 -> 1.348613262 | K94: ='主翼(sht1)'!X94+J94*($N$25-$N$23) -> -0.00181420505 | L94: ='スパー寸法(sht20)'!R94*$D$11 -> 4576.033497 | M94: ='スパー寸法(sht20)'!S94*$D$11 -> 859.5812588 | N94: ='主翼(sht1)'!CP94*$N$5 -> 1.252587803 | O94: 11.77656587 | P94: 10.52397807 | Q94: -0.01871369007 | R94: 126.774383 | S94: 186.6645856 | T94: -0.09446398919 | U94: 4.309568834 | V94: 0.001187138775 | W94: 0.008723936287 | X94: -2.415614188e-05 | Y94: 0.7792787027 | Z94: 0.2203046045 | AA94: -0.04109579764 | AB94: ='スパー寸法(sht20)'!J94*(10^-12) -> 5.863132131e-08 | AC94: =('スパー寸法(sht20)'!F94+'スパー寸法(sht20)'!H94)/2*(10^-3) -> 0.0267175 | AD94: 85060526.61 | AE94: =('スパー寸法(sht20)'!F94-'スパー寸法(sht20)'!H94)*10^-3 -> 0.001029 | AF94: 87527.28188 | AG94: -852390 | AH94: 9.738563585
C95: ='主翼(sht1)'!C95 -> 50 | D95: ='主翼(sht1)'!BA95 -> 2nd | E95: ='主翼(sht1)'!E95 -> 10 | F95: ='主翼(sht1)'!G95 -> 0 | G95: ='主翼(sht1)'!H95 -> 0.2 | H95: ='主翼(sht1)'!P95 -> 1.1625 | I95: 0.230625 | J95: ='主翼(sht1)'!V95 -> 1.344935775 | K95: ='主翼(sht1)'!X95+J95*($N$25-$N$23) -> -0.001996311843 | L95: ='スパー寸法(sht20)'!R95*$D$11 -> 4153.168288 | M95: ='スパー寸法(sht20)'!S95*$D$11 -> 780.3268352 | N95: ='主翼(sht1)'!CP95*$N$5 -> 1.223581828 | O95: 11.55654151 | P95: 10.33295968 | Q95: -0.0199410344 | R95: 116.7617903 | S95: 161.4387692 | T95: -0.1408725154 | U95: 4.009981117 | V95: 0.001154350058 | W95: 0.008348964462 | X95: -3.866150076e-05 | Y95: 0.8245267624 | Z95: 0.2290285408 | AA95: -0.04247984262 | AB95: ='スパー寸法(sht20)'!J95*(10^-12) -> 5.321327838e-08 | AC95: =('スパー寸法(sht20)'!F95+'スパー寸法(sht20)'!H95)/2*(10^-3) -> 0.0258675 | AD95: 78476979.6 | AE95: =('スパー寸法(sht20)'!F95-'スパー寸法(sht20)'!H95)*10^-3 -> 0.001029 | AF95: 80752.81201 | AG95: -852390 | AH95: 10.55554573
C96: ='主翼(sht1)'!C96 -> 51 | D96: ='主翼(sht1)'!BA96 -> 2nd | E96: ='主翼(sht1)'!E96 -> 10.2 | F96: ='主翼(sht1)'!G96 -> 0 | G96: ='主翼(sht1)'!H96 -> 0.2 | H96: ='主翼(sht1)'!P96 -> 1.14375 | I96: 0.226875 | J96: ='主翼(sht1)'!V96 -> 1.340436816 | K96: ='主翼(sht1)'!X96+J96*($N$25-$N$23) -> -0.00230861485 | L96: ='スパー寸法(sht20)'!R96*$D$11 -> 3757.19101 | M96: ='スパー寸法(sht20)'!S96*$D$11 -> 706.1001033 | N96: ='主翼(sht1)'!CP96*$N$5 -> 1.194723503 | O96: 11.33060095 | P96: 10.13587744 | Q96: -0.02231974295 | R96: 106.9651002 | S96: 138.242781 | T96: -0.1908233336 | U96: 3.699449446 | V96: 0.001117724255 | W96: 0.007941714307 | X96: -5.721092636e-05 | Y96: 0.8714868206 | Z96: 0.2373775053 | AA96: -0.04469498345 | AB96: ='スパー寸法(sht20)'!J96*(10^-12) -> 4.81397423e-08 | AC96: =('スパー寸法(sht20)'!F96+'スパー寸法(sht20)'!H96)/2*(10^-3) -> 0.0250175 | AD96: 71842693.98 | AE96: =('スパー寸法(sht20)'!F96-'スパー寸法(sht20)'!H96)*10^-3 -> 0.001029 | AF96: 73926.1321 | AG96: -852390 | AH96: 11.53029349
C97: ='主翼(sht1)'!C97 -> 52 | D97: ='主翼(sht1)'!BA97 -> 2nd | E97: ='主翼(sht1)'!E97 -> 10.4 | F97: ='主翼(sht1)'!G97 -> 0 | G97: ='主翼(sht1)'!H97 -> 0.2 | H97: ='主翼(sht1)'!P97 -> 1.125 | I97: 0.223125 | J97: ='主翼(sht1)'!V97 -> 1.334956288 | K97: ='主翼(sht1)'!X97+J97*($N$25-$N$23) -> -0.002771608531 | L97: ='スパー寸法(sht20)'!R97*$D$11 -> 3387.21844 | M97: ='スパー寸法(sht20)'!S97*$D$11 -> 636.7363095 | N97: ='主翼(sht1)'!CP97*$N$5 -> 1.166012826 | O97: 11.09775757 | P97: 9.93174474 | Q97: -0.0259210506 | R97: 97.38766707 | S97: 117.0376533 | T97: -0.2428613036 | U97: 3.379604569 | V97: 0.001076851644 | W97: 0.007500237486 | X97: -8.035408853e-05 | Y97: 0.9200800459 | Z97: 0.2453192196 | AA97: -0.04797292807 | AB97: ='スパー寸法(sht20)'!J97*(10^-12) -> 4.339939663e-08 | AC97: =('スパー寸法(sht20)'!F97+'スパー寸法(sht20)'!H97)/2*(10^-3) -> 0.0241675 | AD97: 65173889.62 | AE97: =('スパー寸法(sht20)'!F97-'スパー寸法(sht20)'!H97)*10^-3 -> 0.001029 | AF97: 67063.93242 | AG97: -852390 | AH97: 12.71011063
C98: ='主翼(sht1)'!C98 -> 53 | D98: ='主翼(sht1)'!BA98 -> 2nd | E98: ='主翼(sht1)'!E98 -> 10.6 | F98: ='主翼(sht1)'!G98 -> 0 | G98: ='主翼(sht1)'!H98 -> 0.2 | H98: ='主翼(sht1)'!P98 -> 1.10625 | I98: 0.219375 | J98: ='主翼(sht1)'!V98 -> 1.328146696 | K98: ='主翼(sht1)'!X98+J98*($N$25-$N$23) -> -0.003330289721 | L98: ='スパー寸法(sht20)'!R98*$D$11 -> 3042.367356 | M98: ='スパー寸法(sht20)'!S98*$D$11 -> 572.0707004 | N98: ='主翼(sht1)'!CP98*$N$5 -> 1.137449798 | O98: 10.85558256 | P98: 9.718132757 | Q98: -0.03011219325 | R98: 88.03345395 | S98: 97.78307743 | T98: -0.2953317433 | U98: 3.052403508 | V98: 0.001031282226 | W98: 0.007022779543 | X98: -0.0001085138042 | Y98: 0.9702207415 | Z98: 0.2528194571 | AA98: -0.05257687821 | AB98: ='スパー寸法(sht20)'!J98*(10^-12) -> 3.898092488e-08 | AC98: =('スパー寸法(sht20)'!F98+'スパー寸法(sht20)'!H98)/2*(10^-3) -> 0.0233175 | AD98: 58491606.22 | AE98: =('スパー寸法(sht20)'!F98-'スパー寸法(sht20)'!H98)*10^-3 -> 0.001029 | AF98: 60187.8628 | AG98: -852390 | AH98: 14.16215762
C99: ='主翼(sht1)'!C99 -> 54 | D99: ='主翼(sht1)'!BA99 -> 2nd | E99: ='主翼(sht1)'!E99 -> 10.8 | F99: ='主翼(sht1)'!G99 -> 0 | G99: ='主翼(sht1)'!H99 -> 0.2 | H99: ='主翼(sht1)'!P99 -> 1.0875 | I99: 0.215625 | J99: ='主翼(sht1)'!V99 -> 1.31961441 | K99: ='主翼(sht1)'!X99+J99*($N$25-$N$23) -> -0.003960899115 | L99: ='スパー寸法(sht20)'!R99*$D$11 -> 2721.754534 | M99: ='スパー寸法(sht20)'!S99*$D$11 -> 511.9385223 | N99: ='主翼(sht1)'!CP99*$N$5 -> 1.10903442 | O99: 10.60147067 | P99: 9.492436252 | Q99: -0.03460525974 | R99: 78.90844545 | S99: 80.43712087 | T99: -0.3470527197 | U99: 2.720132318 | V99: 0.0009805312542 | W99: 0.006507954719 | X99: -0.0001423434001 | Y99: 1.021815915 | Z99: 0.2598422366 | AA99: -0.05879426121 | AB99: ='スパー寸法(sht20)'!J99*(10^-12) -> 3.487301059e-08 | AC99: =('スパー寸法(sht20)'!F99+'スパー寸法(sht20)'!H99)/2*(10^-3) -> 0.0224675 | AD99: 51822913.55 | AE99: =('スパー寸法(sht20)'!F99-'スパー寸法(sht20)'!H99)*10^-3 -> 0.001029 | AF99: 53325.77804 | AG99: -852390 | AH99: 15.9845769
C100: ='主翼(sht1)'!C100 -> 55 | D100: ='主翼(sht1)'!BA100 -> 2nd | E100: ='主翼(sht1)'!E100 -> 11 | F100: ='主翼(sht1)'!G100 -> 0 | G100: ='主翼(sht1)'!H100 -> 0.2 | H100: ='主翼(sht1)'!P100 -> 1.06875 | I100: 0.211875 | J100: ='主翼(sht1)'!V100 -> 1.309014916 | K100: ='主翼(sht1)'!X100+J100*($N$25-$N$23) -> -0.004764977694 | L100: ='スパー寸法(sht20)'!R100*$D$11 -> 2424.496752 | M100: ='スパー寸法(sht20)'!S100*$D$11 -> 456.1750217 | N100: ='主翼(sht1)'!CP100*$N$5 -> 1.08076669 | O100: 10.33342437 | P100: 9.252657682 | Q100: -0.04020098271 | R100: 70.02080837 | S100: 64.95578458 | T100: -0.3969803138 | U100: 2.385389733 | V100: 0.0009240833241 | W100: 0.005954982765 | X100: -0.0001828599925 | Y100: 1.074764894 | Z100: 0.2663501913 | AA100: -0.06694993728 | AB100: ='スパー寸法(sht20)'!J100*(10^-12) -> 3.106433731e-08 | AC100: =('スパー寸法(sht20)'!F100+'スパー寸法(sht20)'!H100)/2*(10^-3) -> 0.0216175 | AD100: 45202370.14 | AE100: =('スパー寸法(sht20)'!F100-'スパー寸法(sht20)'!H100)*10^-3 -> 0.001029 | AF100: 46513.23887 | AG100: -852390 | AH100: 18.32575027
C101: ='主翼(sht1)'!C101 -> 56 | D101: ='主翼(sht1)'!BA101 -> 2nd | E101: ='主翼(sht1)'!E101 -> 11.2 | F101: ='主翼(sht1)'!G101 -> 0 | G101: ='主翼(sht1)'!H101 -> 0.2 | H101: ='主翼(sht1)'!P101 -> 1.05 | I101: 0.208125 | J101: ='主翼(sht1)'!V101 -> 1.295918822 | K101: ='主翼(sht1)'!X101+J101*($N$25-$N$23) -> -0.005916899443 | L101: ='スパー寸法(sht20)'!R101*$D$11 -> 2149.710786 | M101: ='スパー寸法(sht20)'!S101*$D$11 -> 404.615445 | N101: ='主翼(sht1)'!CP101*$N$5 -> 1.05264661 | O101: 10.04898049 | P101: 8.996333878 | Q101: -0.04817566218 | R101: 61.38030567 | S101: 51.29260863 | T101: -0.4431402156 | U101: 2.051169913 | V101: 0.0008613964283 | W101: 0.005364028307 | X101: -0.0002309491901 | Y101: 1.128959015 | Z101: 0.2723051741 | AA101: -0.07742704309 | AB101: ='スパー寸法(sht20)'!J101*(10^-12) -> 2.754358855e-08 | AC101: =('スパー寸法(sht20)'!F101+'スパー寸法(sht20)'!H101)/2*(10^-3) -> 0.0207675 | AD101: 38673945.76 | AE101: =('スパー寸法(sht20)'!F101-'スパー寸法(sht20)'!H101)*10^-3 -> 0.001029 | AF101: 39795.49019 | AG101: -852390 | AH101: 21.41926123
C102: ='主翼(sht1)'!C102 -> 57 | D102: ='主翼(sht1)'!BA102 -> 2nd | E102: ='主翼(sht1)'!E102 -> 11.4 | F102: ='主翼(sht1)'!G102 -> 0 | G102: ='主翼(sht1)'!H102 -> 0.2 | H102: ='主翼(sht1)'!P102 -> 1.03125 | I102: 0.204375 | J102: ='主翼(sht1)'!V102 -> 1.279200912 | K102: ='主翼(sht1)'!X102+J102*($N$25-$N$23) -> -0.007176975906 | L102: ='スパー寸法(sht20)'!R102*$D$11 -> 1896.513414 | M102: ='スパー寸法(sht20)'!S102*$D$11 -> 357.0950388 | N102: ='主翼(sht1)'!CP102*$N$5 -> 1.024674179 | O102: 9.740617388 | P102: 8.715943209 | Q102: -0.05635768875 | R102: 52.99877483 | S102: 39.39829386 | T102: -0.4821233312 | U102: 1.721070899 | V102: 0.0007919160934 | W102: 0.004736699417 | X102: -0.0002858074855 | Y102: 1.184281447 | Z102: 0.2776692024 | AA102: -0.09065945696 | AB102: ='スパー寸法(sht20)'!J102*(10^-12) -> 2.429944786e-08 | AC102: =('スパー寸法(sht20)'!F102+'スパー寸法(sht20)'!H102)/2*(10^-3) -> 0.0199175 | AD102: 32293553.44 | AE102: =('スパー寸法(sht20)'!F102-'スパー寸法(sht20)'!H102)*10^-3 -> 0.001029 | AF102: 33230.06649 | AG102: -852390 | AH102: 25.65116746
C103: ='主翼(sht1)'!C103 -> 58 | D103: ='主翼(sht1)'!BA103 -> 2nd | E103: ='主翼(sht1)'!E103 -> 11.6 | F103: ='主翼(sht1)'!G103 -> 0 | G103: ='主翼(sht1)'!H103 -> 0.2 | H103: ='主翼(sht1)'!P103 -> 1.0125 | I103: 0.200625 | J103: ='主翼(sht1)'!V103 -> 1.25805521 | K103: ='主翼(sht1)'!X103+J103*($N$25-$N$23) -> -0.009036836922 | L103: ='スパー寸法(sht20)'!R103*$D$11 -> 1664.021413 | M103: ='スパー寸法(sht20)'!S103*$D$11 -> 313.4490494 | N103: ='主翼(sht1)'!CP103*$N$5 -> 0.9968493969 | O103: 9.4038286 | P103: 8.406979203 | Q103: -0.06839376017 | R103: 44.89504896 | S103: 29.2197721 | T103: -0.5123885723 | U103: 1.399332641 | V103: 0.0007151361763 | W103: 0.004076804686 | X103: -0.0003487555336 | Y103: 1.240607203 | Z103: 0.2824059018 | AA103: -0.1070350196 | AB103: ='スパー寸法(sht20)'!J103*(10^-12) -> 2.132059877e-08 | AC103: =('スパー寸法(sht20)'!F103+'スパー寸法(sht20)'!H103)/2*(10^-3) -> 0.0190675 | AD103: 26131911.7 | AE103: =('スパー寸法(sht20)'!F103-'スパー寸法(sht20)'!H103)*10^-3 -> 0.001029 | AF103: 26889.73714 | AG103: -852390 | AH103: 31.69945453
C104: ='主翼(sht1)'!C104 -> 59 | D104: ='主翼(sht1)'!BA104 -> 2nd | E104: ='主翼(sht1)'!E104 -> 11.8 | F104: ='主翼(sht1)'!G104 -> 0 | G104: ='主翼(sht1)'!H104 -> 0.2 | H104: ='主翼(sht1)'!P104 -> 0.99375 | I104: 0.196875 | J104: ='主翼(sht1)'!V104 -> 1.230382204 | K104: ='主翼(sht1)'!X104+J104*($N$25-$N$23) -> -0.01133527786 | L104: ='スパー寸法(sht20)'!R104*$D$11 -> 1451.35156 | M104: ='スパー寸法(sht20)'!S104*$D$11 -> 273.5127233 | N104: ='主翼(sht1)'!CP104*$N$5 -> 0.9691722639 | O104: 9.025069739 | P104: 8.055897475 | Q104: -0.08262659145 | R104: 37.09204663 | S104: 20.69907555 | T104: -0.5286302602 | U104: 1.091060777 | V104: 0.0006306227974 | W104: 0.003391277252 | X104: -0.0004167583497 | Y104: 1.29780352 | Z104: 0.2864827065 | AA104: -0.1270172398 | AB104: ='スパー寸法(sht20)'!J104*(10^-12) -> 1.859572481e-08 | AC104: =('スパー寸法(sht20)'!F104+'スパー寸法(sht20)'!H104)/2*(10^-3) -> 0.0182175 | AD104: 20278069.97 | AE104: =('スパー寸法(sht20)'!F104-'スパー寸法(sht20)'!H104)*10^-3 -> 0.001029 | AF104: 20866.134 | AG104: -852390 | AH104: 40.85040383
C105: ='主翼(sht1)'!C105 -> 60 | D105: ='主翼(sht1)'!BA105 -> 3rd | E105: ='主翼(sht1)'!E105 -> 12 | F105: ='主翼(sht1)'!G105 -> 0 | G105: ='主翼(sht1)'!H105 -> 0.2 | H105: ='主翼(sht1)'!P105 -> 0.975 | I105: 0.193125 | J105: ='主翼(sht1)'!V105 -> 1.193114042 | K105: ='主翼(sht1)'!X105+J105*($N$25-$N$23) -> -0.01429610223 | L105: ='スパー寸法(sht20)'!R105*$D$11 -> 4583.575084 | M105: ='スパー寸法(sht20)'!S105*$D$11 -> 833.1532129 | N105: ='主翼(sht1)'!CP105*$N$5 -> 0.9336361139 | O105: 8.58500215 | P105: 7.651366037 | Q105: -0.10029533 | R105: 29.6192185 | S105: 13.77215092 | T105: -0.5265990713 | U105: 0.8025731744 | V105: 0.0001476450277 | W105: 0.0007385220756 | X105: -0.0001384491417 | Y105: 1.355730684 | Z105: 0.2898739837 | AA105: -0.1508957343 | AB105: ='スパー寸法(sht20)'!J105*(10^-12) -> 5.872794937e-08 | AC105: =('スパー寸法(sht20)'!F105+'スパー寸法(sht20)'!H105)/2*(10^-3) -> 0.013941 | AD105: 3269270.562 | AE105: =('スパー寸法(sht20)'!F105-'スパー寸法(sht20)'!H105)*10^-3 -> 0.007882 | AF105: 25768.39057 | AG105: -852390 | AH105: 33.07889943
C106: ='主翼(sht1)'!C106 -> 61 | D106: ='主翼(sht1)'!BA106 -> 3rd | E106: ='主翼(sht1)'!E106 -> 12.2 | F106: ='主翼(sht1)'!G106 -> 0 | G106: ='主翼(sht1)'!H106 -> 0.2 | H106: ='主翼(sht1)'!P106 -> 0.95625 | I106: 0.189375 | J106: ='主翼(sht1)'!V106 -> 1.140914202 | K106: ='主翼(sht1)'!X106+J106*($N$25-$N$23) -> -0.01846758813 | L106: ='スパー寸法(sht20)'!R106*$D$11 -> 3702.282779 | M106: ='スパー寸法(sht20)'!S106*$D$11 -> 664.6404102 | N106: ='主翼(sht1)'!CP106*$N$5 -> 0.9047736997 | O106: 8.04999455 | P106: 7.14522085 | Q106: -0.1246017748 | R106: 22.52787663 | S106: 8.365706767 | T106: -0.5004806876 | U106: 0.5417801442 | V106: 0.0001279319281 | W106: 0.0005832685181 | X106: -0.0001693491899 | Y106: 1.413853125 | Z106: 0.2906125058 | AA106: -0.1588282858 | AB106: ='スパー寸法(sht20)'!J106*(10^-12) -> 4.74362199e-08 | AC106: =('スパー寸法(sht20)'!F106+'スパー寸法(sht20)'!H106)/2*(10^-3) -> 0.013516 | AD106: 2383640.453 | AE106: =('スパー寸法(sht20)'!F106-'スパー寸法(sht20)'!H106)*10^-3 -> 0.007032 | AF106: 16761.75966 | AG106: -852390 | AH106: 50.85325271
C107: ='主翼(sht1)'!C107 -> 62 | D107: ='主翼(sht1)'!BA107 -> 3rd | E107: ='主翼(sht1)'!E107 -> 12.4 | F107: ='主翼(sht1)'!G107 -> 0 | G107: ='主翼(sht1)'!H107 -> 0.2 | H107: ='主翼(sht1)'!P107 -> 0.9375 | I107: 0.185625 | J107: ='主翼(sht1)'!V107 -> 1.063083649 | K107: ='主翼(sht1)'!X107+J107*($N$25-$N$23) -> -0.02436158299 | L107: ='スパー寸法(sht20)'!R107*$D$11 -> 283.8510712 | M107: ='スパー寸法(sht20)'!S107*$D$11 -> 71.62223705 | N107: ='主翼(sht1)'!CP107*$N$5 -> 0.5943345862 | O107: 7.352310832 | P107: 6.757976246 | Q107: -0.1579549362 | R107: 15.76813851 | S107: 4.404825759 | T107: -0.4411460534 | U107: 0.3187063966 | V107: 0.001070878498 | W107: 0.004333673282 | X107: -0.001452407919 | Y107: 1.472103559 | Z107: 0.2911957743 | AA107: -0.1685312796 | AB107: ='スパー寸法(sht20)'!J107*(10^-12) -> 3.636897188e-09 | AC107: =('スパー寸法(sht20)'!F107+'スパー寸法(sht20)'!H107)/2*(10^-3) -> 0.0105 | AD107: 12717068.45 | AE107: =('スパー寸法(sht20)'!F107-'スパー寸法(sht20)'!H107)*10^-3 -> 0.001 | AF107: 12717.06845 | AG107: -852390 | AH107: 67.02724009
C108: ='主翼(sht1)'!C108 -> 63 | D108: ='主翼(sht1)'!BA108 -> 3rd | E108: ='主翼(sht1)'!E108 -> 12.6 | F108: ='主翼(sht1)'!G108 -> 0 | G108: ='主翼(sht1)'!H108 -> 0.2 | H108: ='主翼(sht1)'!P108 -> 0.91875 | I108: 0.181875 | J108: ='主翼(sht1)'!V108 -> 0.9374341965 | K108: ='主翼(sht1)'!X108+J108*($N$25-$N$23) -> -0.03346390486 | L108: ='スパー寸法(sht20)'!R108*$D$11 -> 283.8510712 | M108: ='スパー寸法(sht20)'!S108*$D$11 -> 71.62223705 | N108: ='主翼(sht1)'!CP108*$N$5 -> 0.5580198691 | O108: 6.352340259 | P108: 5.79432039 | Q108: -0.2083372511 | R108: 9.490411892 | S108: 1.803199377 | T108: -0.3367293842 | U108: 0.1456171257 | V108: 0.0005898565483 | W108: 0.002041280707 | X108: -0.001231176316 | Y108: 1.531413592 | Z108: 0.2955294476 | AA108: -0.2517481236 | AB108: ='スパー寸法(sht20)'!J108*(10^-12) -> 3.636897188e-09 | AC108: =('スパー寸法(sht20)'!F108+'スパー寸法(sht20)'!H108)/2*(10^-3) -> 0.0105 | AD108: 5205974.344 | AE108: =('スパー寸法(sht20)'!F108-'スパー寸法(sht20)'!H108)*10^-3 -> 0.001 | AF108: 5205.974344 | AG108: -852390 | AH108: 163.7330389
C109: ='主翼(sht1)'!C109 -> 64 | D109: ='主翼(sht1)'!BA109 -> 3rd | E109: ='主翼(sht1)'!E109 -> 12.8 | F109: ='主翼(sht1)'!G109 -> 0 | G109: ='主翼(sht1)'!H109 -> 0.2 | H109: ='主翼(sht1)'!P109 -> 0.9 | I109: 0.15 | J109: ='主翼(sht1)'!V109 -> 0.8220235705 | K109: ='主翼(sht1)'!X109+J109*($N$25-$N$23) -> -0.04139634341 | L109: ='スパー寸法(sht20)'!R109*$D$11 -> 283.8510712 | M109: ='スパー寸法(sht20)'!S109*$D$11 -> 71.62223705 | N109: ='主翼(sht1)'!CP109*$N$5 -> 0.5261018391 | O109: 4.594047529 | P109: 4.06794569 | Q109: -0.2082167694 | R109: 4.117163447 | S109: 0.4161506401 | T109: -0.1669439695 | U109: 0.0370972473 | V109: 0.000234659957 | W109: 0.000654967144 | X109: -0.0007568944098 | Y109: 1.591109338 | Z109: 0.2975707283 | AA109: -0.3222893303 | AB109: ='スパー寸法(sht20)'!J109*(10^-12) -> 3.636897188e-09 | AC109: =('スパー寸法(sht20)'!F109+'スパー寸法(sht20)'!H109)/2*(10^-3) -> 0.0105 | AD109: 1201458.687 | AE109: =('スパー寸法(sht20)'!F109-'スパー寸法(sht20)'!H109)*10^-3 -> 0.001 | AF109: 1201.458687 | AG109: -852390 | AH109: 709.4625967
C110: ='主翼(sht1)'!C110 -> 65 | D110: ='主翼(sht1)'!BA110 -> Winglet | E110: ='主翼(sht1)'!E110 -> 13 | F110: ='主翼(sht1)'!G110 -> 0 | G110: ='主翼(sht1)'!H110 -> 0.2 | H110: ='主翼(sht1)'!P110 -> 0.6 | I110: 0.06 | J110: ='主翼(sht1)'!V110 -> 0 | K110: ='主翼(sht1)'!X110+J110*($N$25-$N$23) -> 0 | L110: ='スパー寸法(sht20)'!R110*$D$11 -> 283.8510712 | M110: ='スパー寸法(sht20)'!S110*$D$11 -> 71.62223705 | N110: ='主翼(sht1)'!CP110*$N$5 -> 0.2457492002 | O110: 0 | P110: -0.2457492002 | Q110: 0 | R110: 0 | S110: 0 | T110: 0 | U110: 0 | V110: -7.214734097e-07 | W110: -4.328840458e-06 | X110: 0 | Y110: 1.650858144 | Z110: 0.2982256955 | AA110: -0.3656561855 | AB110: ='スパー寸法(sht20)'!J110*(10^-12) -> 3.636897188e-09 | AC110: =('スパー寸法(sht20)'!F110+'スパー寸法(sht20)'!H110)/2*(10^-3) -> 0.0105 | AD110: 0 | AE110: =('スパー寸法(sht20)'!F110-'スパー寸法(sht20)'!H110)*10^-3 -> 0.001 | AF110: 0 | AG110: -852390

Sheet 水平尾翼(sht3)
B2: 水平尾翼諸元 | L2: 水平尾翼平面形 | AZ2: ='各種パラメータ(sht0)'!L2 -> 環境条件 | BE2: 重量推算 | BJ2: 水平尾翼二次構造 | BL2: コード長1mに対して
B3: 名 | C3: 記号 | D3: 値 | E3: 単位 | M3: 翼素番号 | N3: スパン | O3: コード長 [m] | P3: 取り付け角 [deg] | Q3: 上反角 [deg] | R3: 翼型1 | S3: 翼型2 | T3: Δy [m] | U3: Δ翼面積 [m^2] | V3: c(y)傾き [-] | W3: 切片 [m] | AA3: コード傾き | AB3: コード切片 | AC3: 取り付け角傾き | AD3: 取り付け角切片 | AE3: 翼型1傾き | AF3: 翼型1切片 | AG3: 翼型2傾き | AH3: 翼型2切片 | AK3: 翼素番号 | AL3: スパン | AP3: ='各種パラメータ(sht0)'!L3 -> 名 | AQ3: ='各種パラメータ(sht0)'!M3 -> 記号 | AR3: ='各種パラメータ(sht0)'!N3 -> 値 | AS3: ='各種パラメータ(sht0)'!O3 -> 単位 | AZ3: 名 | BA3: 記号 | BB3: 値 | BC3: 単位 | BE3: 名 | BF3: 記号 | BG3: 値 | BH3: 単位 | BJ3: 名 | BK3: 記号 | BL3: 値 | BM3: 単位
B4: 翼面積 | C4: S | D4: =U14*2 -> 4.8 | E4: m^2 | F4: 設計値 | M4: n | N4: y | O4: c | P4: αs | Q4: Γd | R4: - | S4: - | T4: Δy | U4: ΔS | V4: a | W4: b | X4: ∫c(y)^2dy | Y4: ∫c(y)*(y^2) dy | AA4: - | AB4: - | AC4: - | AD4: - | AE4: - | AF4: - | AG4: - | AH4: - | AK4: n | AL4: y | AP4: =B33 -> 分割数 | AQ4: =C33 -> n | AR4: =D33 -> 10 | AS4: =E33 -> - | AT4: スパン方向．片翼 | AZ4: ='各種パラメータ(sht0)'!L4 -> 空気密度 | BA4: ='各種パラメータ(sht0)'!M4 -> ρ | BB4: ='各種パラメータ(sht0)'!N4 -> 1.164313615 | BC4: ='各種パラメータ(sht0)'!O4 -> kg/m^3 | BE4: 水平尾翼 | BF4: 桁 | BG4: =BG26 -> 0.8355967246 | BH4: kg | BJ4: 翼型 | BK4: 全周 | BL4: ='水平翼型解析(sht12)'!P12 -> 2.039263136 | BM4: m
B5: 翼幅 | C5: b | D5: =T14*2 -> 4 | E5: m | M5: - | N5: m | O5: m | P5: deg | Q5: deg | R5: - | S5: - | T5: m | U5: m^2 | V5: - | W5: m | X5: m^3 | Y5: m^4 | AA5: m/m | AB5: m | AC5: deg/m | AD5: deg | AE5: 1/m | AF5: - | AG5: 1/m | AH5: - | AK5: - | AL5: m | AQ5: m | AR5: 9 | AS5: - | AT5: コード方向 | AZ5: ='各種パラメータ(sht0)'!L5 -> 重力加速度 | BA5: ='各種パラメータ(sht0)'!M5 -> g | BB5: ='各種パラメータ(sht0)'!N5 -> 9.795 | BC5: ='各種パラメータ(sht0)'!O5 -> m/s^2 | BF5: リブ | BG5: =SUM(BJ45:BJ55)*2 -> 0.520851834 | BH5: kg | BK5: プランク長 | BL5: ='水平翼型解析(sht12)'!P13 -> 0.8297693464 | BM5: m
B6: アスペクト比 | C6: AR | D6: =(D5*D5)/D4 -> 3.333333333 | E6: - | L6: 矩形部 [0] | M6: =INT(N6/$D$30) -> 0 | N6: 0 | O6: 1.2 | P6: -4 | Q6: 0 | R6: 1 | T6: =N7-N6 -> 2 | U6: =(O6+O7)*T6/2 -> 2.4 | V6: =LINEST(O6:O7,N6:N7,TRUE,FALSE) -> 0 | W6: 1.2 | X6: =IF(V6=0,W6^2*(N7-N6),((V6*N7+W6)^3-(V6*N6+W6)^3)/(3*V6)) -> 2.88 | Y6: =(AA6/3)*((N7^3)-(N6^3))+(AB6/2)*((N7^2)-(N6^2)) -> 2.4 | AA6: =LINEST(O6:O7,N6:N7,TRUE,FALSE) -> 0 | AB6: 1.2 | AC6: =LINEST(P6:P7,N6:N7,TRUE,FALSE) -> 0 | AD6: -4 | AE6: =LINEST(R6:R7,N6:N7,TRUE,TRUE) -> 0 | AF6: 1 | AJ6: 0番 | AK6: =AL6/$D$30 -> 0 | AL6: 0 | AZ6: ='各種パラメータ(sht0)'!L6 -> 粘性係数 | BA6: ='各種パラメータ(sht0)'!M6 -> μ | BB6: ='各種パラメータ(sht0)'!N6 -> 1.860869242e-05 | BC6: ='各種パラメータ(sht0)'!O6 -> N・s/m^2 | BF6: プランク | BG6: =SUM(BK45:BK55)*2 -> 0.3385458933 | BH6: kg | BK6: リブ材長 | BL6: ='水平翼型解析(sht12)'!P14 -> 1.20949379 | BM6: m
B7: 平均空力翼弦長 | C7: cMAC | D7: =(2/D4)*X14 -> 1.2 | E7: m | F7: 白本p.44 銀本p.77 | L7: 第一段テーパー [1] | M7: =INT(N7/$D$30) -> 10 | N7: 2 | O7: 1.2 | P7: -4 | Q7: 0 | R7: 1 | T7: =N8-N7 -> 0 | U7: =(O7+O8)*T7/2 -> 0 | V7: =LINEST(O7:O8,N7:N8,TRUE,FALSE) -> 0 | W7: 1.2 | X7: =IF(V7=0,W7^2*(N8-N7),((V7*N8+W7)^3-(V7*N7+W7)^3)/(3*V7)) -> 0 | Y7: =(AA7/3)*((N8^3)-(N7^3))+(AB7/2)*((N8^2)-(N7^2)) -> 0 | AA7: =LINEST(O7:O8,N7:N8,TRUE,FALSE) -> 0 | AB7: 1.2 | AC7: =LINEST(P7:P8,N7:N8,TRUE,FALSE) -> 0 | AD7: -4 | AE7: =LINEST(R7:R8,N7:N8,TRUE,TRUE) -> 0 | AF7: 1 | AJ7: 1番 | AK7: 12 | AL7: ='スパー寸法(sht20)'!M8 -> 2.4 | AP7: 翼面積 | AQ7: S | AR7: 4.8 | AS7: m^2 | AZ7: ='各種パラメータ(sht0)'!L7 -> 動粘性係数 | BA7: ='各種パラメータ(sht0)'!M7 -> ν | BB7: ='各種パラメータ(sht0)'!N7 -> 1.5982543e-05 | BC7: ='各種パラメータ(sht0)'!O7 -> m^2/s | BF7: リブ材 | BG7: =SUM(BM45:BM55)*2 -> 0.01197398852 | BH7: kg | BK7: リブ面積 | BL7: ='水平翼型解析(sht12)'!P15 -> 0.08220515056 | BM7: m^2
B8: 片翼面積重心 | C8: y_ | D8: =(2*Y14)/D4 -> 1 | E8: m | F8: 白本p.44． | L8: 第二段テーパー [2] | M8: 10 | N8: 2 | O8: 1.2 | P8: -4 | Q8: 0 | R8: 1 | T8: 0 | U8: 0 | V8: =LINEST(O8:O9,N8:N9,TRUE,FALSE) -> 0 | W8: 1.2 | X8: 0 | Y8: 0 | AA8: =LINEST(O8:O9,N8:N9,TRUE,FALSE) -> 0 | AB8: 1.2 | AC8: =LINEST(P8:P9,N8:N9,TRUE,FALSE) -> 0 | AD8: -4 | AE8: =LINEST(R8:R9,N8:N9,TRUE,TRUE) -> 0 | AF8: 1 | AJ8: 2番 | AK8: 37.45 | AL8: ='スパー寸法(sht20)'!M10 -> 7.49 | AP8: 翼幅 | AQ8: b | AR8: 4 | AS8: m | AZ8: ='各種パラメータ(sht0)'!L8 -> 気温 | BA8: ='各種パラメータ(sht0)'!M8 -> T | BB8: ='各種パラメータ(sht0)'!N8 -> 30 | BC8: ='各種パラメータ(sht0)'!O8 -> ℃ | BF8: 後縁材 | BG8: =SUM(BN45:BN55)*2 -> 0.18 | BH8: kg | BJ8: リブ | BK8: 厚さ | BL8: 0.01 | BM8: m
B9: 翼面積 | C9: S | D9: =AR7 -> 4.8 | E9: m^2 | F9: 変形考慮 | L9: 第三段テーパー [3] | M9: 10 | N9: 2 | O9: 1.2 | P9: -4 | Q9: 0 | R9: 1 | T9: 0 | U9: 0 | V9: =LINEST(O9:O10,N9:N10,TRUE,FALSE) -> 0 | W9: 1.2 | X9: 0 | Y9: 0 | AA9: =LINEST(O9:O10,N9:N10,TRUE,FALSE) -> 0 | AB9: 1.2 | AC9: =LINEST(P9:P10,N9:N10,TRUE,FALSE) -> 0 | AD9: -4 | AE9: =LINEST(R9:R10,N9:N10,TRUE,TRUE) -> 0 | AF9: 1 | AJ9: 3番 | AK9: 60 | AL9: ='スパー寸法(sht20)'!M12 -> 12 | AP9: アスペクト比 | AQ9: AR | AR9: 3.333333333 | AS9: - | BB9: ='各種パラメータ(sht0)'!N9 -> 303.15 | BC9: ='各種パラメータ(sht0)'!O9 -> K | BF9: 縦通材 | BG9: =SUM(BL45:BL55)*2 -> 0.102 | BH9: kg | BJ9: プランク | BK9: 厚さ | BL9: =1*10^-3 -> 0.001 | BM9: m
B10: 翼幅 | C10: b | D10: =AR8 -> 4 | E10: m | L10: 第四段テーパー | M10: 10 | N10: 2 | O10: 1.2 | P10: -4 | Q10: 0 | R10: 1 | T10: 0 | U10: 0 | V10: =LINEST(O10:O11,N10:N11,TRUE,FALSE) -> 0 | W10: 1.2 | X10: 0 | Y10: 0 | AA10: =LINEST(O10:O11,N10:N11,TRUE,FALSE) -> 0 | AB10: 1.2 | AC10: =LINEST(P10:P11,N10:N11,TRUE,FALSE) -> 0 | AD10: -4 | AE10: =LINEST(R10:R11,N10:N11,TRUE,TRUE) -> 0 | AF10: 1 | AJ10: ウィングレット [4] | AK10: 60 | AL10: =AL9 -> 12 | AP10: 平均空力翼弦長 | AQ10: c_ | AR10: 1.2 | AS10: m | AZ10: ='各種パラメータ(sht0)'!L10 -> 圧力 | BA10: ='各種パラメータ(sht0)'!M10 -> P | BB10: ='各種パラメータ(sht0)'!N10 -> 1013 | BC10: ='各種パラメータ(sht0)'!O10 -> hPa | BF10: 接着剤 | BG10: =SUM(BO45:BO55)*2 -> 0.5556 | BH10: kg | BJ10: 縦通材 | BK10: 本数 | BL10: 5 | BM10: -
B11: アスペクト比 | C11: AR | D11: =AR9 -> 3.333333333 | E11: - | L11: ウィングレット [5] | M11: 10 | N11: 2 | O11: 1.2 | P11: -4 | Q11: 0 | R11: 1 | T11: 0 | U11: 0 | V11: =LINEST(O11:O12,N11:N12,TRUE,FALSE) -> 0 | W11: 1.2 | X11: 0 | Y11: 0 | AA11: =LINEST(O11:O12,N11:N12,TRUE,FALSE) -> 0 | AB11: 1.2 | AC11: =LINEST(P11:P12,N11:N12,TRUE,FALSE) -> 0 | AD11: -4 | AE11: =LINEST(R11:R12,N11:N12,TRUE,TRUE) -> 0 | AF11: 1 | AJ11: 翼端 | AK11: 65 | AL11: ='スパー寸法(sht20)'!M14 -> 13 | AP11: 片翼面積重心 | AQ11: y_ | AR11: -1 | AS11: m | BB11: ='各種パラメータ(sht0)'!N11 -> 101300 | BC11: ='各種パラメータ(sht0)'!O11 -> Pa | BF11: その他 | BG11: 0.2 | BH11: kg | BK11: 断面積 | BL11: =10*10^-6 -> 1e-05 | BM11: m^2
B12: 平均空力翼弦長 | C12: c_ | D12: =AR10 -> 1.2 | E12: m | L12: 翼端 | M12: 10 | N12: 2 | O12: 1.2 | P12: -4 | Q12: 0 | R12: 1 | T12: 0 | U12: 0 | V12: =LINEST(O12:O13,N12:N13,TRUE,FALSE) -> 0 | W12: 1.2 | X12: 0 | Y12: 0 | AJ12: - | AK12: - | AL12: - | AP12: 翼効率 | AQ12: e | AR12: 1.045914126 | AS12: - | AZ12: ='各種パラメータ(sht0)'!L12 -> 一般気体定数 | BA12: ='各種パラメータ(sht0)'!M12 -> R | BB12: ='各種パラメータ(sht0)'!N12 -> 287 | BC12: ='各種パラメータ(sht0)'!O12 -> J/kg・K | BF12: 合計 | BG12: =SUM(BG4:BG11) -> 2.74456844 | BH12: kg | BJ12: リブ材 | BK12: 厚さ | BL12: =0.5*10^-3 -> 0.0005 | BM12: m
B13: 片翼面積重心 | C13: y_ | D13: =AR11 -> -1 | E13: m | L13: 翼端 | M13: 10 | N13: =N12 -> 2 | O13: =O12 -> 1.2 | AP13: 水平尾翼二次元揚力傾斜 | AQ13: Clα | AR13: 0.1096622711 | AS13: 1/deg | AZ13: ='各種パラメータ(sht0)'!L13 -> 比熱比 | BA13: ='各種パラメータ(sht0)'!M13 -> κ | BB13: ='各種パラメータ(sht0)'!N13 -> 1.4 | BC13: ='各種パラメータ(sht0)'!O13 -> - | BJ13: 後縁材 | BK13: 幅 | BL13: 0.02 | BM13: m
B14: 空力中心 | C14: hac | D14: 0.25 | E14: - | L14: 合計 | T14: =SUM(T6:T13) -> 2 | U14: =SUM(U6:U13) -> 2.4 | X14: =SUM(X6:X13) -> 2.88 | Y14: =SUM(Y6:Y13) -> 2.4 | AP14: 水平尾翼三次元揚力傾斜 | AQ14: at | AR14: 0.06853891945 | AS14: 1/deg | AZ14: ='各種パラメータ(sht0)'!L14 -> 音速 | BA14: ='各種パラメータ(sht0)'!M14 -> a | BB14: ='各種パラメータ(sht0)'!N14 -> 349.0066905 | BC14: ='各種パラメータ(sht0)'!O14 -> m/s | BK14: 厚さ | BL14: =0.75*10^-3 -> 0.00075 | BM14: m
B15: 翼効率 | C15: e | D15: =AR12 -> 1.045914126 | E15: - | AP15: 揚力係数 | AQ15: CL | AR15: -0.1668695582 | AS15: - | AZ15: ='各種パラメータ(sht0)'!L15 -> カルマン定数 | BA15: ='各種パラメータ(sht0)'!M15 -> k | BB15: ='各種パラメータ(sht0)'!N15 -> 0.4 | BC15: ='各種パラメータ(sht0)'!O15 -> - | BJ15: 接着剤① | BK15: リブ面積に比例するもの | BL15: 0.0075 | BM15: kg
B16: 主翼二次元揚力傾斜 | C16: Clα | D16: =AR13 -> 0.1096622711 | E16: 1/deg | AP16: 有害抗力係数 | AQ16: CDp | AR16: 0.008185735904 | AS16: - | AZ16: ='各種パラメータ(sht0)'!L16 -> 粗度 | BA16: ='各種パラメータ(sht0)'!M16 -> z0 | BB16: ='各種パラメータ(sht0)'!N16 -> 0.01 | BC16: ='各種パラメータ(sht0)'!O16 -> - | BJ16: 接着剤② | BK16: コード長に比例するもの | BL16: 0.0075 | BM16: kg
B17: 主翼三次元揚力傾斜 | C17: aw | D17: =AR14 -> 0.06853891945 | E17: 1/deg | AP17: 誘導抗力係数 | AQ17: Cdi | AR17: 0.002542316321 | AS17: - | BJ17: 接着剤③ | BK17: スパンに比例するもの | BL17: 0.03 | BM17: kg
B18: 揚力係数 | C18: CL | D18: =AR15 -> -0.1668695582 | E18: - | AP18: 抗力係数 | AQ18: CD | AR18: 0.01072805222 | AS18: - | AZ18: 解析用 | BE18: 水平尾翼桁
B19: 抗力係数 | C19: CD | D19: =AR18 -> 0.01072805222 | E19: - | AP19: ピッチングモーメント係数 | AQ19: Cm0 | AR19: 0 | AS19: - | AZ19: 名 | BA19: 記号 | BB19: 値 | BC19: 単位 | BE19: 名 | BF19: 記号 | BG19: 値 | BH19: 単位
B20: ピッチングモーメント係数 | C20: Cm | D20: 0.002624465013 | E20: - | M20: ='主翼翼型1解析(sht10)'!G2 -> 0 | N20: ='主翼翼型1解析(sht10)'!H2 -> 0 | O20: ='主翼翼型1解析(sht10)'!I2 -> 0 | P20: ='主翼翼型1解析(sht10)'!J2 -> 0 | Q20: ='主翼翼型1解析(sht10)'!K2 -> 0 | R20: ='主翼翼型1解析(sht10)'!L2 -> 0 | S20: ='主翼翼型1解析(sht10)'!M2 -> 0 | T20: ='主翼翼型1解析(sht10)'!N2 -> 0 | U20: ='主翼翼型1解析(sht10)'!O2 -> 0 | V20: ='主翼翼型1解析(sht10)'!P2 -> 0 | W20: ='主翼翼型1解析(sht10)'!Q2 -> 0 | X20: ='主翼翼型1解析(sht10)'!R2 -> 0 | Y20: ='主翼翼型1解析(sht10)'!S2 -> 0 | Z20: ='主翼翼型1解析(sht10)'!T2 -> 0 | AA20: ='主翼翼型1解析(sht10)'!U2 -> 0 | AC20: キャンバーライン | AR20: 0 | AZ20: 全機迎角 | BA20: α | BB20: 2.152632045 | BC20: deg | BE20: 内径 | BF20: - | BG20: 0.04 | BH20: m
B21: 平均誘導迎え角 | C21: αi_ | E21: deg | L21: ='主翼翼型1解析(sht10)'!F3 -> 0 | M21: ='水平翼型解析(sht12)'!G3 -> 0 | N21: ='水平翼型解析(sht12)'!H3 -> 0 | O21: ='水平翼型解析(sht12)'!I3 -> 0 | P21: ='水平翼型解析(sht12)'!J3 -> 0 | Q21: ='水平翼型解析(sht12)'!K3 -> 0 | R21: ='水平翼型解析(sht12)'!L3 -> 0 | S21: ='水平翼型解析(sht12)'!M3 -> 0 | T21: ='水平翼型解析(sht12)'!N3 -> 0 | U21: ='水平翼型解析(sht12)'!O3 -> 0 | AC21: ='水平翼型解析(sht12)'!AB2 -> - | AD21: ='水平翼型解析(sht12)'!AC2 -> 1 | AE21: ='水平翼型解析(sht12)'!AD2 -> x^1 | AF21: ='水平翼型解析(sht12)'!AE2 -> x^2 | AG21: ='水平翼型解析(sht12)'!AF2 -> x^3 | AH21: ='水平翼型解析(sht12)'!AG2 -> x^4 | AI21: ='水平翼型解析(sht12)'!AH2 -> x^5 | AJ21: ='水平翼型解析(sht12)'!AI2 -> x^6 | AK21: ='水平翼型解析(sht12)'!AJ2 -> x^7 | AL21: ='水平翼型解析(sht12)'!AK2 -> x^8 | AR21: 0 | AZ21: 横滑り角 | BA21: β | BB21: 0 | BC21: deg | BE21: 厚さ | BF21: - | BG21: ='水平尾翼積層構成(sht24)'!I33 -> 0.001029 | BH21: m
B22: 尾翼形式 | C22: - | D22: ='全機計算(sht8)'!N19 -> Conventional | E22: - | L22: ='主翼翼型1解析(sht10)'!F4 -> 0 | M22: ='水平翼型解析(sht12)'!G4 -> 0 | N22: ='水平翼型解析(sht12)'!H4 -> 0 | O22: ='水平翼型解析(sht12)'!I4 -> 0 | P22: ='水平翼型解析(sht12)'!J4 -> 0 | Q22: ='水平翼型解析(sht12)'!K4 -> 0 | R22: ='水平翼型解析(sht12)'!L4 -> 0 | S22: ='水平翼型解析(sht12)'!M4 -> 0 | T22: ='水平翼型解析(sht12)'!N4 -> 0 | U22: ='水平翼型解析(sht12)'!O4 -> 0 | V22: ='水平翼型解析(sht12)'!P4 -> 0 | W22: ='水平翼型解析(sht12)'!Q4 -> 0 | X22: ='水平翼型解析(sht12)'!R4 -> 0 | Y22: ='水平翼型解析(sht12)'!S4 -> 0 | Z22: ='水平翼型解析(sht12)'!T4 -> 0 | AA22: ='水平翼型解析(sht12)'!U4 -> 0 | AC22: zc | AD22: ='水平翼型解析(sht12)'!AC3 -> 0 | AE22: ='水平翼型解析(sht12)'!AD3 -> 0 | AF22: ='水平翼型解析(sht12)'!AE3 -> 0 | AG22: ='水平翼型解析(sht12)'!AF3 -> 0 | AH22: ='水平翼型解析(sht12)'!AG3 -> 0 | AI22: ='水平翼型解析(sht12)'!AH3 -> 0 | AJ22: ='水平翼型解析(sht12)'!AI3 -> 0 | AK22: ='水平翼型解析(sht12)'!AJ3 -> 0 | AL22: ='水平翼型解析(sht12)'!AK3 -> 0 | AR22: 0 | AZ22: 対気速度 | BA22: V | BB22: 8 | BC22: m/s | BE22: 断面積 | BF22: - | BG22: =PI()*((BG20+2*BG21)*(BG20+2*BG21) -BG20*BG20)/4 -> 0.0001326344007 | BH22: m^2
B23: 取り付け角 | C23: i | D23: ='全機計算(sht8)'!N9 -> -2 | E23: deg | L23: ='主翼翼型1解析(sht10)'!F5 -> 0 | M23: ='水平翼型解析(sht12)'!G5 -> 0 | N23: ='水平翼型解析(sht12)'!H5 -> 0 | O23: ='水平翼型解析(sht12)'!I5 -> 0 | P23: ='水平翼型解析(sht12)'!J5 -> 0 | Q23: ='水平翼型解析(sht12)'!K5 -> 0 | R23: ='水平翼型解析(sht12)'!L5 -> 0 | S23: ='水平翼型解析(sht12)'!M5 -> 0 | T23: ='水平翼型解析(sht12)'!N5 -> 0 | U23: ='水平翼型解析(sht12)'!O5 -> 0 | V23: ='水平翼型解析(sht12)'!P5 -> 0 | W23: ='水平翼型解析(sht12)'!Q5 -> 0 | X23: ='水平翼型解析(sht12)'!R5 -> 0 | Y23: ='水平翼型解析(sht12)'!S5 -> 0 | Z23: ='水平翼型解析(sht12)'!T5 -> 0 | AA23: ='水平翼型解析(sht12)'!U5 -> 0 | AR23: 0 | AZ23: 高度 | BA23: hE | BB23: 100 | BC23: m | BE23: 体積 | BF23: - | BG23: =BG22*D10*BG27 -> 0.0005570644831 | BH23: m^3
B24: 翼型名 | C24: foil_name | D24: ='水平翼型解析(sht12)'!X5 -> NACA0012 | E24: - | AR24: 0 | AZ24: 角速度 | BA24: p | BB24: 0 | BC24: deg/s | BE24: 重量 | BF24: - | BG24: =BG23*BB35 -> 0.8355967246 | BH24: kg | BJ24: 水平尾翼の重心位置・慣性モーメント
AR25: 0 | BA25: q | BB25: 0 | BC25: deg/s | BE25: 誤差 | BF25: - | BG25: 0 | BH25: kg | BJ25: 名 | BK25: 記号 | BL25: 値 | BM25: 単位
AP26: 揚力 | AQ26: Lift | AR26: -29.84271338 | AS26: N | BA26: r | BB26: 0 | BC26: deg/s | BE26: 測定値 | BF26: - | BG26: =BG24+BG25 -> 0.8355967246 | BH26: kg | BJ26: 重量 | BK26: M | BL26: =BG12 -> 2.74456844 | BM26: kg
AP27: 有害抗力 | AQ27: Dp | AR27: 1.463925314 | AS27: N | AZ27: 重心移動距離 | BA27: dh | BB27: 0 | BC27: - | BE27: 重なりしろ係数 | BF27: - | BG27: 1.05 | BH27: - | BJ27: 重心位置 | BK27: Xcg | BL27: ='全機計算(sht8)'!N4 -> 3.811824916 | BM27: m
AP28: 誘導抗力 | AQ28: Di | AR28: 0.4546642186 | AS28: N | AZ28: エレベータ舵角 | BA28: de | BB28: 0 | BC28: deg | BK28: Ycg | BL28: 0 | BM28: m
AP29: 抗力 | AQ29: D | AR29: 1.918589533 | AS29: N | AZ29: ラダー舵角 | BA29: dr | BB29: 0 | BC29: deg | BK29: Zcg | BL29: ='全機計算(sht8)'!S34+'垂直尾翼(sht4)'!D5 -> 1.55 | BM29: m
B30: リブ間隔 | C30: Δy | D30: 0.2 | E30: m | AP30: ローリングモーメント | AQ30: L | AR30: 0 | AS30: N*m | BJ30: 慣性モーメント | BK30: Ixx | BL30: =SUMPRODUCT(BR45:BR55,BT45:BT55)*2 -> 7.347294293 | BM30: kg*m^2
B31: 桁位置 | C31: - | D31: 0.25 | E31: - | AP31: ピッチングモーメント | AQ31: M | AR31: 114.3184363 | AS31: N*m | BK31: Iyy | BL31: =SUMPRODUCT(BR45:BR55,BU45:BU55)*2 -> 0 | BM31: kg*m^2
B32: 翼根コード長 | C32: c0 | D32: =O6 -> 1.2 | E32: m | AP32: ヨーイングモーメント | AQ32: N | AR32: 0 | AS32: N*m | BK32: Izz | BL32: =SUMPRODUCT(BR45:BR55,BV45:BV55)*2 -> 7.347294293 | BM32: kg*m^2
B33: 分割数 | C33: n | D33: =MAX(M6:M12) -> 10 | E33: - | F33: 片翼分のリブ枚数． | AZ33: 材料密度 | BK33: Ixy | BL33: 0 | BM33: kg・m^2
AZ34: 名 | BA34: 記号 | BB34: 値 | BC34: 単位 | BK34: Iyz | BL34: 0 | BM34: kg・m^2
AZ35: CFRP | BA35: - | BB35: ='機体重量(sht30)'!X20 -> 1500 | BC35: kg/m^3 | BK35: Ixz | BL35: 0 | BM35: kg・m^2
B36: ファイル名 | C36: file_name | D36: ="TAIL_"&TEXT(TODAY(),"yyyymmdd") -> TAIL_20230818 | E36: - | AZ36: 50倍発泡 | BA36: - | BB36: ='機体重量(sht30)'!X21 -> 20 | BC36: kg/m^3
B37: 翼型名 | C37: foil_name | D37: ='水平翼型解析(sht12)'!X5 -> NACA0012 | E37: - | AZ37: ヒノキ | BA37: - | BB37: ='機体重量(sht30)'!X22 -> 510 | BC37: kg/m^3
C38: foil_name | D38: ='水平翼型解析(sht12)'!X5 -> NACA0012 | E38: - | AZ38: エスレン | BA38: - | BB38: ='機体重量(sht30)'!X23 -> 85 | BC38: kg/m^3
A40: - | T40: - | AS40: -
C41: 設計値 | G41: 0G | H41: 投影面での距離 | M41: 楕円分布 | P41: テーパー翼 | AB41: たわみを考慮 | AC41: 1G | AZ41: 重量推算 | BP41: =SUM(BP45:BP135) -> 1.838312794 | BQ41: =SUM(BQ45:BQ135) -> 0.8544858579 | BR41: =SUM(BR45:BR135) -> 2.692798652 | BT41: 慣性モーメント
B42: 名 | C42: リブ番号 | D42: テーパー | E42: リブ位置 | F42: 翼素位置 | G42: 高さ | H42: 翼素間隔 | I42: 取り付け角 | J42: 上反角 | K42: 翼型1配合率 | L42: 翼型2配合率 | M42: コード長 | N42: 前縁位置 | O42: 後縁位置 | P42: コード長 | Q42: 前縁位置 | R42: 後縁位置 | T42: 有効迎角 | U42: レイノルズ数 | V42: 揚力係数 | W42: 抗力係数 | X42: ピッチングモーメント係数 | AA42: ピッチングモーメント係数(桁位置まわり) | AB42: リブ位置 | AC42: 高さ | AD42: 翼素間隔 | AJ42: 楕円循環 | AK42: 循環 | AL42: 吹きおろし | AM42: 誘導迎角 | AZ42: 面積 | BE42: 体積 | BJ42: 水平尾翼 | BP42: 一次構造 | BQ42: 二次構造 | BR42: 合計 | BT42: 主翼重心からの距離の2乗
B43: 記号 | C43: n | D43: - | E43: - | F43: yn | G43: zn | H43: Δy | I43: - | J43: Γ | K43: - | L43: - | M43: cn | N43: - | O43: - | P43: cn | Q43: - | R43: - | T43: α | U43: Re | V43: Cl | W43: Cdo | X43: Cm | AA43: Cm_cg | AB43: yn | AC43: zn | AD43: Δy | AJ43: Γc_opt | AK43: Γc | AL43: wi | AM43: αi | AZ43: リブ | BA43: プランク | BB43: 縦通材 | BC43: リブ材 | BD43: 後縁材 | BE43: リブ | BF43: プランク | BG43: 縦通材 | BH43: リブ材 | BI43: 後縁材 | BJ43: リブ | BK43: プランク | BL43: 縦通材 | BM43: リブ材 | BN43: 後縁材 | BO43: 接着剤 | BP43: - | BQ43: - | BR43: - | BT43: y^2+z^2 | BU43: z^2+x^2 | BV43: x^2+y^2
B44: 単位 | C44: - | D44: - | E44: m | F44: m | G44: m | H44: m | I44: deg | J44: deg | K44: - | L44: - | M44: m | N44: m | O44: m | P44: m | Q44: m | R44: m | T44: deg | U44: - | V44: - | W44: - | X44: - | AA44: - | AB44: m | AC44: m | AD44: m | AJ44: m^1/s | AK44: m^3/s | AL44: m/s | AM44: deg | AZ44: m^2 | BA44: m^2 | BB44: m^2 | BC44: m^2 | BD44: m^2 | BE44: m^3 | BF44: m^3 | BG44: m^3 | BH44: m^3 | BI44: m^3 | BJ44: kg | BK44: kg | BL44: kg | BM44: kg | BN44: kg | BO44: kg | BP44: kg | BQ44: kg | BR44: kg | BT44: m^2 | BU44: m^2 | BV44: m^2
B45: 値 | C45: 0 | D45: =IF(C45<$M$7,"flat",IF(C45<$M$8,"1st",IF(C45<$M$9,"2nd",IF(C45<$M$10,"3rd",IF(C45<$M$11,"4th","Winglet"))))) -> flat | E45: 0 | F45: 0 | G45: 0 | H45: =F46-F45 -> 0.2 | I45: =IF($D45="flat",$AC$6*$E45+$AD$6,IF($D45="1st",$AC$7*$E45+$AD$7,IF($D45="2nd",$AC$8*$E45+$AD$8,IF($D45="3rd",$AC$9*$E45+$AD$9,IF($D45="4th",$AC$10*$E45+$AD$10,$AC$11*$E45+$AD$11))))) -> -4 | J45: =IF($D45="flat",$Q$6,IF($D45="1st",$Q$7,IF($D45="2nd",$Q$8,IF($D45="3rd",$Q$9,IF($D45="4th",$Q$10,$Q$11))))) -> 0 | K45: =IF($D45="flat",$AE$6*$E45+$AF$6,IF($D45="1st",$AE$7*$E45+$AF$7,IF($D45="2nd",$AE$8*$E45+$AF$8,IF($D45="3rd",$AE$9*$E45+$AF$9,IF($D45="4th",$AE$10*$E45+$AF$10,$AE$11*$E45+$AF$11))))) -> 1 | L45: =IF($D45="flat",$AG$6*$E45+$AH$6,IF($D45="1st",$AG$7*$E45+$AH$7,IF($D45="2nd",$AG$8*$E45+$AH$8,IF($D45="3rd",$AG$9*$E45+$AH$9,IF($D45="4th",$AG$10*$E45+$AH$10,$AG$11*$E45+$AH$11))))) -> 0 | M45: =$D$32*SQRT(1-(E45/($D$5/2))^2) -> 1.2 | N45: =M45*$D$31 -> 0.3 | O45: =N45-M45 -> -0.9 | P45: =IF($D45="flat",$AA$6*$E45+$AB$6,IF($D45="1st",$AA$7*$E45+$AB$7,IF($D45="2nd",$AA$8*$E45+$AB$8,IF($D45="3rd",$AA$9*$E45+$AB$9,IF($D45="4th",$AA$10*$E45+$AB$10,$AA$11*$E45+$AB$11))))) -> 1.2 | Q45: =P45*$D$31 -> 0.3 | R45: =Q45-P45 -> -0.9 | T45: -2.003320852 | U45: 600655.3524 | V45: -0.199893631 | W45: 0.008185735904 | X45: 0.002787221456 | Y45: 0 | Z45: 0 | AA45: 0.002787221456 | AB45: 0 | AC45: 0 | AD45: 0.2 | AE45: 0 | AF45: 0 | AG45: 0 | AH45: 0 | AI45: 0 | AJ45: 0 | AK45: -0.9594894286 | AL45: 0.108679191 | AM45: 0.7783094943 | AZ45: =$BL$7*P45*P45 -> 0.1183754168 | BA45: =$BL$5*$BL$9*P45 -> 0.0009957232156 | BB45: =$BL$11*$BL$10 -> 5e-05 | BC45: =$BL$6*$BL$12*P45 -> 0.0007256962738 | BD45: =$BL$13*$BL$14*2 -> 3e-05 | BE45: =AZ45*$BL$8 -> 0.001183754168 | BF45: =BA45*(E46-E45) -> 0.0001991446431 | BG45: =BB45*(E46-E45) -> 1e-05 | BH45: =BC45*$BL$12 -> 3.628481369e-07 | BI45: =BD45*(F46-F45) -> 6e-06 | BJ45: =$BE45*$BB$36 -> 0.02367508336 | BK45: =$BF45*$BB$38 -> 0.01692729467 | BL45: =$BG45*$BB$37 -> 0.0051 | BM45: =$BH45*$BB$35 -> 0.0005442722054 | BN45: =$BI45*$BB$35 -> 0.009 | BO45: =$BL$15*P45*P45+$BL$16*P45+$BL$17*(F46-F45) -> 0.0258 | BP45: =$BG$4/$D$33*2 -> 0.1671193449 | BQ45: =SUM(BJ45:BO45) -> 0.08104665023 | BR45: =SUM(BP45:BQ45) -> 0.2481659952 | BT45: =AB45*AB45+AC45*AC45 -> 0 | BU45: =AC45*AC45 -> 0 | BV45: =AB45*AB45 -> 0
C46: 1 | D46: =IF(C46<$M$7,"flat",IF(C46<$M$8,"1st",IF(C46<$M$9,"2nd",IF(C46<$M$10,"3rd",IF(C46<$M$11,"4th","Winglet"))))) -> flat | E46: =$D$30*C46 -> 0.2 | F46: =F45+$D$30*COS(RADIANS(J46)) -> 0.2 | G46: =G45+$D$30*SIN(RADIANS(J46)) -> 0 | H46: =F47-F46 -> 0.2 | I46: -4 | J46: 0 | K46: =IF($D46="flat",$AC$6*$E46+$AD$6,IF($D46="1st",$AC$7*$E46+$AD$7,IF($D46="2nd",$AC$8*$E46+$AD$8,IF($D46="3rd",$AC$9*$E46+$AD$9,IF($D46="4th",$AC$10*$E46+$AD$10,$AC$11*$E46+$AD$11))))) -> -4 | L46: -4 | M46: =$D$32*SQRT(1-(E46/($D$5/2))^2) -> 1.193984925 | N46: =M46*$D$31 -> 0.2984962311 | O46: =N46-M46 -> -0.8954886934 | P46: =IF($D46="flat",$AA$6*$E46+$AB$6,IF($D46="1st",$AA$7*$E46+$AB$7,IF($D46="2nd",$AA$8*$E46+$AB$8,IF($D46="3rd",$AA$9*$E46+$AB$9,IF($D46="4th",$AA$10*$E46+$AB$10,$AA$11*$E46+$AB$11))))) -> 1.2 | Q46: =P46*$D$31 -> 0.3 | R46: =Q46-P46 -> -0.9 | T46: -1.996762385 | U46: 600655.3524 | V46: -0.1985209735 | W46: 0.008185735904 | X46: 0.002778111259 | Y46: 0 | Z46: 0 | AA46: 0.002778111259 | AB46: 0.2 | AC46: 0 | AD46: 0.2 | AE46: 0 | AF46: 0 | AG46: 0 | AH46: 0 | AI46: 0 | AJ46: 0 | AK46: -0.952900673 | AL46: 0.1095950962 | AM46: 0.7848679614 | AZ46: =$BL$7*P46*P46 -> 0.1183754168 | BA46: =$BL$5*$BL$9*P46 -> 0.0009957232156 | BB46: =$BL$11*$BL$10 -> 5e-05 | BC46: =$BL$6*$BL$12*P46 -> 0.0007256962738 | BD46: =$BL$13*$BL$14*2 -> 3e-05 | BE46: =AZ46*$BL$8 -> 0.001183754168 | BF46: =BA46*(E47-E46) -> 0.0001991446431 | BG46: =BB46*(E47-E46) -> 1e-05 | BH46: =BC46*$BL$12 -> 3.628481369e-07 | BI46: =BD46*(F47-F46) -> 6e-06 | BJ46: 0.02367508336 | BK46: 0.01692729467 | BL46: 0.0051 | BM46: 0.0005442722054 | BN46: 0.009 | BO46: =$BL$15*P46*P46+$BL$16*P46+$BL$17*(F47-F46) -> 0.0258 | BP46: =$BG$4/$D$33*2 -> 0.1671193449 | BQ46: =SUM(BJ46:BO46) -> 0.08104665023 | BR46: =SUM(BP46:BQ46) -> 0.2481659952 | BT46: =AB46*AB46+AC46*AC46 -> 0.04 | BU46: =AC46*AC46 -> 0 | BV46: =AB46*AB46 -> 0.04
C47: 2 | D47: =IF(C47<$M$7,"flat",IF(C47<$M$8,"1st",IF(C47<$M$9,"2nd",IF(C47<$M$10,"3rd",IF(C47<$M$11,"4th","Winglet"))))) -> flat | E47: =$D$30*C47 -> 0.4 | F47: =F46+$D$30*COS(RADIANS(J47)) -> 0.4 | G47: =G46+$D$30*SIN(RADIANS(J47)) -> 0 | H47: =F48-F47 -> 0.2 | I47: -4 | J47: 0 | K47: -4 | L47: -4 | M47: =$D$32*SQRT(1-(E47/($D$5/2))^2) -> 1.175755077 | N47: =M47*$D$31 -> 0.2939387691 | O47: =N47-M47 -> -0.8818163074 | P47: 1.2 | Q47: =P47*$D$31 -> 0.3 | R47: =Q47-P47 -> -0.9 | T47: -1.983493101 | U47: 600655.3524 | V47: -0.1956937769 | W47: 0.008185735904 | X47: 0.002759679221 | Y47: 0 | Z47: 0 | AA47: 0.002759679221 | AB47: 0.4 | AC47: 0 | AD47: 0.2 | AE47: 0 | AF47: 0 | AG47: 0 | AH47: 0 | AI47: 0 | AJ47: 0 | AK47: -0.939330129 | AL47: 0.1114481913 | AM47: 0.7981372448 | AZ47: =$BL$7*P47*P47 -> 0.1183754168 | BA47: =$BL$5*$BL$9*P47 -> 0.0009957232156 | BB47: 5e-05 | BC47: =$BL$6*$BL$12*P47 -> 0.0007256962738 | BD47: 3e-05 | BE47: =AZ47*$BL$8 -> 0.001183754168 | BF47: =BA47*(E48-E47) -> 0.0001991446431 | BG47: =BB47*(E48-E47) -> 1e-05 | BH47: =BC47*$BL$12 -> 3.628481369e-07 | BI47: =BD47*(F48-F47) -> 6e-06 | BJ47: 0.02367508336 | BK47: 0.01692729467 | BL47: 0.0051 | BM47: 0.0005442722054 | BN47: 0.009 | BO47: =$BL$15*P47*P47+$BL$16*P47+$BL$17*(F48-F47) -> 0.0258 | BP47: 0.1671193449 | BQ47: =SUM(BJ47:BO47) -> 0.08104665023 | BR47: =SUM(BP47:BQ47) -> 0.2481659952 | BT47: =AB47*AB47+AC47*AC47 -> 0.16 | BU47: =AC47*AC47 -> 0 | BV47: =AB47*AB47 -> 0.16
C48: 3 | D48: flat | E48: 0.6 | F48: 0.6 | G48: 0 | H48: 0.2 | I48: -4 | J48: 0 | K48: -4 | L48: -4 | M48: 1.144727042 | N48: 0.2861817604 | O48: -0.8585452813 | P48: 1.2 | Q48: 0.3 | R48: -0.9 | T48: -1.96322043 | U48: 600655.3524 | V48: -0.1912357281 | W48: 0.008185735904 | X48: 0.002731517889 | Y48: 0 | Z48: 0 | AA48: 0.002731517889 | AB48: 0.6 | AC48: 0 | AD48: 0.2 | AE48: 0 | AF48: 0 | AG48: 0 | AH48: 0 | AI48: 0 | AJ48: 0 | AK48: -0.9179314948 | AL48: 0.1142793537 | AM48: 0.8184099166 | AZ48: 0.1183754168 | BA48: 0.0009957232156 | BB48: 5e-05 | BC48: 0.0007256962738 | BD48: 3e-05 | BE48: 0.001183754168 | BF48: 0.0001991446431 | BG48: 1e-05 | BH48: 3.628481369e-07 | BI48: 6e-06 | BJ48: 0.02367508336 | BK48: 0.01692729467 | BL48: 0.0051 | BM48: 0.0005442722054 | BN48: 0.009 | BO48: 0.0258 | BP48: 0.1671193449 | BQ48: 0.08104665023 | BR48: 0.2481659952 | BT48: 0.36 | BU48: 0 | BV48: 0.36
C49: 4 | D49: flat | E49: 0.8 | F49: 0.8 | G49: 0 | H49: 0.2 | I49: -4 | J49: 0 | K49: -4 | L49: -4 | M49: 1.099818167 | N49: 0.2749545417 | O49: -0.8248636251 | P49: 1.2 | Q49: 0.3 | R49: -0.9 | T49: -1.935542904 | U49: 600655.3524 | V49: -0.1848467606 | W49: 0.008185735904 | X49: 0.00269306777 | Y49: 0 | Z49: 0 | AA49: 0.00269306777 | AB49: 0.8 | AC49: 0 | AD49: 0.2 | AE49: 0 | AF49: 0 | AG49: 0 | AH49: 0 | AI49: 0 | AJ49: 0 | AK49: -0.8872644507 | AL49: 0.1181446808 | AM49: 0.8460874419 | AZ49: 0.1183754168 | BA49: 0.0009957232156 | BB49: 5e-05 | BC49: 0.0007256962738 | BD49: 3e-05 | BE49: 0.001183754168 | BF49: 0.0001991446431 | BG49: 1e-05 | BH49: 3.628481369e-07 | BI49: 6e-06 | BJ49: 0.02367508336 | BK49: 0.01692729467 | BL49: 0.0051 | BM49: 0.0005442722054 | BN49: 0.009 | BO49: 0.0258 | BP49: 0.1671193449 | BQ49: 0.08104665023 | BR49: 0.2481659952 | BT49: 0.64 | BU49: 0 | BV49: 0.64
C50: 5 | D50: flat | E50: 1 | F50: 1 | G50: 0 | H50: 0.2 | I50: -4 | J50: 0 | K50: -4 | L50: -4 | M50: 1.039230485 | N50: 0.2598076211 | O50: -0.7794228634 | P50: 1.2 | Q50: 0.3 | R50: -0.9 | T50: -1.900014661 | U50: 600655.3524 | V50: -0.1760455256 | W50: 0.008185735904 | X50: 0.002643707907 | Y50: 0 | Z50: 0 | AA50: 0.002643707907 | AB50: 1 | AC50: 0 | AD50: 0.2 | AE50: 0 | AF50: 0 | AG50: 0 | AH50: 0 | AI50: 0 | AJ50: 0 | AK50: -0.8450185228 | AL50: 0.1231064873 | AM50: 0.8816156848 | AZ50: 0.1183754168 | BA50: 0.0009957232156 | BB50: 5e-05 | BC50: 0.0007256962738 | BD50: 3e-05 | BE50: 0.001183754168 | BF50: 0.0001991446431 | BG50: 1e-05 | BH50: 3.628481369e-07 | BI50: 6e-06 | BJ50: 0.02367508336 | BK50: 0.01692729467 | BL50: 0.0051 | BM50: 0.0005442722054 | BN50: 0.009 | BO50: 0.0258 | BP50: 0.1671193449 | BQ50: 0.08104665023 | BR50: 0.2481659952 | BT50: 1 | BU50: 0 | BV50: 1
C51: 6 | D51: flat | E51: 1.2 | F51: 1.2 | G51: 0 | H51: 0.2 | I51: -4 | J51: 0 | K51: -4 | L51: -4 | M51: 0.96 | N51: 0.24 | O51: -0.72 | P51: 1.2 | Q51: 0.3 | R51: -0.9 | T51: -1.856259148 | U51: 600655.3524 | V51: -0.164054931 | W51: 0.008185735904 | X51: 0.002582911868 | Y51: 0 | Z51: 0 | AA51: 0.002582911868 | AB51: 1.2 | AC51: 0 | AD51: 0.2 | AE51: 0 | AF51: 0 | AG51: 0 | AH51: 0 | AI51: 0 | AJ51: 0 | AK51: -0.787463669 | AL51: 0.1292174292 | AM51: 0.9253711978 | AZ51: 0.1183754168 | BA51: 0.0009957232156 | BB51: 5e-05 | BC51: 0.0007256962738 | BD51: 3e-05 | BE51: 0.001183754168 | BF51: 0.0001991446431 | BG51: 1e-05 | BH51: 3.628481369e-07 | BI51: 6e-06 | BJ51: 0.02367508336 | BK51: 0.01692729467 | BL51: 0.0051 | BM51: 0.0005442722054 | BN51: 0.009 | BO51: 0.0258 | BP51: 0.1671193449 | BQ51: 0.08104665023 | BR51: 0.2481659952 | BT51: 1.44 | BU51: 0 | BV51: 1.44
C52: 7 | D52: flat | E52: 1.4 | F52: 1.4 | G52: 0 | H52: 0.2 | I52: -4 | J52: 0 | K52: -4 | L52: -4 | M52: 0.8569714114 | N52: 0.2142428529 | O52: -0.6427285586 | P52: 1.2 | Q52: 0.3 | R52: -0.9 | T52: -1.80412679 | U52: 600655.3524 | V52: -0.1475492607 | W52: 0.008185735904 | X52: 0.002510469174 | Y52: 0 | Z52: 0 | AA52: 0.002510469174 | AB52: 1.4 | AC52: 0 | AD52: 0.2 | AE52: 0 | AF52: 0 | AG52: 0 | AH52: 0 | AI52: 0 | AJ52: 0 | AK52: -0.7082364514 | AL52: 0.1364984876 | AM52: 0.977503556 | AZ52: 0.1183754168 | BA52: 0.0009957232156 | BB52: 5e-05 | BC52: 0.0007256962738 | BD52: 3e-05 | BE52: 0.001183754168 | BF52: 0.0001991446431 | BG52: 1e-05 | BH52: 3.628481369e-07 | BI52: 6e-06 | BJ52: 0.02367508336 | BK52: 0.01692729467 | BL52: 0.0051 | BM52: 0.0005442722054 | BN52: 0.009 | BO52: 0.0258 | BP52: 0.1671193449 | BQ52: 0.08104665023 | BR52: 0.2481659952 | BT52: 1.96 | BU52: 0 | BV52: 1.96
C53: 8 | D53: flat | E53: 1.6 | F53: 1.6 | G53: 0 | H53: 0.2 | I53: -4 | J53: 0 | K53: -4 | L53: -4 | M53: 0.72 | N53: 0.18 | O53: -0.54 | P53: 1.2 | Q53: 0.3 | R53: -0.9 | T53: -1.743787542 | U53: 600655.3524 | V53: -0.1239719268 | W53: 0.008185735904 | X53: 0.002426611725 | Y53: 0 | Z53: 0 | AA53: 0.002426611725 | AB53: 1.6 | AC53: 0 | AD53: 0.2 | AE53: 0 | AF53: 0 | AG53: 0 | AH53: 0 | AI53: 0 | AJ53: 0 | AK53: -0.5950652489 | AL53: 0.1449260432 | AM53: 1.037842804 | AZ53: 0.1183754168 | BA53: 0.0009957232156 | BB53: 5e-05 | BC53: 0.0007256962738 | BD53: 3e-05 | BE53: 0.001183754168 | BF53: 0.0001991446431 | BG53: 1e-05 | BH53: 3.628481369e-07 | BI53: 6e-06 | BJ53: 0.02367508336 | BK53: 0.01692729467 | BL53: 0.0051 | BM53: 0.0005442722054 | BN53: 0.009 | BO53: 0.0258 | BP53: 0.1671193449 | BQ53: 0.08104665023 | BR53: 0.2481659952 | BT53: 2.56 | BU53: 0 | BV53: 2.56
C54: 9 | D54: flat | E54: 1.8 | F54: 1.8 | G54: 0 | H54: 0.2 | I54: -4 | J54: 0 | K54: -4 | L54: -4 | M54: 0.5230678732 | N54: 0.1307669683 | O54: -0.3923009049 | P54: 1.2 | Q54: 0.3 | R54: -0.9 | T54: -1.675253066 | U54: 600655.3524 | V54: -0.0868830674 | W54: 0.008185735904 | X54: 0.002331351861 | Y54: 0 | Z54: 0 | AA54: 0.002331351861 | AB54: 1.8 | AC54: 0 | AD54: 0.2 | AE54: 0 | AF54: 0 | AG54: 0 | AH54: 0 | AI54: 0 | AJ54: 0 | AK54: -0.4170387235 | AL54: 0.1544986137 | AM54: 1.10637728 | AZ54: 0.1183754168 | BA54: 0.0009957232156 | BB54: 5e-05 | BC54: 0.0007256962738 | BD54: 3e-05 | BE54: 0.001183754168 | BF54: 0.0001991446431 | BG54: 1e-05 | BH54: 3.628481369e-07 | BI54: 6e-06 | BJ54: 0.02367508336 | BK54: 0.01692729467 | BL54: 0.0051 | BM54: 0.0005442722054 | BN54: 0.009 | BO54: 0.0258 | BP54: 0.1671193449 | BQ54: 0.08104665023 | BR54: 0.2481659952 | BT54: 3.24 | BU54: 0 | BV54: 3.24
C55: 10 | D55: Winglet | E55: 2 | F55: 2 | G55: 0 | H55: 0 | I55: -4 | J55: 0 | K55: -4 | L55: -4 | M55: 0 | N55: 0 | O55: 0 | P55: 1.2 | Q55: 0.3 | R55: -0.9 | AB55: 2 | AC55: 0 | AE55: 0 | AF55: 0 | AG55: 0 | AH55: 0 | AI55: 0 | AZ55: 0.1183754168 | BA55: 0.0009957232156 | BB55: 5e-05 | BC55: 0.0007256962738 | BD55: 3e-05 | BE55: 0.001183754168 | BF55: 0 | BG55: 0 | BH55: 3.628481369e-07 | BI55: 0 | BJ55: 0.02367508336 | BK55: 0 | BL55: 0 | BM55: 0.0005442722054 | BN55: 0 | BO55: 0.0198 | BP55: 0.1671193449 | BQ55: 0.04401935557 | BR55: 0.2111387005 | BT55: 4 | BU55: 0 | BV55: 4
E56: =E55 -> 2 | F56: =F55 -> 2 | M56: =$D$32*SQRT(1-(E56/($D$5/2))^2) -> 0 | N56: =M56*$D$31 -> 0 | O56: =N56-M56 -> 0

Sheet 垂直尾翼(sht4)
AY1: -
B2: 垂直尾翼諸元 | L2: 垂直尾翼平面形 | AZ2: ='各種パラメータ(sht0)'!L2 -> 環境条件 | BE2: 重量推算 | BJ2: 垂直尾翼二次構造 | BL2: コード長1mに対して
B3: 名 | C3: 記号 | D3: 値 | E3: 単位 | M3: 翼素番号 | N3: スパン | O3: コード長 [m] | P3: 取り付け角 [deg] | Q3: 上反角 [deg] | R3: 翼型1 | S3: 翼型2 | T3: Δy [m] | U3: Δ翼面積 [m^2] | V3: c(y)傾き [-] | W3: 切片 [m] | AA3: コード傾き | AB3: コード切片 | AC3: 取り付け角傾き | AD3: 取り付け角切片 | AE3: 翼型1傾き | AF3: 翼型1切片 | AG3: 翼型2傾き | AH3: 翼型2切片 | AK3: 翼素番号 | AL3: スパン | AP3: ='各種パラメータ(sht0)'!L3 -> 名 | AQ3: ='各種パラメータ(sht0)'!M3 -> 記号 | AR3: ='各種パラメータ(sht0)'!N3 -> 値 | AS3: ='各種パラメータ(sht0)'!O3 -> 単位 | AZ3: 名 | BA3: 記号 | BB3: 値 | BC3: 単位 | BE3: 名 | BF3: 記号 | BG3: 値 | BH3: 単位 | BJ3: 名 | BK3: 記号 | BL3: 値 | BM3: 単位
B4: 翼面積 | C4: S | D4: =U14 -> 0.75 | E4: m^2 | F4: 設計値 | M4: n | N4: y | O4: c | P4: αs | Q4: Γd | R4: - | S4: - | T4: Δy | U4: ΔS | V4: a | W4: b | X4: ∫c(y)^2dy | Y4: ∫c(y)*(y^2) dy | AA4: - | AB4: - | AC4: - | AD4: - | AE4: - | AF4: - | AG4: - | AH4: - | AK4: n | AL4: y | AP4: =B33 -> 分割数 | AQ4: =C33 -> n | AR4: =D33 -> 6 | AS4: =E33 -> - | AT4: スパン方向．片翼 | AZ4: ='各種パラメータ(sht0)'!L4 -> 空気密度 | BA4: ='各種パラメータ(sht0)'!M4 -> ρ | BB4: ='各種パラメータ(sht0)'!N4 -> 1.164313615 | BC4: ='各種パラメータ(sht0)'!O4 -> kg/m^3 | BE4: 垂直尾翼 | BF4: 桁 | BG4: =BG26 -> 0.1067923355 | BH4: kg | BJ4: 翼型 | BK4: 全周 | BL4: ='垂直翼型解析(sht13)'!P12 -> 2.024368858 | BM4: m
B5: 翼幅 | C5: b | D5: =T14 -> 1.2 | E5: m | M5: - | N5: m | O5: m | P5: deg | Q5: deg | R5: - | S5: - | T5: m | U5: m^2 | V5: - | W5: m | X5: m^3 | Y5: m^4 | AA5: m/m | AB5: m | AC5: deg/m | AD5: deg | AE5: 1/m | AF5: - | AG5: 1/m | AH5: - | AK5: - | AL5: m | AQ5: m | AR5: 9 | AS5: - | AT5: コード方向 | AZ5: ='各種パラメータ(sht0)'!L5 -> 重力加速度 | BA5: ='各種パラメータ(sht0)'!M5 -> g | BB5: ='各種パラメータ(sht0)'!N5 -> 9.795 | BC5: ='各種パラメータ(sht0)'!O5 -> m/s^2 | BF5: リブ | BG5: =SUM(BJ45:BJ51)*2 -> 0.06789504266 | BH5: kg | BK5: プランク長 | BL5: ='垂直翼型解析(sht13)'!P13 -> 0.8158216923 | BM5: m
B6: アスペクト比 | C6: AR | D6: =(D5*D5)/D4 -> 1.92 | E6: - | L6: 矩形部 [0] | M6: =INT(N6/$D$30) -> 0 | N6: 0 | O6: 0.5 | P6: =$D$23 -> 0 | Q6: 0 | R6: 1 | T6: =N7-N6 -> 0.3 | U6: =(O6+O7)*T6/2 -> 0.1875 | V6: =LINEST(O6:O7,N6:N7,TRUE,FALSE) -> 0.8333333333 | W6: 0.5 | X6: =IF(V6=0,W6^2*(N7-N6),((V6*N7+W6)^3-(V6*N6+W6)^3)/(3*V6)) -> 0.11875 | Y6: =(AA6/3)*((N7^3)-(N6^3))+(AB6/2)*((N7^2)-(N6^2)) -> 0.03 | AA6: =LINEST(O6:O7,N6:N7,TRUE,FALSE) -> 0.8333333333 | AB6: 0.5 | AC6: =LINEST(P6:P7,N6:N7,TRUE,FALSE) -> 0 | AD6: 0 | AE6: =LINEST(R6:R7,N6:N7,TRUE,TRUE) -> 0 | AF6: 1 | AJ6: 0番 | AK6: =AL6/$D$30 -> 0 | AL6: 0 | AZ6: ='各種パラメータ(sht0)'!L6 -> 粘性係数 | BA6: ='各種パラメータ(sht0)'!M6 -> μ | BB6: ='各種パラメータ(sht0)'!N6 -> 1.860869242e-05 | BC6: ='各種パラメータ(sht0)'!O6 -> N・s/m^2 | BF6: プランク | BG6: =SUM(BK45:BK51)*2 -> 0.1063287606 | BH6: kg | BK6: リブ材長 | BL6: ='垂直翼型解析(sht13)'!P14 -> 1.208547166 | BM6: m
B7: 平均空力翼弦長 | C7: cMAC | D7: =(2/D4)*X14 -> 1.266666667 | E7: m | F7: 白本p.44 銀本p.77 | L7: 第一段テーパー [1] | M7: =INT(N7/$D$30) -> 1 | N7: 0.3 | O7: 0.75 | P7: =$D$23 -> 0 | Q7: 0 | R7: 1 | T7: =N8-N7 -> 0.9 | U7: =(O7+O8)*T7/2 -> 0.5625 | V7: =LINEST(O7:O8,N7:N8,TRUE,FALSE) -> -0.2777777778 | W7: 0.8333333333 | X7: =IF(V7=0,W7^2*(N8-N7),((V7*N8+W7)^3-(V7*N7+W7)^3)/(3*V7)) -> 0.35625 | Y7: =(AA7/3)*((N8^3)-(N7^3))+(AB7/2)*((N8^2)-(N7^2)) -> 0.405 | AA7: =LINEST(O7:O8,N7:N8,TRUE,FALSE) -> -0.2777777778 | AB7: 0.8333333333 | AC7: =LINEST(P7:P8,N7:N8,TRUE,FALSE) -> 0 | AD7: 0 | AE7: =LINEST(R7:R8,N7:N8,TRUE,TRUE) -> 0 | AF7: 1 | AJ7: 1番 | AK7: 12 | AL7: ='スパー寸法(sht20)'!M8 -> 2.4 | AP7: 翼面積 | AQ7: S | AR7: 0.7666666667 | AS7: m^2 | AZ7: ='各種パラメータ(sht0)'!L7 -> 動粘性係数 | BA7: ='各種パラメータ(sht0)'!M7 -> ν | BB7: ='各種パラメータ(sht0)'!N7 -> 1.5982543e-05 | BC7: ='各種パラメータ(sht0)'!O7 -> m^2/s | BF7: リブ材 | BG7: =SUM(BM45:BM51)*2 -> 0.003927778289 | BH7: kg | BK7: リブ面積 | BL7: ='垂直翼型解析(sht13)'!P15 -> 0.06165357013 | BM7: m^2
B8: 片翼面積重心 | C8: y_ | D8: =(2*Y14)/D4 -> 1.16 | E8: m | F8: 白本p.44． | L8: 第二段テーパー [2] | M8: 6 | N8: 1.2 | O8: 0.5 | P8: 0 | Q8: 0 | R8: 1 | T8: 0 | U8: 0 | V8: =LINEST(O8:O9,N8:N9,TRUE,FALSE) -> 0 | W8: 0.5 | X8: 0 | Y8: 0 | AA8: =LINEST(O8:O9,N8:N9,TRUE,FALSE) -> 0 | AB8: 0.5 | AC8: =LINEST(P8:P9,N8:N9,TRUE,FALSE) -> 0 | AD8: 0 | AE8: =LINEST(R8:R9,N8:N9,TRUE,TRUE) -> 0 | AF8: 1 | AJ8: 2番 | AK8: 37.45 | AL8: ='スパー寸法(sht20)'!M10 -> 7.49 | AP8: 翼幅 | AQ8: b | AR8: 1.2 | AS8: m | AZ8: ='各種パラメータ(sht0)'!L8 -> 気温 | BA8: ='各種パラメータ(sht0)'!M8 -> T | BB8: ='各種パラメータ(sht0)'!N8 -> 30 | BC8: ='各種パラメータ(sht0)'!O8 -> ℃ | BF8: 後縁材 | BG8: =SUM(BN45:BN51)*2 -> 0.108 | BH8: kg | BJ8: リブ | BK8: 厚さ | BL8: 0.01 | BM8: m
B9: 翼面積 | C9: S | D9: =AR7 -> 0.7666666667 | E9: m^2 | F9: 変形考慮 | L9: 第三段テーパー [3] | M9: 6 | N9: =N8 -> 1.2 | O9: 0.5 | P9: 0 | Q9: 0 | R9: 1 | T9: 0 | U9: 0 | V9: =LINEST(O9:O10,N9:N10,TRUE,FALSE) -> 0 | W9: 0.5 | X9: 0 | Y9: 0 | AA9: =LINEST(O9:O10,N9:N10,TRUE,FALSE) -> 0 | AB9: 0.5 | AC9: =LINEST(P9:P10,N9:N10,TRUE,FALSE) -> 0 | AD9: 0 | AE9: =LINEST(R9:R10,N9:N10,TRUE,TRUE) -> 0 | AF9: 1 | AJ9: 3番 | AK9: 60 | AL9: ='スパー寸法(sht20)'!M12 -> 12 | AP9: アスペクト比 | AQ9: AR | AR9: 1.87826087 | AS9: - | BB9: ='各種パラメータ(sht0)'!N9 -> 303.15 | BC9: ='各種パラメータ(sht0)'!O9 -> K | BF9: 縦通材 | BG9: =SUM(BL45:BL51)*2 -> 0.0612 | BH9: kg | BJ9: プランク | BK9: 厚さ | BL9: =1*10^-3 -> 0.001 | BM9: m
B10: 翼幅 | C10: b | D10: =AR8 -> 1.2 | E10: m | L10: 第四段テーパー | M10: 6 | N10: 1.2 | O10: 0.5 | P10: 0 | Q10: 0 | R10: 1 | T10: 0 | U10: 0 | V10: =LINEST(O10:O11,N10:N11,TRUE,FALSE) -> 0 | W10: 0.5 | X10: 0 | Y10: 0 | AA10: =LINEST(O10:O11,N10:N11,TRUE,FALSE) -> 0 | AB10: 0.5 | AC10: =LINEST(P10:P11,N10:N11,TRUE,FALSE) -> 0 | AD10: 0 | AE10: =LINEST(R10:R11,N10:N11,TRUE,TRUE) -> 0 | AF10: 1 | AJ10: ウィングレット [4] | AK10: 60 | AL10: =AL9 -> 12 | AP10: 平均空力翼弦長 | AQ10: c_ | AR10: 0.6469404187 | AS10: m | AZ10: ='各種パラメータ(sht0)'!L10 -> 圧力 | BA10: ='各種パラメータ(sht0)'!M10 -> P | BB10: ='各種パラメータ(sht0)'!N10 -> 1013 | BC10: ='各種パラメータ(sht0)'!O10 -> hPa | BF10: 接着剤 | BG10: =SUM(BO45:BO51)*2 -> 0.1782962963 | BH10: kg | BJ10: 縦通材 | BK10: 本数 | BL10: 5 | BM10: -
B11: アスペクト比 | C11: AR | D11: =AR9 -> 1.87826087 | E11: - | L11: ウィングレット [5] | M11: 6 | N11: 1.2 | O11: 0.5 | P11: 0 | Q11: 0 | R11: 1 | T11: 0 | U11: 0 | V11: =LINEST(O11:O12,N11:N12,TRUE,FALSE) -> 0 | W11: 0.5 | X11: 0 | Y11: 0 | AA11: =LINEST(O11:O12,N11:N12,TRUE,FALSE) -> 0 | AB11: 0.5 | AC11: =LINEST(P11:P12,N11:N12,TRUE,FALSE) -> 0 | AD11: 0 | AE11: =LINEST(R11:R12,N11:N12,TRUE,TRUE) -> 0 | AF11: 1 | AJ11: 翼端 | AK11: 65 | AL11: ='スパー寸法(sht20)'!M14 -> 13 | AP11: 片翼面積重心 | AQ11: y_ | AR11: 0.5710144928 | AS11: m | BB11: ='各種パラメータ(sht0)'!N11 -> 101300 | BC11: ='各種パラメータ(sht0)'!O11 -> Pa | BF11: その他 | BG11: 0 | BH11: kg | BK11: 断面積 | BL11: =10*10^-6 -> 1e-05 | BM11: m^2
B12: 平均空力翼弦長 | C12: c_ | D12: =AR10 -> 0.6469404187 | E12: m | L12: 翼端 | M12: 6 | N12: 1.2 | O12: 0.5 | P12: 0 | Q12: 0 | R12: 1 | T12: 0 | U12: 0 | V12: =LINEST(O12:O13,N12:N13,TRUE,FALSE) -> 0 | W12: 0.5 | X12: 0 | Y12: 0 | AJ12: - | AK12: - | AL12: - | AP12: 翼効率 | AQ12: e | AR12: 0 | AS12: - | AZ12: ='各種パラメータ(sht0)'!L12 -> 一般気体定数 | BA12: ='各種パラメータ(sht0)'!M12 -> R | BB12: ='各種パラメータ(sht0)'!N12 -> 287 | BC12: ='各種パラメータ(sht0)'!O12 -> J/kg・K | BF12: 合計 | BG12: =SUM(BG4:BG11) -> 0.6324402133 | BH12: kg | BJ12: リブ材 | BK12: 厚さ | BL12: =0.5*10^-3 -> 0.0005 | BM12: m
B13: 片翼面積重心 | C13: y_ | D13: =AR11 -> 0.5710144928 | E13: m | L13: 翼端 | M13: 6 | N13: 1.2 | O13: 0.5 | AP13: 水平尾翼二次元揚力傾斜 | AQ13: Clα | AR13: 0.1096622711 | AS13: 1/deg | AZ13: ='各種パラメータ(sht0)'!L13 -> 比熱比 | BA13: ='各種パラメータ(sht0)'!M13 -> κ | BB13: ='各種パラメータ(sht0)'!N13 -> 1.4 | BC13: ='各種パラメータ(sht0)'!O13 -> - | BJ13: 後縁材 | BK13: 幅 | BL13: 0.02 | BM13: m
B14: 空力中心 | C14: hac | D14: 0.25 | E14: - | L14: 合計 | T14: =SUM(T6:T13) -> 1.2 | U14: =SUM(U6:U13) -> 0.75 | X14: =SUM(X6:X13) -> 0.475 | Y14: =SUM(Y6:Y13) -> 0.435 | AP14: 水平尾翼三次元揚力傾斜 | AQ14: at | AR14: 0.05310997884 | AS14: 1/deg | AZ14: ='各種パラメータ(sht0)'!L14 -> 音速 | BA14: ='各種パラメータ(sht0)'!M14 -> a | BB14: ='各種パラメータ(sht0)'!N14 -> 349.0066905 | BC14: ='各種パラメータ(sht0)'!O14 -> m/s | BK14: 厚さ | BL14: =0.75*10^-3 -> 0.00075 | BM14: m
B15: 翼効率 | C15: e | D15: =AR12 -> 0 | E15: - | AP15: 揚力係数 | AQ15: CL | AR15: 0 | AS15: - | AZ15: ='各種パラメータ(sht0)'!L15 -> カルマン定数 | BA15: ='各種パラメータ(sht0)'!M15 -> k | BB15: ='各種パラメータ(sht0)'!N15 -> 0.4 | BC15: ='各種パラメータ(sht0)'!O15 -> - | BJ15: 接着剤① | BK15: リブ面積に比例するもの | BL15: 0.0075 | BM15: kg
B16: 主翼二次元揚力傾斜 | C16: Clα | D16: =AR13 -> 0.1096622711 | E16: 1/deg | AP16: 有害抗力係数 | AQ16: CDp | AR16: 0.008185735904 | AS16: - | AZ16: ='各種パラメータ(sht0)'!L16 -> 粗度 | BA16: ='各種パラメータ(sht0)'!M16 -> z0 | BB16: ='各種パラメータ(sht0)'!N16 -> 0.01 | BC16: ='各種パラメータ(sht0)'!O16 -> - | BJ16: 接着剤② | BK16: コード長に比例するもの | BL16: 0.0075 | BM16: kg
B17: 主翼三次元揚力傾斜 | C17: aw | D17: =AR14 -> 0.05310997884 | E17: 1/deg | AP17: 誘導抗力係数 | AQ17: Cdi | AR17: 0 | AS17: - | BJ17: 接着剤③ | BK17: スパンに比例するもの | BL17: 0.03 | BM17: kg
B18: 揚力係数 | C18: CL | D18: =AR15 -> 0 | E18: - | AP18: 抗力係数 | AQ18: CD | AR18: 0.008185735904 | AS18: - | AZ18: 解析用 | BE18: 垂直尾翼桁
B19: 抗力係数 | C19: CD | D19: =AR18 -> 0.008185735904 | E19: - | AP19: ピッチングモーメント係数 | AQ19: Cm0 | AR19: -0.00117908403 | AS19: - | AZ19: 名 | BA19: 記号 | BB19: 値 | BC19: 単位 | BE19: 名 | BF19: 記号 | BG19: 値 | BH19: 単位
B20: ピッチングモーメント係数 | C20: Cm | D20: 0 | E20: - | M20: ='主翼翼型1解析(sht10)'!G2 -> 0 | N20: ='主翼翼型1解析(sht10)'!H2 -> 0 | O20: ='主翼翼型1解析(sht10)'!I2 -> 0 | P20: ='主翼翼型1解析(sht10)'!J2 -> 0 | Q20: ='主翼翼型1解析(sht10)'!K2 -> 0 | R20: ='主翼翼型1解析(sht10)'!L2 -> 0 | S20: ='主翼翼型1解析(sht10)'!M2 -> 0 | T20: ='主翼翼型1解析(sht10)'!N2 -> 0 | U20: ='主翼翼型1解析(sht10)'!O2 -> 0 | V20: ='主翼翼型1解析(sht10)'!P2 -> 0 | W20: ='主翼翼型1解析(sht10)'!Q2 -> 0 | X20: ='主翼翼型1解析(sht10)'!R2 -> 0 | Y20: ='主翼翼型1解析(sht10)'!S2 -> 0 | Z20: ='主翼翼型1解析(sht10)'!T2 -> 0 | AA20: ='主翼翼型1解析(sht10)'!U2 -> 0 | AC20: キャンバーライン | AR20: -3.303056057e-05 | AZ20: 全機迎角 | BA20: α | BB20: 2.152632045 | BC20: deg | BE20: 内径 | BF20: - | BG20: 0.03 | BH20: m
B21: 平均誘導迎え角 | C21: αi_ | E21: deg | L21: ='主翼翼型1解析(sht10)'!F3 -> 0 | M21: ='水平翼型解析(sht12)'!G3 -> 0 | N21: ='水平翼型解析(sht12)'!H3 -> 0 | O21: ='水平翼型解析(sht12)'!I3 -> 0 | P21: ='水平翼型解析(sht12)'!J3 -> 0 | Q21: ='水平翼型解析(sht12)'!K3 -> 0 | R21: ='水平翼型解析(sht12)'!L3 -> 0 | S21: ='水平翼型解析(sht12)'!M3 -> 0 | T21: ='水平翼型解析(sht12)'!N3 -> 0 | U21: ='水平翼型解析(sht12)'!O3 -> 0 | AC21: ='水平翼型解析(sht12)'!AB2 -> - | AD21: ='水平翼型解析(sht12)'!AC2 -> 1 | AE21: ='水平翼型解析(sht12)'!AD2 -> x^1 | AF21: ='水平翼型解析(sht12)'!AE2 -> x^2 | AG21: ='水平翼型解析(sht12)'!AF2 -> x^3 | AH21: ='水平翼型解析(sht12)'!AG2 -> x^4 | AI21: ='水平翼型解析(sht12)'!AH2 -> x^5 | AJ21: ='水平翼型解析(sht12)'!AI2 -> x^6 | AK21: ='水平翼型解析(sht12)'!AJ2 -> x^7 | AL21: ='水平翼型解析(sht12)'!AK2 -> x^8 | AR21: -0.0001060326851 | AZ21: 横滑り角 | BA21: β | BB21: 0 | BC21: deg | BE21: 厚さ | BF21: - | BG21: ='垂直尾翼積層構成(sht25)'!I33 -> 0.000588 | BH21: m
B22: 尾翼形式 | C22: - | D22: ='全機計算(sht8)'!N19 -> Conventional | E22: - | L22: ='主翼翼型1解析(sht10)'!F4 -> 0 | M22: ='水平翼型解析(sht12)'!G4 -> 0 | N22: ='水平翼型解析(sht12)'!H4 -> 0 | O22: ='水平翼型解析(sht12)'!I4 -> 0 | P22: ='水平翼型解析(sht12)'!J4 -> 0 | Q22: ='水平翼型解析(sht12)'!K4 -> 0 | R22: ='水平翼型解析(sht12)'!L4 -> 0 | S22: ='水平翼型解析(sht12)'!M4 -> 0 | T22: ='水平翼型解析(sht12)'!N4 -> 0 | U22: ='水平翼型解析(sht12)'!O4 -> 0 | V22: ='水平翼型解析(sht12)'!P4 -> 0 | W22: ='水平翼型解析(sht12)'!Q4 -> 0 | X22: ='水平翼型解析(sht12)'!R4 -> 0 | Y22: ='水平翼型解析(sht12)'!S4 -> 0 | Z22: ='水平翼型解析(sht12)'!T4 -> 0 | AA22: ='水平翼型解析(sht12)'!U4 -> 0 | AC22: zc | AD22: ='水平翼型解析(sht12)'!AC3 -> 0 | AE22: ='水平翼型解析(sht12)'!AD3 -> 0 | AF22: ='水平翼型解析(sht12)'!AE3 -> 0 | AG22: ='水平翼型解析(sht12)'!AF3 -> 0 | AH22: ='水平翼型解析(sht12)'!AG3 -> 0 | AI22: ='水平翼型解析(sht12)'!AH3 -> 0 | AJ22: ='水平翼型解析(sht12)'!AI3 -> 0 | AK22: ='水平翼型解析(sht12)'!AJ3 -> 0 | AL22: ='水平翼型解析(sht12)'!AK3 -> 0 | AR22: 0.0006711687087 | AZ22: 対気速度 | BA22: V | BB22: 8 | BC22: m/s | BE22: 断面積 | BF22: - | BG22: =PI()*((BG20+2*BG21)*(BG20+2*BG21) -BG20*BG20)/4 -> 5.650388122e-05 | BH22: m^2
L23: ='主翼翼型1解析(sht10)'!F5 -> 0 | M23: ='水平翼型解析(sht12)'!G5 -> 0 | N23: ='水平翼型解析(sht12)'!H5 -> 0 | O23: ='水平翼型解析(sht12)'!I5 -> 0 | P23: ='水平翼型解析(sht12)'!J5 -> 0 | Q23: ='水平翼型解析(sht12)'!K5 -> 0 | R23: ='水平翼型解析(sht12)'!L5 -> 0 | S23: ='水平翼型解析(sht12)'!M5 -> 0 | T23: ='水平翼型解析(sht12)'!N5 -> 0 | U23: ='水平翼型解析(sht12)'!O5 -> 0 | V23: ='水平翼型解析(sht12)'!P5 -> 0 | W23: ='水平翼型解析(sht12)'!Q5 -> 0 | X23: ='水平翼型解析(sht12)'!R5 -> 0 | Y23: ='水平翼型解析(sht12)'!S5 -> 0 | Z23: ='水平翼型解析(sht12)'!T5 -> 0 | AA23: ='水平翼型解析(sht12)'!U5 -> 0 | AR23: 0.0006711687087 | AZ23: 高度 | BA23: hE | BB23: 100 | BC23: m | BE23: 体積 | BF23: - | BG23: =BG22*D10*BG27 -> 7.119489034e-05 | BH23: m^3
B24: 翼型名 | C24: foil_name | D24: ='垂直翼型解析(sht13)'!X5 -> NACA0009 | E24: - | AR24: -0.004248382799 | AZ24: 角速度 | BA24: p | BB24: 0 | BC24: deg/s | BE24: 重量 | BF24: - | BG24: =BG23*BB35 -> 0.1067923355 | BH24: kg | BJ24: 垂直尾翼の重心位置・慣性モーメント
AR25: 2.938600097 | BA25: q | BB25: 0 | BC25: deg/s | BE25: 誤差 | BF25: - | BG25: 0 | BH25: kg | BJ25: 名 | BK25: 記号 | BL25: 値 | BM25: 単位
AP26: 揚力 | AQ26: Lift | AR26: 0 | AS26: N | BA26: r | BB26: 0 | BC26: deg/s | BE26: 測定値 | BF26: - | BG26: =BG24+BG25 -> 0.1067923355 | BH26: kg | BJ26: 重量 | BK26: M | BL26: =BG8 -> 0.108 | BM26: kg
AP27: 有害抗力 | AQ27: Dp | AR27: 0.2338214043 | AS27: N | AZ27: 重心移動距離 | BA27: dh | BB27: 0 | BC27: - | BE27: 重なりしろ係数 | BF27: - | BG27: 1.05 | BH27: - | BJ27: 重心位置 | BK27: Xcg | BL27: ='全機計算(sht8)'!N6 -> 4.561824916 | BM27: m
AP28: 誘導抗力 | AQ28: Di | AR28: 0 | AS28: N | AZ28: エレベータ舵角 | BA28: de | BB28: 0 | BC28: deg | BK28: Ycg | BL28: 0 | BM28: m
AP29: 抗力 | AQ29: D | AR29: 0.2338214043 | AS29: N | AZ29: ラダー舵角 | BA29: dr | BB29: 0 | BC29: deg | BK29: Zcg | BL29: ='全機計算(sht8)'!S34+SUMPRODUCT(AB45:AB47,BL45:BL47)/SUM(BL45:BL47) -> 0.55 | BM29: m
B30: リブ間隔 | C30: Δy | D30: 0.2 | E30: m | AP30: ローリングモーメント | AQ30: L | AR30: 0 | AS30: N*m | BJ30: 慣性モーメント | BK30: Ixx | BL30: =SUMPRODUCT(BL45:BL47,BN45:BN47)*2 -> 0.0002754 | BM30: kg*m^2
B31: 桁位置 | C31: - | D31: 0.25 | E31: - | AP31: ピッチングモーメント | AQ31: M | AR31: 0 | AS31: N*m | BK31: Iyy | BL31: =SUMPRODUCT(BL45:BL47,BO45:BO47)*2 -> 0.0004419055556 | BM31: kg*m^2
B32: 翼根コード長 | C32: c0 | D32: =O6 -> 0.5 | E32: m | AP32: ヨーイングモーメント | AQ32: N | AR32: 0 | AS32: N*m | BK32: Izz | BL32: =SUMPRODUCT(BL45:BL47,BP45:BP47)*2 -> 0.001089281822 | BM32: kg*m^2
B33: 分割数 | C33: n | D33: =MAX(M6:M12) -> 6 | E33: - | F33: 片翼分のリブ枚数． | AR33: -0.003785023431 | AZ33: 材料密度 | BK33: Ixy | BL33: 0 | BM33: kg・m^2
AR34: 0.02395854907 | AZ34: 名 | BA34: 記号 | BB34: 値 | BC34: 単位 | BK34: Iyz | BL34: 0 | BM34: kg・m^2
AR35: 0.0002090777826 | AZ35: CFRP | BA35: - | BB35: ='機体重量(sht30)'!X20 -> 1500 | BC35: kg/m^3 | BK35: Ixz | BL35: 0 | BM35: kg・m^2
B36: ファイル名 | C36: file_name | D36: ="FIN_"&TEXT(TODAY(),"yyyymmdd") -> FIN_20230818 | E36: - | AZ36: 50倍発泡 | BA36: - | BB36: ='機体重量(sht30)'!X21 -> 20 | BC36: kg/m^3
B37: 翼型名 | C37: foil_name | D37: ='垂直翼型解析(sht13)'!X5 -> NACA0009 | E37: - | AZ37: ヒノキ | BA37: - | BB37: ='機体重量(sht30)'!X22 -> 510 | BC37: kg/m^3
C38: foil_name | D38: ='垂直翼型解析(sht13)'!X5 -> NACA0009 | E38: - | AZ38: エスレン | BA38: - | BB38: ='機体重量(sht30)'!X23 -> 85 | BC38: kg/m^3
A40: - | T40: - | AS40: -
C41: 設計値 | G41: 0G | H41: 投影面での距離 | P41: テーパー翼 | AB41: たわみを考慮 | AC41: 1G | AZ41: 重量推算 | BP41: =SUM(BP45:BP131) -> 0.2491821162 | BQ41: =SUM(BQ45:BQ131) -> 0.2628239389 | BR41: =SUM(BR45:BR131) -> 0.5120060551 | BT41: 慣性モーメント
B42: 名 | C42: リブ番号 | D42: テーパー | E42: リブ位置 | F42: 翼素位置 | G42: 高さ | H42: 翼素間隔 | I42: 取り付け角 | J42: 上反角 | K42: 翼型1配合率 | L42: 翼型2配合率 | M42: コード長 | N42: 前縁位置 | O42: 後縁位置 | P42: コード長 | Q42: 前縁位置 | R42: 後縁位置 | T42: 有効迎角 | U42: レイノルズ数 | V42: 揚力係数 | W42: 抗力係数 | X42: ピッチングモーメント係数 | AA42: ピッチングモーメント係数(桁位置まわり) | AB42: リブ位置 | AC42: 高さ | AD42: 翼素間隔 | AJ42: 楕円循環 | AK42: 循環 | AL42: 吹きおろし | AM42: 誘導迎角 | AZ42: 面積 | BE42: 体積 | BJ42: 水平尾翼 | BP42: 一次構造 | BQ42: 二次構造 | BR42: 合計 | BT42: 主翼重心からの距離の2乗
B43: 記号 | C43: n | D43: - | E43: - | F43: yn | G43: zn | H43: Δy | I43: - | J43: Γ | K43: - | L43: - | M43: cn | N43: - | O43: - | P43: cn | Q43: - | R43: - | T43: α | U43: Re | V43: Cl | W43: Cdo | X43: Cm | AA43: Cm_cg | AB43: yn | AC43: zn | AD43: Δy | AJ43: Γc_opt | AK43: Γc | AL43: wi | AM43: αi | AZ43: リブ | BA43: プランク | BB43: 縦通材 | BC43: リブ材 | BD43: 後縁材 | BE43: リブ | BF43: プランク | BG43: 縦通材 | BH43: リブ材 | BI43: 後縁材 | BJ43: リブ | BK43: プランク | BL43: 縦通材 | BM43: リブ材 | BN43: 後縁材 | BO43: 接着剤 | BP43: - | BQ43: - | BR43: - | BT43: y^2+z^2 | BU43: z^2+x^2 | BV43: x^2+y^2
B44: 単位 | C44: - | D44: - | E44: m | F44: m | G44: m | H44: m | I44: deg | J44: deg | K44: - | L44: - | M44: m | N44: m | O44: m | P44: m | Q44: m | R44: m | T44: deg | U44: - | V44: - | W44: - | X44: - | AA44: - | AB44: m | AC44: m | AD44: m | AJ44: m^1/s | AK44: m^3/s | AL44: m/s | AM44: deg | AZ44: m^2 | BA44: m^2 | BB44: m^2 | BC44: m^2 | BD44: m^2 | BE44: m^3 | BF44: m^3 | BG44: m^3 | BH44: m^3 | BI44: m^3 | BJ44: kg | BK44: kg | BL44: kg | BM44: kg | BN44: kg | BO44: kg | BP44: kg | BQ44: kg | BR44: kg | BT44: m^2 | BU44: m^2 | BV44: m^2
B45: 値 | C45: 0 | D45: =IF(C45<$M$7,"flat",IF(C45<$M$8,"1st",IF(C45<$M$9,"2nd",IF(C45<$M$10,"3rd",IF(C45<$M$11,"4th","Winglet"))))) -> flat | E45: 0 | F45: 0 | G45: 0 | H45: =F46-F45 -> 0.2 | I45: =IF($D45="flat",$AC$6*$E45+$AD$6,IF($D45="1st",$AC$7*$E45+$AD$7,IF($D45="2nd",$AC$8*$E45+$AD$8,IF($D45="3rd",$AC$9*$E45+$AD$9,IF($D45="4th",$AC$10*$E45+$AD$10,$AC$11*$E45+$AD$11))))) -> 0 | J45: =IF($D45="flat",$Q$6,IF($D45="1st",$Q$7,IF($D45="2nd",$Q$8,IF($D45="3rd",$Q$9,IF($D45="4th",$Q$10,$Q$11))))) -> 0 | K45: =IF($D45="flat",$AE$6*$E45+$AF$6,IF($D45="1st",$AE$7*$E45+$AF$7,IF($D45="2nd",$AE$8*$E45+$AF$8,IF($D45="3rd",$AE$9*$E45+$AF$9,IF($D45="4th",$AE$10*$E45+$AF$10,$AE$11*$E45+$AF$11))))) -> 1 | L45: =IF($D45="flat",$AG$6*$E45+$AH$6,IF($D45="1st",$AG$7*$E45+$AH$7,IF($D45="2nd",$AG$8*$E45+$AH$8,IF($D45="3rd",$AG$9*$E45+$AH$9,IF($D45="4th",$AG$10*$E45+$AH$10,$AG$11*$E45+$AH$11))))) -> 0 | P45: =IF($D45="flat",$AA$6*$E45+$AB$6,IF($D45="1st",$AA$7*$E45+$AB$7,IF($D45="2nd",$AA$8*$E45+$AB$8,IF($D45="3rd",$AA$9*$E45+$AB$9,IF($D45="4th",$AA$10*$E45+$AB$10,$AA$11*$E45+$AB$11))))) -> 0.5 | Q45: =P45*$D$31 -> 0.125 | R45: =Q45-P45 -> -0.375 | T45: 0 | U45: 264177.1226 | V45: 4.80605139e-15 | W45: 0.008185735904 | X45: -9.084083193e-16 | Y45: 0 | Z45: 0 | AA45: -9.084083193e-16 | AB45: 0 | AC45: 0 | AD45: 0.2 | AE45: 0 | AF45: 0 | AG45: 0 | AH45: 0 | AI45: 0 | AJ45: 0 | AK45: 0 | AL45: 0 | AM45: 0 | AZ45: =$BL$7*P45*P45 -> 0.01541339253 | BA45: =$BL$5*$BL$9*P45 -> 0.0004079108461 | BB45: =$BL$11*$BL$10 -> 5e-05 | BC45: =$BL$6*$BL$12*P45 -> 0.0003021367915 | BD45: =$BL$13*$BL$14*2 -> 3e-05 | BE45: =AZ45*$BL$8 -> 0.0001541339253 | BF45: =BA45*(E46-E45) -> 8.158216923e-05 | BG45: =BB45*(E46-E45) -> 1e-05 | BH45: =BC45*$BL$12 -> 1.510683957e-07 | BI45: =BD45*(F46-F45) -> 6e-06 | BJ45: =$BE45*$BB$36 -> 0.003082678506 | BK45: =$BF45*$BB$38 -> 0.006934484384 | BL45: =$BG45*$BB$37 -> 0.0051 | BM45: =$BH45*$BB$35 -> 0.0002266025936 | BN45: =$BI45*$BB$35 -> 0.009 | BO45: =$BL$15*P45*P45+$BL$16*P45+$BL$17*(F46-F45) -> 0.011625 | BP45: =$BG$4/$D$33*2 -> 0.03559744517 | BQ45: =SUM(BJ45:BO45) -> 0.03596876548 | BR45: =SUM(BP45:BQ45) -> 0.07156621065 | BT45: =AB45*AB45+AC45*AC45 -> 0 | BU45: =AC45*AC45 -> 0 | BV45: =AB45*AB45 -> 0
C46: 1 | D46: =IF(C46<$M$7,"flat",IF(C46<$M$8,"1st",IF(C46<$M$9,"2nd",IF(C46<$M$10,"3rd",IF(C46<$M$11,"4th","Winglet"))))) -> 1st | E46: =$D$30*C46 -> 0.2 | F46: =F45+$D$30*COS(RADIANS(J46)) -> 0.2 | G46: =G45+$D$30*SIN(RADIANS(J46)) -> 0 | H46: =F47-F46 -> 0.2 | I46: 0 | J46: 0 | K46: =IF($D46="flat",$AC$6*$E46+$AD$6,IF($D46="1st",$AC$7*$E46+$AD$7,IF($D46="2nd",$AC$8*$E46+$AD$8,IF($D46="3rd",$AC$9*$E46+$AD$9,IF($D46="4th",$AC$10*$E46+$AD$10,$AC$11*$E46+$AD$11))))) -> 0 | L46: 0 | P46: =IF($D46="flat",$AA$6*$E46+$AB$6,IF($D46="1st",$AA$7*$E46+$AB$7,IF($D46="2nd",$AA$8*$E46+$AB$8,IF($D46="3rd",$AA$9*$E46+$AB$9,IF($D46="4th",$AA$10*$E46+$AB$10,$AA$11*$E46+$AB$11))))) -> 0.7777777778 | Q46: =P46*$D$31 -> 0.1944444444 | R46: =Q46-P46 -> -0.5833333333 | T46: 0 | U46: 291985.2408 | V46: 4.80605139e-15 | W46: 0.008185735904 | X46: -9.084083193e-16 | Y46: 0 | Z46: 0 | AA46: -9.084083193e-16 | AB46: 0.2 | AC46: 0 | AD46: 0.2 | AE46: 0 | AF46: 0 | AG46: 0 | AH46: 0 | AI46: 0 | AJ46: 0 | AK46: 0 | AL46: 0 | AM46: 0 | AZ46: =$BL$7*P46*P46 -> 0.03729660415 | BA46: =$BL$5*$BL$9*P46 -> 0.0006345279829 | BB46: =$BL$11*$BL$10 -> 5e-05 | BC46: =$BL$6*$BL$12*P46 -> 0.0004699905645 | BD46: =$BL$13*$BL$14*2 -> 3e-05 | BE46: =AZ46*$BL$8 -> 0.0003729660415 | BF46: =BA46*(E47-E46) -> 0.0001269055966 | BG46: =BB46*(E47-E46) -> 1e-05 | BH46: =BC46*$BL$12 -> 2.349952823e-07 | BI46: =BD46*(F47-F46) -> 6e-06 | BJ46: 0.00745932083 | BK46: 0.01078697571 | BL46: 0.0051 | BM46: 0.0003524929234 | BN46: 0.009 | BO46: =$BL$15*P46*P46+$BL$16*P46+$BL$17*(F47-F46) -> 0.01637037037 | BP46: =$BG$4/$D$33*2 -> 0.03559744517 | BQ46: =SUM(BJ46:BO46) -> 0.04906915983 | BR46: =SUM(BP46:BQ46) -> 0.084666605 | BT46: =AB46*AB46+AC46*AC46 -> 0.04 | BU46: =AC46*AC46 -> 0 | BV46: =AB46*AB46 -> 0.04
C47: 2 | D47: =IF(C47<$M$7,"flat",IF(C47<$M$8,"1st",IF(C47<$M$9,"2nd",IF(C47<$M$10,"3rd",IF(C47<$M$11,"4th","Winglet"))))) -> 1st | E47: =$D$30*C47 -> 0.4 | F47: =F46+$D$30*COS(RADIANS(J47)) -> 0.4 | G47: =G46+$D$30*SIN(RADIANS(J47)) -> 0 | H47: =F48-F47 -> 0.2 | I47: 0 | J47: 0 | K47: 0 | L47: 0 | P47: 0.7222222222 | Q47: =P47*$D$31 -> 0.1805555556 | R47: =Q47-P47 -> -0.5416666667 | T47: 0 | U47: 319793.3589 | V47: 4.80605139e-15 | W47: 0.008185735904 | X47: -9.084083193e-16 | Y47: 0 | Z47: 0 | AA47: -9.084083193e-16 | AB47: 0.4 | AC47: 0 | AD47: 0.2 | AE47: 0 | AF47: 0 | AG47: 0 | AH47: 0 | AI47: 0 | AJ47: 0 | AK47: 0 | AL47: 0 | AM47: 0 | AZ47: =$BL$7*P47*P47 -> 0.03215880664 | BA47: =$BL$5*$BL$9*P47 -> 0.0005892045555 | BB47: 5e-05 | BC47: =$BL$6*$BL$12*P47 -> 0.0004364198099 | BD47: 3e-05 | BE47: =AZ47*$BL$8 -> 0.0003215880664 | BF47: =BA47*(E48-E47) -> 0.0001178409111 | BG47: =BB47*(E48-E47) -> 1e-05 | BH47: =BC47*$BL$12 -> 2.182099049e-07 | BI47: =BD47*(F48-F47) -> 6e-06 | BJ47: 0.006431761328 | BK47: 0.01001647744 | BL47: 0.0051 | BM47: 0.0003273148574 | BN47: 0.009 | BO47: =$BL$15*P47*P47+$BL$16*P47+$BL$17*(F48-F47) -> 0.0153287037 | BP47: 0.03559744517 | BQ47: =SUM(BJ47:BO47) -> 0.04620425733 | BR47: =SUM(BP47:BQ47) -> 0.0818017025 | BT47: =AB47*AB47+AC47*AC47 -> 0.16 | BU47: =AC47*AC47 -> 0 | BV47: =AB47*AB47 -> 0.16
C48: 3 | D48: 1st | E48: 0.6 | F48: 0.6 | G48: 0 | H48: 0.2 | I48: 0 | J48: 0 | K48: 0 | L48: 0 | P48: 0.6666666667 | Q48: 0.1666666667 | R48: -0.5 | T48: 0 | U48: 347601.4771 | V48: 4.80605139e-15 | W48: 0.008185735904 | X48: -9.084083193e-16 | Y48: 0 | Z48: 0 | AA48: -9.084083193e-16 | AB48: 0.6 | AC48: 0 | AD48: 0.2 | AE48: 0 | AF48: 0 | AG48: 0 | AH48: 0 | AI48: 0 | AJ48: 0 | AK48: 0 | AL48: 0 | AM48: 0 | AZ48: 0.02740158672 | BA48: 0.0005438811282 | BB48: 5e-05 | BC48: 0.0004028490553 | BD48: 3e-05 | BE48: 0.0002740158672 | BF48: 0.0001087762256 | BG48: 1e-05 | BH48: 2.014245276e-07 | BI48: 6e-06 | BJ48: 0.005480317345 | BK48: 0.009245979179 | BL48: 0.0051 | BM48: 0.0003021367915 | BN48: 0.009 | BO48: 0.01433333333 | BP48: 0.03559744517 | BQ48: 0.04346176665 | BR48: 0.07905921182 | BT48: 0.36 | BU48: 0 | BV48: 0.36
C49: 4 | D49: 1st | E49: 0.8 | F49: 0.8 | G49: 0 | H49: 0.2 | I49: 0 | J49: 0 | K49: 0 | L49: 0 | P49: 0.6111111111 | Q49: 0.1527777778 | R49: -0.4583333333 | T49: 0 | U49: 375409.5953 | V49: 4.80605139e-15 | W49: 0.008185735904 | X49: -9.084083193e-16 | Y49: 0 | Z49: 0 | AA49: -9.084083193e-16 | AB49: 0.8 | AC49: 0 | AD49: 0.2 | AE49: 0 | AF49: 0 | AG49: 0 | AH49: 0 | AI49: 0 | AJ49: 0 | AK49: 0 | AL49: 0 | AM49: 0 | AZ49: 0.0230249444 | BA49: 0.0004985577008 | BB49: 5e-05 | BC49: 0.0003692783007 | BD49: 3e-05 | BE49: 0.000230249444 | BF49: 9.971154017e-05 | BG49: 1e-05 | BH49: 1.846391503e-07 | BI49: 6e-06 | BJ49: 0.00460498888 | BK49: 0.008475480914 | BL49: 0.0051 | BM49: 0.0002769587255 | BN49: 0.009 | BO49: 0.01338425926 | BP49: 0.03559744517 | BQ49: 0.04084168778 | BR49: 0.07643913295 | BT49: 0.64 | BU49: 0 | BV49: 0.64
C50: 5 | D50: 1st | E50: 1 | F50: 1 | G50: 0 | H50: 0.2 | I50: 0 | J50: 0 | K50: 0 | L50: 0 | P50: 0.5555555556 | Q50: 0.1388888889 | R50: -0.4166666667 | T50: 0 | U50: 319793.3589 | V50: 4.80605139e-15 | W50: 0.008185735904 | X50: -9.084083193e-16 | Y50: 0 | Z50: 0 | AA50: -9.084083193e-16 | AB50: 1 | AC50: 0 | AD50: 0.2 | AE50: 0 | AF50: 0 | AG50: 0 | AH50: 0 | AI50: 0 | AJ50: 0 | AK50: 0 | AL50: 0 | AM50: 0 | AZ50: 0.01902887967 | BA50: 0.0004532342735 | BB50: 5e-05 | BC50: 0.0003357075461 | BD50: 3e-05 | BE50: 0.0001902887967 | BF50: 9.06468547e-05 | BG50: 1e-05 | BH50: 1.67853773e-07 | BI50: 6e-06 | BJ50: 0.003805775934 | BK50: 0.007704982649 | BL50: 0.0051 | BM50: 0.0002517806596 | BN50: 0.009 | BO50: 0.01248148148 | BP50: 0.03559744517 | BQ50: 0.03834402072 | BR50: 0.07394146589 | BT50: 1 | BU50: 0 | BV50: 1
C51: 6 | D51: Winglet | E51: 1.2 | F51: 1.2 | G51: 0 | H51: 0 | I51: 0 | J51: 0 | K51: 0 | L51: 0 | P51: 0.5 | Q51: 0.125 | R51: -0.375 | AB51: 1.2 | AC51: 0 | AE51: 0 | AF51: 0 | AG51: 0 | AH51: 0 | AI51: 0 | AZ51: 0.01541339253 | BA51: 0.0004079108461 | BB51: 5e-05 | BC51: 0.0003021367915 | BD51: 3e-05 | BE51: 0.0001541339253 | BF51: 0 | BG51: 0 | BH51: 1.510683957e-07 | BI51: 0 | BJ51: 0.003082678506 | BK51: 0 | BL51: 0 | BM51: 0.0002266025936 | BN51: 0 | BO51: 0.005625 | BP51: 0.03559744517 | BQ51: 0.0089342811 | BR51: 0.04453172627 | BT51: 1.44 | BU51: 0 | BV51: 1.44
E52: =E51 -> 1.2 | F52: =F51 -> 1.2

Sheet カウル(sht18)
B2: カウル
B3: 名 | C3: 記号 | D3: 値 | E3: 単位
B4: 全長 | C4: chord | D4: 3.521 | E4: m
B5: 前縁位置 | C5: X0 | D5: -1.5 | E5: m
C6: Y0 | D6: 0 | E6: m
C7: Z0 | D7: -0.5 | E7: m
B8: 取り付け角 | C8: α | D8: -5.238 | E8: deg
B9: フレーム数 | C9: frame | D9: 73 | E9: -
B10: 周方向分割数 | C10: circumferencial_division | D10: 90 | E10: -
B11: フレーム出力 | C11: - | D11: なし | E11: -
B12: データ貼り付け | C12: - | D12: あり | E12: -
B13: 最大断面積 | C13: Sπ | D13: 0.4971502123 | E13: m^2
B14: 体積 | C14: Δ | D14: 1.027534187 | E14: m^3
B15: 濡れ面積 | C15: Swet | D15: 3.153872791 | E15: m^2
B16: 平板摩擦力係数 | C16: Cf
B17: 相当直径 | C17: d_
B41: Side View | D41: Top View | K41: Side View | N41: Top View | AA41: Side View | AD41: Top View
B42: x | C42: z | D42: x | E42: y | K42: x | L42: y | M42: z | N42: x | O42: y | P42: z | AA42: x | AB42: y | AC42: z | AD42: x | AE42: y | AF42: z | AG42: 図面描画用
B43: 1 | C43: 0 | D43: 1 | E43: 0 | K43: 3.50629655 | L43: 0 | M43: 0.3214428493 | N43: 3.507278313 | O43: 0 | P43: 0.3215328533 | AA43: =K43+$D$5 -> 2.00629655 | AB43: =-L43-$D$6 -> 0 | AC43: =M43+$D$7 -> -0.1785571507 | AD43: =N43+$D$5 -> 2.007278313 | AE43: =O43-$D$6 -> 0 | AF43: =P43+$D$7 -> -0.1784671467
B44: 0.99611 | C44: 0.0014 | D44: 0.99662 | E44: 4.4e-05 | G44: -1.5 | H44: 0 | I44: -0.5 | K44: 3.492207036 | L44: 0 | M44: 0.3251012518 | N44: 3.49542703 | O44: 0.000154924 | P44: 0.3204463765 | AA44: =K44+$D$5 -> 1.992207036 | AB44: =-L44-$D$6 -> 0 | AC44: =M44+$D$7 -> -0.1748987482 | AD44: =N44+$D$5 -> 1.99542703 | AE44: =O44-$D$6 -> 0.000154924 | AF44: =P44+$D$7 -> -0.1795536235
B45: 0.99004 | C45: 0.00349 | D45: 0.99126 | E45: 0.000176 | G45: -1.5 | H45: -1.171491854e-06 | I45: -0.4999674674 | K45: 3.470252001 | L45: 0 | M45: 0.3304782535 | N45: 3.476633281 | O45: 0.000619696 | P45: 0.3187234428 | AA45: 1.970252001 | AB45: 0 | AC45: -0.1695217465 | AD45: 1.976633281 | AE45: 0.000619696 | AF45: -0.1812765572
B46: 0.98367 | C46: 0.00556 | D46: 0.98555 | E46: 0.000385 | G46: -1.5 | H46: -1.207613685e-06 | I46: -0.4999349342 | K46: 3.447251505 | L46: 0 | M46: 0.3356886964 | N46: 3.456612328 | O46: 0.001355585 | P46: 0.3168880042 | AA46: 1.947251505 | AB46: 0 | AC46: -0.1643113036 | AD46: 1.956612328 | AE46: 0.001355585 | AF46: -0.1831119958
B47: 0.97703 | C47: 0.00759 | D47: 0.97952 | E47: 0.000693 | G47: -1.5 | H47: -1.088731213e-07 | I47: -0.4999024301 | K47: 3.423317167 | L47: 0 | M47: 0.3406720979 | N47: 3.435469359 | O47: 0.002440053 | P47: 0.3149497038 | AA47: 1.923317167 | AB47: 0 | AC47: -0.1593279021 | AD47: 1.935469359 | AE47: 0.002440053 | AF47: -0.1850502962
B48: 0.97013 | C48: 0.00957 | D48: 0.97321 | E48: 0.001122 | G48: -1.5 | H48: 2.123530943e-06 | I48: -0.4998699848 | K48: 3.398487264 | L48: 0 | M48: 0.3453966094 | N48: 3.413344628 | O48: 0.003950562 | P48: 0.3129213994 | AA48: 1.898487264 | AB48: 0 | AC48: -0.1546033906 | AD48: 1.913344628 | AE48: 0.003950562 | AF48: -0.1870786006
B49: 0.96297 | C49: 0.01148 | D49: 0.96666 | E49: 0.00165 | G49: -1.5 | H49: 5.487708971e-06 | I49: -0.4998376279 | K49: 3.372768225 | L49: 0 | M49: 0.349792105 | N49: 3.390378386 | O49: 0.00580965 | P49: 0.3108159487 | AA49: 1.872768225 | AB49: 0 | AC49: -0.150207895 | AD49: 1.890378386 | AE49: 0.00580965 | AF49: -0.1891840513
B50: 0.95554 | C50: 0.01332 | D50: 0.95988 | E50: 0.00231 | G50: -1.5 | H50: 9.981081734e-06 | I50: -0.4998053891 | K50: 3.346124986 | L50: 0 | M50: 0.3538553703 | N50: 3.366605695 | O50: 0.00813351 | P50: 0.3086365662 | AA50: 1.846124986 | AB50: 0 | AC50: -0.1461446297 | AD50: 1.866605695 | AE50: 0.00813351 | AF50: -0.1913634338
B51: 0.94781 | C51: 0.0151 | D51: 0.9529 | E51: 0.003102 | G51: -1.5 | H51: 1.560038156e-05 | I51: -0.4997732978 | K51: 3.318449146 | L51: 0 | M51: 0.3576118249 | N51: 3.342131745 | O51: 0.010922142 | P51: 0.3063928951 | AA51: 1.818449146 | AB51: 0 | AC51: -0.1423881751 | AD51: 1.842131745 | AE51: 0.010922142 | AF51: -0.1936071049
B52: 0.93979 | C52: 0.01681 | D52: 0.94574 | E52: 0.004015 | G52: -1.5 | H52: 2.234165393e-05 | I52: -0.4997413836 | K52: 3.28977898 | L52: 0 | M52: 0.3610296204 | N52: 3.317026662 | O52: 0.014136815 | P52: 0.3040913643 | AA52: 1.78977898 | AB52: 0 | AC52: -0.1389703796 | AD52: 1.817026662 | AE52: 0.014136815 | AF52: -0.1959086357
B53: 0.93143 | C53: 0.01848 | D53: 0.93841 | E53: 0.00506 | G53: -1.5 | H53: 3.020025933e-05 | I53: -0.4997096758 | K53: 3.259929531 | L53: 0 | M53: 0.3641978734 | N53: 3.291325508 | O53: 0.01781626 | P53: 0.3017351882 | AA53: 1.759929531 | AB53: 0 | AC53: -0.1358021266 | AD53: 1.791325508 | AE53: 0.01781626 | AF53: -0.1982648118
B54: 0.92276 | C54: 0.02012 | D54: 0.93095 | E54: 0.006226 | G54: -1.5 | H54: 3.917087548e-05 | I54: -0.4996782036 | K54: 3.229002774 | L54: 0 | M54: 0.3671612902 | N54: 3.265168536 | O54: 0.021921746 | P54: 0.2993372246 | AA54: 1.729002774 | AB54: 0 | AC54: -0.1328387098 | AD54: 1.765168536 | AE54: 0.021921746 | AF54: -0.2006627754
B55: 0.91379 | C55: 0.02174 | D55: 0.92336 | E55: 0.007513 | G55: -1.5 | H55: 4.924749985e-05 | I55: -0.4996469963 | K55: 3.197030557 | L55: 0 | M55: 0.3699581483 | N55: 3.238555745 | O55: 0.026453273 | P55: 0.2968974734 | AA55: 1.697030557 | AB55: 0 | AC55: -0.1300418517 | AD55: 1.738555745 | AE55: 0.026453273 | AF55: -0.2031025266
B56: 0.90459 | C56: 0.02337 | D56: 0.91566 | E56: 0.008932 | G56: -1.5 | H56: 6.042345245e-05 | I56: -0.4996160827 | K56: 3.164248677 | L56: 0 | M56: 0.3727161374 | N56: 3.211557262 | O56: 0.031449572 | P56: 0.2944223634 | AA56: 1.664248677 | AB56: 0 | AC56: -0.1272838626 | AD56: 1.711557262 | AE56: 0.031449572 | AF56: -0.2055776366
B57: 0.89522 | C57: 0.02502 | D57: 0.90784 | E57: 0.010461 | G57: -1.5 | H57: 7.269137902e-05 | I57: -0.4995854918 | K57: 3.130864297 | L57: 0 | M57: 0.3754896073 | N57: 3.184138023 | O57: 0.036833181 | P57: 0.2919086803 | AA57: 1.630864297 | AB57: 0 | AC57: -0.1245103927 | AD57: 1.684138023 | AE57: 0.036833181 | AF57: -0.2080913197
B58: 0.88572 | C58: 0.02672 | D58: 0.89992 | E58: 0.012111 | G58: -1.5 | H58: 8.604325441e-05 | I58: -0.4995552521 | K58: 3.097008027 | L58: 0 | M58: 0.3783966043 | N58: 3.156368154 | O58: 0.042642831 | P58: 0.289362853 | AA58: 1.597008027 | AB58: 0 | AC58: -0.1216033957 | AD58: 1.656368154 | AE58: 0.042642831 | AF58: -0.210637147
B59: 0.8761 | C59: 0.02848 | D59: 0.89189 | E59: 0.013871 | G59: -1.5 | H59: 0.0001004703864 | I59: -0.4995253921 | K59: 3.062711715 | L59: 0 | M59: 0.381475406 | N59: 3.128212593 | O59: 0.048839791 | P59: 0.2867816669 | AA59: 1.562711715 | AB59: 0 | AC59: -0.118524594 | AD59: 1.628212593 | AE59: 0.048839791 | AF59: -0.2132183331
B60: 0.8664 | C60: 0.03027 | D60: 0.88376 | E60: 0.01573 | G60: -1.5 | H60: 0.0001159634196 | I60: -0.4994959402 | K60: 3.028125256 | L60: 0 | M60: 0.3846336812 | N60: 3.099706402 | O60: 0.05538533 | P60: 0.2841683365 | AA60: 1.528125256 | AB60: 0 | AC60: -0.1153663188 | AD60: 1.599706402 | AE60: 0.05538533 | AF60: -0.2158316635
B61: 0.85666 | C61: 0.03206 | D61: 0.87554 | E61: 0.017688 | G61: -1.5 | H61: 0.0001325123402 | I61: -0.4994669244 | K61: 2.993398545 | L61: 0 | M61: 0.3877790987 | N61: 3.070884644 | O61: 0.062279448 | P61: 0.2815260763 | AA61: 1.493398545 | AB61: 0 | AC61: -0.1122209013 | AD61: 1.570884644 | AE61: 0.062279448 | AF61: -0.2184739237
B62: 0.84699 | C62: 0.03381 | D62: 0.86722 | E62: 0.019745 | G62: -1.5 | H62: 0.0001501064801 | I62: -0.4994383725 | K62: 2.958930132 | L62: 0 | M62: 0.3908067653 | N62: 3.041712257 | O62: 0.069522145 | P62: 0.2788516718 | AA62: 1.458930132 | AB62: 0 | AC62: -0.1091932347 | AD62: 1.541712257 | AE62: 0.069522145 | AF62: -0.2211483282
B63: 0.83743 | C63: 0.03548 | D63: 0.8588 | E63: 0.02189 | G63: -1.5 | H63: 0.0001687345221 | I63: -0.4994103121 | K63: 2.924873127 | L63: 0 | M63: 0.3935892869 | N63: 3.01218924 | O63: 0.07707469 | P63: 0.276145123 | AA63: 1.424873127 | AB63: 0 | AC63: -0.1064107131 | AD63: 1.51218924 | AE63: 0.07707469 | AF63: -0.223854877
B64: 0.82796 | C64: 0.03704 | D64: 0.85029 | E64: 0.024123 | G64: -1.5 | H64: 0.0001883845056 | I64: -0.4993827705 | K64: 2.891167048 | L64: 0 | M64: 0.3960150457 | N64: 2.982350656 | O64: 0.084937083 | P64: 0.2734096444 | AA64: 1.391167048 | AB64: 0 | AC64: -0.1039849543 | AD64: 1.482350656 | AE64: 0.084937083 | AF64: -0.2265903556
B65: 0.81854 | C65: 0.03849 | D65: 0.84169 | E65: 0.026422 | G65: -1.5 | H65: 0.0002090438312 | I65: -0.4993557749 | K65: 2.857671643 | L65: 0 | M65: 0.3980711841 | N65: 2.952196506 | O65: 0.093031862 | P65: 0.2706452359 | AA65: 1.357671643 | AB65: 0 | AC65: -0.1019288159 | AD65: 1.452196506 | AE65: 0.093031862 | AF65: -0.2293547641
B66: 0.80911 | C66: 0.03984 | D66: 0.833 | E66: 0.028798 | G66: -1.5 | H66: 0.0002306992676 | I66: -0.499329352 | K66: 2.824173318 | L66: 0 | M66: 0.3997734784 | N66: 2.921726789 | O66: 0.101397758 | P66: 0.2678518975 | AA66: 1.324173318 | AB66: 0 | AC66: -0.1002265216 | AD66: 1.421726789 | AE66: 0.101397758 | AF66: -0.2321481025
B67: 0.7996 | C67: 0.04111 | D67: 0.82421 | E67: 0.03124 | G67: -1.5 | H67: 0.0002533369569 | I67: -0.4993035282 | K67: 2.790420206 | L67: 0 | M67: 0.4011695535 | N67: 2.890906442 | O67: 0.10999604 | P67: 0.2650264148 | AA67: 1.290420206 | AB67: 0 | AC67: -0.09883044651 | AD67: 1.390906442 | AE67: 0.10999604 | AF67: -0.2349735852
B68: 0.78997 | C68: 0.0423 | D68: 0.81532 | E68: 0.033737 | G68: -1.5 | H68: 0.0002769424217 | I68: -0.4992783299 | K68: 2.756272053 | L68: 0 | M68: 0.4022465517 | N68: 2.859735466 | O68: 0.118787977 | P68: 0.2621687879 | AA68: 1.256272053 | AB68: 0 | AC68: -0.09775344826 | AD68: 1.359735466 | AE68: 0.118787977 | AF68: -0.2378312121
B69: 0.78021 | C69: 0.04346 | D69: 0.80634 | E69: 0.036278 | G69: -1.5 | H69: 0.0003015005711 | I69: -0.4992537827 | K69: 2.721677725 | L69: 0 | M69: 0.4031765735 | N69: 2.828248923 | O69: 0.127734838 | P69: 0.2592822311 | AA69: 1.221677725 | AB69: 0 | AC69: -0.09682342647 | AD69: 1.328248923 | AE69: 0.127734838 | AF69: -0.2407177689
B70: 0.77039 | C70: 0.04462 | D70: 0.7973 | E70: 0.038841 | G70: -1.5 | H70: 0.0003269957086 | I70: -0.4992299122 | K70: 2.686873019 | L70: 0 | M70: 0.4040873087 | N70: 2.796552002 | O70: 0.136759161 | P70: 0.2563763878 | AA70: 1.186873019 | AB70: 0 | AC70: -0.09591269125 | AD70: 1.296552002 | AE70: 0.136759161 | AF70: -0.2436236122
B71: 0.76064 | C71: 0.04579 | D71: 0.78824 | E71: 0.041415 | G71: -1.5 | H71: 0.0003534115384 | I71: -0.4992067435 | K71: 2.65231054 | L71: 0 | M71: 0.4050556079 | N71: 2.764784955 | O71: 0.145822215 | P71: 0.2534641156 | AA71: 1.15231054 | AB71: 0 | AC71: -0.09494439207 | AD71: 1.264784955 | AE71: 0.145822215 | AF71: -0.2465358844
B72: 0.75103 | C72: 0.04701 | D72: 0.77921 | E72: 0.043967 | G72: -1.5 | H72: 0.0003807311739 | I72: -0.4991843015 | K72: 2.618222869 | L72: 0 | M72: 0.4062442239 | N72: 2.733123098 | O72: 0.154807807 | P72: 0.2505614866 | AA72: 1.118222869 | AB72: 0 | AC72: -0.09375577606 | AD72: 1.233123098 | AE72: 0.154807807 | AF72: -0.2494385134
B73: 0.74156 | C73: 0.0483 | D73: 0.77022 | E73: 0.046486 | G73: -1.5 | H73: 0.0004089371448 | I73: -0.4991626106 | K73: 2.58460358 | L73: 0 | M73: 0.4077232827 | N73: 2.701601492 | O73: 0.163677206 | P73: 0.2476717154 | AA73: 1.08460358 | AB73: 0 | AC73: -0.09227671729 | AD73: 1.201601492 | AE73: 0.163677206 | AF73: -0.2523282846
B74: 0.73215 | C74: 0.04971 | D74: 0.76126 | E74: 0.048983 | G74: -1.5 | H74: 0.0004380114056 | I74: -0.4991416947 | K74: 2.551156095 | L74: 0 | M74: 0.4096423836 | N74: 2.670185074 | O74: 0.172469143 | P74: 0.2447915875 | AA74: 1.051156095 | AB74: 0 | AC74: -0.09035761637 | AD74: 1.170185074 | AE74: 0.172469143 | AF74: -0.2552084125
B75: 0.72272 | C75: 0.05123 | D75: 0.75233 | E75: 0.051436 | G75: -1.5 | H75: 0.0004679353438 | I75: -0.4991215775 | K75: 2.517603125 | L75: 0 | M75: 0.4119407483 | N75: 2.638873846 | O75: 0.181106156 | P75: 0.2419211028 | AA75: 1.017603125 | AB75: 0 | AC75: -0.08805925168 | AD75: 1.138873846 | AE75: 0.181106156 | AF75: -0.2580788972
B76: 0.71319 | C76: 0.05286 | D76: 0.74341 | E76: 0.053867 | G76: -1.5 | H76: 0.0004986897888 | I76: -0.4991022822 | K76: 2.483664167 | L76: 0 | M76: 0.4145926613 | N76: 2.607597681 | O76: 0.189665707 | P76: 0.2390538326 | AA76: 0.9836641673 | AB76: 0 | AC76: -0.08540733866 | AD76: 1.107597681 | AE76: 0.189665707 | AF76: -0.2609461674
B77: 0.70351 | C77: 0.05461 | D77: 0.73452 | E77: 0.056254 | G77: -1.5 | H77: 0.0005302550204 | I77: -0.4990838316 | K77: 2.449160692 | L77: 0 | M77: 0.4176171135 | N77: 2.576426705 | O77: 0.198070334 | P77: 0.2361962057 | AA77: 0.9491606917 | AB77: 0 | AC77: -0.08238288648 | AD77: 1.076426705 | AE77: 0.198070334 | AF77: -0.2638037943
B78: 0.69366 | C78: 0.05646 | D78: 0.72565 | E78: 0.058608 | G78: -1.5 | H78: 0.0005626107783 | I78: -0.4990662479 | K78: 2.414029001 | L78: 0 | M78: 0.4209375501 | N78: 2.545325854 | O78: 0.206358768 | P78: 0.2333450076 | AA78: 0.9140290014 | AB78: 0 | AC78: -0.07906244993 | AD78: 1.045325854 | AE78: 0.206358768 | AF78: -0.2666549924
B79: 0.68365 | C79: 0.05838 | D79: 0.71682 | E79: 0.060918 | G79: -1.5 | H79: 0.0005957362715 | I79: -0.4990495531 | K79: 2.378313803 | L79: 0 | M79: 0.4244519965 | N79: 2.514365256 | O79: 0.214492278 | P79: 0.2305066673 | AA79: 0.8783138027 | AB79: 0 | AC79: -0.07554800348 | AD79: 1.014365256 | AE79: 0.214492278 | AF79: -0.2694933327
B80: 0.67355 | C80: 0.06032 | D80: 0.70802 | E80: 0.063173 | G80: -1.5 | H80: 0.0006296101876 | I80: -0.4990337686 | K80: 2.342276608 | L80: 0 | M80: 0.4280076391 | N80: 2.483509846 | O80: 0.222432133 | P80: 0.2276779702 | AA80: 0.8422766084 | AB80: 0 | AC80: -0.07199236095 | AD80: 0.9835098462 | AE80: 0.222432133 | AF80: -0.2723220298
B81: 0.66343 | C81: 0.06226 | D81: 0.69926 | E81: 0.065395 | G81: -1.5 | H81: 0.0006642107031 | I81: -0.4990189153 | K81: 2.306169288 | L81: 0 | M81: 0.4315568527 | N81: 2.452794688 | O81: 0.230255795 | P81: 0.2248621308 | AA81: 0.8061692882 | AB81: 0 | AC81: -0.06844314728 | AD81: 0.9527946884 | AE81: 0.230255795 | AF81: -0.2751378692
B82: 0.65328 | C82: 0.06417 | D82: 0.69054 | E82: 0.067551 | G82: -1.5 | H82: 0.0006995154936 | I82: -0.4990050137 | K82: 2.269966422 | L82: 0 | M82: 0.4349912342 | N82: 2.422219782 | O82: 0.237847071 | P82: 0.2220591492 | AA82: 0.7699664224 | AB82: 0 | AC82: -0.06500876579 | AD82: 0.9222197825 | AE82: 0.237847071 | AF82: -0.2779408508
B83: 0.64307 | C83: 0.06606 | D83: 0.68186 | E83: 0.069663 | G83: -1.5 | H83: 0.0007355017437 | I83: -0.4989920837 | K83: 2.233559608 | L83: 0 | M83: 0.4383362032 | N83: 2.391785128 | O83: 0.245283423 | P83: 0.2192690252 | AA83: 0.7335596076 | AB83: 0 | AC83: -0.0616637968 | AD83: 0.8917851284 | AE83: 0.245283423 | AF83: -0.2807309748
B84: 0.6328 | C84: 0.06793 | D84: 0.67324 | E84: 0.071709 | G84: -1.5 | H84: 0.0007721461581 | I84: -0.4989801448 | K84: 2.196948844 | L84: 0 | M84: 0.4415917597 | N84: 2.361560852 | O84: 0.252487389 | P84: 0.2164981879 | AA84: 0.6969488439 | AB84: 0 | AC84: -0.05840824032 | AD84: 0.8615608522 | AE84: 0.252487389 | AF84: -0.2835018121
B85: 0.62248 | C85: 0.06979 | D85: 0.66467 | E85: 0.073689 | G85: -1.5 | H85: 0.0008094249723 | I85: -0.4989692158 | K85: 2.16016598 | L85: 0 | M85: 0.4447961811 | N85: 2.331511891 | O85: 0.259458969 | P85: 0.2137434227 | AA85: 0.6601659798 | AB85: 0 | AC85: -0.05520381894 | AD85: 0.8315118907 | AE85: 0.259458969 | AF85: -0.2862565773
B86: 0.61218 | C86: 0.07165 | D86: 0.65618 | E86: 0.075603 | G86: -1.5 | H86: 0.0008473139636 | I86: -0.4989593152 | K86: 2.123453242 | L86: 0 | M86: 0.4480070313 | N86: 2.301743433 | O86: 0.266198163 | P86: 0.2110143729 | AA86: 0.6234532417 | AB86: 0 | AC86: -0.05199296871 | AD86: 0.801743433 | AE86: 0.266198163 | AF86: -0.2889856271
B87: 0.60192 | C87: 0.07351 | D87: 0.64775 | E87: 0.077429 | G87: -1.5 | H87: 0.0008857884625 | I87: -0.4989504609 | K87: 2.086880755 | L87: 0 | M87: 0.4512307392 | N87: 2.272185353 | O87: 0.272627509 | P87: 0.2083046097 | AA87: 0.5868807554 | AB87: 0 | AC87: -0.04876926076 | AD87: 0.7721853531 | AE87: 0.272627509 | AF87: -0.2916953903
B88: 0.59171 | C88: 0.07539 | D88: 0.6394 | E88: 0.079167 | G88: -1.5 | H88: 0.0009248233642 | I88: -0.4989426701 | K88: 2.050477155 | L88: 0 | M88: 0.4545406453 | N88: 2.242907777 | O88: 0.278747007 | P88: 0.2056205619 | AA88: 0.550477155 | AB88: 0 | AC88: -0.04545935474 | AD88: 0.7429077769 | AE88: 0.278747007 | AF88: -0.2943794381
B89: 0.58151 | C89: 0.07731 | D89: 0.63112 | E89: 0.080817 | G89: -1.5 | H89: 0.0009643931402 | I89: -0.4989359596 | K89: 2.01409576 | L89: 0 | M89: 0.4579940176 | N89: 2.213875641 | O89: 0.284556657 | P89: 0.2029590151 | AA89: 0.5140957599 | AB89: 0 | AC89: -0.04200598242 | AD89: 0.7138756415 | AE89: 0.284556657 | AF89: -0.2970409849
B90: 0.5713 | C90: 0.07926 | D90: 0.62289 | E90: 0.082379 | G90: -1.5 | H90: 0.001004471851 | I90: -0.4989303455 | K90: 1.977669659 | L90: 0 | M90: 0.4615493644 | N90: 2.185018821 | O90: 0.290056459 | P90: 0.2003135404 | AA90: 0.4776696586 | AB90: 0 | AC90: -0.03845063564 | AD90: 0.6850188209 | AE90: 0.290056459 | AF90: -0.2996864596
B91: 0.56111 | C91: 0.08122 | D91: 0.61471 | E91: 0.083842 | G91: -1.5 | H91: 0.001045033156 | I91: -0.4989258435 | K91: 1.941310469 | L91: 0 | M91: 0.465146203 | N91: 2.156337315 | O91: 0.295207682 | P91: 0.1976841379 | AA91: 0.4413104688 | AB91: 0 | AC91: -0.03485379704 | AD91: 0.6563373151 | AE91: 0.295207682 | AF91: -0.3023158621
B92: 0.55098 | C92: 0.08317 | D92: 0.60655 | E92: 0.085206 | G92: -1.5 | H92: 0.001086050328 | I92: -0.4989224686 | K92: 1.905164871 | L92: 0 | M92: 0.4687272652 | N92: 2.127725935 | O92: 0.300010326 | P92: 0.1950611643 | AA92: 0.4051648712 | AB92: 0 | AC92: -0.03127273483 | AD92: 0.6277259353 | AE92: 0.300010326 | AF92: -0.3049388357
B93: 0.54098 | C93: 0.08508 | D93: 0.5984 | E93: 0.086471 | G93: -1.5 | H93: 0.001127496267 | I93: -0.4989202352 | K93: 1.86948795 | L93: 0 | M93: 0.4722098631 | N93: 2.099149618 | O93: 0.304464391 | P93: 0.192441405 | AA93: 0.3694879498 | AB93: 0 | AC93: -0.02779013692 | AD93: 0.5991496184 | AE93: 0.304464391 | AF93: -0.307558595
B94: 0.53113 | C94: 0.08692 | D94: 0.59025 | E94: 0.087648 | G94: -1.5 | H94: 0.001169343509 | I94: -0.498919157 | K94: 1.834359474 | L94: 0 | M94: 0.4754952367 | N94: 2.070573302 | O94: 0.308608608 | P94: 0.1898216458 | AA94: 0.334359474 | AB94: 0 | AC94: -0.02450476333 | AD94: 0.5705733015 | AE94: 0.308608608 | AF94: -0.3101783542
B95: 0.52141 | C95: 0.08867 | D95: 0.58209 | E95: 0.088737 | G95: -1.5 | H95: 0.001211564241 | I95: -0.4989192473 | K95: 1.799715747 | L95: 0 | M95: 0.4785068311 | N95: 2.041961922 | O95: 0.312442977 | P95: 0.1871986722 | AA95: 0.2997157465 | AB95: 0 | AC95: -0.02149316886 | AD95: 0.5419619217 | AE95: 0.312442977 | AF95: -0.3128013278
B96: 0.51182 | C96: 0.09032 | D96: 0.57392 | E96: 0.089727 | G96: -1.5 | H96: 0.001254130315 | I96: -0.4989205187 | K96: 1.765559982 | L96: 0 | M96: 0.4812095835 | N96: 2.013315479 | O96: 0.315928767 | P96: 0.1845724841 | AA96: 0.2655599819 | AB96: 0 | AC96: -0.01879041648 | AD96: 0.5133154789 | AE96: 0.315928767 | AF96: -0.3154275159
B97: 0.50233 | C97: 0.09187 | D97: 0.56572 | E97: 0.09064 | G97: -1.5 | H97: 0.001297013259 | I97: -0.4989229831 | K97: 1.731786991 | L97: 0 | M97: 0.4835938505 | N97: 1.984563847 | O97: 0.31914344 | P97: 0.1819366527 | AA97: 0.2317869913 | AB97: 0 | AC97: -0.01640614947 | AD97: 0.4845638471 | AE97: 0.31914344 | AF97: -0.3180633473
B98: 0.49288 | C98: 0.09331 | D98: 0.55749 | E98: 0.091454 | G98: -1.5 | H98: 0.001340184292 | I98: -0.4989266518 | K98: 1.698189611 | L98: 0 | M98: 0.4856052826 | N98: 1.955707027 | O98: 0.322009534 | P98: 0.1792911781 | AA98: 0.1981896112 | AB98: 0 | AC98: -0.01439471736 | AD98: 0.4557070265 | AE98: 0.322009534 | AF98: -0.3207088219
B99: 0.48346 | C99: 0.09465 | D99: 0.54921 | E99: 0.092191 | G99: -1.5 | H99: 0.001383614337 | I99: -0.4989315355 | K99: 1.664729564 | L99: 0 | M99: 0.4872757284 | N99: 1.926674891 | O99: 0.324604511 | P99: 0.1766296313 | AA99: 0.1647295642 | AB99: 0 | AC99: -0.01272427163 | AD99: 0.4266748911 | AE99: 0.324604511 | AF99: -0.3233703687
B100: 0.47403 | C100: 0.0959 | D100: 0.54087 | E100: 0.092851 | G100: -1.5 | H100: 0.001427274036 | I100: -0.4989376442 | K100: 1.631263384 | L100: 0 | M100: 0.488627393 | N100: 1.897432378 | O100: 0.326928371 | P100: 0.1739487979 | AA100: 0.1312633842 | AB100: 0 | AC100: -0.01137260701 | AD100: 0.3974323779 | AE100: 0.326928371 | AF100: -0.3260512021
B101: 0.46457 | C101: 0.09706 | D101: 0.53247 | E101: 0.093434 | G101: -1.5 | H101: 0.001471133762 | I101: -0.4989449873 | K101: 1.597720945 | L101: 0 | M101: 0.4896538476 | N101: 1.867979487 | O101: 0.328981114 | P101: 0.171248678 | AA101: 0.09772094515 | AB101: 0 | AC101: -0.01034615237 | AD101: 0.3679794869 | AE101: 0.328981114 | AF101: -0.328751322
B102: 0.45508 | C102: 0.09813 | D102: 0.52401 | E102: 0.09394 | G102: -1.5 | H102: 0.001515163632 | I102: -0.4989535734 | K102: 1.564102247 | L102: 0 | M102: 0.4903550923 | N102: 1.838316218 | O102: 0.33076274 | P102: 0.1685292715 | AA102: 0.06410224704 | AB102: 0 | AC102: -0.009644907699 | AD102: 0.3383162181 | AE102: 0.33076274 | AF102: -0.3314707285
B103: 0.44556 | C103: 0.09912 | D103: 0.51548 | E103: 0.09438 | G103: -1.5 | H103: 0.001559333526 | I103: -0.4989634106 | K103: 1.530404075 | L103: 0 | M103: 0.49076619 | N103: 1.808407508 | O103: 0.33231198 | P103: 0.165787364 | AA103: 0.03040407547 | AB103: 0 | AC103: -0.009233810041 | AD103: 0.3084075085 | AE103: 0.33231198 | AF103: -0.334212636
B104: 0.43602 | C104: 0.10005 | D104: 0.50688 | E104: 0.094754 | G104: -1.5 | H104: 0.001603613096 | I104: -0.4989745063 | K104: 1.496655065 | L104: 0 | M104: 0.490960481 | N104: 1.778253358 | O104: 0.333628834 | P104: 0.1630229555 | AA104: -0.003344935465 | AB104: 0 | AC104: -0.009039519032 | AD104: 0.2782533582 | AE104: 0.333628834 | AF104: -0.3369770445
B105: 0.42646 | C105: 0.10089 | D105: 0.49822 | E105: 0.095073 | G105: -1.5 | H105: 0.001647971783 | I105: -0.498986867 | K105: 1.462864858 | L105: 0 | M105: 0.4908327764 | N105: 1.74788883 | O105: 0.334752033 | P105: 0.1602392604 | AA105: -0.03713514247 | AB105: 0 | AC105: -0.00916722357 | AD105: 0.24788883 | AE105: 0.334752033 | AF105: -0.3397607396
B106: 0.41689 | C106: 0.10167 | D106: 0.48949 | E106: 0.095337 | G106: -1.5 | H106: 0.001692378831 | I106: -0.4990004989 | K106: 1.429058874 | L106: 0 | M106: 0.4904914797 | N106: 1.717278861 | O106: 0.335681577 | P106: 0.1574330643 | AA106: -0.07094112588 | AB106: 0 | AC106: -0.009508520329 | AD106: 0.2172788612 | AE106: 0.335681577 | AF106: -0.3425669357
B107: 0.40733 | C107: 0.10236 | D107: 0.4807 | E107: 0.095546 | G107: -1.5 | H107: 0.001736803302 | I107: -0.4990154072 | K107: 1.395316884 | L107: 0 | M107: 0.4898378307 | N107: 1.686458514 | O107: 0.336417466 | P107: 0.1546075817 | AA107: -0.1046831165 | AB107: 0 | AC107: -0.01016216935 | AD107: 0.1864585145 | AE107: 0.336417466 | AF107: -0.3453924183
B108: 0.39778 | C108: 0.10298 | D108: 0.47185 | E108: 0.095711 | G108: -1.5 | H108: 0.001781214089 | I108: -0.4990315966 | K108: 1.361632457 | L108: 0 | M108: 0.4889419553 | N108: 1.65542779 | O108: 0.336998431 | P108: 0.1517628125 | AA108: =K108+$D$5 -> -0.1383675431 | AB108: =-L108-$D$6 -> 0 | AC108: =M108+$D$7 -> -0.0110580447 | AD108: =N108+$D$5 -> 0.15542779 | AE108: =O108-$D$6 -> 0.336998431 | AF108: =P108+$D$7 -> -0.3482371875
B109: 0.38824 | C109: 0.10352 | D109: 0.46296 | E109: 0.095832 | G109: -1.5 | H109: 0.001825579934 | I109: -0.4990490708 | K109: 1.328008809 | L109: 0 | M109: 0.4877687907 | N109: 1.624256814 | O109: 0.337424472 | P109: 0.1489051855 | AA109: -0.1719911913 | AB109: 0 | AC109: -0.01223120935 | AD109: 0.1242568137 | AE109: 0.337424472 | AF109: -0.3510948145
B110: 0.37872 | C110: 0.10397 | D110: 0.45403 | E110: 0.095909 | G110: -1.5 | H110: 0.001869869439 | I110: -0.4990678332 | K110: 1.294484216 | L110: 0 | M110: 0.4862864882 | N110: 1.592945586 | O110: 0.337695589 | P110: 0.1460347009 | AA110: -0.2055157837 | AB110: 0 | AC110: -0.01371351182 | AD110: 0.09294558551 | AE110: 0.337695589 | AF110: -0.3539652991
B111: 0.36921 | C111: 0.10433 | D111: 0.4451 | E111: 0.095953 | G111: -1.5 | H111: 0.001914051087 | I111: -0.4990878862 | K111: 1.261023617 | L111: 0 | M111: 0.4844918334 | N111: 1.561634357 | O111: 0.337850513 | P111: 0.1431642162 | AA111: -0.2389763833 | AB111: 0 | AC111: -0.01550816656 | AD111: 0.06163435732 | AE111: 0.337850513 | AF111: -0.3568357838
B112: 0.35968 | C112: 0.1046 | D112: 0.43618 | E112: 0.095953 | G112: -1.5 | H112: 0.001958093248 | I112: -0.4991092317 | K112: 1.227521821 | L112: 0 | M112: 0.4823751832 | N112: 1.530358192 | O112: 0.337850513 | P112: 0.140296946 | AA112: -0.272478179 | AB112: 0 | AC112: -0.01762481685 | AD112: 0.03035819209 | AE112: 0.337850513 | AF112: -0.359703054
B113: 0.35012 | C113: 0.10477 | D113: 0.42726 | E113: 0.095909 | G113: -1.5 | H113: 0.002001964203 | I113: -0.4991318707 | K113: 1.193946981 | L113: 0 | M113: 0.4798982599 | N113: 1.499082027 | O113: 0.337695589 | P113: 0.1374296758 | AA113: -0.3060530193 | AB113: 0 | AC113: -0.02010174008 | AD113: -0.0009179731308 | AE113: 0.337695589 | AF113: -0.3625703242
B114: 0.3405 | C114: 0.10485 | D114: 0.41836 | E114: 0.095821 | G114: -1.5 | H114: 0.002045632155 | I114: -0.4991558035 | K114: 1.160190692 | L114: 0 | M114: 0.4770864834 | N114: 1.467875988 | O114: 0.337385741 | P114: 0.1345688344 | AA114: -0.3398093076 | AB114: 0 | AC114: -0.02291351656 | AD114: -0.03212401242 | AE114: 0.337385741 | AF114: -0.3654311656
B115: 0.33079 | C115: 0.10484 | D115: 0.40947 | E115: 0.095678 | G115: -1.5 | H115: 0.002089065244 | I115: -0.4991810299 | K115: 1.126147767 | L115: 0 | M115: 0.4739302104 | N115: 1.436705011 | O115: 0.336882238 | P115: 0.1317112075 | AA115: -0.3738522326 | AB115: 0 | AC115: -0.02606978959 | AD115: -0.06329498875 | AE115: 0.336882238 | AF115: -0.3682887925
B116: 0.32094 | C116: 0.10475 | D116: 0.40059 | E116: 0.095491 | G116: -1.5 | H116: 0.002132231564 | I116: -0.4992075487 | K116: 1.091639676 | L116: 0 | M116: 0.4704484316 | N116: 1.405569098 | O116: 0.336223811 | P116: 0.128856795 | AA116: -0.4083603238 | AB116: 0 | AC116: -0.02955156835 | AD116: -0.09443090211 | AE116: 0.336223811 | AF116: -0.371143205
B117: 0.31096 | C117: 0.1046 | D117: 0.39171 | E117: 0.09526 | G117: -1.5 | H117: 0.002175099178 | I117: -0.4992353582 | K117: 1.056695053 | L117: 0 | M117: 0.4667144875 | N117: 1.374433185 | O117: 0.33541046 | P117: 0.1260023825 | AA117: -0.4433049469 | AB117: 0 | AC117: -0.03328551247 | AD117: -0.1255668155 | AE117: 0.33541046 | AF117: -0.3739976175
B118: 0.30083 | C118: 0.1044 | D118: 0.38285 | E118: 0.094974 | G118: -1.5 | H118: 0.002217636131 | I118: -0.4992644558 | K118: 1.021240558 | L118: 0 | M118: 0.4627570122 | N118: 1.343367397 | O118: 0.334403454 | P118: 0.1231543989 | AA118: -0.4787594424 | AB118: 0 | AC118: -0.03724298784 | AD118: -0.1566326029 | AE118: 0.334403454 | AF118: -0.3768456011
B119: 0.29058 | C119: 0.10417 | D119: 0.374 | E119: 0.094633 | G119: -1.5 | H119: 0.002259810471 | I119: -0.4992948383 | K119: 0.9853749498 | L119: 0 | M119: 0.4586557747 | N119: 1.312336673 | O119: 0.333202793 | P119: 0.1203096296 | AA119: -0.5146250502 | AB119: 0 | AC119: -0.04134422525 | AD119: -0.1876633274 | AE119: 0.333202793 | AF119: -0.3796903704
B120: 0.28025 | C120: 0.10392 | D120: 0.36515 | E120: 0.094248 | G120: -1.5 | H120: 0.002301590258 | I120: -0.4993265018 | K120: 0.9492352672 | L120: 0 | M120: 0.454458696 | N120: 1.281305948 | O120: 0.331847208 | P120: 0.1174648604 | AA120: -0.5507647328 | AB120: 0 | AC120: -0.04554130403 | AD120: -0.2186940518 | AE120: 0.331847208 | AF120: -0.3825351396
B121: 0.26989 | C121: 0.10366 | D121: 0.35631 | E121: 0.093819 | G121: -1.5 | H121: 0.002342943585 | I121: -0.4993594416 | K121: 0.91299361 | L121: 0 | M121: 0.450216911 | N121: 1.250310287 | O121: 0.330336699 | P121: 0.1146233056 | AA121: -0.58700639 | AB121: 0 | AC121: -0.04978308905 | AD121: -0.2496897133 | AE121: 0.330336699 | AF121: -0.3853766944
B122: 0.25957 | C122: 0.1034 | D122: 0.34747 | E122: 0.093324 | G122: -1.5 | H122: 0.00238383859 | I122: -0.4993936522 | K122: 0.8768922048 | L122: 0 | M122: 0.4459879836 | N122: 1.219314625 | O122: 0.328593804 | P122: 0.1117817509 | AA122: -0.6231077952 | AB122: 0 | AC122: -0.05401201636 | AD122: -0.2806853748 | AE122: 0.328593804 | AF122: -0.3882182491
B123: 0.24934 | C123: 0.10314 | D123: 0.33862 | E123: 0.092785 | G123: -1.5 | H123: 0.002424243473 | I123: -0.4994291275 | K123: 0.8411063662 | L123: 0 | M123: 0.4417879862 | N123: 1.188283901 | O123: 0.326695985 | P123: 0.1089369816 | AA123: -0.6588936338 | AB123: 0 | AC123: -0.05821201381 | AD123: -0.3117160993 | AE123: 0.326695985 | AF123: -0.3910630184
B124: 0.23926 | C124: 0.10286 | D124: 0.32977 | E124: 0.092191 | G124: -1.5 | H124: 0.002464126512 | I124: -0.4994658607 | K124: 0.805852901 | L124: 0 | M124: 0.4375660792 | N124: 1.157253176 | O124: 0.324604511 | P124: 0.1060922124 | AA124: -0.694147099 | AB124: 0 | AC124: -0.06243392076 | AD124: -0.3427468238 | AE124: 0.324604511 | AF124: -0.3939077876
B125: 0.22937 | C125: 0.10255 | D125: 0.32091 | E125: 0.091553 | G125: -1.5 | H125: 0.002503456077 | I125: -0.4995038442 | K125: 0.7712752754 | L125: 0 | M125: 0.4333000575 | N125: 1.126187389 | O125: 0.322358113 | P125: 0.1032442288 | AA125: -0.7287247246 | AB125: 0 | AC125: -0.06669994247 | AD125: -0.3738126112 | AE125: 0.322358113 | AF125: -0.3967557712
B126: 0.21969 | C126: 0.10222 | D126: 0.31204 | E126: 0.090871 | G126: -1.5 | H126: 0.002542200647 | I126: -0.4995430697 | K126: 0.7374404009 | L126: 0 | M126: 0.4290314129 | N126: 1.095086538 | O126: 0.319956791 | P126: 0.1003930307 | AA126: -0.7625595991 | AB126: 0 | AC126: -0.07096858712 | AD126: -0.4049134616 | AE126: 0.319956791 | AF126: -0.3996069693
B127: 0.21027 | C127: 0.10185 | D127: 0.30318 | E127: 0.090134 | G127: -1.5 | H127: 0.002580328826 | I127: -0.4995835282 | K127: 0.7045300213 | L127: 0 | M127: 0.4247060915 | N127: 1.064020751 | O127: 0.317361814 | P127: 0.09754504706 | AA127: -0.7954699787 | AB127: 0 | AC127: -0.07529390848 | AD127: -0.435979249 | AE127: 0.317361814 | AF127: -0.4024549529
B128: 0.20112 | C128: 0.10142 | D128: 0.29433 | E128: 0.089353 | G128: -1.5 | H128: 0.002617809355 | I128: -0.4996252099 | K128: 0.6725856283 | L128: 0 | M128: 0.4202571819 | N128: 1.032990027 | O128: 0.314611913 | P128: 0.09470027784 | AA128: -0.8274143717 | AB128: 0 | AC128: -0.07974281807 | AD128: -0.4670099735 | AE128: 0.314611913 | AF128: -0.4052997222
B129: 0.19226 | C129: 0.10094 | D129: 0.28549 | E129: 0.088528 | G129: -1.5 | H129: 0.002654611134 | I129: -0.4996681043 | K129: 0.6416741334 | L129: 0 | M129: 0.4157261759 | N129: 1.001994365 | O129: 0.311707088 | P129: 0.09185872306 | AA129: -0.8583258666 | AB129: 0 | AC129: -0.08427382406 | AD129: -0.498005635 | AE129: 0.311707088 | AF129: -0.4081412769
B130: 0.18372 | C130: 0.10039 | D130: 0.27667 | E130: 0.087659 | G130: -1.5 | H130: 0.002690703231 | I130: -0.4997122004 | K130: 0.6119071545 | L130: 0 | M130: 0.4110525909 | N130: 0.9710688294 | O130: 0.308647339 | P130: 0.08902359712 | AA130: -0.8880928455 | AB130: 0 | AC130: -0.08894740909 | AD130: -0.5289311706 | AE130: 0.308647339 | AF130: -0.4109764029
B131: 0.17551 | C131: 0.09976 | D131: 0.26788 | E131: 0.086735 | G131: -1.5 | H131: 0.0027260549 | I131: -0.4997574862 | K131: 0.5833229688 | L131: 0 | M131: 0.4062045783 | N131: 0.9402484828 | O131: 0.305393935 | P131: 0.08619811448 | AA131: -0.9166770312 | AB131: 0 | AC131: -0.09379542171 | AD131: -0.5597515172 | AE131: 0.305393935 | AF131: -0.4138018855
B132: 0.16761 | C132: 0.09903 | D132: 0.25912 | E132: 0.085778 | G132: -1.5 | H132: 0.002760635597 | I132: -0.4998039492 | K132: 0.5558578793 | L132: 0 | M132: 0.4011055833 | N132: 0.909533325 | O132: 0.302024338 | P132: 0.08338227512 | AA132: -0.9441421207 | AB132: 0 | AC132: -0.0988944167 | AD132: -0.590466675 | AE132: 0.302024338 | AF132: -0.4166177249
B133: 0.16003 | C133: 0.09818 | D133: 0.25038 | E133: 0.084755 | G133: -1.5 | H133: 0.002794414996 | I133: -0.499851576 | K133: 0.5295533779 | L133: 0 | M133: 0.3956886944 | N133: 0.8788882932 | O133: 0.298422355 | P133: 0.08057286461 | AA133: -0.9704466221 | AB133: 0 | AC133: -0.1043113056 | AD133: -0.6211117068 | AE133: 0.298422355 | AF133: -0.4194271354
B134: 0.15272 | C134: 0.09721 | D134: 0.24168 | E134: 0.083688 | G134: -1.5 | H134: 0.002827363 | I134: -0.4999003527 | K134: 0.5042341497 | L134: 0 | M134: 0.3899378395 | N134: 0.8483835132 | O134: 0.294665448 | P134: 0.07777631183 | AA134: -0.9957658503 | AB134: 0 | AC134: -0.1100621605 | AD134: -0.6516164868 | AE134: 0.294665448 | AF134: -0.4222236882
B135: 0.14566 | C135: 0.09609 | D135: 0.23301 | E135: 0.082566 | G135: -1.5 | H135: 0.003143805371 | I135: -0.499955228 | K135: 0.479839712 | L135: 0 | M135: 0.3837414009 | N135: 0.8179839221 | O135: 0.290714886 | P135: 0.07498940232 | AA135: -1.020160288 | AB135: 0 | AC135: -0.1162585991 | AD135: -0.6820160779 | AE135: 0.290714886 | AF135: -0.4250105977
B136: 0.13882 | C136: 0.09482 | D136: 0.22437 | E136: 0.081389 | G136: -1.5 | H136: 0.003459097048 | I136: -0.500021147 | K136: 0.4562648761 | L136: 0 | M136: 0.3770897352 | N136: 0.7876895199 | O136: 0.286570669 | P136: 0.0722121361 | AA136: -1.043735124 | AB136: 0 | AC136: -0.1229102648 | AD136: -0.7123104801 | AE136: 0.286570669 | AF136: -0.4277878639
B137: 0.13218 | C137: 0.0934 | D137: 0.21576 | E137: 0.080157 | G137: -1.5 | H137: 0.00377294899 | I137: -0.5000980846 | K137: 0.4334395158 | L137: 0 | M137: 0.3699764136 | N137: 0.7575003066 | O137: 0.282232797 | P137: 0.06944451317 | AA137: -1.066560484 | AB137: 0 | AC137: -0.1300235864 | AD137: -0.7424996934 | AE137: 0.282232797 | AF137: -0.4305554868
B138: 0.1257 | C138: 0.09181 | D138: 0.20719 | E138: 0.07887 | G138: -1.5 | H138: 0.00408507271 | I138: -0.5001860088 | K138: 0.4112298083 | L138: 0 | M138: 0.3623184524 | N138: 0.7274513452 | O138: 0.27770127 | P138: 0.06668974795 | AA138: -1.088770192 | AB138: 0 | AC138: -0.1376815476 | AD138: -0.7725486548 | AE138: 0.27770127 | AF138: -0.433310252
B139: 0.11937 | C139: 0.09006 | D139: 0.19866 | E139: 0.077528 | G139: -1.5 | H139: 0.004395180426 | I139: -0.5002848812 | K139: 0.3895974761 | L139: 0 | M139: 0.3541477002 | N139: 0.6975426356 | O139: 0.272976088 | P139: 0.06394784045 | AA139: -1.110402524 | AB139: 0 | AC139: -0.1458522998 | AD139: -0.8024573644 | AE139: 0.272976088 | AF139: -0.4360521596
B140: 0.11317 | C140: 0.08815 | D140: 0.19016 | E140: 0.076131 | G140: -1.5 | H140: 0.004702985205 | I140: -0.5003946564 | K140: 0.3684723934 | L140: 0 | M140: 0.3454577281 | N140: 0.6677391149 | O140: 0.268057251 | P140: 0.06121557623 | AA140: -1.131527607 | AB140: 0 | AC140: -0.1545422719 | AD140: -0.8322608851 | AE140: 0.268057251 | AF140: -0.4387844238
B141: 0.10709 | C141: 0.08609 | D141: 0.18172 | E141: 0.074668 | G141: -1.5 | H141: 0.005008201106 | I141: -0.5005152825 | K141: 0.3478162826 | L141: 0 | M141: 0.3362803847 | N141: 0.638145972 | O141: 0.262906028 | P141: 0.05850259858 | AA141: -1.152183717 | AB141: 0 | AC141: -0.1637196153 | AD141: -0.861854028 | AE141: 0.262906028 | AF141: -0.4414974014
B142: 0.10114 | C142: 0.0839 | D142: 0.17331 | E142: 0.07315 | G142: -1.5 | H142: 0.005310543333 | I142: -0.5006467009 | K142: 0.327657778 | L142: 0 | M142: 0.3266890103 | N142: 0.6086580181 | O142: 0.25756115 | P142: 0.05579926422 | AA142: -1.172342222 | AB142: 0 | AC142: -0.1733109897 | AD142: -0.8913419819 | AE142: 0.25756115 | AF142: -0.4442007358
B143: 0.09531 | C143: 0.08158 | D143: 0.16497 | E143: 0.071577 | G143: -1.5 | H143: 0.005609728373 | I143: -0.5007888464 | K143: 0.3079618165 | L143: 0 | M143: 0.3166803905 | N143: 0.5794155048 | O143: 0.252022617 | P143: 0.05311843085 | AA143: -1.192038183 | AB143: 0 | AC143: -0.1833196095 | AD143: -0.9205844952 | AE143: 0.252022617 | AF143: -0.4468815691
B144: 0.08962 | C144: 0.07916 | D144: 0.15668 | E144: 0.069949 | G144: -1.5 | H144: 0.005905474146 | I144: -0.5009416471 | K144: 0.2887888808 | L144: 0 | M144: 0.306366143 | N144: 0.5503483064 | O144: 0.246290429 | P144: 0.05045366963 | AA144: -1.211211119 | AB144: 0 | AC144: -0.193633857 | AD144: -0.9496516936 | AE144: 0.246290429 | AF144: -0.4495463304
B145: 0.08408 | C145: 0.07666 | D145: 0.14848 | E145: 0.068255 | G145: -1.5 | H145: 0.006197500144 | I145: -0.5011050247 | K145: 0.2701676051 | L145: 0 | M145: 0.2958196083 | N145: 0.5215966747 | O145: 0.240325855 | P145: 0.04781783827 | AA145: -1.229832395 | AB145: 0 | AC145: -0.2041803917 | AD145: -0.9784033253 | AE145: 0.240325855 | AF145: -0.4521821617
B146: 0.07871 | C146: 0.0741 | D146: 0.14037 | E146: 0.066517 | G146: -1.5 | H146: 0.00648552758 | I146: -0.5012788942 | K146: 0.2521616863 | L146: 0 | M146: 0.285117341 | N146: 0.4931606097 | O146: 0.234206357 | P146: 0.04521093676 | AA146: -1.247838314 | AB146: 0 | AC146: -0.214882659 | AD146: -1.00683939 | AE146: 0.234206357 | AF146: -0.4547890632
B147: 0.07353 | C147: 0.0715 | D147: 0.13238 | E147: 0.064735 | G147: -1.5 | H147: 0.006769279526 | I147: -0.501463164 | K147: 0.2348348216 | L147: 0 | M147: 0.274335896 | N147: 0.4651453003 | O147: 0.227931935 | P147: 0.04264260839 | AA147: -1.265165178 | AB147: 0 | AC147: -0.225664104 | AD147: -1.0348547 | AE147: 0.227931935 | AF147: -0.4573573916
B148: 0.06856 | C148: 0.06888 | D148: 0.12453 | E148: 0.062898 | G148: -1.5 | H148: 0.007048481058 | I148: -0.5016577364 | K148: 0.218250708 | L148: 0 | M148: 0.2635518281 | N148: 0.4376208724 | O148: 0.221463858 | P148: 0.04011928203 | AA148: -1.281749292 | AB148: 0 | AC148: -0.2364481719 | AD148: -1.062379128 | AE148: 0.221463858 | AF148: -0.459880718
B149: 0.0638 | C149: 0.06626 | D149: 0.11684 | E149: 0.061006 | G149: -1.5 | H149: 0.007322859396 | I149: -0.501862507 | K149: 0.2024029167 | L149: 0 | M149: 0.2528352632 | N149: 0.4106574519 | O149: 0.214802126 | P149: 0.03764738651 | AA149: -1.297597083 | AB149: 0 | AC149: -0.2471647368 | AD149: -1.089342548 | AE149: 0.214802126 | AF149: -0.4623526135
B150: 0.05928 | C150: 0.06367 | D150: 0.10934 | E150: 0.059081 | G150: -1.5 | H150: 0.007592144044 | I150: -0.502077365 | K150: 0.1873869933 | L150: 0 | M150: 0.2423010334 | N150: 0.3843602278 | O150: 0.208024201 | P150: 0.03523656514 | AA150: -1.312613007 | AB150: 0 | AC150: -0.2576989666 | AD150: -1.115639772 | AE150: 0.208024201 | AF150: -0.4647634349
B151: 0.05498 | C151: 0.06111 | D151: 0.10202 | E151: 0.057101 | G151: -1.5 | H151: 0.007856066929 | I151: -0.5023021934 | K151: 0.1731328118 | L151: 0 | M151: 0.23194271 | N151: 0.358694137 | O151: 0.201052621 | P151: 0.03288360349 | AA151: -1.326867188 | AB151: 0 | AC151: -0.26805729 | AD151: -1.141305863 | AE151: 0.201052621 | AF151: -0.4671163965
B152: 0.05093 | C152: 0.05859 | D152: 0.09491 | E152: 0.055077 | G152: -1.5 | H152: 0.008114362541 | I152: -0.5025368689 | K152: 0.1597423467 | L152: 0 | M152: 0.2218049992 | N152: 0.3337643686 | O152: 0.193926117 | P152: 0.03059814483 | AA152: -1.340257653 | AB152: 0 | AC152: -0.2781950008 | AD152: -1.166235631 | AE152: 0.193926117 | AF152: -0.4694018552
B153: 0.04711 | C153: 0.05614 | D153: 0.08803 | E153: 0.053031 | G153: -1.5 | H153: 0.008366768071 | I153: -0.502781262 | K153: 0.1471358289 | L153: 0 | M153: 0.2119866609 | N153: 0.3096410483 | O153: 0.186722151 | P153: 0.02838661802 | AA153: -1.352864171 | AB153: 0 | AC153: -0.2880133391 | AD153: -1.190358952 | AE153: 0.186722151 | AF153: -0.471613382
B154: 0.04351 | C154: 0.05377 | D154: 0.08141 | E154: 0.050963 | G154: -1.5 | H154: 0.008613023542 | I154: -0.5030352369 | K154: 0.1352749809 | L154: 0 | M154: 0.2025195439 | N154: 0.2864293651 | O154: 0.179440723 | P154: 0.02625866636 | AA154: -1.364725019 | AB154: 0 | AC154: -0.2974804561 | AD154: -1.213570635 | AE154: 0.179440723 | AF154: -0.4737413336
B155: 0.04014 | C155: 0.05147 | D155: 0.07508 | E155: 0.048895 | G155: -1.5 | H155: 0.008852871949 | I155: -0.5032986519 | K155: 0.1241980801 | L155: 0 | M155: 0.1933717994 | N155: 0.264234508 | O155: 0.172159295 | P155: 0.02422393313 | AA155: -1.37580192 | AB155: 0 | AC155: -0.3066282006 | AD155: -1.235765492 | AE155: 0.172159295 | AF155: -0.4757760669
B156: 0.03698 | C156: 0.04925 | D156: 0.06906 | E156: 0.046849 | G156: -1.5 | H156: 0.009086059391 | I156: -0.503571359 | K156: 0.1138317861 | L156: 0 | M156: 0.1845720616 | N156: 0.2431266028 | O156: 0.164955329 | P156: 0.02228884717 | AA156: -1.386168214 | AB156: 0 | AC156: -0.3154279384 | AD156: -1.256873397 | AE156: 0.164955329 | AF156: -0.4777111528
B157: 0.03402 | C157: 0.04711 | D157: 0.06339 | E157: 0.044836 | G157: -1.5 | H157: 0.009312335205 | I157: -0.5038532045 | K157: 0.104141036 | L157: 0 | M157: 0.1761171162 | N157: 0.2232459013 | O157: 0.157867556 | P157: 0.02046626622 | AA157: -1.395858964 | AB157: 0 | AC157: -0.3238828838 | AD157: -1.276754099 | AE157: 0.157867556 | AF157: -0.4795337338
B158: 0.03125 | C158: 0.04506 | D158: 0.05807 | E158: 0.042889 | G158: -1.5 | H158: 0.009531452093 | I158: -0.5041440286 | K158: 0.09508755239 | L158: 0 | M158: 0.1680388116 | N158: 0.2045924037 | O158: 0.151012169 | P158: 0.01875619026 | AA158: -1.404912448 | AB158: 0 | AC158: -0.3319611884 | AD158: -1.295407596 | AE158: 0.151012169 | AF158: -0.4812438097
B159: 0.02866 | C159: 0.04309 | D159: 0.05313 | E159: 0.041008 | G159: -1.5 | H159: 0.009743166257 | I159: -0.5044436658 | K159: 0.08663948674 | L159: 0 | M159: 0.1602988704 | N159: 0.1872712987 | O159: 0.144389168 | P159: 0.01716826258 | AA159: -1.413360513 | AB159: 0 | AC159: -0.3397011296 | AD159: -1.312728701 | AE159: 0.144389168 | AF159: -0.4828317374
B160: 0.02624 | C160: 0.04118 | D160: 0.04855 | E160: 0.039215 | G160: -1.5 | H160: 0.009947237522 | I160: -0.5047519446 | K160: 0.07876820493 | L160: 0 | M160: 0.1528239523 | N160: 0.1712124605 | O160: 0.138076015 | P160: 0.01569605433 | AA160: -1.421231795 | AB160: 0 | AC160: -0.3471760477 | AD160: -1.328787539 | AE160: 0.138076015 | AF160: -0.4843039457
B161: 0.02398 | C161: 0.03934 | D161: 0.04432 | E161: 0.037532 | G161: -1.5 | H161: 0.01014342947 | I161: -0.5050686882 | K161: 0.07143542957 | L161: 0 | M161: 0.1456459058 | N161: 0.1563808261 | O161: 0.132150172 | P161: 0.01433635108 | AA161: -1.42856457 | AB161: 0 | AC161: -0.3543540942 | AD161: -1.343619174 | AE161: 0.132150172 | AF161: -0.4856636489
B162: 0.02186 | C162: 0.03757 | D162: 0.04044 | E162: 0.035948 | G162: -1.5 | H162: 0.01033150955 | I162: -0.5053937138 | K162: 0.06457103473 | L162: 0 | M162: 0.1387583021 | N162: 0.1427763955 | O162: 0.126572908 | P162: 0.01308915283 | AA162: -1.435428965 | AB162: 0 | AC162: -0.3612416979 | AD162: -1.357223604 | AE162: 0.126572908 | AF162: -0.4869108472
B163: 0.01988 | C163: 0.03584 | D163: 0.03687 | E163: 0.034463 | G163: -1.5 | H163: 0.01051124922 | I163: -0.5057268333 | K163: 0.05818466369 | L163: 0 | M163: 0.1320559522 | N163: 0.1302589168 | O163: 0.121344223 | P163: 0.01194160185 | AA163: -1.441815336 | AB163: 0 | AC163: -0.3679440478 | AD163: -1.369741083 | AE163: 0.121344223 | AF163: -0.4880583981
B164: 0.01803 | C164: 0.03417 | D164: 0.03361 | E164: 0.033088 | G164: -1.5 | H164: 0.01068242406 | I164: -0.5060678531 | K164: 0.05223482463 | L164: 0 | M164: 0.1256057677 | N164: 0.1188283901 | O164: 0.116502848 | P164: 0.01089369816 | AA164: -1.447765175 | AB164: 0 | AC164: -0.3743942323 | AD164: -1.38117161 | AE164: 0.116502848 | AF164: -0.4891063018
B165: 0.01629 | C165: 0.03254 | D165: 0.03061 | E165: 0.031812 | G165: -1.5 | H165: 0.01084481389 | I165: -0.5064165743 | K165: 0.04665782048 | L165: 0 | M165: 0.1193311937 | N165: 0.1083095004 | O165: 0.112010052 | P165: 0.009929369616 | AA165: -1.45334218 | AB165: 0 | AC165: -0.3806688063 | AD165: -1.3916905 | AE165: 0.112010052 | AF165: -0.4900706304
B166: 0.01466 | C166: 0.03095 | D166: 0.02786 | E166: 0.030613 | G166: -1.5 | H166: 0.0109982029 | I166: -0.5067727926 | K166: 0.04145365123 | L166: 0 | M166: 0.1132322304 | N166: 0.09866718491 | O166: 0.107788373 | P166: 0.00904540178 | AA166: -1.458546349 | AB166: 0 | AC166: -0.3867677696 | AD166: -1.401332815 | AE166: 0.107788373 | AF166: -0.4909545982
B167: 0.01313 | C167: 0.02941 | D167: 0.02534 | E167: 0.029469 | G167: -1.5 | H167: 0.01114237974 | I167: -0.5071362987 | K167: 0.0365840395 | L167: 0 | M167: 0.1073407261 | N167: 0.0898313176 | O167: 0.103760349 | P167: 0.0082353658 | AA167: -1.463415961 | AB167: 0 | AC167: -0.3926592739 | AD167: -1.410168682 | AE167: 0.103760349 | AF167: -0.4917646342
B168: 0.01171 | C168: 0.0279 | D168: 0.02303 | E168: 0.028358 | G168: -1.5 | H168: 0.01127713766 | I168: -0.5075068781 | K168: 0.0320904771 | L168: 0 | M168: 0.1015897695 | N168: 0.08173177257 | O168: 0.099848518 | P168: 0.007492832818 | AA168: -1.467909523 | AB168: 0 | AC168: -0.3984102305 | AD168: -1.418268227 | AE168: 0.099848518 | AF168: -0.4925071672
B169: 0.01037 | C169: 0.02642 | D169: 0.02089 | E169: 0.027258 | G169: -1.5 | H169: 0.01140227462 | I169: -0.5078843114 | K169: 0.02786777514 | L169: 0 | M169: 0.09596971719 | N169: 0.07422829796 | O169: 0.095975418 | P169: 0.00680494512 | AA169: -1.472132225 | AB169: 0 | AC169: -0.4040302828 | AD169: -1.425771702 | AE169: 0.095975418 | AF169: -0.4931950549
B170: 0.00913 | C170: 0.02497 | D170: 0.01891 | E170: 0.026158 | G170: -1.5 | H170: 0.01151759339 | I170: -0.5082683741 | K170: 0.02398605955 | L170: 0 | M170: 0.09048699806 | N170: 0.06728583079 | O170: 0.092102318 | P170: 0.006168488279 | AA170: -1.47601394 | AB170: 0 | AC170: -0.4095130019 | AD170: -1.432714169 | AE170: 0.092102318 | AF170: -0.4938315117
B171: 0.00799 | C171: 0.02353 | D171: 0.01707 | E171: 0.025058 | G171: -1.5 | H171: 0.01162290167 | I171: -0.5086588373 | K171: 0.02045175919 | L171: 0 | M171: 0.08507148618 | N171: 0.06083424514 | O171: 0.088229218 | P171: 0.005577033436 | AA171: -1.479548241 | AB171: 0 | AC171: -0.4149285138 | AD171: -1.439165755 | AE171: 0.088229218 | AF171: -0.4944229666
B172: 0.00694 | C172: 0.02211 | D172: 0.01536 | E172: 0.023969 | G172: -1.5 | H172: 0.01171801217 | I172: -0.5090554672 | K172: 0.01722659666 | L172: 0 | M172: 0.07975503009 | N172: 0.05483847804 | O172: 0.084394849 | P172: 0.005027366164 | AA172: =K172+$D$5 -> -1.482773403 | AB172: =-L172-$D$6 -> 0 | AC172: =M172+$D$7 -> -0.4202449699 | AD172: =N172+$D$5 -> -1.445161522 | AE172: =O172-$D$6 -> 0.084394849 | AF172: =P172+$D$7 -> -0.4949726338
B173: 0.00598 | C173: 0.02069 | D173: 0.01377 | E173: 0.022869 | G173: -1.5 | H173: 0.01180274276 | I173: -0.5094580254 | K173: 0.01431700081 | L173: 0 | M173: 0.07446750385 | N173: 0.04926346652 | O173: 0.080521749 | P173: 0.004516272033 | AA173: -1.485682999 | AB173: 0 | AC173: -0.4255324961 | AD173: -1.450736533 | AE173: 0.080521749 | AF173: -0.495483728
B174: 0.00513 | C174: 0.01927 | D174: 0.01229 | E174: 0.021758 | G174: -1.5 | H174: 0.01187691653 | I174: -0.509866269 | K174: 0.01179309759 | L174: 0 | M174: 0.06921533633 | N174: 0.04407414763 | O174: 0.076609918 | P174: 0.004040536616 | AA174: -1.488206902 | AB174: 0 | AC174: -0.4307846637 | AD174: -1.455925852 | AE174: 0.076609918 | AF174: -0.4959594634
B175: 0.00437 | C175: 0.01786 | D175: 0.01092 | E175: 0.020636 | G175: -1.5 | H175: 0.01194036191 | I175: -0.510279951 | K175: 0.009581546633 | L175: 0 | M175: 0.06402716163 | N175: 0.03927052136 | O175: 0.072659356 | P175: 0.003600159913 | AA175: -1.490418453 | AB175: 0 | AC175: -0.4359728384 | AD175: -1.460729479 | AE175: 0.072659356 | AF175: -0.4963998401
B176: 0.00371 | C176: 0.01646 | D176: 0.00964 | E176: 0.019514 | G176: -1.5 | H176: 0.01199291276 | I176: -0.5106988199 | K176: 0.007717410899 | L176: 0 | M176: 0.05890619418 | N176: 0.03478246177 | O176: 0.068708794 | P176: 0.003188713065 | AA176: -1.492282589 | AB176: 0 | AC176: -0.4410938058 | AD176: -1.465217538 | AE176: 0.068708794 | AF176: -0.4968112869
B177: 0.00314 | C177: 0.01506 | D177: 0.00846 | E177: 0.018381 | G177: -1.5 | H177: 0.01203440848 | I177: -0.5111226202 | K177: 0.006168841855 | L177: 0 | M177: 0.05381415659 | N177: 0.03064503184 | O177: 0.064719501 | P177: 0.002809410503 | AA177: -1.493831158 | AB177: 0 | AC177: -0.4461858434 | AD177: -1.469354968 | AE177: 0.064719501 | AF177: -0.4971905895
B178: 0.00265 | C178: 0.01367 | D178: 0.00736 | E178: 0.017237 | G178: -1.5 | H178: 0.01206469409 | I178: -0.5115510924 | K178: 0.004897562106 | L178: 0 | M178: 0.04878289739 | N178: 0.02678810564 | O178: 0.060691477 | P178: 0.002455823369 | AA178: -1.495102438 | AB178: 0 | AC178: -0.4512171026 | AD178: -1.473211894 | AE178: 0.060691477 | AF178: -0.4975441766
B179: 0.00223 | C179: 0.0123 | D179: 0.00635 | E179: 0.016071 | G179: -1.5 | H179: 0.0120836203 | I179: -0.511983973 | K179: 0.003865294259 | L179: 0 | M179: 0.04384426512 | N179: 0.02324674612 | O179: 0.056585991 | P179: 0.002131166091 | AA179: -1.496134706 | AB179: 0 | AC179: -0.4561557349 | AD179: -1.476753254 | AE179: 0.056585991 | AF179: -0.4978688339
B180: 0.00187 | C180: 0.01095 | D180: 0.00542 | E180: 0.014905 | G180: -1.5 | H180: 0.01209104366 | I180: -0.512420995 | K180: 0.003036975348 | L180: 0 | M180: 0.03899504535 | N180: 0.01998589033 | O180: 0.052480505 | P180: 0.001832224241 | AA180: -1.496963025 | AB180: 0 | AC180: -0.4610049547 | AD180: -1.48001411 | AE180: 0.052480505 | AF180: -0.4981677758
B181: 0.00156 | C181: 0.00962 | D181: 0.00458 | E181: 0.013739 | G181: -1.5 | H181: 0.01208682658 | I181: -0.5128618873 | K181: 0.002377542407 | L181: 0 | M181: 0.03423202365 | N181: 0.01704060123 | O181: 0.048375019 | P181: 0.001562212248 | AA181: -1.497622458 | AB181: 0 | AC181: -0.4657679763 | AD181: -1.482959399 | AE181: 0.048375019 | AF181: -0.4984377878
B182: 0.00129 | C182: 0.00832 | D182: 0.00381 | E182: 0.012551 | G182: -1.5 | H182: 0.01207083744 | I182: -0.5133063758 | K182: 0.001848718043 | L182: 0 | M182: 0.02958704857 | N182: 0.01434075289 | O182: 0.044192071 | P182: 0.001314701254 | AA182: -1.498151282 | AB182: 0 | AC182: -0.4704129514 | AD182: -1.485659247 | AE182: 0.044192071 | AF182: -0.4986852987
B183: 0.00104 | C183: 0.00704 | D183: 0.00312 | E183: 0.011363 | G183: -1.5 | H183: 0.01204295069 | I183: -0.5137541827 | K183: 0.001383590752 | L183: 0 | M183: 0.02501862827 | N183: 0.01192140827 | O183: 0.040009123 | P183: 0.001092905688 | AA183: -1.498616409 | AB183: 0 | AC183: -0.4749813717 | AD183: -1.488078592 | AE183: 0.040009123 | AF183: -0.4989070943
B184: 0.00081 | C184: 0.00579 | D184: 0.00251 | E184: 0.010164 | G184: -1.5 | H184: 0.01200304687 | I184: -0.514205027 | K184: 0.0009789461076 | L184: 0 | M184: 0.02056182573 | N184: 0.009782567374 | O184: 0.035787444 | P184: 0.0008968255497 | AA184: -1.499021054 | AB184: 0 | AC184: -0.4794381743 | AD184: -1.490217433 | AE184: 0.035787444 | AF184: -0.4991031745
B185: 0.00062 | C185: 0.00457 | D185: 0.00197 | E185: 0.008976 | G185: -1.5 | H185: 0.01195101277 | I185: -0.5146586244 | K185: 0.0007049100394 | L185: 0 | M185: 0.0162230698 | N185: 0.007889167237 | O185: 0.031604496 | P185: 0.000723246411 | AA185: -1.49929509 | AB185: 0 | AC185: -0.4837769302 | AD185: -1.492110833 | AE185: 0.031604496 | AF185: -0.4992767536
B186: 0.00045 | C186: 0.00338 | D186: 0.00149 | E186: 0.007788 | G186: -1.5 | H186: 0.01188674143 | I186: -0.5151146879 | K186: 0.0004913566166 | L186: 0 | M186: 0.01199593162 | N186: 0.006206144893 | O186: 0.027421548 | P186: 0.0005689538433 | AA186: -1.499508643 | AB186: 0 | AC186: -0.4880040684 | AD186: -1.493793855 | AE186: 0.027421548 | AF186: -0.4994310462
B187: 0.00033 | C187: 0.00221 | D187: 0.00109 | E187: 0.006589 | G187: -1.5 | H187: 0.01181013224 | I187: -0.5155729275 | K187: 0.0004466891644 | L187: 0 | M187: 0.007854991515 | N187: 0.004803626273 | O187: 0.023199869 | P187: 0.0004403767036 | AA187: -1.499553311 | AB187: 0 | AC187: -0.4921450085 | AD187: -1.495196374 | AE187: 0.023199869 | AF187: -0.4995596233
B188: 0.00026 | C188: 0.00106 | D188: 0.00075 | E188: 0.005412 | G188: -1.5 | H188: 0.01172109099 | I188: -0.5160330504 | K188: 0.0005709076826 | L188: 0 | M188: 0.003800249484 | N188: 0.003611485446 | O188: 0.019055652 | P188: 0.0003310861348 | AA188: -1.499429092 | AB188: 0 | AC188: -0.4961997505 | AD188: -1.496388515 | AE188: 0.019055652 | AF188: -0.4996689139
B189: 0 | C189: 0 | D189: 0.00047 | E189: 0.004235 | G189: -1.5 | H189: 0.01161952998 | I189: -0.5164947613 | K189: 0 | L189: 0 | M189: 0 | N189: 0.002629722412 | O189: 0.014911435 | P189: 0.000241082137 | AA189: -1.5 | AB189: 0 | AC189: -0.5 | AD189: -1.497370278 | AE189: 0.014911435 | AF189: -0.4997589179
B190: 0.00025 | C190: -9e-05 | D190: 0.00026 | E190: 0.003069 | G190: -1.5 | H190: 0.01150536803 | I190: -0.5169577623 | K190: 0.0009055039939 | L190: 0 | M190: -0.0002352059771 | N190: 0.001893400137 | O190: 0.010805949 | P190: 0.0001735791386 | AA190: -1.499094496 | AB190: 0 | AC190: -0.500235206 | AD190: -1.4981066 | AE190: 0.010805949 | AF190: -0.4998264209
B191: 0.00032 | C191: -0.00124 | D191: 0.00012 | E191: 0.001936 | G191: -1.5 | H191: 0.01137853055 | I191: -0.5174217533 | K191: 0.001520604029 | L191: 0 | M191: -0.00424494601 | N191: 0.00140251862 | O191: 0.006816656 | P191: 0.0001285771397 | AA191: -1.498479396 | AB191: 0 | AC191: -0.504244946 | AD191: -1.498597481 | AE191: 0.006816656 | AF191: -0.4998714229
B192: 0.00048 | C192: -0.00239 | D192: 3e-05 | E192: 0.000803 | G192: -1.5 | H192: 0.01123894962 | I192: -0.5178864319 | K192: 0.002451270754 | L192: 0 | M192: -0.008225756186 | N192: 0.00108695193 | O192: 0.002827363 | P192: 9.964728329e-05 | AA192: -1.497548729 | AB192: 0 | AC192: -0.5082257562 | AD192: -1.498913048 | AE192: 0.002827363 | AF192: -0.4999003527
B193: 0.00074 | C193: -0.00355 | D193: -0.00028 | E193: 0 | G193: -1.5 | H193: 0.01108656403 | I193: -0.5183514938 | K193: 0.003735781562 | L193: 0 | M193: -0.01220948504 | N193: 0 | O193: 0 | P193: 0 | AA193: -1.496264218 | AB193: 0 | AC193: -0.512209485 | AD193: -1.5 | AE193: 0 | AF193: -0.5
B194: 0.00111 | C194: -0.00471 | D194: 3e-05 | E194: -0.00143 | G194: -1.5 | H194: 0.01092131931 | I194: -0.5188166326 | K194: 0.005405984991 | L194: 0 | M194: -0.01615785519 | N194: 0.00108695193 | O194: -0.00503503 | P194: 9.964728329e-05 | AA194: -1.494594015 | AB194: 0 | AC194: -0.5161578552 | AD194: -1.498913048 | AE194: -0.00503503 | AF194: -0.4999003527
B195: 0.00158 | C195: -0.00585 | D195: 0.00013 | E195: -0.002552 | G195: -1.5 | H195: 0.01074316781 | I195: -0.5192815405 | K195: 0.007420389217 | L195: 0 | M195: -0.02000395511 | N195: 0.001437581585 | O195: -0.008985592 | P195: 0.0001317915682 | AA195: -1.492579611 | AB195: 0 | AC195: -0.5200039551 | AD195: -1.498562418 | AE195: -0.008985592 | AF195: -0.4998682084
B196: 0.00216 | C196: -0.00699 | D196: 0.00031 | E196: -0.003696 | G196: -1.5 | H196: 0.01055206873 | I196: -0.5197459076 | K196: 0.009820486064 | L196: 0 | M196: -0.02381469633 | N196: 0.002068714964 | O196: -0.013013616 | P196: 0.0001896512811 | AA196: -1.490179514 | AB196: 0 | AC196: -0.5238146963 | AD196: -1.497931285 | AE196: -0.013013616 | AF196: -0.4998103487
B197: 0.00283 | C197: -0.00812 | D197: 0.00058 | E197: -0.00484 | G197: -1.5 | H197: 0.01034798815 | I197: -0.520209423 | K197: 0.01253293517 | L197: 0 | M197: -0.02756144472 | N197: 0.003015415033 | O197: -0.01704164 | P197: 0.0002764408504 | AA197: -1.487467065 | AB197: 0 | AC197: -0.5275614447 | AD197: -1.496984585 | AE197: -0.01704164 | AF197: -0.4997235591
B198: 0.00357 | C198: -0.00924 | D198: 0.00093 | E198: -0.005995 | G198: -1.5 | H198: 0.01013089909 | I198: -0.520671774 | K198: 0.01548761061 | L198: 0 | M198: -0.03125062915 | N198: 0.004242618825 | O198: -0.021108395 | P198: 0.0003889458477 | AA198: -1.484512389 | AB198: 0 | AC198: -0.5312506291 | AD198: -1.495757381 | AE198: -0.021108395 | AF198: -0.4996110542
B199: 0.00438 | C199: -0.01036 | D199: 0.00137 | E199: -0.007139 | G199: -1.5 | H199: 0.009900781526 | I199: -0.5211326472 | K199: 0.01868772681 | L199: 0 | M199: -0.03491731258 | N199: 0.005785389307 | O199: -0.025136419 | P199: 0.0005303807014 | AA199: -1.481312273 | AB199: 0 | AC199: -0.5349173126 | AD199: -1.494214611 | AE199: -0.025136419 | AF199: -0.4994696193
B200: 0.00526 | C200: -0.01149 | D200: 0.00188 | E200: -0.008283 | G200: -1.5 | H200: 0.009657622446 | I200: -0.5215917279 | K200: 0.02213649819 | L200: 0 | M200: -0.03859655797 | N200: 0.007573600547 | O200: -0.029164443 | P200: 0.0006943165546 | AA200: -1.477863502 | AB200: 0 | AC200: -0.538596558 | AD200: -1.492426399 | AE200: -0.029164443 | AF200: -0.4993056834
B201: 0.00619 | C201: -0.01263 | D201: 0.00247 | E201: -0.009416 | G201: -1.5 | H201: 0.009401415849 | I201: -0.5220487005 | K201: 0.02576379883 | L201: 0 | M201: -0.04229479419 | N201: 0.009642315512 | O201: -0.033153736 | P201: 0.0008839678357 | AA201: -1.474236201 | AB201: 0 | AC201: -0.5422947942 | AD201: -1.490357684 | AE201: -0.033153736 | AF201: -0.4991160322
B202: 0.00717 | C202: -0.01379 | D202: 0.00313 | E202: -0.01056 | G202: -1.5 | H202: 0.009132162795 | I202: -0.5225032488 | K202: 0.02957284315 | L202: 0 | M202: -0.04604708419 | N202: 0.01195647123 | O202: -0.03718176 | P202: 0.001096120116 | AA202: -1.470427157 | AB202: 0 | AC202: -0.5460470842 | AD202: -1.488043529 | AE202: -0.03718176 | AF202: -0.4989038799
B203: 0.00822 | C203: -0.01496 | D203: 0.00386 | E203: -0.011693 | G203: -1.5 | H203: 0.008849871415 | I203: -0.522955056 | K203: 0.03363054266 | L203: 0 | M203: -0.04981193616 | N203: 0.01451606772 | O203: -0.041171053 | P203: 0.001330773396 | AA203: -1.466369457 | AB203: 0 | AC203: -0.5498119362 | AD203: -1.485483932 | AE203: -0.041171053 | AF203: -0.4986692266
B204: 0.00933 | C204: -0.01615 | D204: 0.00466 | E204: -0.012826 | G204: -1.5 | H204: 0.00855455694 | I204: -0.5234038047 | K204: 0.03790504883 | L204: 0 | M204: -0.05362762749 | N204: 0.01732110496 | O204: -0.045160346 | P204: 0.001587927676 | AA204: -1.462094951 | AB204: 0 | AC204: -0.5536276275 | AD204: -1.482678895 | AE204: -0.045160346 | AF204: -0.4984120723
B205: 0.01051 | C205: -0.01735 | D205: 0.00554 | E205: -0.013959 | G205: -1.5 | H205: 0.008246241712 | I205: -0.5238491776 | K205: 0.04242821017 | L205: 0 | M205: -0.05745588079 | N205: 0.02040664592 | O205: -0.049149639 | P205: 0.001870797383 | AA205: -1.45757179 | AB205: 0 | AC205: -0.5574558808 | AD205: -1.479593354 | AE205: -0.049149639 | AF205: -0.4981292026
B206: 0.01175 | C206: -0.01857 | D206: 0.00649 | E206: -0.015092 | G206: -1.5 | H206: 0.0079249552 | I206: -0.5242908569 | K206: 0.04716817817 | L206: 0 | M206: -0.06133497345 | N206: 0.02373762764 | O206: -0.053138932 | P206: 0.00217616809 | AA206: -1.452831822 | AB206: 0 | AC206: -0.5613349734 | AD206: -1.476262372 | AE206: -0.053138932 | AF206: -0.4978238319
B207: 0.01307 | C207: -0.0198 | D207: 0.00752 | E207: -0.016214 | G207: -1.5 | H207: 0.007590734008 | I207: -0.5247285249 | K207: 0.05219186432 | L207: 0 | M207: -0.06522341364 | N207: 0.02734911309 | O207: -0.057089494 | P207: 0.002507254225 | AA207: -1.447808136 | AB207: 0 | AC207: -0.5652234136 | AD207: -1.472650887 | AE207: -0.057089494 | AF207: -0.4974927458
B208: 0.01448 | C208: -0.02105 | D208: 0.00864 | E208: -0.017336 | G208: -1.5 | H208: 0.007243621888 | I208: -0.5251618643 | K208: 0.05753754602 | L208: 0 | M208: -0.06915304991 | N208: 0.03127616522 | O208: -0.061040056 | P208: 0.002867270216 | AA208: -1.442462454 | AB208: 0 | AC208: -0.5691530499 | AD208: -1.468723835 | AE208: -0.061040056 | AF208: -0.4971327298
